Workbook

Sheet Data
A1: Notation & Variables: | M1: GLM Bootstrap: | Y1: ODP Bootstrap:
A3: Cumulative Data | M3: Cumulative Data | Y3: Fitted Cumulative Data
B4: 1 | C4: 2 | D4: 3 | E4: 4 | F4: 5 | G4: 6 | N4: 1 | O4: 2 | P4: 3 | Q4: 4 | R4: 5 | S4: 6 | Z4: 1 | AA4: 2 | AB4: 3 | AC4: 4 | AD4: 5 | AE4: 6
A5: 1 | B5: ="c("&$A5&","&B$4&")" -> c(1,1) | C5: c(1,2) | D5: c(1,3) | E5: c(1,4) | F5: c(1,5) | G5: c(1,6) | M5: 1 | N5: 95 | O5: 150 | P5: 170 | Q5: 200 | R5: 215 | S5: 220 | Y5: 1 | Z5: =AA5/O$11 -> 112.6922475 | AA5: =AB5/P$11 -> 155.5470458 | AB5: =AC5/Q$11 -> 178.23099 | AC5: =AD5/R$11 -> 204.8823529 | AD5: =AE5/S$11 -> 215 | AE5: =S5 -> 220
A6: 2 | B6: ="c("&$A6&","&B$4&")" -> c(2,1) | C6: c(2,2) | D6: c(2,3) | E6: c(2,4) | F6: c(2,5) | M6: 2 | N6: 110 | O6: 160 | P6: 175 | Q6: 205 | R6: 210 | Y6: 2 | Z6: =AA6/O$11 -> 110.0714975 | AA6: =AB6/P$11 -> 151.9296726 | AB6: =AC6/Q$11 -> 174.0860832 | AC6: =AD6/R$11 -> 200.1176471 | AD6: =R6 -> 210
A7: 3 | B7: c(3,1) | C7: c(3,2) | D7: c(3,3) | E7: c(3,4) | M7: 3 | N7: 105 | O7: 165 | P7: 190 | Q7: 210 | Y7: 3 | Z7: =AA7/O$11 -> 115.507127 | AA7: =AB7/P$11 -> 159.4323725 | AB7: =AC7/Q$11 -> 182.6829268 | AC7: =Q7 -> 210
A8: 4 | B8: c(4,1) | C8: c(4,2) | D8: c(4,3) | M8: 4 | N8: 120 | O8: 155 | P8: 185 | Y8: 4 | Z8: =AA8/O$11 -> 116.9721707 | AA8: =AB8/P$11 -> 161.4545455 | AB8: =P8 -> 185
A9: 5 | B9: c(5,1) | C9: c(5,2) | M9: 5 | N9: 130 | O9: 170 | Y9: 5 | Z9: =AA9/O$11 -> 123.1632653 | AA9: =O9 -> 170
A10: 6 | B10: c(6,1) | M10: 6 | N10: 125 | Y10: 6 | Z10: =N10 -> 125
N11: Factors: | O11: =SUM(O7:O9)/SUM(N7:N9) -> 1.38028169 | P11: =SUM(P6:P8)/SUM(O6:O8) -> 1.145833333 | Q11: =SUM(Q5:Q7)/SUM(P5:P7) -> 1.14953271 | R11: =SUM(R5:R6)/SUM(Q5:Q6) -> 1.049382716 | S11: =S5/R5 -> 1.023255814
A12: Incremental Data | M12: Incremental Data | Y12: Fitted Incremental Data
B13: 1 | C13: 2 | D13: 3 | E13: 4 | F13: 5 | G13: 6 | N13: 1 | O13: 2 | P13: 3 | Q13: 4 | R13: 5 | S13: 6 | Z13: 1 | AA13: 2 | AB13: 3 | AC13: 4 | AD13: 5 | AE13: 6
A14: 1 | B14: ="q("&$A14&","&B$4&")" -> q(1,1) | C14: ="q("&$A14&","&C$4&")" -> q(1,2) | D14: q(1,3) | E14: q(1,4) | F14: q(1,5) | G14: ="q("&$A14&","&G$4&")" -> q(1,6) | M14: 1 | N14: =N5 -> 95 | O14: =O5-N5 -> 55 | P14: =P5-O5 -> 20 | Q14: =Q5-P5 -> 30 | R14: =R5-Q5 -> 15 | S14: =S5-R5 -> 5 | Y14: 1 | Z14: =Z5 -> 112.6922475 | AA14: =AA5-Z5 -> 42.85479833 | AB14: =AB5-AA5 -> 22.68394418 | AC14: =AC5-AB5 -> 26.65136298 | AD14: =AD5-AC5 -> 10.11764706 | AE14: =AE5-AD5 -> 5
A15: 2 | B15: q(2,1) | C15: q(2,2) | D15: q(2,3) | E15: q(2,4) | F15: q(2,5) | M15: 2 | N15: 110 | O15: =O6-N6 -> 50 | P15: =P6-O6 -> 15 | Q15: =Q6-P6 -> 30 | R15: =R6-Q6 -> 5 | Y15: 2 | Z15: 110.0714975 | AA15: =AA6-Z6 -> 41.85817511 | AB15: =AB6-AA6 -> 22.15641059 | AC15: =AC6-AB6 -> 26.03156385 | AD15: =AD6-AC6 -> 9.882352941
A16: 3 | B16: q(3,1) | C16: q(3,2) | D16: q(3,3) | E16: q(3,4) | M16: 3 | N16: 105 | O16: =O7-N7 -> 60 | P16: =P7-O7 -> 25 | Q16: =Q7-P7 -> 20 | Y16: 3 | Z16: 115.507127 | AA16: =AA7-Z7 -> 43.92524549 | AB16: =AB7-AA7 -> 23.25055432 | AC16: =AC7-AB7 -> 27.31707317
A17: 4 | B17: q(4,1) | C17: q(4,2) | D17: q(4,3) | M17: 4 | N17: 120 | O17: =O8-N8 -> 35 | P17: =P8-O8 -> 30 | Y17: 4 | Z17: 116.9721707 | AA17: =AA8-Z8 -> 44.48237477 | AB17: =AB8-AA8 -> 23.54545455
A18: 5 | B18: q(5,1) | C18: q(5,2) | M18: 5 | N18: 130 | O18: =O9-N9 -> 40 | Y18: 5 | Z18: 123.1632653 | AA18: =AA9-Z9 -> 46.83673469
A19: 6 | B19: q(6,1) | M19: 6 | N19: 125 | Y19: 6 | Z19: 125
A21: Log-Link of Incremental Data | M21: Log-Link of Incremental Data
B22: 1 | C22: 2 | D22: 3 | E22: 4 | F22: 5 | G22: 6 | N22: 1 | O22: 2 | P22: 3 | Q22: 4 | R22: 5 | S22: 6
A23: 1 | B23: ="ln[q("&$A23&","&B$4&")]" -> ln[q(1,1)] | C23: ="ln[q("&$A23&","&C$4&")]" -> ln[q(1,2)] | D23: ln[q(1,3)] | E23: ="ln[q("&$A23&","&E$4&")]" -> ln[q(1,4)] | F23: ="ln[q("&$A23&","&F$4&")]" -> ln[q(1,5)] | G23: ="ln[q("&$A23&","&G$4&")]" -> ln[q(1,6)] | M23: 1 | N23: =LN(N14) -> 4.553876892 | O23: =LN(O14) -> 4.007333185 | P23: 2.995732274 | Q23: =LN(Q14) -> 3.401197382 | R23: =LN(R14) -> 2.708050201 | S23: =LN(S14) -> 1.609437912
A24: 2 | B24: ln[q(2,1)] | C24: ln[q(2,2)] | D24: ln[q(2,3)] | E24: ln[q(2,4)] | F24: ln[q(2,5)] | M24: 2 | N24: 4.700480366 | O24: 3.912023005 | P24: 2.708050201 | Q24: =LN(Q15) -> 3.401197382 | R24: 1.609437912
A25: 3 | B25: ln[q(3,1)] | C25: ln[q(3,2)] | D25: ln[q(3,3)] | E25: ln[q(3,4)] | M25: 3 | N25: 4.65396035 | O25: 4.094344562 | P25: =LN(P16) -> 3.218875825 | Q25: =LN(Q16) -> 2.995732274
A26: 4 | B26: ln[q(4,1)] | C26: ln[q(4,2)] | D26: ln[q(4,3)] | M26: 4 | N26: 4.787491743 | O26: =LN(O17) -> 3.555348061 | P26: =LN(P17) -> 3.401197382
A27: 5 | B27: ln[q(5,1)] | C27: ln[q(5,2)] | M27: 5 | N27: 4.86753445 | O27: =LN(O18) -> 3.688879454
A28: 6 | B28: ln[q(6,1)] | M28: 6 | N28: 4.828313737
AO29: Model Parameters from Maximum Likelihood
A30: Design Matrix | AA30: α1 | AB30: α2 | AC30: α3 | AD30: α4 | AE30: α5 | AF30: α6 | AG30: β2 | AH30: β3 | AI30: β4 | AJ30: β5 | AK30: β6 | AM30: X x A | AP30: Actual | AR30: Estimate | AS30: Loglikelihood | AV30: Maximum Likelihood Steps:
A31: X | B31: 1 | C31: 0 | D31: 0 | E31: 0 | F31: 0 | G31: 0 | H31: 0 | I31: 0 | J31: 0 | K31: 0 | L31: 0 | N31: 0 | O31: 0 | P31: 1 | Q31: 0 | R31: 0 | S31: 0 | T31: 0 | U31: 0 | V31: 0 | W31: 0 | X31: 0 | Z31: A | AA31: 4.88577086 | AB31: 4.725727813 | AC31: 4.756620388 | AD31: 4.760653906 | AE31: 4.802570195 | AF31: 4.828308859 | AG31: -0.9277081369 | AH31: -0.7428860514 | AI31: 0.1622008194 | AJ31: -0.9979704644 | AK31: -0.7699788251 | AM31: =SUMPRODUCT(N31:X31,$AA$31:$AK$31) -> 4.756620388 | AO31: q(3,1) | AP31: =N16 -> 105 | AQ31: m3,1 | AR31: =EXP(AM31) -> 116.3520359 | AS31: =IF($F$55=0,-(((AP31-AR31)^2)/2)-0.5*LN(2*PI()),IF($F$55=1,-AR31+LN(AR31)*AP31-GAMMALN(AP31+1),IF($F$55=2,-LN(AR31)-AP31/AR31,-0.5*(LN(2*PI())+3*LN(AP31))-(AP31-AR31)^2/(2*AR31^2*AP31)))) -> -3.819444322 | AU31: 1) | AV31: Enter Starting Values for vector A (Row 31)
B32: 0 | C32: 1 | D32: 0 | E32: 0 | F32: 0 | G32: 0 | H32: 0 | I32: 0 | J32: 0 | K32: 0 | L32: 0 | N32: 0 | O32: 0 | P32: 0 | Q32: 1 | R32: 0 | S32: 0 | T32: 0 | U32: 0 | V32: 0 | W32: 0 | X32: 0 | AM32: =SUMPRODUCT(N32:X32,$AA$31:$AK$31) -> 4.760653906 | AO32: q(4,1) | AP32: =N17 -> 120 | AQ32: m4,1 | AR32: =EXP(AM32) -> 116.8222918 | AS32: =IF($F$55=0,-(((AP32-AR32)^2)/2)-0.5*LN(2*PI()),IF($F$55=1,-AR32+LN(AR32)*AP32-GAMMALN(AP32+1),IF($F$55=2,-LN(AR32)-AP32/AR32,-0.5*(LN(2*PI())+3*LN(AP32))-(AP32-AR32)^2/(2*AR32^2*AP32)))) -> -3.356210986 | AU32: 2) | AV32: Use Solver to Maximize Total Loglikelihood
B33: 0 | C33: 0 | D33: 1 | E33: 0 | F33: 0 | G33: 0 | H33: 0 | I33: 0 | J33: 0 | K33: 0 | L33: 0 | N33: 0 | O33: 0 | P33: 0 | Q33: 0 | R33: 1 | S33: 0 | T33: 0 | U33: 0 | V33: 0 | W33: 0 | X33: 0 | AM33: 4.802570195 | AO33: q(5,1) | AP33: =N18 -> 130 | AQ33: m5,1 | AR33: 121.8231247 | AS33: -3.621824665
B34: 0 | C34: 0 | D34: 0 | E34: 1 | F34: 0 | G34: 0 | H34: 0 | I34: 0 | J34: 0 | K34: 0 | L34: 0 | N34: 0 | O34: 0 | P34: 0 | Q34: 0 | R34: 0 | S34: 1 | T34: 0 | U34: 0 | V34: 0 | W34: 0 | X34: 0 | AM34: 4.828308859 | AO34: q(6,1) | AP34: =N19 -> 125 | AQ34: m6,1 | AR34: 124.9993902 | AS34: -3.333762069
B35: 0 | C35: 0 | D35: 0 | E35: 0 | F35: 1 | G35: 0 | H35: 0 | I35: 0 | J35: 0 | K35: 0 | L35: 0 | N35: 0 | O35: 1 | P35: 0 | Q35: 0 | R35: 0 | S35: 0 | T35: 1 | U35: 0 | V35: 0 | W35: 0 | X35: 0 | AM35: 3.798019676 | AO35: q(2,2) | AP35: =O15 -> 50 | AQ35: m2,2 | AR35: 44.61274925 | AS35: -3.189532411
B36: 0 | C36: 0 | D36: 0 | E36: 0 | F36: 0 | G36: 1 | H36: 0 | I36: 0 | J36: 0 | K36: 0 | L36: 0 | N36: 0 | O36: 0 | P36: 1 | Q36: 0 | R36: 0 | S36: 0 | T36: 1 | U36: 0 | V36: 0 | W36: 0 | X36: 0 | AM36: 3.828912251 | AO36: q(3,2) | AP36: =O16 -> 60 | AQ36: m3,2 | AR36: 46.012461 | AS36: -4.905899358
B37: 1 | C37: 0 | D37: 0 | E37: 0 | F37: 0 | G37: 0 | H37: 1 | I37: 0 | J37: 0 | K37: 0 | L37: 0 | N37: 0 | O37: 0 | P37: 0 | Q37: 1 | R37: 0 | S37: 0 | T37: 1 | U37: 0 | V37: 0 | W37: 0 | X37: 0 | AM37: 3.832945769 | AO37: q(4,2) | AP37: =O17 -> 35 | AQ37: m4,2 | AR37: 46.1984279 | AS37: -4.181501576
B38: 0 | C38: 1 | D38: 0 | E38: 0 | F38: 0 | G38: 0 | H38: 1 | I38: 0 | J38: 0 | K38: 0 | L38: 0 | N38: 0 | O38: 0 | P38: 0 | Q38: 0 | R38: 1 | S38: 0 | T38: 1 | U38: 0 | V38: 0 | W38: 0 | X38: 0 | AM38: 3.874862058 | AO38: q(5,2) | AP38: =O18 -> 40 | AQ38: m5,2 | AR38: 48.17605234 | AS38: -3.502209728
B39: 0 | C39: 0 | D39: 1 | E39: 0 | F39: 0 | G39: 0 | H39: 1 | I39: 0 | J39: 0 | K39: 0 | L39: 0 | M39: => | N39: 1 | O39: 0 | P39: 0 | Q39: 0 | R39: 0 | S39: 0 | T39: 1 | U39: 1 | V39: 0 | W39: 0 | X39: 0 | AM39: 3.215176672 | AO39: q(1,3) | AP39: =P14 -> 20 | AQ39: m1,3 | AR39: 24.907692 | AS39: -2.939775033
B40: 0 | C40: 0 | D40: 0 | E40: 1 | F40: 0 | G40: 0 | H40: 1 | I40: 0 | J40: 0 | K40: 0 | L40: 0 | N40: 0 | O40: 1 | P40: 0 | Q40: 0 | R40: 0 | S40: 0 | T40: 1 | U40: 1 | V40: 0 | W40: 0 | X40: 0 | AM40: 3.055133625 | AO40: q(2,3) | AP40: =P15 -> 15 | AQ40: m2,3 | AR40: 21.22402139 | AS40: -3.296288403
B41: 0 | C41: 0 | D41: 0 | E41: 0 | F41: 1 | G41: 0 | H41: 1 | I41: 0 | J41: 0 | K41: 0 | L41: 0 | N41: 0 | O41: 0 | P41: 1 | Q41: 0 | R41: 0 | S41: 0 | T41: 1 | U41: 1 | V41: 0 | W41: 0 | X41: 0 | AM41: 3.0860262 | AO41: q(3,3) | AP41: =P16 -> 25 | AQ41: m3,3 | AR41: 21.88991875 | AS41: -2.742868979
B42: 1 | C42: 0 | D42: 0 | E42: 0 | F42: 0 | G42: 0 | H42: 1 | I42: 1 | J42: 0 | K42: 0 | L42: 0 | N42: 0 | O42: 0 | P42: 0 | Q42: 1 | R42: 0 | S42: 0 | T42: 1 | U42: 1 | V42: 0 | W42: 0 | X42: 0 | AM42: 3.090059718 | AO42: q(4,3) | AP42: =P17 -> 30 | AQ42: m4,3 | AR42: 21.97839044 | AS42: -3.934835251
B43: 0 | C43: 1 | D43: 0 | E43: 0 | F43: 0 | G43: 0 | H43: 1 | I43: 1 | J43: 0 | K43: 0 | L43: 0 | N43: 1 | O43: 0 | P43: 0 | Q43: 0 | R43: 0 | S43: 0 | T43: 1 | U43: 1 | V43: 1 | W43: 0 | X43: 0 | AM43: 3.377377491 | AO43: q(1,4) | AP43: =Q14 -> 30 | AQ43: m1,4 | AR43: 29.29384691 | AS43: -2.630758532
B44: 0 | C44: 0 | D44: 1 | E44: 0 | F44: 0 | G44: 0 | H44: 1 | I44: 1 | J44: 0 | K44: 0 | L44: 0 | N44: 0 | O44: 1 | P44: 0 | Q44: 0 | R44: 0 | S44: 0 | T44: 1 | U44: 1 | V44: 1 | W44: 0 | X44: 0 | AM44: 3.217334444 | AO44: q(2,4) | AP44: =Q15 -> 30 | AQ44: m2,4 | AR44: 24.96149516 | AS44: -3.09969819
B45: 0 | C45: 0 | D45: 0 | E45: 1 | F45: 0 | G45: 0 | H45: 1 | I45: 1 | J45: 0 | K45: 0 | L45: 0 | N45: 0 | O45: 0 | P45: 1 | Q45: 0 | R45: 0 | S45: 0 | T45: 1 | U45: 1 | V45: 1 | W45: 0 | X45: 0 | AM45: 3.248227019 | AO45: q(3,4) | AP45: =Q16 -> 20 | AQ45: m3,4 | AR45: 25.74465465 | AS45: -3.115730727
B46: 1 | C46: 0 | D46: 0 | E46: 0 | F46: 0 | G46: 0 | H46: 1 | I46: 1 | J46: 1 | K46: 0 | L46: 0 | N46: 1 | O46: 0 | P46: 0 | Q46: 0 | R46: 0 | S46: 0 | T46: 1 | U46: 1 | V46: 1 | W46: 1 | X46: 0 | AM46: 2.379407027 | AO46: q(1,5) | AP46: =R14 -> 15 | AQ46: m1,5 | AR46: 10.79849774 | AS46: -3.006663728
B47: 0 | C47: 1 | D47: 0 | E47: 0 | F47: 0 | G47: 0 | H47: 1 | I47: 1 | J47: 1 | K47: 0 | L47: 0 | N47: 0 | O47: 1 | P47: 0 | Q47: 0 | R47: 0 | S47: 0 | T47: 1 | U47: 1 | V47: 1 | W47: 1 | X47: 0 | AM47: 2.21936398 | AO47: q(2,5) | AP47: =R15 -> 5 | AQ47: m2,5 | AR47: 9.201476677 | AS47: -2.892148522
B48: 0 | C48: 0 | D48: 1 | E48: 0 | F48: 0 | G48: 0 | H48: 1 | I48: 1 | J48: 1 | K48: 0 | L48: 0 | N48: 1 | O48: 0 | P48: 0 | Q48: 0 | R48: 0 | S48: 0 | T48: 1 | U48: 1 | V48: 1 | W48: 1 | X48: 1 | AM48: 1.609428202 | AO48: q(1,6) | AP48: =S14 -> 5 | AQ48: m1,6 | AR48: 4.999951446 | AS48: -1.740302181
B49: 1 | C49: 0 | D49: 0 | E49: 0 | F49: 0 | G49: 0 | H49: 1 | I49: 1 | J49: 1 | K49: 1 | L49: 0
B50: 0 | C50: 1 | D50: 0 | E50: 0 | F50: 0 | G50: 0 | H50: 1 | I50: 1 | J50: 1 | K50: 1 | L50: 0 | AP50: =COUNTIF(AP31:AP48,"<>0") -> 18 | AR50: Total | AS50: =SUM(AS31:AS48) -> -59.30945466
B51: 1 | C51: 0 | D51: 0 | E51: 0 | F51: 0 | G51: 0 | H51: 1 | I51: 1 | J51: 1 | K51: 1 | L51: 1
A53: Model Parameters from Iteratively Weighted Least Squares
B54: Value | C54: t-Stat | D54: p-Value | F54: Error Distribution
A55: α1 | B55: =GLM!BV130 -> 4.885778405 | C55: =B55/SQRT(ScaleParameter*GLM!AO130) -> 15.28151756 | D55: =_xlfn.T.DIST.2T(ABS(C55),$T$113) -> 1.237918625e-06 | E55: z = | F55: 1 | AJ55: 0 | AK55: Normal
A56: α2 | B56: =GLM!BV131 -> 4.725737617 | C56: =(B56-B55)/SQRT(ScaleParameter*GLM!AP131) -> -0.6417576646 | D56: =_xlfn.T.DIST.2T(ABS(C56),$T$113) -> 0.5414671797 | F56: =VLOOKUP(F55,ErrorTable,2) -> Poisson | AJ56: 1 | AK56: Poisson
A57: α3 | B57: =GLM!BV132 -> 4.756628035 | C57: =(B57-B55)/SQRT(ScaleParameter*GLM!AQ132) -> -0.8917680247 | D57: =_xlfn.T.DIST.2T(ABS(C57),$T$113) -> 0.4021295114 | AJ57: 2 | AK57: Gamma
A58: α4 | B58: =GLM!BV133 -> 4.760661235 | C58: =(B58-B55)/SQRT(ScaleParameter*GLM!AR133) -> -0.860398452 | D58: 0.4180608289 | AJ58: 3 | AK58: Inverse Gaussian
A59: α5 | B59: =GLM!BV134 -> 4.802576775 | C59: =(B59-B55)/SQRT(ScaleParameter*GLM!AS134) -> -0.5669309666 | D59: 0.588470507
A60: α6 | B60: =GLM!BV135 -> 4.828313737 | C60: =(B60-B55)/SQRT(ScaleParameter*GLM!AT135) -> -0.3561584118 | D60: 0.7322145551
A61: β2 | B61: =GLM!BV136 -> -0.9277142741 | C61: =B61/SQRT(ScaleParameter*GLM!AU136) -> -5.370556946 | D61: 0.001040888605
A62: β3 | B62: =GLM!BV137 -> -0.7428882151 | C62: =B62/SQRT(ScaleParameter*GLM!AV137) -> -2.977303068 | D62: 0.02059341946
A63: β4 | B63: =GLM!BV138 -> 0.1622008783 | C63: =B63/SQRT(ScaleParameter*GLM!AW138) -> 0.5757770389 | D63: 0.5827944126
A64: β5 | B64: =GLM!BV139 -> -0.997969528 | C64: =B64/SQRT(ScaleParameter*GLM!AX139) -> -2.182655413 | D64: 0.06538388379
A65: β6 | B65: =GLM!BV140 -> -0.7699693536 | C65: =B65/SQRT(ScaleParameter*GLM!AY140) -> -0.8435574613 | D65: 0.4267996284
A67: Log-Link of Fitted Values | M67: Log-Link of Fitted Values
B68: 1 | C68: 2 | D68: 3 | E68: 4 | F68: 5 | G68: 6 | N68: 1 | O68: 2 | P68: 3 | Q68: 4 | R68: 5 | S68: 6
A69: 1 | B69: ln[m1,1] | C69: ln[m1,2] | D69: ln[m1,3] | E69: ln[m1,4] | F69: ln[m1,5] | G69: ln[m1,6] | M69: 1 | N69: =B55 -> 4.885778405 | O69: =B55+B61 -> 3.958064131 | P69: =B55+B61+B62 -> 3.215175916 | Q69: =B55+B61+B62+B63 -> 3.377376794 | R69: =B55+B61+B62+B63+B64 -> 2.379407266 | S69: =B55+B61+B62+B63+B64+B65 -> 1.609437912
A70: 2 | B70: ln[m2,1] | C70: ln[m2,2] | D70: ln[m2,3] | E70: ln[m2,4] | F70: ln[m2,5] | M70: 2 | N70: 4.725737617 | O70: =B56+B61 -> 3.798023343 | P70: =B56+B61+B62 -> 3.055135128 | Q70: =B56+B61+B62+B63 -> 3.217336006 | R70: =B56+B61+B62+B63+B64 -> 2.219366479
A71: 3 | B71: ln[m3,1] | C71: ln[m3,2] | D71: ln[m3,3] | E71: ln[m3,4] | M71: 3 | N71: 4.756628035 | O71: =B57+B61 -> 3.828913761 | P71: =B57+B61+B62 -> 3.086025546 | Q71: =B57+B61+B62+B63 -> 3.248226425
A72: 4 | B72: ln[m4,1] | C72: ln[m4,2] | D72: ln[m4,3] | M72: 4 | N72: 4.760661235 | O72: =B58+B61 -> 3.832946961 | P72: =B58+B61+B62 -> 3.090058746
A73: 5 | B73: ln[m5,1] | C73: ln[m5,2] | M73: 5 | N73: 4.802576775 | O73: =B59+B61 -> 3.874862501
A74: 6 | B74: ln[m6,1] | M74: 6 | N74: 4.828313737
A76: Fitted Incremental Values | M76: Fitted Incremental Values
B77: 1 | C77: 2 | D77: 3 | E77: 4 | F77: 5 | G77: 6 | N77: 1 | O77: 2 | P77: 3 | Q77: 4 | R77: 5 | S77: 6 | AJ77: 1 | AK77: 2 | AL77: 3 | AM77: 4 | AN77: 5 | AO77: 6
A78: 1 | B78: m1,1 | C78: m1,2 | D78: m1,3 | E78: m1,4 | F78: m1,5 | G78: m1,6 | M78: 1 | N78: =EXP(N69) -> 132.393481 | O78: =EXP(O69) -> 52.35587366 | P78: 24.90767318 | Q78: =EXP(Q69) -> 29.2938265 | R78: =EXP(R69) -> 10.79850033 | S78: =EXP(S69) -> 5 | AI78: 1 | AJ78: =N78-Z14 -> 19.70123351 | AK78: 9.50107533 | AL78: 2.223728999 | AM78: 2.642463511 | AN78: 0.6808532699 | AO78: 0
A79: 2 | B79: m2,1 | C79: m2,2 | D79: m2,3 | E79: m2,4 | F79: m2,5 | M79: 2 | N79: 112.813681 | O79: 44.61291287 | P79: 21.2240533 | Q79: =EXP(Q70) -> 24.96153416 | R79: 9.201499671 | AI79: 2 | AJ79: =N79-Z15 -> 2.742183507 | AK79: =O79-AA15 -> 2.754737755 | AL79: =P79-AB15 -> -0.9323572908 | AM79: =Q79-AC15 -> -1.070029682 | AN79: =R79-AD15 -> -0.6808532699
A80: 3 | B80: m3,1 | C80: m3,2 | D80: m3,3 | E80: m3,4 | M80: 3 | N80: 116.3529257 | O80: 46.01253049 | P80: =EXP(P71) -> 21.88990444 | Q80: =EXP(Q71) -> 25.74463934 | AI80: 3 | AJ80: =N80-Z16 -> 0.8457987103 | AK80: =O80-AA16 -> 2.087285 | AL80: =P80-AB16 -> -1.360649881 | AM80: =Q80-AC16 -> -1.572433829
A81: 4 | B81: m4,1 | C81: m4,2 | D81: m4,3 | M81: 4 | N81: 116.823148 | O81: =EXP(O72) -> 46.19848296 | P81: =EXP(P72) -> 21.97836908 | AI81: 4 | AJ81: =N81-Z17 -> -0.1490227301 | AK81: =O81-AA17 -> 1.716108194 | AL81: =P81-AB17 -> -1.567085464
A82: 5 | B82: m5,1 | C82: m5,2 | M82: 5 | N82: 121.8239263 | O82: =EXP(O73) -> 48.17607369 | AI82: 5 | AJ82: =N82-Z18 -> -1.339338992 | AK82: =O82-AA18 -> 1.339338992
A83: 6 | B83: m6,1 | M83: 6 | N83: 125 | AI83: 6 | AJ83: =N83-Z19 -> 0
A85: Unscaled Pearson Residuals | M85: Unscaled Pearson Residuals | Y85: Unscaled Pearson Residuals
B86: 1 | C86: 2 | D86: 3 | E86: 4 | F86: 5 | G86: 6 | N86: 1 | O86: 2 | P86: 3 | Q86: 4 | R86: 5 | S86: 6 | Z86: 1 | AA86: 2 | AB86: 3 | AC86: 4 | AD86: 5 | AE86: 6 | AJ86: 1 | AK86: 2 | AL86: 3 | AM86: 4 | AN86: 5 | AO86: 6
A87: 1 | B87: r1,1 | C87: r1,2 | D87: r1,3 | E87: r1,4 | F87: r1,5 | G87: r1,6 | M87: 1 | N87: =(N14-N78)/SQRT(N78^$F$55) -> -3.249844604 | O87: =(O14-O78)/SQRT(O78^$F$55) -> 0.3654260449 | P87: =(P14-P78)/SQRT(P78^$F$55) -> -0.9833521103 | Q87: =(Q14-Q78)/SQRT(Q78^$F$55) -> 0.1304738166 | R87: =(R14-R78)/SQRT(R78^$F$55) -> 1.278564409 | S87: =(S14-S78)/SQRT(S78^$F$55) -> 3.972054645e-16 | Y87: 1 | Z87: =(N14-Z14)/SQRT(Z14) -> -1.666617681 | AA87: 1.855260947 | AB87: -0.5635263054 | AC87: 0.6486469218 | AD87: 1.534932947 | AE87: 0 | AI87: 1 | AJ87: =N87-Z87 -> -1.583226923 | AK87: -1.489834902 | AL87: -0.4198258049 | AM87: -0.5181731052 | AN87: -0.2563685379 | AO87: 3.972054645e-16
A88: 2 | B88: r2,1 | C88: r2,2 | D88: r2,3 | E88: r2,4 | F88: r2,5 | M88: 2 | N88: =(N15-N79)/SQRT(N79^$F$55) -> -0.2649073302 | O88: =(O15-O79)/SQRT(O79^$F$55) -> 0.8065359129 | P88: =(P15-P79)/SQRT(P79^$F$55) -> -1.351011791 | Q88: =(Q15-Q79)/SQRT(Q79^$F$55) -> 1.008469298 | R88: =(R15-R79)/SQRT(R79^$F$55) -> -1.385080536 | Y88: 2 | Z88: =(N15-Z15)/SQRT(Z15) -> -0.006814805967 | AA88: =(O15-AA15)/SQRT(AA15) -> 1.258437387 | AB88: =(P15-AB15)/SQRT(AB15) -> -1.520356893 | AC88: =(Q15-AC15)/SQRT(AC15) -> 0.7778023807 | AD88: =(R15-AD15)/SQRT(AD15) -> -1.553098466 | AI88: 2 | AJ88: =N88-Z88 -> -0.2580925243 | AK88: =O88-AA88 -> -0.4519014741 | AL88: =P88-AB88 -> 0.1693451021 | AM88: =Q88-AC88 -> 0.2306669176 | AN88: =R88-AD88 -> 0.16801793
A89: 3 | B89: r3,1 | C89: r3,2 | D89: r3,3 | E89: r3,4 | M89: 3 | N89: =(N16-N80)/SQRT(N80^$F$55) -> -1.052492822 | O89: =(O16-O80)/SQRT(O80^$F$55) -> 2.062059031 | P89: =(P16-P80)/SQRT(P80^$F$55) -> 0.6647399806 | Q89: =(Q16-Q80)/SQRT(Q80^$F$55) -> -1.132190123 | Y89: 3 | Z89: =(N16-Z16)/SQRT(Z16) -> -0.9776414162 | AA89: =(O16-AA16)/SQRT(AA16) -> 2.425421654 | AB89: =(P16-AB16)/SQRT(AB16) -> 0.3628138067 | AC89: =(Q16-AC16)/SQRT(AC16) -> -1.399975112 | AI89: 3 | AJ89: =N89-Z89 -> -0.07485140575 | AK89: =O89-AA89 -> -0.3633626228 | AL89: =P89-AB89 -> 0.3019261739 | AM89: =Q89-AC89 -> 0.2677849884
A90: 4 | B90: r4,1 | C90: r4,2 | D90: r4,3 | M90: 4 | N90: =(N17-N81)/SQRT(N81^$F$55) -> 0.2939222993 | O90: =(O17-O81)/SQRT(O81^$F$55) -> -1.647575542 | P90: =(P17-P81)/SQRT(P81^$F$55) -> 1.711058842 | Y90: 4 | Z90: =(N17-Z17)/SQRT(Z17) -> 0.2799562159 | AA90: =(O17-AA17)/SQRT(AA17) -> -1.421749661 | AB90: =(P17-AB17)/SQRT(AB17) -> 1.330185239 | AI90: 4 | AJ90: =N90-Z90 -> 0.01396608347 | AK90: =O90-AA90 -> -0.2258258807 | AL90: =P90-AB90 -> 0.3808736029
A91: 5 | B91: r5,1 | C91: r5,2 | M91: 5 | N91: =(N18-N82)/SQRT(N82^$F$55) -> 0.7407616675 | O91: =(O18-O82)/SQRT(O82^$F$55) -> -1.177956073 | Y91: 5 | Z91: =(N18-Z18)/SQRT(Z18) -> 0.6160388902 | AA91: =(O18-AA18)/SQRT(AA18) -> -0.9989768453 | AI91: 5 | AJ91: =N91-Z91 -> 0.1247227773 | AK91: =O91-AA91 -> -0.1789792279
A92: 6 | B92: r6,1 | M92: 6 | N92: =(N19-N83)/SQRT(N83^$F$55) -> -3.813172459e-15 | Y92: 6 | Z92: =(N19-Z19)/SQRT(Z19) -> 0 | AI92: 6 | AJ92: =N92-Z92 -> -3.813172459e-15
A94: Hat Matrix Factors | M94: Hat Matrix Factors
B95: 1 | C95: 2 | D95: 3 | E95: 4 | F95: 5 | G95: 6 | N95: 1 | O95: 2 | P95: 3 | Q95: 4 | R95: 5 | S95: 6
A96: 1 | B96: fH1,1 | C96: fH1,2 | D96: fH1,3 | E96: fH1,4 | F96: fH1,5 | G96: fH1,6 | M96: 1 | N96: 0 | O96: 0 | P96: ='Hat Matrix'!I57 -> 1.576612558 | Q96: ='Hat Matrix'!M61 -> 1.694948755 | R96: ='Hat Matrix'!P64 -> 1.591211533 | S96: ='Hat Matrix'!R66 -> 0
A97: 2 | B97: fH2,1 | C97: fH2,2 | D97: fH2,3 | E97: fH2,4 | F97: fH2,5 | M97: 2 | N97: 0 | O97: ='Hat Matrix'!E53 -> 1.714393815 | P97: ='Hat Matrix'!J58 -> 1.304961138 | Q97: ='Hat Matrix'!N62 -> 1.42125064 | R97: ='Hat Matrix'!Q65 -> 1.468843421
A98: 3 | B98: fH3,1 | C98: fH3,2 | D98: fH3,3 | E98: fH3,4 | M98: 3 | N98: ='Hat Matrix'!A49 -> 1.999849157 | O98: ='Hat Matrix'!F54 -> 1.333062054 | P98: ='Hat Matrix'!K59 -> 1.264692816 | Q98: ='Hat Matrix'!O63 -> 1.445368308
A99: 4 | B99: fH4,1 | C99: fH4,2 | D99: fH4,3 | M99: 4 | N99: ='Hat Matrix'!B50 -> 2.037713909 | O99: ='Hat Matrix'!G55 -> 1.366612389 | P99: ='Hat Matrix'!L60 -> 1.299371031
A100: 5 | B100: fH5,1 | C100: fH5,2 | M100: 5 | N100: ='Hat Matrix'!C51 -> 2.272291255 | O100: ='Hat Matrix'!H56 -> 1.428938054
A101: 6 | B101: fH6,1 | M101: 6 | N101: ='Hat Matrix'!D52 -> 0
A103: Standardized Pearson Residuals | M103: Standardized Pearson Residuals
B104: 1 | C104: 2 | D104: 3 | E104: 4 | F104: 5 | G104: 6 | N104: 1 | O104: 2 | P104: 3 | Q104: 4 | R104: 5 | S104: 6
A105: 1 | B105: rH1,1 | C105: rH1,2 | D105: rH1,3 | E105: rH1,4 | F105: rH1,5 | G105: rH1,6 | M105: 1 | N105: =N87*N96 -> 0 | O105: =O87*O96 -> 0 | P105: -1.550365286 | Q105: 0.2211464329 | R105: 2.034466434 | S105: =S87*S96 -> 0
A106: 2 | B106: rH2,1 | C106: rH2,2 | D106: rH2,3 | E106: rH2,4 | F106: rH2,5 | M106: 2 | N106: 0 | O106: 1.382720181 | P106: -1.763017884 | Q106: 1.433287636 | R106: -2.034466434
A107: 3 | B107: rH3,1 | C107: rH3,2 | D107: rH3,3 | E107: rH3,4 | M107: 3 | N107: -2.104826883 | O107: 2.748852648 | P107: 0.840691878 | Q107: -1.636431723
A108: 4 | B108: rH4,1 | C108: rH4,2 | D108: rH4,3 | M108: 4 | N108: 0.5989295576 | O108: -2.251597147 | P108: 2.223300292
A109: 5 | B109: rH5,1 | C109: rH5,2 | M109: 5 | N109: 1.683226259 | O109: -1.683226259
A110: 6 | B110: rH6,1 | M110: 6 | N110: 0
M112: Pearson chi-squared statistic | T112: =SUMSQ(N89:N92,O88:O91,P87:S90) -> 22.7784117
M113: Degrees of freedom | P113: =COUNT(N14:S19)-3 -> 18 | Q113: - | R113: =COUNT(B55:B65) -> 11 | S113: = | T113: =P113-R113 -> 7
M114: Scale Parameter | T114: =T112/T113 -> 3.254058815
M115: Degrees of Freedom Adjustment Factor | T115: =SQRT(P113/T113) -> 1.603567451
M116: Number of Non-Zero Residuals | T116: =COUNTIF(N105:N110,"<>0")+COUNTIF(O105:O109,"<>0")+COUNTIF(P105:P108,"<>0")+COUNTIF(Q105:Q107,"<>0")+COUNTIF(R105:R106,"<>0")+COUNTIF(S105,"<>0") -> 16
M118: Random Selections
N119: 1 | O119: 2 | P119: 3 | Q119: 4 | R119: 5 | S119: 6 | Y119: Residual Lookup Table
M120: 1 | N120: =RANDBETWEEN(1,NonZeroCount) -> 2 | O120: 11 | P120: 12 | Q120: 3 | R120: 4 | S120: 3 | Y120: 1 | Z120: =N105 -> 0 | AA120: =Z122 -> -2.104826883
M121: 2 | N121: =RANDBETWEEN(1,NonZeroCount) -> 12 | O121: =RANDBETWEEN(1,NonZeroCount) -> 16 | P121: =RANDBETWEEN(1,NonZeroCount) -> 10 | Q121: =RANDBETWEEN(1,NonZeroCount) -> 11 | R121: =RANDBETWEEN(1,NonZeroCount) -> 16 | Y121: 2 | Z121: 0 | AA121: =Z123 -> 0.5989295576
M122: 3 | N122: =RANDBETWEEN(1,NonZeroCount) -> 9 | O122: =RANDBETWEEN(1,NonZeroCount) -> 15 | P122: =RANDBETWEEN(1,NonZeroCount) -> 13 | Q122: =RANDBETWEEN(1,NonZeroCount) -> 9 | Y122: 3 | Z122: -2.104826883 | AA122: =Z124 -> 1.683226259
M123: 4 | N123: =RANDBETWEEN(1,NonZeroCount) -> 11 | O123: =RANDBETWEEN(1,NonZeroCount) -> 12 | P123: =RANDBETWEEN(1,NonZeroCount) -> 6 | Y123: 4 | Z123: 0.5989295576 | AA123: =Z127 -> 1.382720181
M124: 5 | N124: =RANDBETWEEN(1,NonZeroCount) -> 9 | O124: =RANDBETWEEN(1,NonZeroCount) -> 6 | Y124: 5 | Z124: 1.683226259 | AA124: =Z128 -> 2.748852648
M125: 6 | N125: =RANDBETWEEN(1,NonZeroCount) -> 6 | Y125: 6 | Z125: 0 | AA125: -2.251597147
Y126: 7 | Z126: =O105 -> 0 | AA126: -1.683226259
M127: Random Residuals | Y127: 8 | Z127: =O106 -> 1.382720181 | AA127: -1.550365286
N128: 1 | O128: 2 | P128: 3 | Q128: 4 | R128: 5 | S128: 6 | Y128: 9 | Z128: =O107 -> 2.748852648 | AA128: -1.763017884
M129: 1 | N129: =VLOOKUP(N120,$Y$120:$AA$140,3) -> 0.5989295576 | O129: =VLOOKUP(O120,$Y$120:$AA$140,3) -> 2.223300292 | P129: 0.2211464329 | Q129: 1.683226259 | R129: 1.382720181 | S129: =VLOOKUP(S120,$Y$120:$AA$140,3) -> 1.683226259 | Y129: 10 | Z129: =O108 -> -2.251597147 | AA129: 0.840691878
M130: 2 | N130: 0.2211464329 | O130: -2.034466434 | P130: 0.840691878 | Q130: 2.223300292 | R130: -2.034466434 | Y130: 11 | Z130: =O109 -> -1.683226259 | AA130: 2.223300292
M131: 3 | N131: -1.763017884 | O131: 2.034466434 | P131: 1.433287636 | Q131: -1.763017884 | Y131: 12 | Z131: =P105 -> -1.550365286 | AA131: 0.2211464329
M132: 4 | N132: 2.223300292 | O132: 0.2211464329 | P132: -2.251597147 | Y132: 13 | Z132: =P106 -> -1.763017884 | AA132: 1.433287636
M133: 5 | N133: -1.763017884 | O133: -2.251597147 | Y133: 14 | Z133: =P107 -> 0.840691878 | AA133: -1.636431723
M134: 6 | N134: -2.251597147 | Y134: 15 | Z134: =P108 -> 2.223300292 | AA134: 2.034466434
Y135: 16 | Z135: =Q105 -> 0.2211464329 | AA135: -2.034466434
A136: Sample Incremental Triangle | M136: Sample Incremental Triangle | Y136: 17 | Z136: =Q106 -> 1.433287636
B137: 1 | C137: 2 | D137: 3 | E137: 4 | F137: 5 | G137: 6 | N137: 1 | O137: 2 | P137: 3 | Q137: 4 | R137: 5 | S137: 6 | Y137: 18 | Z137: =Q107 -> -1.636431723
A138: 1 | B138: ="q'("&$A138&","&B$4&")" -> q'(1,1) | C138: ="q'("&$A138&","&C$4&")" -> q'(1,2) | D138: q'(1,3) | E138: ="q'("&$A138&","&E$4&")" -> q'(1,4) | F138: ="q'("&$A138&","&F$4&")" -> q'(1,5) | G138: ="q'("&$A138&","&G$4&")" -> q'(1,6) | M138: 1 | N138: =N78+N129*SQRT(N78^$F$55) -> 139.2849062 | O138: =O78+O129*SQRT(O78^$F$55) -> 68.44308734 | P138: =P78+P129*SQRT(P78^$F$55) -> 26.01136168 | Q138: =Q78+Q129*SQRT(Q78^$F$55) -> 38.40408185 | R138: =R78+R129*SQRT(R78^$F$55) -> 15.34226703 | S138: =S78+S129*SQRT(S78^$F$55) -> 8.763808337 | Y138: 19 | Z138: =R105 -> 2.034466434
A139: 2 | B139: q'(2,1) | C139: q'(2,2) | D139: q'(2,3) | E139: q'(2,4) | F139: q'(2,5) | M139: 2 | N139: =N79+N130*SQRT(N79^$F$55) -> 115.162561 | O139: =O79+O130*SQRT(O79^$F$55) -> 31.02412187 | P139: =P79+P130*SQRT(P79^$F$55) -> 25.09708468 | Q139: =Q79+Q130*SQRT(Q79^$F$55) -> 36.06948022 | R139: =R79+R130*SQRT(R79^$F$55) -> 3.030154519 | Y139: 20 | Z139: =R106 -> -2.034466434
A140: 3 | B140: q'(3,1) | C140: q'(3,2) | D140: q'(3,3) | E140: q'(3,4) | M140: 3 | N140: =N80+N131*SQRT(N80^$F$55) -> 97.33577837 | O140: =O80+O131*SQRT(O80^$F$55) -> 59.81283241 | P140: =P80+P131*SQRT(P80^$F$55) -> 28.59577687 | Q140: =Q80+Q131*SQRT(Q80^$F$55) -> 16.79923195 | Y140: 21 | Z140: =S105 -> 0
A141: 4 | B141: q'(4,1) | C141: q'(4,2) | D141: q'(4,3) | M141: 4 | N141: =N81+N132*SQRT(N81^$F$55) -> 140.8536352 | O141: =O81+O132*SQRT(O81^$F$55) -> 47.70160346 | P141: =P81+P132*SQRT(P81^$F$55) -> 11.42263549
A142: 5 | B142: q'(5,1) | C142: q'(5,2) | M142: 5 | N142: =N82+N133*SQRT(N82^$F$55) -> 102.3648145 | O142: =O82+O133*SQRT(O82^$F$55) -> 32.54796615
A143: 6 | B143: q'(6,1) | M143: 6 | N143: =N83+N134*SQRT(N83^$F$55) -> 99.82637861
A145: Sample Cumulative Triangle | M145: Sample Triangle Fitted Values | Y145: Sample Cumulative Triangle
B146: 1 | C146: 2 | D146: 3 | E146: 4 | F146: 5 | G146: 6 | N146: 1 | O146: 2 | P146: 3 | Q146: 4 | R146: 5 | S146: 6 | Z146: 1 | AA146: 2 | AB146: 3 | AC146: 4 | AD146: 5 | AE146: 6
A147: 1 | B147: ="c'("&$A147&","&B$4&")" -> c'(1,1) | C147: ="c'("&$A147&","&C$4&")" -> c'(1,2) | D147: c'(1,3) | E147: ="c'("&$A147&","&E$4&")" -> c'(1,4) | F147: ="c'("&$A147&","&F$4&")" -> c'(1,5) | G147: ="c'("&$A147&","&G$4&")" -> c'(1,6) | M147: 1 | P147: =EXP($B155+$B$161+$B$162) -> 29.51692182 | Q147: =EXP($B155+$B$161+$B$162+$B$163) -> 39.18123447 | R147: =EXP($B155+$B$161+$B$162+$B$163+$B$164) -> 11.05955426 | S147: =EXP($B155+$B$161+$B$162+$B$163+$B$164+$B$165) -> 8.763808337 | Y147: 1 | Z147: =N138 -> 139.2849062 | AA147: =O138+Z147 -> 207.7279935 | AB147: =P138+AA147 -> 233.7393552 | AC147: =Q138+AB147 -> 272.143437 | AD147: =R138+AC147 -> 287.4857041 | AE147: =S138+AD147 -> 296.2495124
A148: 2 | B148: c'(2,1) | C148: c'(2,2) | D148: c'(2,3) | E148: c'(2,4) | F148: c'(2,5) | M148: 2 | O148: =EXP($B156+$B$161) -> 42.48295163 | P148: =EXP($B156+$B$161+$B$162) -> 19.51736271 | Q148: =EXP($B156+$B$161+$B$162+$B$163) -> 25.90765966 | R148: =EXP($B156+$B$161+$B$162+$B$163+$B$164) -> 7.312867286 | Y148: 2 | Z148: 115.162561 | AA148: =O139+Z148 -> 146.1866829 | AB148: =P139+AA148 -> 171.2837675 | AC148: =Q139+AB148 -> 207.3532478 | AD148: =R139+AC148 -> 210.3834023
A149: 3 | B149: c'(3,1) | C149: c'(3,2) | D149: c'(3,3) | E149: c'(3,4) | M149: 3 | N149: =EXP($B157) -> 113.6983274 | O149: =EXP($B157+$B$161) -> 42.9359258 | P149: =EXP($B157+$B$161+$B$162) -> 19.72546646 | Q149: =EXP($B157+$B$161+$B$162+$B$163) -> 26.1838999 | Y149: 3 | Z149: 97.33577837 | AA149: =O140+Z149 -> 157.1486108 | AB149: =P140+AA149 -> 185.7443877 | AC149: =Q140+AB149 -> 202.5436196
A150: 4 | B150: c'(4,1) | C150: c'(4,2) | D150: c'(4,3) | M150: 4 | N150: =EXP($B158) -> 128.9248467 | O150: =EXP($B158+$B$161) -> 48.68591979 | P150: =EXP($B158+$B$161+$B$162) -> 22.36710773 | Y150: 4 | Z150: 140.8536352 | AA150: =O141+Z150 -> 188.5552387 | AB150: =P141+AA150 -> 199.9778742
A151: 5 | B151: c'(5,1) | C151: c'(5,2) | M151: 5 | N151: =EXP($B159) -> 97.93105397 | O151: =EXP($B159+$B$161) -> 36.98172666 | Y151: 5 | Z151: 102.3648145 | AA151: =O142+Z151 -> 134.9127806
A152: 6 | B152: c'(6,1) | M152: 6 | N152: =EXP($B160) -> 99.82637861 | Y152: 6 | Z152: 99.82637861
Z153: Factors: | AA153: =SUM(AA149:AA151)/SUM(Z149:Z151) -> 1.411277824 | AB153: =SUM(AB148:AB150)/SUM(AA148:AA150) -> 1.132378025 | AC153: =SUM(AC147:AC149)/SUM(AB147:AB149) -> 1.154498669 | AD153: =SUM(AD147:AD148)/SUM(AC147:AC148) -> 1.038316055 | AE153: =AE147/AD147 -> 1.030484327
A154: Sample Data Parameters | AA154: =AA153*AB154 -> 1.974096358 | AB154: =AB153*AC154 -> 1.398800664 | AC154: =AC153*AD154 -> 1.235277119 | AD154: =AD153*AE154 -> 1.069968422 | AE154: =AE153 -> 1.030484327
A155: α1 | B155: ='GLM 2'!BV130 -> 5.136601896
A156: α2 | B156: ='GLM 2'!BV131 -> 4.722942641 | Y156: Projected Cumulative Data
A157: α3 | B157: ='GLM 2'!BV132 -> 4.73354869 | Z157: 1 | AA157: 2 | AB157: 3 | AC157: 4 | AD157: 5 | AE157: 6
A158: α4 | B158: ='GLM 2'!BV133 -> 4.859229651 | Y158: 1 | Z158: =Z147 -> 139.2849062 | AA158: =AA147 -> 207.7279935 | AB158: 233.7393552 | AC158: 272.143437 | AD158: 287.4857041 | AE158: =AE147 -> 296.2495124
A159: α5 | B159: ='GLM 2'!BV134 -> 4.5842637 | Y159: 2 | Z159: 115.162561 | AA159: 146.1866829 | AB159: 171.2837675 | AC159: 207.3532478 | AD159: 210.3834023 | AE159: =AD159*AE$153 -> 216.7967988
A160: α6 | B160: ='GLM 2'!BV135 -> 4.603432463 | Y160: 3 | Z160: 97.33577837 | AA160: 157.1486108 | AB160: 185.7443877 | AC160: 202.5436196 | AD160: =AC160*AD$153 -> 210.3042922 | AE160: =AD160*AE$153 -> 216.7152771
A161: β2 | B161: ='GLM 2'!BV136 -> -0.9738397836 | Y161: 4 | Z161: 140.8536352 | AA161: 188.5552387 | AB161: 199.9778742 | AC161: =AB161*AC$153 -> 230.8741896 | AD161: =AC161*AD$153 -> 239.7203778 | AE161: =AD161*AE$153 -> 247.0280923
A162: β3 | B162: ='GLM 2'!BV137 -> -0.7777983924 | Y162: 5 | Z162: 102.3648145 | AA162: 134.9127806 | AB162: =AA162*AB$153 -> 152.772268 | AC162: =AB162*AC$153 -> 176.3753801 | AD162: =AC162*AD$153 -> 183.133389 | AE162: =AD162*AE$153 -> 188.7160871
A163: β4 | B163: ='GLM 2'!BV138 -> 0.2832341997 | Y163: 6 | Z163: 99.82637861 | AA163: =Z163*AA$153 -> 140.8827544 | AB163: =AA163*AB$153 -> 159.5325352 | AC163: =AB163*AC$153 -> 184.1800995 | AD163: =AC163*AD$153 -> 191.2371544 | AE163: =AD163*AE$153 -> 197.0668904
A164: β5 | B164: ='GLM 2'!BV139 -> -1.264903226
A165: β6 | B165: ='GLM 2'!BV140 -> -0.2326641414 | M165: Projected Incremental Data | U165: Point | Y165: Projected Incremental Data | AG165: Point
N166: 1 | O166: 2 | P166: 3 | Q166: 4 | R166: 5 | S166: 6 | U166: Estimate | Z166: 1 | AA166: 2 | AB166: 3 | AC166: 4 | AD166: 5 | AE166: 6 | AG166: Estimate
M167: 1 | Y167: 1
M168: 2 | S168: =EXP($B156+$B$161+$B$162+$B$163+$B$164+$B$165) -> 5.79485988 | U168: =SUM(N168:S168) -> 5.79485988 | Y168: 2 | AE168: =AE159-AD159 -> 6.413396523 | AG168: =SUM(Z168:AE168) -> 6.413396523
M169: 3 | R169: =EXP($B157+$B$161+$B$162+$B$163+$B$164) -> 7.390840682 | S169: =EXP($B157+$B$161+$B$162+$B$163+$B$164+$B$165) -> 5.856647533 | U169: =SUM(N169:S169) -> 13.24748821 | Y169: 3 | AD169: =AD160-AC160 -> 7.760672554 | AE169: =AE160-AD160 -> 6.410984904 | AG169: =SUM(Z169:AE169) -> 14.17165746
M170: 4 | Q170: =EXP($B158+$B$161+$B$162+$B$163) -> 29.6904568 | R170: =EXP($B158+$B$161+$B$162+$B$163+$B$164) -> 8.380624615 | S170: =EXP($B158+$B$161+$B$162+$B$163+$B$164+$B$165) -> 6.64097179 | U170: =SUM(N170:S170) -> 44.7120532 | Y170: 4 | AC170: =AC161-AB161 -> 30.89631539 | AD170: =AD161-AC161 -> 8.846188243 | AE170: =AE161-AD161 -> 7.307714491 | AG170: =SUM(Z170:AE170) -> 47.05021812
M171: 5 | P171: =EXP($B159+$B$161+$B$162) -> 16.99001 | Q171: =EXP($B159+$B$161+$B$162+$B$163) -> 22.55281121 | R171: =EXP($B159+$B$161+$B$162+$B$163+$B$164) -> 6.365905585 | S171: =EXP($B159+$B$161+$B$162+$B$163+$B$164+$B$165) -> 5.044468802 | U171: =SUM(N171:S171) -> 50.9531956 | Y171: 5 | AB171: =AB162-AA162 -> 17.85948741 | AC171: =AC162-AB162 -> 23.60311207 | AD171: =AD162-AC162 -> 6.758008839 | AE171: =AE162-AD162 -> 5.582698194 | AG171: =SUM(Z171:AE171) -> 53.80330651
M172: 6 | O172: =EXP($B160+$B$161) -> 37.69745854 | P172: =EXP($B160+$B$161+$B$162) -> 17.31882893 | Q172: =EXP($B160+$B$161+$B$162+$B$163) -> 22.98929072 | R172: =EXP($B160+$B$161+$B$162+$B$163+$B$164) -> 6.489109178 | S172: =EXP($B160+$B$161+$B$162+$B$163+$B$164+$B$165) -> 5.142097752 | U172: =SUM(N172:S172) -> 89.63678513 | Y172: 6 | AA172: =AA163-Z163 -> 41.05637581 | AB172: =AB163-AA163 -> 18.64978075 | AC172: =AC163-AB163 -> 24.64756434 | AD172: =AD163-AC163 -> 7.0570549 | AE172: =AE163-AD163 -> 5.829736033 | AG172: =SUM(Z172:AE172) -> 97.24051183
U173: =SUM(U168:U172) -> 204.344382 | AG173: =SUM(AG168:AG172) -> 218.6790904
M174: Random Values
N175: 1 | O175: 2 | P175: 3 | Q175: 4 | R175: 5 | S175: 6
M176: 1
M177: 2 | S177: =RAND() -> 0.784432574
M178: 3 | R178: 0.663946501 | S178: 0.0406763989
M179: 4 | Q179: 0.06606897076 | R179: 0.8536361224 | S179: 0.5504692194
M180: 5 | P180: 0.1083366588 | Q180: 0.5834124947 | R180: 0.6673309329 | S180: 0.4824108463
M181: 6 | O181: =RAND() -> 0.7061991094 | P181: 0.7712203101 | Q181: 0.8994684472 | R181: 0.06659228211 | S181: 0.5215079356
M183: Incremental Data w/ Process Variance | U183: Possible | Y183: Incremental Data w/ Process Variance | AG183: Possible
N184: 1 | O184: 2 | P184: 3 | Q184: 4 | R184: 5 | S184: 6 | U184: Outcome | Z184: 1 | AA184: 2 | AB184: 3 | AC184: 4 | AD184: 5 | AE184: 6 | AG184: Outcome
M185: 1 | Y185: 1
M186: 2 | S186: =GAMMAINV(S177,S168/ScaleParameter,ScaleParameter) -> 8.482834327 | U186: =SUM(N186:S186) -> 8.482834327 | Y186: 2 | AE186: =GAMMAINV(S177,AE168/ScaleParameter,ScaleParameter) -> 9.293660761 | AG186: =SUM(Z186:AE186) -> 9.293660761
M187: 3 | R187: =GAMMAINV(R178,R169/ScaleParameter,ScaleParameter) -> 8.429415848 | S187: =GAMMAINV(S178,S169/ScaleParameter,ScaleParameter) -> 0.797970668 | U187: =SUM(N187:S187) -> 9.227386516 | Y187: 3 | AD187: =GAMMAINV(R178,AD169/ScaleParameter,ScaleParameter) -> 8.853345821 | AE187: =GAMMAINV(S178,AE169/ScaleParameter,ScaleParameter) -> 0.9940424407 | AG187: =SUM(Z187:AE187) -> 9.847388261
M188: 4 | Q188: =GAMMAINV(Q179,Q170/ScaleParameter,ScaleParameter) -> 16.46997694 | R188: =GAMMAINV(R179,R170/ScaleParameter,ScaleParameter) -> 13.64776998 | S188: =GAMMAINV(S179,S170/ScaleParameter,ScaleParameter) -> 6.142835498 | U188: =SUM(N188:S188) -> 36.26058242 | Y188: 4 | AC188: =GAMMAINV(Q179,AC170/ScaleParameter,ScaleParameter) -> 17.37442682 | AD188: =GAMMAINV(R179,AD170/ScaleParameter,ScaleParameter) -> 14.27287301 | AE188: =GAMMAINV(S179,AE170/ScaleParameter,ScaleParameter) -> 6.837444691 | AG188: =SUM(Z188:AE188) -> 38.48474452
M189: 5 | P189: =GAMMAINV(P180,P171/ScaleParameter,ScaleParameter) -> 8.640623505 | Q189: =GAMMAINV(Q180,Q171/ScaleParameter,ScaleParameter) -> 23.2795319 | R189: =GAMMAINV(R180,R171/ScaleParameter,ScaleParameter) -> 7.293363137 | S189: =GAMMAINV(S180,S171/ScaleParameter,ScaleParameter) -> 3.857332433 | U189: =SUM(N189:S189) -> 43.07085098 | Y189: 5 | AB189: =GAMMAINV(P180,AB171/ScaleParameter,ScaleParameter) -> 9.271513863 | AC189: =GAMMAINV(Q180,AC171/ScaleParameter,ScaleParameter) -> 24.37208222 | AD189: =GAMMAINV(R180,AD171/ScaleParameter,ScaleParameter) -> 7.748803114 | AE189: =GAMMAINV(S180,AE171/ScaleParameter,ScaleParameter) -> 4.379379581 | AG189: =SUM(Z189:AE189) -> 45.77177878
M190: 6 | O190: =GAMMAINV(O181,O172/ScaleParameter,ScaleParameter) -> 42.84616847 | P190: =GAMMAINV(P181,P172/ScaleParameter,ScaleParameter) -> 22.22948208 | Q190: =GAMMAINV(Q181,Q172/ScaleParameter,ScaleParameter) -> 34.50065163 | R190: =GAMMAINV(R181,R172/ScaleParameter,ScaleParameter) -> 1.353509167 | S190: =GAMMAINV(S181,S172/ScaleParameter,ScaleParameter) -> 4.303136603 | U190: =SUM(N190:S190) -> 105.2329479 | Y190: 6 | AA190: =GAMMAINV(O181,AA172/ScaleParameter,ScaleParameter) -> 46.47064335 | AB190: =GAMMAINV(P181,AB172/ScaleParameter,ScaleParameter) -> 23.77703923 | AC190: =GAMMAINV(Q181,AC172/ScaleParameter,ScaleParameter) -> 36.55892563 | AD190: =GAMMAINV(R181,AD172/ScaleParameter,ScaleParameter) -> 1.612909065 | AE190: =GAMMAINV(S181,AE172/ScaleParameter,ScaleParameter) -> 5.000045889 | AG190: =SUM(Z190:AE190) -> 113.4195632
U191: =SUM(U186:U190) -> 202.2746022 | AG191: =SUM(AG186:AG190) -> 216.8171355

Sheet GLM
A1: GLM Estimation of Model Parameters | G1: rho = | H1: =Data!F55 -> 1 | J1: parameters = | K1: =2*6-1 -> 11
A2: Newton-Raphson Interation Sequence -- Iteration 1
B3: y(i) | D3: xb(i) | F3: W(i,i) | Y3: XWX | AK3: zz(i) | AM3: factor | AO3: xwx-1 | BA3: aa1(i,j) | BT3: aa2(j) | BV3: beta(j) | BX3: beta_diff = | BY3: =SUM(BX5:BX15) -> 2.317196226 | BZ3: beta_old = | CA3: =SUM(BV5:BV15) -> 25.48915849
B4: 1 | D4: 1 | F4: 1 | G4: 2 | H4: 3 | I4: 4 | J4: 5 | K4: 6 | L4: 7 | M4: 8 | N4: 9 | O4: 10 | P4: 11 | Q4: 12 | R4: 13 | S4: 14 | T4: 15 | U4: 16 | V4: 17 | W4: 18 | Y4: 1 | Z4: 2 | AA4: 3 | AB4: 4 | AC4: 5 | AD4: 6 | AE4: 7 | AF4: 8 | AG4: 9 | AH4: 10 | AI4: 11 | AK4: 1 | AO4: 1 | AP4: 2 | AQ4: 3 | AR4: 4 | AS4: 5 | AT4: 6 | AU4: 7 | AV4: 8 | AW4: 9 | AX4: 10 | AY4: 11 | BA4: 1 | BB4: 2 | BC4: 3 | BD4: 4 | BE4: 5 | BF4: 6 | BG4: 7 | BH4: 8 | BI4: 9 | BJ4: 10 | BK4: 11 | BL4: 12 | BM4: 13 | BN4: 14 | BO4: 15 | BP4: 16 | BQ4: 17 | BR4: 18
A5: 1 | B5: =Data!N16 -> 105 | D5: =IF(B5<0,-LN(-B5),LN(B5)) -> 4.65396035 | F5: =IF($A5=F$4,IF($B5<0,-(EXP(-$D5)^(2-$H$1)),IF($B5=0,0,EXP($D5)^(2-$H$1))),0) -> 105 | G5: 0 | H5: 0 | I5: 0 | J5: 0 | K5: 0 | L5: 0 | M5: 0 | N5: 0 | O5: 0 | P5: =IF($A5=P$4,IF($B5<0,-(EXP(-$D5)^(2-$H$1)),IF($B5=0,0,EXP($D5)^(2-$H$1))),0) -> 0 | Q5: 0 | R5: 0 | S5: 0 | T5: 0 | U5: 0 | V5: 0 | W5: 0 | Y5: =MMULT(TRANSPOSE(DesignMatrix),MMULT(F5:W22,DesignMatrix)) -> 70 | Z5: 0 | AA5: 0 | AB5: 0 | AC5: 0 | AD5: 0 | AE5: 70 | AF5: 70 | AG5: 50 | AH5: 20 | AI5: 5 | AK5: =IF(B5<0,D5+(B5+EXP(-D5))/-EXP(-D5),IF(B5=0,0,D5+(B5-EXP(D5))/EXP(D5))) -> 4.65396035 | AM5: =OFFSET(X4,A5,A5) -> 70 | AO5: =MINVERSE(Y5:AI15) -> 0.03380116179 | AP5: 0.01125703566 | AQ5: 0.004640263855 | AR5: 0.002904267114 | AS5: 0.00126354032 | AT5: 0 | AU5: -0.005370046358 | AV5: -0.00627454676 | AW5: -0.006412296892 | AX5: -0.01010824025 | AY5: -0.005636031533 | BA5: =MMULT(AO5:AY15,TRANSPOSE(DesignMatrix)) -> 0.004640263855 | BB5: 0.002904267114 | BC5: 0.00126354032 | BD5: 0 | BE5: 0.005886989305 | BF5: -0.0007297825026 | BG5: -0.002465779244 | BH5: -0.004106506038 | BI5: 0.02215656868 | BJ5: -0.0003875574552 | BK5: -0.007004329262 | BL5: -0.008740326004 | BM5: 0.01574427178 | BN5: -0.006799854347 | BO5: -0.01341662615 | BP5: 0.005636031533 | BQ5: -0.0169080946 | BR5: 0 | BT5: =MMULT(F5:W22,AK5:AK22) -> 488.6658368 | BV5: =MMULT(BA5:BR15,BT5:BT22) -> 4.852989439 | BX5: =BV5/$K$1 -> 0.4411808581
A6: 2 | B6: =Data!N17 -> 120 | D6: =IF(B6<0,-LN(-B6),LN(B6)) -> 4.787491743 | F6: 0 | G6: 120 | H6: 0 | I6: 0 | J6: 0 | K6: 0 | L6: 0 | M6: 0 | N6: 0 | O6: 0 | P6: 0 | Q6: 0 | R6: 0 | S6: 0 | T6: 0 | U6: 0 | V6: 0 | W6: 0 | Y6: 0 | Z6: 100 | AA6: 0 | AB6: 0 | AC6: 0 | AD6: 0 | AE6: 100 | AF6: 50 | AG6: 35 | AH6: 5 | AI6: 0 | AK6: =IF(B6<0,D6+(B6+EXP(-D6))/-EXP(-D6),IF(B6=0,0,D6+(B6-EXP(D6))/EXP(D6))) -> 4.787491743 | AM6: =OFFSET(X4,A6,A6) -> 100 | AO6: 0.01125703566 | AP6: 0.01935070505 | AQ6: 0.004268263809 | AR6: 0.002685789728 | AS6: 0.001765673329 | AT6: 0 | AU6: -0.007504111647 | AV6: -0.0003034614206 | AW6: -0.004737395652 | AX6: -0.00073548429 | AY6: 0.002023417347 | BA6: 0.004268263809 | BB6: 0.002685789728 | BC6: 0.001765673329 | BD6: 0 | BE6: 0.0118465934 | BF6: -0.003235847838 | BG6: -0.004818321919 | BH6: -0.005738438318 | BI6: 0.003449462595 | BJ6: 0.01154313198 | BK6: -0.003539309258 | BL6: -0.005121783339 | BM6: -0.001287933057 | BN6: 0.00680573633 | BO6: -0.00827670491 | BP6: -0.002023417347 | BQ6: 0.00607025204 | BR6: -1.301042607e-18 | BT6: 574.4990091 | BV6: 4.723909405 | BX6: 0.4294463095
A7: 3 | B7: =Data!N18 -> 130 | D7: =IF(B7<0,-LN(-B7),LN(B7)) -> 4.86753445 | F7: 0 | G7: 0 | H7: 130 | I7: 0 | J7: 0 | K7: 0 | L7: 0 | M7: 0 | N7: 0 | O7: 0 | P7: 0 | Q7: 0 | R7: 0 | S7: 0 | T7: 0 | U7: 0 | V7: 0 | W7: 0 | Y7: 0 | Z7: 0 | AA7: 210 | AB7: 0 | AC7: 0 | AD7: 0 | AE7: 105 | AF7: 45 | AG7: 20 | AH7: 0 | AI7: 0 | AK7: =IF(B7<0,D7+(B7+EXP(-D7))/-EXP(-D7),IF(B7=0,0,D7+(B7-EXP(D7))/EXP(D7))) -> 4.86753445 | AM7: =OFFSET(X4,A7,A7) -> 210 | AO7: 0.004640263855 | AP7: 0.004268263809 | AQ7: 0.006823184987 | AR7: 0.001388376766 | AS7: 0.0008996951109 | AT7: 0 | AU7: -0.003823704221 | AV7: -0.0002769642443 | AW7: -0.0009458256553 | AX7: 0.0004992302772 | AY7: -9.30000116e-05 | BA7: 0.006823184987 | BB7: 0.001388376766 | BC7: 0.0008996951109 | BD7: 0 | BE7: 0.0004445595877 | BF7: 0.002999480766 | BG7: -0.002435327455 | BH7: -0.00292400911 | BI7: 0.0005395953897 | BJ7: 0.0001675953433 | BK7: 0.002722516522 | BL7: -0.0027122917 | BM7: -0.0004062302656 | BN7: -0.000778230312 | BO7: 0.001776690866 | BP7: 9.30000116e-05 | BQ7: -0.0002790000348 | BR7: -9.351243738e-19 | BT7: 632.7794786 | BV7: 4.759097181 | BX7: 0.4326451983
A8: 4 | B8: =Data!N19 -> 125 | D8: =IF(B8<0,-LN(-B8),LN(B8)) -> 4.828313737 | F8: 0 | G8: 0 | H8: 0 | I8: 125 | J8: 0 | K8: 0 | L8: 0 | M8: 0 | N8: 0 | O8: 0 | P8: 0 | Q8: 0 | R8: 0 | S8: 0 | T8: 0 | U8: 0 | V8: 0 | W8: 0 | Y8: 0 | Z8: 0 | AA8: 0 | AB8: 185 | AC8: 0 | AD8: 0 | AE8: 65 | AF8: 30 | AG8: 0 | AH8: 0 | AI8: 0 | AK8: =IF(B8<0,D8+(B8+EXP(-D8))/-EXP(-D8),IF(B8=0,0,D8+(B8-EXP(D8))/EXP(D8))) -> 4.828313737 | AM8: =OFFSET(X4,A8,A8) -> 185 | AO8: 0.002904267114 | AP8: 0.002685789728 | AQ8: 0.001388376766 | AR8: 0.006473698523 | AS8: 0.0005952047446 | AT8: 0 | AU8: -0.002529620165 | AV8: -0.001106963869 | AW8: 0.001193218527 | AX8: -0.0004062822602 | AY8: -5.461934649e-05 | BA8: 0.001388376766 | BB8: 0.006473698523 | BC8: 0.0005952047446 | BD8: 0 | BE8: 0.0001561695633 | BF8: -0.001141243399 | BG8: 0.003944078359 | BH8: -0.00193441542 | BI8: -0.0007323169199 | BJ8: -0.0009507943059 | BK8: -0.002248207268 | BL8: 0.002837114489 | BM8: 0.0004609016067 | BN8: 0.0002424242207 | BO8: -0.001054988741 | BP8: 5.461934649e-05 | BQ8: -0.0001638580395 | BR8: -3.320369153e-19 | BT8: 603.5392172 | BV8: 4.765291244 | BX8: 0.4332082949
A9: 5 | B9: =Data!O15 -> 50 | D9: 3.912023005 | F9: 0 | G9: 0 | H9: 0 | I9: 0 | J9: 50 | K9: 0 | L9: 0 | M9: 0 | N9: 0 | O9: 0 | P9: 0 | Q9: 0 | R9: 0 | S9: 0 | T9: 0 | U9: 0 | V9: 0 | W9: 0 | Y9: 0 | Z9: 0 | AA9: 0 | AB9: 0 | AC9: 170 | AD9: 0 | AE9: 40 | AF9: 0 | AG9: 0 | AH9: 0 | AI9: 0 | AK9: 3.912023005 | AM9: =OFFSET(X4,A9,A9) -> 170 | AO9: 0.00126354032 | AP9: 0.001765673329 | AQ9: 0.0008996951109 | AR9: 0.0005952047446 | AS9: 0.006416211108 | AT9: 0 | AU9: -0.002268897208 | AV9: 0.001245514692 | AW9: -0.0003374963799 | AX9: -2.819467601e-05 | AY9: 0.0001255332523 | BA9: 0.0008996951109 | BB9: 0.0005952047446 | BC9: 0.006416211108 | BD9: 0 | BE9: -0.0005032238792 | BF9: -0.001369202097 | BG9: -0.001673692463 | BH9: 0.0041473139 | BI9: 0.0002401578036 | BJ9: 0.0007422908128 | BK9: -0.000123687405 | BL9: -0.0004281777713 | BM9: -9.733857627e-05 | BN9: 0.0004047944329 | BO9: -0.0004611837849 | BP9: -0.0001255332523 | BQ9: 0.0003765997569 | BR9: 1.355252716e-19 | BT9: 195.6011503 | BV9: 4.803109009 | BX9: 0.4366462735
A10: 6 | B10: =Data!O16 -> 60 | D10: 4.094344562 | F10: 0 | G10: 0 | H10: 0 | I10: 0 | J10: 0 | K10: 60 | L10: 0 | M10: 0 | N10: 0 | O10: 0 | P10: 0 | Q10: 0 | R10: 0 | S10: 0 | T10: 0 | U10: 0 | V10: 0 | W10: 0 | Y10: 0 | Z10: 0 | AA10: 0 | AB10: 0 | AC10: 0 | AD10: 125 | AE10: 0 | AF10: 0 | AG10: 0 | AH10: 0 | AI10: 0 | AK10: 4.094344562 | AM10: =OFFSET(X4,A10,A10) -> 125 | AO10: 0 | AP10: 0 | AQ10: 0 | AR10: 0 | AS10: 0 | AT10: 0.008 | AU10: 0 | AV10: 0 | AW10: 0 | AX10: 0 | AY10: 0 | BA10: 0 | BB10: 0 | BC10: 0 | BD10: 0.008 | BE10: 0 | BF10: 0 | BG10: 0 | BH10: 0 | BI10: 0 | BJ10: 0 | BK10: 0 | BL10: 0 | BM10: 0 | BN10: 0 | BO10: 0 | BP10: 0 | BQ10: 0 | BR10: 0 | BT10: 245.6606737 | BV10: 4.828313737 | BX10: 0.4389376125
A11: 7 | B11: =Data!O17 -> 35 | D11: 3.555348061 | F11: 0 | G11: 0 | H11: 0 | I11: 0 | J11: 0 | K11: 0 | L11: 35 | M11: 0 | N11: 0 | O11: 0 | P11: 0 | Q11: 0 | R11: 0 | S11: 0 | T11: 0 | U11: 0 | V11: 0 | W11: 0 | Y11: 70 | Z11: 100 | AA11: 105 | AB11: 65 | AC11: 40 | AD11: 0 | AE11: 380 | AF11: 195 | AG11: 105 | AH11: 25 | AI11: 5 | AK11: 3.555348061 | AM11: =OFFSET(X4,A11,A11) -> 380 | AO11: -0.005370046358 | AP11: -0.007504111647 | AQ11: -0.003823704221 | AR11: -0.002529620165 | AS11: -0.002268897208 | AT11: 0 | AU11: 0.009642813133 | AV11: -0.005293437441 | AW11: 0.001434359615 | AX11: 0.0001198273731 | AY11: -0.0005335163222 | BA11: -0.003823704221 | BB11: -0.002529620165 | BC11: -0.002268897208 | BD11: 0 | BE11: 0.002138701487 | BF11: 0.005819108912 | BG11: 0.007113192969 | BH11: 0.007373915926 | BI11: -0.001020670665 | BJ11: -0.003154735954 | BK11: 0.0005256714713 | BL11: 0.001819755528 | BM11: 0.0004136889491 | BN11: -0.00172037634 | BO11: 0.001960031086 | BP11: 0.0005335163222 | BQ11: -0.001600548967 | BR11: -4.33680869e-19 | BT11: 124.4371822 | BV11: -0.9048468686 | BX11: -0.08225880623
A12: 8 | B12: =Data!O18 -> 40 | D12: 3.688879454 | F12: 0 | G12: 0 | H12: 0 | I12: 0 | J12: 0 | K12: 0 | L12: 0 | M12: 40 | N12: 0 | O12: 0 | P12: 0 | Q12: 0 | R12: 0 | S12: 0 | T12: 0 | U12: 0 | V12: 0 | W12: 0 | Y12: 70 | Z12: 50 | AA12: 45 | AB12: 30 | AC12: 0 | AD12: 0 | AE12: 195 | AF12: 195 | AG12: 105 | AH12: 25 | AI12: 5 | AK12: 3.688879454 | AM12: =OFFSET(X4,A12,A12) -> 195 | AO12: -0.00627454676 | AP12: -0.0003034614206 | AQ12: -0.0002769642443 | AR12: -0.001106963869 | AS12: 0.001245514692 | AT12: 0 | AU12: -0.005293437441 | AV12: 0.01829539165 | AW12: -0.01046596008 | AX12: 0.002245781296 | AY12: 0.001492771335 | BA12: -0.0002769642443 | BB12: -0.001106963869 | BC12: 0.001245514692 | BD12: 0 | BE12: -0.005596898861 | BF12: -0.005570401685 | BG12: -0.00640040131 | BH12: -0.004047922749 | BI12: 0.006727407448 | BJ12: 0.01269849279 | BK12: 0.01272498996 | BL12: 0.01189499034 | BM12: -0.003738552631 | BN12: 0.002232532708 | BO12: 0.002259029884 | BP12: -0.001492771335 | BQ12: 0.004478314004 | BR12: 1.517883041e-18 | BT12: 147.5551782 | BV12: -0.7263906998 | BX12: -0.06603551816
A13: 9 | B13: =Data!P14 -> 20 | D13: 2.995732274 | F13: 0 | G13: 0 | H13: 0 | I13: 0 | J13: 0 | K13: 0 | L13: 0 | M13: 0 | N13: 20 | O13: 0 | P13: 0 | Q13: 0 | R13: 0 | S13: 0 | T13: 0 | U13: 0 | V13: 0 | W13: 0 | Y13: 50 | Z13: 35 | AA13: 20 | AB13: 0 | AC13: 0 | AD13: 0 | AE13: 105 | AF13: 105 | AG13: 105 | AH13: 25 | AI13: 5 | AK13: 2.995732274 | AM13: =OFFSET(X4,A13,A13) -> 105 | AO13: -0.006412296892 | AP13: -0.004737395652 | AQ13: -0.0009458256553 | AR13: 0.001193218527 | AS13: -0.0003374963799 | AT13: 0 | AU13: 0.001434359615 | AV13: -0.01046596008 | AW13: 0.02594919158 | AX13: -0.01092401954 | AY13: 0.00041872531 | BA13: -0.0009458256553 | BB13: 0.001193218527 | BC13: -0.0003374963799 | BD13: 0 | BE13: -0.003303036038 | BF13: 0.0004885339592 | BG13: 0.002627578141 | BH13: 0.001096863235 | BI13: -0.01544389736 | BJ13: -0.01376899612 | BK13: -0.00997742612 | BL13: -0.007838381938 | BM13: 0.01050529423 | BN13: 0.01218019547 | BO13: 0.01597176546 | BP13: -0.00041872531 | BQ13: 0.00125617593 | BR13: 3.198396409e-18 | BT13: 59.91464547 | BV13: 0.1499573112 | BX13: 0.01363248284
A14: 10 | B14: =Data!P15 -> 15 | D14: 2.708050201 | F14: 0 | G14: 0 | H14: 0 | I14: 0 | J14: 0 | K14: 0 | L14: 0 | M14: 0 | N14: 0 | O14: 15 | P14: 0 | Q14: 0 | R14: 0 | S14: 0 | T14: 0 | U14: 0 | V14: 0 | W14: 0 | Y14: 20 | Z14: 5 | AA14: 0 | AB14: 0 | AC14: 0 | AD14: 0 | AE14: 25 | AF14: 25 | AG14: 25 | AH14: 25 | AI14: 5 | AK14: 2.708050201 | AM14: =OFFSET(X4,A14,A14) -> 25 | AO14: -0.01010824025 | AP14: -0.00073548429 | AQ14: 0.0004992302772 | AR14: -0.0004062822602 | AS14: -2.819467601e-05 | AT14: 0 | AU14: 0.0001198273731 | AV14: 0.002245781296 | AW14: -0.01092401954 | AX14: 0.06632346213 | AY14: -0.04765681101 | BA14: 0.0004992302772 | BB14: -0.0004062822602 | BC14: -2.819467601e-05 | BD14: 0 | BE14: -0.000615656917 | BF14: 0.0006190576503 | BG14: -0.0002864548871 | BH14: 9.163269705e-05 | BI14: -0.007742631581 | BJ14: 0.001630124379 | BK14: 0.002864838947 | BL14: 0.001959326409 | BM14: -0.01866665112 | BN14: -0.009293895157 | BO14: -0.008059180589 | BP14: 0.04765681101 | BQ14: 0.05702956697 | BR14: 0 | BT14: 40.62075302 | BV14: -0.9060420445 | BX14: -0.08236745859
A15: 11 | B15: =Data!P16 -> 25 | D15: 3.218875825 | F15: =IF($A15=F$4,IF($B15<0,-(EXP(-$D15)^(2-$H$1)),IF($B15=0,0,EXP($D15)^(2-$H$1))),0) -> 0 | G15: 0 | H15: 0 | I15: 0 | J15: 0 | K15: 0 | L15: 0 | M15: 0 | N15: 0 | O15: 0 | P15: =IF($A15=P$4,IF($B15<0,-(EXP(-$D15)^(2-$H$1)),IF($B15=0,0,EXP($D15)^(2-$H$1))),0) -> 25 | Q15: 0 | R15: 0 | S15: 0 | T15: 0 | U15: 0 | V15: 0 | W15: 0 | Y15: 5 | Z15: 0 | AA15: 0 | AB15: 0 | AC15: 0 | AD15: 0 | AE15: 5 | AF15: 5 | AG15: 5 | AH15: 5 | AI15: 5 | AK15: 3.218875825 | AM15: =OFFSET(X4,A15,A15) -> 5 | AO15: -0.005636031533 | AP15: 0.002023417347 | AQ15: -9.30000116e-05 | AR15: -5.461934649e-05 | AS15: 0.0001255332523 | AT15: 0 | AU15: -0.0005335163222 | AV15: 0.001492771335 | AW15: 0.00041872531 | AX15: -0.04765681101 | AY15: 0.2519148622 | BA15: -9.30000116e-05 | BB15: -5.461934649e-05 | BC15: 0.0001255332523 | BD15: 0 | BE15: 0.001489901025 | BF15: -0.0006265163338 | BG15: -0.0005881356687 | BH15: -0.0004079830699 | BI15: -0.00467677652 | BJ15: 0.002982672359 | BK15: 0.000866255001 | BL15: 0.0009046356661 | BM15: -0.00425805121 | BN15: 0.003401397669 | BO15: 0.001284980311 | BP15: -0.05191486222 | BQ15: -0.04425541334 | BR15: 0.2 | BT15: 80.47189562 | BV15: -0.8562292251 | BX15: -0.07783902046
A16: 12 | B16: =Data!P17 -> 30 | D16: 3.401197382 | F16: 0 | G16: 0 | H16: 0 | I16: 0 | J16: 0 | K16: 0 | L16: 0 | M16: 0 | N16: 0 | O16: 0 | P16: 0 | Q16: 30 | R16: 0 | S16: 0 | T16: 0 | U16: 0 | V16: 0 | W16: 0 | AK16: 3.401197382 | BT16: 102.0359214
A17: 13 | B17: =Data!Q14 -> 30 | D17: 3.401197382 | F17: 0 | G17: 0 | H17: 0 | I17: 0 | J17: 0 | K17: 0 | L17: 0 | M17: 0 | N17: 0 | O17: 0 | P17: 0 | Q17: 0 | R17: 30 | S17: 0 | T17: 0 | U17: 0 | V17: 0 | W17: 0 | AK17: 3.401197382 | BT17: 102.0359214
A18: 14 | B18: =Data!Q15 -> 30 | D18: 3.401197382 | F18: 0 | G18: 0 | H18: 0 | I18: 0 | J18: 0 | K18: 0 | L18: 0 | M18: 0 | N18: 0 | O18: 0 | P18: 0 | Q18: 0 | R18: 0 | S18: 30 | T18: 0 | U18: 0 | V18: 0 | W18: 0 | AK18: 3.401197382 | BT18: 102.0359214
A19: 15 | B19: =Data!Q16 -> 20 | D19: 2.995732274 | F19: 0 | G19: 0 | H19: 0 | I19: 0 | J19: 0 | K19: 0 | L19: 0 | M19: 0 | N19: 0 | O19: 0 | P19: 0 | Q19: 0 | R19: 0 | S19: 0 | T19: 20 | U19: 0 | V19: 0 | W19: 0 | AK19: 2.995732274 | BT19: 59.91464547
A20: 16 | B20: =Data!R14 -> 15 | D20: 2.708050201 | F20: 0 | G20: 0 | H20: 0 | I20: 0 | J20: 0 | K20: 0 | L20: 0 | M20: 0 | N20: 0 | O20: 0 | P20: 0 | Q20: 0 | R20: 0 | S20: 0 | T20: 0 | U20: 15 | V20: 0 | W20: 0 | AK20: 2.708050201 | BT20: 40.62075302
A21: 17 | B21: =Data!R15 -> 5 | D21: 1.609437912 | F21: 0 | G21: 0 | H21: 0 | I21: 0 | J21: 0 | K21: 0 | L21: 0 | M21: 0 | N21: 0 | O21: 0 | P21: 0 | Q21: 0 | R21: 0 | S21: 0 | T21: 0 | U21: 0 | V21: 5 | W21: 0 | AK21: 1.609437912 | BT21: 8.047189562
A22: 18 | B22: =Data!S14 -> 5 | D22: 1.609437912 | F22: 0 | G22: 0 | H22: 0 | I22: 0 | J22: 0 | K22: 0 | L22: 0 | M22: 0 | N22: 0 | O22: 0 | P22: 0 | Q22: 0 | R22: 0 | S22: 0 | T22: 0 | U22: 0 | V22: 0 | W22: 5 | AK22: 1.609437912 | BT22: 8.047189562
A23: 19
A24: 20
A25: 21
A27: Newton-Raphson Interation Sequence -- Iteration 2
B28: y(i) | D28: xb(i) | F28: W(i,i) | Y28: XWX | AK28: zz(i) | AM28: factor | AO28: xwx-1 | BA28: aa1(i,j) | BT28: aa2(j) | BV28: beta(j) | BX28: beta_diff = | BY28: =SUM(BX30:BX40) -> -0.005818508865 | BZ28: beta_old = | CA28: =SUM(BV30:BV40) -> 25.48333998
B29: 1 | D29: 1 | F29: 1 | G29: 2 | H29: 3 | I29: 4 | J29: 5 | K29: 6 | L29: 7 | M29: 8 | N29: 9 | O29: 10 | P29: 11 | Q29: 12 | R29: 13 | S29: 14 | T29: 15 | U29: 16 | V29: 17 | W29: 18 | Y29: 1 | Z29: 2 | AA29: 3 | AB29: 4 | AC29: 5 | AD29: 6 | AE29: 7 | AF29: 8 | AG29: 9 | AH29: 10 | AI29: 11 | AK29: 1 | AO29: 1 | AP29: 2 | AQ29: 3 | AR29: 4 | AS29: 5 | AT29: 6 | AU29: 7 | AV29: 8 | AW29: 9 | AX29: 10 | AY29: 11 | BA29: 1 | BB29: 2 | BC29: 3 | BD29: 4 | BE29: 5 | BF29: 6 | BG29: 7 | BH29: 8 | BI29: 9 | BJ29: 10 | BK29: 11 | BL29: 12 | BM29: 13 | BN29: 14 | BO29: 15 | BP29: 16 | BQ29: 17 | BR29: 18
A30: 1 | B30: =B5 -> 105 | D30: =MMULT(DesignMatrix,BV5:BV15) -> 4.759097181 | F30: =IF($A30=F$4,IF($B30<0,-(EXP(-$D30)^(2-$H$1)),IF($B30=0,0,EXP($D30)^(2-$H$1))),0) -> 116.640573 | G30: 0 | H30: 0 | I30: 0 | J30: 0 | K30: 0 | L30: 0 | M30: 0 | N30: 0 | O30: 0 | P30: =IF($A30=P$4,IF($B30<0,-(EXP(-$D30)^(2-$H$1)),IF($B30=0,0,EXP($D30)^(2-$H$1))),0) -> 0 | Q30: 0 | R30: 0 | S30: 0 | T30: 0 | U30: 0 | V30: 0 | W30: 0 | Y30: =MMULT(TRANSPOSE(DesignMatrix),MMULT(F30:W47,DesignMatrix)) -> 70.97160732 | Z30: 0 | AA30: 0 | AB30: 0 | AC30: 0 | AD30: 0 | AE30: 70.97160732 | AF30: 70.97160732 | AG30: 45.89960268 | AH30: 16.77133263 | AI30: 5 | AK30: =IF(B30<0,D30+(B30+EXP(-D30))/-EXP(-D30),IF(B30=0,0,D30+(B30-EXP(D30))/EXP(D30))) -> 4.65929852 | AM30: =OFFSET(X29,A30,A30) -> 70.97160732 | AO30: =MINVERSE(Y30:AI40) -> 0.03081773239 | AP30: 0.01085653048 | AQ30: 0.004382270118 | AR30: 0.00274602207 | AS30: 0.001366506504 | AT30: 0 | AU30: -0.004743900331 | AV30: -0.007904007932 | AW30: -0.003251908226 | AX30: -0.005580570214 | AY30: -0.009337345691 | BA30: =MMULT(AO30:AY40,TRANSPOSE(DesignMatrix)) -> 0.004382270118 | BB30: 0.00274602207 | BC30: 0.001366506504 | BD30: 0 | BE30: 0.006112630154 | BF30: -0.0003616302124 | BG30: -0.001997878261 | BH30: -0.003377393826 | BI30: 0.01816982413 | BJ30: -0.001791377778 | BK30: -0.008265638145 | BL30: -0.009901886193 | BM30: 0.0149179159 | BN30: -0.005043286004 | BO30: -0.01151754637 | BP30: 0.009337345691 | BQ30: -0.01062385622 | BR30: 0 | BT30: =MMULT(F30:W47,AK30:AK47) -> 543.4632494 | BV30: =MMULT(BA30:BR40,BT30:BT47) -> 4.884865649 | BX30: =BV30-CA3/$K$1 -> 2.567669422
A31: 2 | B31: =B6 -> 120 | D31: 4.765291244 | F31: 0 | G31: 117.3652943 | H31: 0 | I31: 0 | J31: 0 | K31: 0 | L31: 0 | M31: 0 | N31: 0 | O31: 0 | P31: 0 | Q31: 0 | R31: 0 | S31: 0 | T31: 0 | U31: 0 | V31: 0 | W31: 0 | Y31: 0 | Z31: 103.5441606 | AA31: 0 | AB31: 0 | AC31: 0 | AD31: 0 | AE31: 103.5441606 | AF31: 57.98268451 | AG31: 35.94680886 | AH31: 10.34586686 | AI31: 0 | AK31: =IF(B31<0,D31+(B31+EXP(-D31))/-EXP(-D31),IF(B31=0,0,D31+(B31-EXP(D31))/EXP(D31))) -> 4.787740008 | AM31: =OFFSET(X29,A31,A31) -> 103.5441606 | AO31: 0.01085653048 | AP31: 0.018648678 | AQ31: 0.003794502779 | AR31: 0.002769869252 | AS31: 0.001906003958 | AT31: 0 | AU31: -0.006616794562 | AV31: -0.002353726597 | AW31: -0.002036374742 | AX31: -0.003494604227 | AY31: 0.003644969643 | BA31: 0.003794502779 | BB31: 0.002769869252 | BC31: 0.001906003958 | BD31: 0 | BE31: 0.01203188344 | BF31: -0.002822291783 | BG31: -0.00384692531 | BH31: -0.004710790604 | BI31: 0.001886009326 | BJ31: 0.009678156838 | BK31: -0.00517601838 | BL31: -0.006200651908 | BM31: -0.0001503654167 | BN31: 0.007641782096 | BO31: -0.007212393122 | BP31: -0.003644969643 | BQ31: 0.00414717787 | BR31: -1.734723476e-18 | BT31: 561.9145149 | BV31: 4.725708181 | BX31: =BV31-CA3/$K$1 -> 2.408511955
A32: 3 | B32: 130 | D32: 4.803109009 | F32: 0 | G32: 0 | H32: 121.8887823 | I32: 0 | J32: 0 | K32: 0 | L32: 0 | M32: 0 | N32: 0 | O32: 0 | P32: 0 | Q32: 0 | R32: 0 | S32: 0 | T32: 0 | U32: 0 | V32: 0 | W32: 0 | Y32: 0 | Z32: 0 | AA32: 213.1766883 | AB32: 0 | AC32: 0 | AD32: 0 | AE32: 96.5361153 | AF32: 49.34289178 | AG32: 26.51781905 | AH32: 0 | AI32: 0 | AK32: 4.869655064 | AM32: =OFFSET(X29,A32,A32) -> 213.1766883 | AO32: 0.004382270118 | AP32: 0.003794502779 | AQ32: 0.006393542445 | AR32: 0.001254961003 | AS32: 0.0008775596564 | AT32: 0 | AU32: -0.003046495228 | AV32: -0.0009173769913 | AW32: -0.0008896416797 | AX32: 0.0007461864844 | AY32: -0.000274942704 | BA32: 0.006393542445 | BB32: 0.001254961003 | BC32: 0.0008775596564 | BD32: 0 | BE32: 0.0007480075518 | BF32: 0.003347047217 | BG32: -0.001791534224 | BH32: -0.002168935571 | BI32: 0.0004183978993 | BJ32: -0.0001693694395 | BK32: 0.002429670226 | BL32: -0.002708911216 | BM32: -0.0004712437804 | BN32: -0.001059011119 | BO32: 0.001540028546 | BP32: 0.000274942704 | BQ32: -0.0003128246347 | BR32: -2.168404345e-19 | BT32: 593.5563261 | BV32: 4.756614081 | BX32: =BV32-CA3/$K$1 -> 2.439417854
A33: 4 | B33: 125 | D33: 4.828313737 | F33: 0 | G33: 0 | H33: 0 | I33: 125 | J33: 0 | K33: 0 | L33: 0 | M33: 0 | N33: 0 | O33: 0 | P33: 0 | Q33: 0 | R33: 0 | S33: 0 | T33: 0 | U33: 0 | V33: 0 | W33: 0 | Y33: 0 | Z33: 0 | AA33: 0 | AB33: 187.8186342 | AC33: 0 | AD33: 0 | AE33: 70.45333994 | AF33: 22.96689143 | AG33: 0 | AH33: 0 | AI33: 0 | AK33: 4.828313737 | AM33: =OFFSET(X29,A33,A33) -> 187.8186342 | AO33: 0.00274602207 | AP33: 0.002769869252 | AQ33: 0.001254961003 | AR33: 0.006435487916 | AS33: 0.0008066180862 | AT33: 0 | AU33: -0.002800217777 | AV33: -0.0004972312416 | AW33: 0.001030572792 | AX33: -0.0004903009522 | AY33: 1.115510885e-05 | BA33: 0.001254961003 | BB33: 0.006435487916 | BC33: 0.0008066180862 | BD33: 0 | BE33: -3.034852549e-05 | BF33: -0.001545256774 | BG33: 0.003635270139 | BH33: -0.001993599691 | BI33: -0.0005514269489 | BJ33: -0.0005275797671 | BK33: -0.002042488015 | BL33: 0.003138038897 | BM33: 0.0004791458434 | BN33: 0.0005029930252 | BO33: -0.001011915223 | BP33: -1.115510885e-05 | BQ33: 1.269207293e-05 | BR33: 6.217221833e-19 | BT33: 603.5392172 | BV33: 4.760697412 | BX33: =BV33-CA3/$K$1 -> 2.443501185
A34: 5 | B34: 50 | D34: 3.819062536 | F34: 0 | G34: 0 | H34: 0 | I34: 0 | J34: 45.56147606 | K34: 0 | L34: 0 | M34: 0 | N34: 0 | O34: 0 | P34: 0 | Q34: 0 | R34: 0 | S34: 0 | T34: 0 | U34: 0 | V34: 0 | W34: 0 | Y34: 0 | Z34: 0 | AA34: 0 | AB34: 0 | AC34: 171.2054514 | AD34: 0 | AE34: 49.31666913 | AF34: 0 | AG34: 0 | AH34: 0 | AI34: 0 | AK34: 3.916480889 | AM34: =OFFSET(X29,A34,A34) -> 171.2054514 | AO34: 0.001366506504 | AP34: 0.001906003958 | AQ34: 0.0008775596564 | AR34: 0.0008066180862 | AS34: 0.006587742977 | AT34: 0 | AU34: -0.002592582036 | AV34: 0.001356655353 | AW34: -0.0001409905275 | AX34: -0.0002419525656 | AY34: 0.0002523632719 | BA34: 0.0008775596564 | BB34: 0.0008066180862 | BC34: 0.006587742977 | BD34: 0 | BE34: -0.0006865780778 | BF34: -0.001715022379 | BG34: -0.00178596395 | BH34: 0.003995160942 | BI34: 0.0001305798212 | BJ34: 0.0006700772749 | BK34: -0.0003583670268 | BL34: -0.0004293085969 | BM34: -1.041070633e-05 | BN34: 0.0005290867474 | BO34: -0.0004993575543 | BP34: -0.0002523632719 | BQ34: 0.0002871341818 | BR34: 5.421010862e-20 | BT34: 178.4406503 | BV34: 4.802568657 | BX34: =BV34-CA3/$K$1 -> 2.48537243
A35: 6 | B35: 60 | D35: 3.854250313 | F35: 0 | G35: 0 | H35: 0 | I35: 0 | J35: 0 | K35: 47.19322351 | L35: 0 | M35: 0 | N35: 0 | O35: 0 | P35: 0 | Q35: 0 | R35: 0 | S35: 0 | T35: 0 | U35: 0 | V35: 0 | W35: 0 | Y35: 0 | Z35: 0 | AA35: 0 | AB35: 0 | AC35: 0 | AD35: 125 | AE35: 0 | AF35: 0 | AG35: 0 | AH35: 0 | AI35: 0 | AK35: 4.125619283 | AM35: =OFFSET(X29,A35,A35) -> 125 | AO35: 0 | AP35: 0 | AQ35: 0 | AR35: 0 | AS35: 0 | AT35: 0.008 | AU35: 0 | AV35: 0 | AW35: 0 | AX35: 0 | AY35: 0 | BA35: 0 | BB35: 0 | BC35: 0 | BD35: 0.008 | BE35: 0 | BF35: 0 | BG35: 0 | BH35: 0 | BI35: 0 | BJ35: 0 | BK35: 0 | BL35: 0 | BM35: 0 | BN35: 0 | BO35: 0 | BP35: 0 | BQ35: 0 | BR35: 0 | BT35: 194.701273 | BV35: 4.828313737 | BX35: =BV35-CA3/$K$1 -> 2.511117511
A36: 7 | B36: 35 | D36: 3.860444376 | F36: 0 | G36: 0 | H36: 0 | I36: 0 | J36: 0 | K36: 0 | L36: 47.4864485 | M36: 0 | N36: 0 | O36: 0 | P36: 0 | Q36: 0 | R36: 0 | S36: 0 | T36: 0 | U36: 0 | V36: 0 | W36: 0 | Y36: 70.97160732 | Z36: 103.5441606 | AA36: 96.5361153 | AB36: 70.45333994 | AC36: 49.31666913 | AD36: 0 | AE36: 390.8218923 | AF36: 201.264075 | AG36: 108.3642306 | AH36: 27.11719949 | AI36: 5 | AK36: 3.597496758 | AM36: =OFFSET(X29,A36,A36) -> 390.8218923 | AO36: -0.004743900331 | AP36: -0.006616794562 | AQ36: -0.003046495228 | AR36: -0.002800217777 | AS36: -0.002592582036 | AT36: 0 | AU36: 0.009000287037 | AV36: -0.004709701531 | AW36: 0.0004894561482 | AX36: 0.0008399512569 | AY36: -0.00087609258 | BA36: -0.003046495228 | BB36: -0.002800217777 | BC36: -0.002592582036 | BD36: 0 | BE36: 0.002383492475 | BF36: 0.005953791809 | BG36: 0.00620006926 | BH36: 0.006407705001 | BI36: -0.000453314825 | BJ36: -0.002326209056 | BK36: 0.001244090278 | BL36: 0.001490367728 | BM36: 3.614132317e-05 | BN36: -0.001836752908 | BO36: 0.001733546426 | BP36: 0.00087609258 | BQ36: -0.0009968016514 | BR36: 5.421010862e-19 | BT36: 170.8323445 | BV36: -0.927414091 | BX36: =BV36-CA3/$K$1 -> -3.244610317
A37: 8 | B37: 40 | D37: 3.89826214 | F37: 0 | G37: 0 | H37: 0 | I37: 0 | J37: 0 | K37: 0 | L37: 0 | M37: 49.31666913 | N37: 0 | O37: 0 | P37: 0 | Q37: 0 | R37: 0 | S37: 0 | T37: 0 | U37: 0 | V37: 0 | W37: 0 | Y37: 70.97160732 | Z37: 57.98268451 | AA37: 49.34289178 | AB37: 22.96689143 | AC37: 0 | AD37: 0 | AE37: 201.264075 | AF37: 201.264075 | AG37: 108.3642306 | AH37: 27.11719949 | AI37: 5 | AK37: 3.709346926 | AM37: =OFFSET(X29,A37,A37) -> 201.264075 | AO37: -0.007904007932 | AP37: -0.002353726597 | AQ37: -0.0009173769913 | AR37: -0.0004972312416 | AS37: 0.001356655353 | AT37: 0 | AU37: -0.004709701531 | AV37: 0.01851375912 | AW37: -0.0099292756 | AX37: 0.001432944631 | AY37: 0.002596281313 | BA37: -0.0009173769913 | BB37: -0.0004972312416 | BC37: 0.001356655353 | BD37: 0 | BE37: -0.007063428129 | BF37: -0.005627078523 | BG37: -0.005206932773 | BH37: -0.003353046179 | BI37: 0.005900049655 | BJ37: 0.01145033099 | BK37: 0.0128866806 | BL37: 0.01330682635 | BM37: -0.004029225944 | BN37: 0.001521055391 | BO37: 0.002957404997 | BP37: -0.002596281313 | BQ37: 0.002954000022 | BR37: -1.734723476e-18 | BT37: 182.932635 | BV37: -0.7423219221 | BX37: =BV37-CA3/$K$1 -> -3.059518148
A38: 9 | B38: 20 | D38: 3.221751871 | F38: 0 | G38: 0 | H38: 0 | I38: 0 | J38: 0 | K38: 0 | L38: 0 | M38: 0 | N38: 25.07200464 | O38: 0 | P38: 0 | Q38: 0 | R38: 0 | S38: 0 | T38: 0 | U38: 0 | V38: 0 | W38: 0 | Y38: 45.89960268 | Z38: 35.94680886 | AA38: 26.51781905 | AB38: 0 | AC38: 0 | AD38: 0 | AE38: 108.3642306 | AF38: 108.3642306 | AG38: 108.3642306 | AH38: 27.11719949 | AI38: 5 | AK38: 3.01945434 | AM38: =OFFSET(X29,A38,A38) -> 108.3642306 | AO38: -0.003251908226 | AP38: -0.002036374742 | AQ38: -0.0008896416797 | AR38: 0.001030572792 | AS38: -0.0001409905275 | AT38: 0 | AU38: 0.0004894561482 | AV38: -0.0099292756 | AW38: 0.02384584653 | AX38: -0.01172271469 | AY38: 0.0005685958384 | BA38: -0.0008896416797 | BB38: 0.001030572792 | BC38: -0.0001409905275 | BD38: 0 | BE38: -0.001546918594 | BF38: -0.0004001855315 | BG38: 0.00152002894 | BH38: 0.0003484656207 | BI38: -0.01269172768 | BJ38: -0.01147619419 | BK38: -0.01032946113 | BL38: -0.008409246659 | BM38: 0.01115411885 | BN38: 0.01236965233 | BO38: 0.01351638539 | BP38: -0.0005685958384 | BQ38: 0.0006469376452 | BR38: 3.252606517e-19 | BT38: 75.70377322 | BV38: 0.1619226769 | BX38: =BV38-CA3/$K$1 -> -2.155273549
A39: 10 | B39: 15 | D39: 3.092671836 | F39: 0 | G39: 0 | H39: 0 | I39: 0 | J39: 0 | K39: 0 | L39: 0 | M39: 0 | N39: 0 | O39: 22.03587565 | P39: 0 | Q39: 0 | R39: 0 | S39: 0 | T39: 0 | U39: 0 | V39: 0 | W39: 0 | Y39: 16.77133263 | Z39: 10.34586686 | AA39: 0 | AB39: 0 | AC39: 0 | AD39: 0 | AE39: 27.11719949 | AF39: 27.11719949 | AG39: 27.11719949 | AH39: 27.11719949 | AI39: 5 | AK39: 2.77337998 | AM39: =OFFSET(X29,A39,A39) -> 27.11719949 | AO39: -0.005580570214 | AP39: -0.003494604227 | AQ39: 0.0007461864844 | AR39: -0.0004903009522 | AS39: -0.0002419525656 | AT39: 0 | AU39: 0.0008399512569 | AV39: 0.001432944631 | AW39: -0.01172271469 | AX39: 0.05926830773 | AY39: -0.04423791872 | BA39: 0.0007461864844 | BB39: -0.0004903009522 | BC39: -0.0002419525656 | BD39: 0 | BE39: -0.00265465297 | BF39: 0.001586137741 | BG39: 0.0003496503046 | BH39: 0.0005979986913 | BI39: -0.003307674326 | BJ39: -0.001221708339 | BK39: 0.003019082372 | BL39: 0.001782594936 | BM39: -0.01503038901 | BN39: -0.01294442303 | BO39: -0.008703632314 | BP39: 0.04423791872 | BQ39: 0.04632388471 | BR39: -6.938893904e-18 | BT39: 61.11385636 | BV39: -0.9930420944 | BX39: =BV39-CA3/$K$1 -> -3.310238321
A40: 11 | B40: 25 | D40: 3.127859613 | F40: =IF($A40=F$4,IF($B40<0,-(EXP(-$D40)^(2-$H$1)),IF($B40=0,0,EXP($D40)^(2-$H$1))),0) -> 0 | G40: 0 | H40: 0 | I40: 0 | J40: 0 | K40: 0 | L40: 0 | M40: 0 | N40: 0 | O40: 0 | P40: =IF($A40=P$4,IF($B40<0,-(EXP(-$D40)^(2-$H$1)),IF($B40=0,0,EXP($D40)^(2-$H$1))),0) -> 22.82507273 | Q40: 0 | R40: 0 | S40: 0 | T40: 0 | U40: 0 | V40: 0 | W40: 0 | Y40: 5 | Z40: 0 | AA40: 0 | AB40: 0 | AC40: 0 | AD40: 0 | AE40: 5 | AF40: 5 | AG40: 5 | AH40: 5 | AI40: 5 | AK40: 3.223146375 | AM40: =OFFSET(X29,A40,A40) -> 5 | AO40: -0.009337345691 | AP40: 0.003644969643 | AQ40: -0.000274942704 | AR40: 1.115510885e-05 | AS40: 0.0002523632719 | AT40: 0 | AU40: -0.00087609258 | AV40: 0.002596281313 | AW40: 0.0005685958384 | AX40: -0.04423791872 | AY40: 0.2512864798 | BA40: -0.000274942704 | BB40: 1.115510885e-05 | BC40: 0.0002523632719 | BD40: 0 | BE40: 0.002768877063 | BF40: -0.001151035284 | BG40: -0.0008649374712 | BH40: -0.0006237293081 | BI40: -0.007617156957 | BJ40: 0.005365158377 | BK40: 0.001445246029 | BL40: 0.001731343842 | BM40: -0.007048561119 | BN40: 0.005933754215 | BO40: 0.002013841868 | BP40: -0.05128647984 | BQ40: -0.03830416451 | BR40: 0.2 | BT40: 73.56855042 | BV40: -0.7745723057 | BX40: =BV40-CA3/$K$1 -> -3.091768532
A41: 12 | B41: 30 | D41: 3.134053676 | F41: 0 | G41: 0 | H41: 0 | I41: 0 | J41: 0 | K41: 0 | L41: 0 | M41: 0 | N41: 0 | O41: 0 | P41: 0 | Q41: 22.96689143 | R41: 0 | S41: 0 | T41: 0 | U41: 0 | V41: 0 | W41: 0 | AK41: 3.440281821 | BT41: 79.01257908
A42: 13 | B42: 30 | D42: 3.371709182 | F42: 0 | G42: 0 | H42: 0 | I42: 0 | J42: 0 | K42: 0 | L42: 0 | M42: 0 | N42: 0 | O42: 0 | P42: 0 | Q42: 0 | R42: 29.12827005 | S42: 0 | T42: 0 | U42: 0 | V42: 0 | W42: 0 | AK42: 3.401636464 | BT42: 99.08378553
A43: 14 | B43: 30 | D43: 3.242629148 | F43: 0 | G43: 0 | H43: 0 | I43: 0 | J43: 0 | K43: 0 | L43: 0 | M43: 0 | N43: 0 | O43: 0 | P43: 0 | Q43: 0 | R43: 0 | S43: 25.600942 | T43: 0 | U43: 0 | V43: 0 | W43: 0 | AK43: 3.414461028 | BT43: 87.41341873
A44: 15 | B44: 20 | D44: 3.277816924 | F44: 0 | G44: 0 | H44: 0 | I44: 0 | J44: 0 | K44: 0 | L44: 0 | M44: 0 | N44: 0 | O44: 0 | P44: 0 | Q44: 0 | R44: 0 | S44: 0 | T44: 26.51781905 | U44: 0 | V44: 0 | W44: 0 | AK44: 3.032026762 | BT44: 80.40273703
A45: 16 | B45: 15 | D45: 2.465667138 | F45: 0 | G45: 0 | H45: 0 | I45: 0 | J45: 0 | K45: 0 | L45: 0 | M45: 0 | N45: 0 | O45: 0 | P45: 0 | Q45: 0 | R45: 0 | S45: 0 | T45: 0 | U45: 11.77133263 | V45: 0 | W45: 0 | AK45: 2.739949368 | BT45: 32.2528554
A46: 17 | B46: 5 | D46: 2.336587103 | F46: 0 | G46: 0 | H46: 0 | I46: 0 | J46: 0 | K46: 0 | L46: 0 | M46: 0 | N46: 0 | O46: 0 | P46: 0 | Q46: 0 | R46: 0 | S46: 0 | T46: 0 | U46: 0 | V46: 10.34586686 | W46: 0 | AK46: 1.819871884 | BT46: 18.82815222
A47: 18 | B47: 5 | D47: 1.609437912 | F47: 0 | G47: 0 | H47: 0 | I47: 0 | J47: 0 | K47: 0 | L47: 0 | M47: 0 | N47: 0 | O47: 0 | P47: 0 | Q47: 0 | R47: 0 | S47: 0 | T47: 0 | U47: 0 | V47: 0 | W47: 5 | AK47: 1.609437912 | BT47: 8.047189562
A48: 19
A49: 20
A50: 21
A52: Newton-Raphson Interation Sequence -- Iteration 3
B53: y(i) | D53: xb(i) | F53: W(i,i) | Y53: XWX | AK53: zz(i) | AM53: factor | AO53: xwx-1 | BA53: aa1(i,j) | BT53: aa2(j) | BV53: beta(j) | BX53: beta_diff = | BY53: =SUM(BX55:BX65) -> 1.548099112e-05 | BZ53: beta_old = | CA53: =SUM(BV55:BV65) -> 25.48335546
B54: 1 | D54: 1 | F54: 1 | G54: 2 | H54: 3 | I54: 4 | J54: 5 | K54: 6 | L54: 7 | M54: 8 | N54: 9 | O54: 10 | P54: 11 | Q54: 12 | R54: 13 | S54: 14 | T54: 15 | U54: 16 | V54: 17 | W54: 18 | Y54: 1 | Z54: 2 | AA54: 3 | AB54: 4 | AC54: 5 | AD54: 6 | AE54: 7 | AF54: 8 | AG54: 9 | AH54: 10 | AI54: 11 | AK54: 1 | AO54: 1 | AP54: 2 | AQ54: 3 | AR54: 4 | AS54: 5 | AT54: 6 | AU54: 7 | AV54: 8 | AW54: 9 | AX54: 10 | AY54: 11 | BA54: 1 | BB54: 2 | BC54: 3 | BD54: 4 | BE54: 5 | BF54: 6 | BG54: 7 | BH54: 8 | BI54: 9 | BJ54: 10 | BK54: 11 | BL54: 12 | BM54: 13 | BN54: 14 | BO54: 15 | BP54: 16 | BQ54: 17 | BR54: 18
A55: 1 | B55: =B30 -> 105 | D55: =MMULT(DesignMatrix,BV30:BV40) -> 4.756614081 | F55: =IF($A55=F$4,IF($B55<0,-(EXP(-$D55)^(2-$H$1)),IF($B55=0,0,EXP($D55)^(2-$H$1))),0) -> 116.3513021 | G55: 0 | H55: 0 | I55: 0 | J55: 0 | K55: 0 | L55: 0 | M55: 0 | N55: 0 | O55: 0 | P55: =IF($A55=P$4,IF($B55<0,-(EXP(-$D55)^(2-$H$1)),IF($B55=0,0,EXP($D55)^(2-$H$1))),0) -> 0 | Q55: 0 | R55: 0 | S55: 0 | T55: 0 | U55: 0 | V55: 0 | W55: 0 | Y55: =MMULT(TRANSPOSE(DesignMatrix),MMULT(F55:W72,DesignMatrix)) -> 70.03916308 | Z55: 0 | AA55: 0 | AB55: 0 | AC55: 0 | AD55: 0 | AE55: 70.03916308 | AF55: 70.03916308 | AG55: 45.13264261 | AH55: 15.84831988 | AI55: 5 | AK55: =IF(B55<0,D55+(B55+EXP(-D55))/-EXP(-D55),IF(B55=0,0,D55+(B55-EXP(D55))/EXP(D55))) -> 4.659053487 | AM55: =OFFSET(X54,A55,A55) -> 70.03916308 | AO55: =MINVERSE(Y55:AI65) -> 0.0313982418 | AP55: 0.01101684357 | AQ55: 0.004414489607 | AR55: 0.002746096588 | AS55: 0.001358932367 | AT55: 0 | AU55: -0.004794263973 | AV55: -0.008232902064 | AW55: -0.003323177031 | AX55: -0.005666454992 | AY55: -0.009381443738 | BA55: =MMULT(AO55:AY65,TRANSPOSE(DesignMatrix)) -> 0.004414489607 | BB55: 0.002746096588 | BC55: 0.001358932367 | BD55: 0 | BE55: 0.006222579599 | BF55: -0.0003797743661 | BG55: -0.002048167385 | BH55: -0.003435331606 | BI55: 0.01837107576 | BJ55: -0.002010322464 | BK55: -0.00861267643 | BL55: -0.01028106945 | BM55: 0.01504789873 | BN55: -0.005333499496 | BO55: -0.01193585346 | BP55: 0.009381443738 | BQ55: -0.01099995449 | BR55: 0 | BT55: =MMULT(F55:W72,AK55:AK72) -> 542.0869396 | BV55: =MMULT(BA55:BR65,BT55:BT72) -> 4.885777726 | BX55: =BV55-CA28/$K$1 -> 2.569110456
A56: 2 | B56: =B31 -> 120 | D56: 4.760697412 | F56: 0 | G56: 116.8273743 | H56: 0 | I56: 0 | J56: 0 | K56: 0 | L56: 0 | M56: 0 | N56: 0 | O56: 0 | P56: 0 | Q56: 0 | R56: 0 | S56: 0 | T56: 0 | U56: 0 | V56: 0 | W56: 0 | Y56: 0 | Z56: 100.0944273 | AA56: 0 | AB56: 0 | AC56: 0 | AD56: 0 | AE56: 100.0944273 | AF56: 55.46943398 | AG56: 34.22760786 | AH56: 9.252120335 | AI56: 0 | AK56: =IF(B56<0,D56+(B56+EXP(-D56))/-EXP(-D56),IF(B56=0,0,D56+(B56-EXP(D56))/EXP(D56))) -> 4.787853939 | AM56: =OFFSET(X54,A56,A56) -> 100.0944273 | AO56: 0.01101684357 | AP56: 0.01910248505 | AQ56: 0.003808881236 | AR56: 0.002772931973 | AS56: 0.001911605094 | AT56: 0 | AU56: -0.006744073254 | AV56: -0.002412646112 | AW56: -0.002063448335 | AX56: -0.003518451472 | AY56: 0.003721775601 | BA56: 0.003808881236 | BB56: 0.002772931973 | BC56: 0.001911605094 | BD56: 0 | BE56: 0.0123584118 | BF56: -0.002935192018 | BG56: -0.003971141281 | BH56: -0.00483246816 | BI56: 0.001860124207 | BJ56: 0.009945765686 | BK56: -0.005347838129 | BL56: -0.006383787393 | BM56: -0.0002033241284 | BN56: 0.007882317351 | BO56: -0.007411286464 | BP56: -0.003721775601 | BQ56: 0.004363865879 | BR56: -4.770489559e-18 | BT56: 559.352404 | BV56: 4.725737765 | BX56: =BV56-CA28/$K$1 -> 2.409070494
A57: 3 | B57: 130 | D57: 4.802568657 | F57: 0 | G57: 0 | H57: 121.8229373 | I57: 0 | J57: 0 | K57: 0 | L57: 0 | M57: 0 | N57: 0 | O57: 0 | P57: 0 | Q57: 0 | R57: 0 | S57: 0 | T57: 0 | U57: 0 | V57: 0 | W57: 0 | Y57: 0 | Z57: 0 | AA57: 210.0450078 | AB57: 0 | AC57: 0 | AD57: 0 | AE57: 93.69370571 | AF57: 47.66800325 | AG57: 25.75942925 | AH57: 0 | AI57: 0 | AK57: 4.869691178 | AM57: =OFFSET(X54,A57,A57) -> 210.0450078 | AO57: 0.004414489607 | AP57: 0.003808881236 | AQ57: 0.006445043536 | AR57: 0.001237565612 | AS57: 0.0008662510868 | AT57: 0 | AU57: -0.003056102332 | AV57: -0.0009334881432 | AW57: -0.0008895442114 | AX57: 0.0007434032299 | AY57: -0.0002787581497 | BA57: 0.006445043536 | BB57: 0.001237565612 | BC57: 0.0008662510868 | BD57: 0 | BE57: 0.0007527789036 | BF57: 0.003388941204 | BG57: -0.00181853672 | BH57: -0.002189851246 | BI57: 0.0004248991312 | BJ57: -0.0001807092395 | BK57: 0.00245545306 | BL57: -0.002752024863 | BM57: -0.0004646450802 | BN57: -0.001070253451 | BO57: 0.001565908849 | BP57: 0.0002787581497 | BQ57: -0.000326850221 | BR57: -5.421010862e-19 | BT57: 593.2400829 | BV57: 4.756628016 | BX57: =BV57-CA28/$K$1 -> 2.439960745
A58: 4 | B58: 125 | D58: 4.828313737 | F58: 0 | G58: 0 | H58: 0 | I58: 125 | J58: 0 | K58: 0 | L58: 0 | M58: 0 | N58: 0 | O58: 0 | P58: 0 | Q58: 0 | R58: 0 | S58: 0 | T58: 0 | U58: 0 | V58: 0 | W58: 0 | Y58: 0 | Z58: 0 | AA58: 0 | AB58: 185.039616 | AC58: 0 | AD58: 0 | AE58: 68.21224174 | AF58: 21.99821687 | AG58: 0 | AH58: 0 | AI58: 0 | AK58: 4.828313737 | AM58: =OFFSET(X54,A58,A58) -> 185.039616 | AO58: 0.002746096588 | AP58: 0.002772931973 | AQ58: 0.001237565612 | AR58: 0.00649766045 | AS58: 0.0007954415035 | AT58: 0 | AU58: -0.002806288698 | AV58: -0.0004955561451 | AW58: 0.001032991857 | AX58: -0.0004895957799 | AY58: 1.235217783e-05 | BA58: 0.001237565612 | BB58: 0.00649766045 | BC58: 0.0007954415035 | BD58: 0 | BE58: -3.335672481e-05 | BF58: -0.001568723085 | BG58: 0.003691371752 | BH58: -0.002010847194 | BI58: -0.000555748255 | BJ58: -0.0005289128699 | BK58: -0.00206427923 | BL58: 0.003195815607 | BM58: 0.0004772436021 | BN58: 0.0005040789872 | BO58: -0.001031287373 | BP58: -1.235217783e-05 | BQ58: 1.448320725e-05 | BR58: -5.471832839e-19 | BT58: 603.5392172 | BV58: 4.760661246 | BX58: =BV58-CA28/$K$1 -> 2.443993975
A59: 5 | B59: 50 | D59: 3.79829409 | F59: 0 | G59: 0 | H59: 0 | I59: 0 | J59: 44.62499331 | K59: 0 | L59: 0 | M59: 0 | N59: 0 | O59: 0 | P59: 0 | Q59: 0 | R59: 0 | S59: 0 | T59: 0 | U59: 0 | V59: 0 | W59: 0 | Y59: 0 | Z59: 0 | AA59: 0 | AB59: 0 | AC59: 170.0130835 | AD59: 0 | AE59: 48.19014626 | AF59: 0 | AG59: 0 | AH59: 0 | AI59: 0 | AK59: 3.918742437 | AM59: =OFFSET(X54,A59,A59) -> 170.0130835 | AO59: 0.001358932367 | AP59: 0.001911605094 | AQ59: 0.0008662510868 | AR59: 0.0007954415035 | AS59: 0.006618468032 | AT59: 0 | AU59: -0.002598584319 | AV59: 0.001366795842 | AW59: -0.000141041576 | AX59: -0.0002404944831 | AY59: 0.0002543921684 | BA59: 0.0008662510868 | BB59: 0.0007954415035 | BC59: 0.006618468032 | BD59: 0 | BE59: -0.0006869792249 | BF59: -0.001732333232 | BG59: -0.001803142815 | BH59: 0.004019883714 | BI59: 0.0001271438907 | BJ59: 0.0006798166172 | BK59: -0.0003655373896 | BL59: -0.0004363469729 | BM59: -1.389768526e-05 | BN59: 0.0005387750412 | BO59: -0.0005065789656 | BP59: -0.0002543921684 | BQ59: 0.0002982805581 | BR59: -2.710505431e-19 | BT59: 174.873855 | BV59: 4.802576785 | BX59: =BV59-CA28/$K$1 -> 2.485909514
A60: 6 | B60: 60 | D60: 3.82919999 | F60: 0 | G60: 0 | H60: 0 | I60: 0 | J60: 0 | K60: 46.02570246 | L60: 0 | M60: 0 | N60: 0 | O60: 0 | P60: 0 | Q60: 0 | R60: 0 | S60: 0 | T60: 0 | U60: 0 | V60: 0 | W60: 0 | Y60: 0 | Z60: 0 | AA60: 0 | AB60: 0 | AC60: 0 | AD60: 125 | AE60: 0 | AF60: 0 | AG60: 0 | AH60: 0 | AI60: 0 | AK60: 4.132819419 | AM60: =OFFSET(X54,A60,A60) -> 125 | AO60: 0 | AP60: 0 | AQ60: 0 | AR60: 0 | AS60: 0 | AT60: 0.008 | AU60: 0 | AV60: 0 | AW60: 0 | AX60: 0 | AY60: 0 | BA60: 0 | BB60: 0 | BC60: 0 | BD60: 0.008 | BE60: 0 | BF60: 0 | BG60: 0 | BH60: 0 | BI60: 0 | BJ60: 0 | BK60: 0 | BL60: 0 | BM60: 0 | BN60: 0 | BO60: 0 | BP60: 0 | BQ60: 0 | BR60: 0 | BT60: 190.2159169 | BV60: 4.828313737 | BX60: =BV60-CA28/$K$1 -> 2.511646466
A61: 7 | B61: 35 | D61: 3.833283321 | F61: 0 | G61: 0 | H61: 0 | I61: 0 | J61: 0 | K61: 0 | L61: 46.21402487 | M61: 0 | N61: 0 | O61: 0 | P61: 0 | Q61: 0 | R61: 0 | S61: 0 | T61: 0 | U61: 0 | V61: 0 | W61: 0 | Y61: 70.03916308 | Z61: 100.0944273 | AA61: 93.69370571 | AB61: 68.21224174 | AC61: 48.19014626 | AD61: 0 | AE61: 380.2296841 | AF61: 195.1748172 | AG61: 105.1196797 | AH61: 25.10044021 | AI61: 5 | AK61: 3.590629172 | AM61: =OFFSET(X54,A61,A61) -> 380.2296841 | AO61: -0.004794263973 | AP61: -0.006744073254 | AQ61: -0.003056102332 | AR61: -0.002806288698 | AS61: -0.002598584319 | AT61: 0 | AU61: 0.009167710977 | AV61: -0.004822006027 | AW61: 0.0004975895511 | AX61: 0.0008484557907 | AY61: -0.0008974863189 | BA61: -0.003056102332 | BB61: -0.002806288698 | BC61: -0.002598584319 | BD61: 0 | BE61: 0.002423637723 | BF61: 0.006111608644 | BG61: 0.006361422279 | BH61: 0.006569126658 | BI61: -0.0004485590229 | BJ61: -0.002398368304 | BK61: 0.001289602618 | BL61: 0.001539416252 | BM61: 4.903052821e-05 | BN61: -0.001900778753 | BO61: 0.001787192169 | BP61: 0.0008974863189 | BQ61: -0.001052322962 | BR61: 1.409462824e-18 | BT61: 165.9374258 | BV61: -0.9277142656 | BX61: =BV61-CA28/$K$1 -> -3.244381536
A62: 8 | B62: 40 | D62: 3.875154566 | F62: 0 | G62: 0 | H62: 0 | I62: 0 | J62: 0 | K62: 0 | L62: 0 | M62: 48.19014626 | N62: 0 | O62: 0 | P62: 0 | Q62: 0 | R62: 0 | S62: 0 | T62: 0 | U62: 0 | V62: 0 | W62: 0 | Y62: 70.03916308 | Z62: 55.46943398 | AA62: 47.66800325 | AB62: 21.99821687 | AC62: 0 | AD62: 0 | AE62: 195.1748172 | AF62: 195.1748172 | AG62: 105.1196797 | AH62: 25.10044021 | AI62: 5 | AK62: 3.705199774 | AM62: =OFFSET(X54,A62,A62) -> 195.1748172 | AO62: -0.008232902064 | AP62: -0.002412646112 | AQ62: -0.0009334881432 | AR62: -0.0004955561451 | AS62: 0.001366795842 | AT62: 0 | AU62: -0.004822006027 | AV62: 0.01912052064 | AW62: -0.01023201638 | AX62: 0.001487372537 | AY62: 0.002679031298 | BA62: -0.0009334881432 | BB62: -0.0004955561451 | BC62: 0.001366795842 | BD62: 0 | BE62: -0.007234652139 | BF62: -0.00575549417 | BG62: -0.005317562172 | BH62: -0.003455210185 | BI62: 0.006065612545 | BJ62: 0.0118858685 | BK62: 0.01336502647 | BL62: 0.01380295846 | BM62: -0.004166403835 | BN62: 0.001653852117 | BO62: 0.003133010085 | BP62: -0.002679031298 | BQ62: 0.003141224653 | BR62: 4.33680869e-19 | BT62: 178.554119 | BV62: -0.7428877977 | BX62: =BV62-CA28/$K$1 -> -3.059555069
A63: 9 | B63: 20 | D63: 3.215129636 | F63: 0 | G63: 0 | H63: 0 | I63: 0 | J63: 0 | K63: 0 | L63: 0 | M63: 0 | N63: 24.90652047 | O63: 0 | P63: 0 | Q63: 0 | R63: 0 | S63: 0 | T63: 0 | U63: 0 | V63: 0 | W63: 0 | Y63: 45.13264261 | Z63: 34.22760786 | AA63: 25.75942925 | AB63: 0 | AC63: 0 | AD63: 0 | AE63: 105.1196797 | AF63: 105.1196797 | AG63: 105.1196797 | AH63: 25.10044021 | AI63: 5 | AK63: 3.018132208 | AM63: =OFFSET(X54,A63,A63) -> 105.1196797 | AO63: -0.003323177031 | AP63: -0.002063448335 | AQ63: -0.0008895442114 | AR63: 0.001032991857 | AS63: -0.000141041576 | AT63: 0 | AU63: 0.0004975895511 | AV63: -0.01023201638 | AW63: 0.02437798974 | AX63: -0.01190023196 | AY63: 0.0005798460811 | BA63: -0.0008895442114 | BB63: 0.001032991857 | BC63: -0.000141041576 | BD63: 0 | BE63: -0.001565858784 | BF63: -0.0003919546603 | BG63: 0.001530581408 | BH63: 0.0003565479751 | BI63: -0.01305760386 | BJ63: -0.01179787516 | BK63: -0.01062397104 | BL63: -0.008701434972 | BM63: 0.01132038588 | BN63: 0.01258011458 | BO63: 0.0137540187 | BP63: -0.0005798460811 | BQ63: 0.0006798826151 | BR63: -5.421010862e-19 | BT63: 75.17117162 | BV63: 0.1622007821 | BX63: =BV63-CA28/$K$1 -> -2.154466489
A64: 10 | B64: 15 | D64: 3.055972168 | F64: 0 | G64: 0 | H64: 0 | I64: 0 | J64: 0 | K64: 0 | L64: 0 | M64: 0 | N64: 0 | O64: 21.24182612 | P64: 0 | Q64: 0 | R64: 0 | S64: 0 | T64: 0 | U64: 0 | V64: 0 | W64: 0 | Y64: 15.84831988 | Z64: 9.252120335 | AA64: 0 | AB64: 0 | AC64: 0 | AD64: 0 | AE64: 25.10044021 | AF64: 25.10044021 | AG64: 25.10044021 | AH64: 25.10044021 | AI64: 5 | AK64: 2.762126145 | AM64: =OFFSET(X54,A64,A64) -> 25.10044021 | AO64: -0.005666454992 | AP64: -0.003518451472 | AQ64: 0.0007434032299 | AR64: -0.0004895957799 | AS64: -0.0002404944831 | AT64: 0 | AU64: 0.0008484557907 | AV64: 0.001487372537 | AW64: -0.01190023196 | AX64: 0.0639922988 | AY64: -0.04876144017 | BA64: 0.0007434032299 | BB64: -0.0004895957799 | BC64: -0.0002404944831 | BD64: 0 | BE64: -0.002669995682 | BF64: 0.001591859021 | BG64: 0.0003588600107 | BH64: 0.0006079613076 | BI64: -0.003330626665 | BJ64: -0.001182623145 | BK64: 0.003079231557 | BL64: 0.001846232547 | BM64: -0.01523085863 | BN64: -0.01308285511 | BO64: -0.008821000406 | BP64: 0.04876144017 | BQ64: 0.05090944369 | BR64: 6.938893904e-18 | BT64: 58.6726033 | BV64: -0.9979569361 | BX64: =BV64-CA28/$K$1 -> -3.314624207
A65: 11 | B65: 25 | D65: 3.086878067 | F65: =IF($A65=F$4,IF($B65<0,-(EXP(-$D65)^(2-$H$1)),IF($B65=0,0,EXP($D65)^(2-$H$1))),0) -> 0 | G65: 0 | H65: 0 | I65: 0 | J65: 0 | K65: 0 | L65: 0 | M65: 0 | N65: 0 | O65: 0 | P65: =IF($A65=P$4,IF($B65<0,-(EXP(-$D65)^(2-$H$1)),IF($B65=0,0,EXP($D65)^(2-$H$1))),0) -> 21.90857401 | Q65: 0 | R65: 0 | S65: 0 | T65: 0 | U65: 0 | V65: 0 | W65: 0 | Y65: 5 | Z65: 0 | AA65: 0 | AB65: 0 | AC65: 0 | AD65: 0 | AE65: 5 | AF65: 5 | AG65: 5 | AH65: 5 | AI65: 5 | AK65: 3.227983828 | AM65: =OFFSET(X54,A65,A65) -> 5 | AO65: -0.009381443738 | AP65: 0.003721775601 | AQ65: -0.0002787581497 | AR65: 1.235217783e-05 | AS65: 0.0002543921684 | AT65: 0 | AU65: -0.0008974863189 | AV65: 0.002679031298 | AW65: 0.0005798460811 | AX65: -0.04876144017 | AY65: 0.2557814929 | BA65: -0.0002787581497 | BB65: 1.235217783e-05 | BC65: 0.0002543921684 | BD65: 0 | BE65: 0.002824289282 | BF65: -0.001176244469 | BG65: -0.000885134141 | BH65: -0.0006430941505 | BI65: -0.007599898758 | BJ65: 0.00550332058 | BK65: 0.00150278683 | BL65: 0.001793897157 | BM65: -0.007020052677 | BN65: 0.006083166661 | BO65: 0.002082632911 | BP65: -0.05578149285 | BQ65: -0.04267827351 | BR65: 0.2 | BT65: 70.72052259 | BV65: -0.7699815968 | BX65: =BV65-CA28/$K$1 -> -3.086648868
A66: 12 | B66: 30 | D66: 3.090961399 | F66: 0 | G66: 0 | H66: 0 | I66: 0 | J66: 0 | K66: 0 | L66: 0 | M66: 0 | N66: 0 | O66: 0 | P66: 0 | Q66: 21.99821687 | R66: 0 | S66: 0 | T66: 0 | U66: 0 | V66: 0 | W66: 0 | AK66: 3.454708296 | BT66: 75.9974223
A67: 13 | B67: 30 | D67: 3.377052313 | F67: 0 | G67: 0 | H67: 0 | I67: 0 | J67: 0 | K67: 0 | L67: 0 | M67: 0 | N67: 0 | O67: 0 | P67: 0 | Q67: 0 | R67: 29.28432273 | S67: 0 | T67: 0 | U67: 0 | V67: 0 | W67: 0 | AK67: 3.401491234 | BT67: 99.61036707
A68: 14 | B68: 30 | D68: 3.217894845 | F68: 0 | G68: 0 | H68: 0 | I68: 0 | J68: 0 | K68: 0 | L68: 0 | M68: 0 | N68: 0 | O68: 0 | P68: 0 | Q68: 0 | R68: 0 | S68: 24.97548753 | T68: 0 | U68: 0 | V68: 0 | W68: 0 | AK68: 3.419072598 | BT68: 85.39300504
A69: 15 | B69: 20 | D69: 3.248800744 | F69: 0 | G69: 0 | H69: 0 | I69: 0 | J69: 0 | K69: 0 | L69: 0 | M69: 0 | N69: 0 | O69: 0 | P69: 0 | Q69: 0 | R69: 0 | S69: 0 | T69: 25.75942925 | U69: 0 | V69: 0 | W69: 0 | AK69: 3.025215463 | BT69: 77.92782366
A70: 16 | B70: 15 | D70: 2.384010218 | F70: 0 | G70: 0 | H70: 0 | I70: 0 | J70: 0 | K70: 0 | L70: 0 | M70: 0 | N70: 0 | O70: 0 | P70: 0 | Q70: 0 | R70: 0 | S70: 0 | T70: 0 | U70: 10.84831988 | V70: 0 | W70: 0 | AK70: 2.766712809 | BT70: 30.01418556
A71: 17 | B71: 5 | D71: 2.224852751 | F71: 0 | G71: 0 | H71: 0 | I71: 0 | J71: 0 | K71: 0 | L71: 0 | M71: 0 | N71: 0 | O71: 0 | P71: 0 | Q71: 0 | R71: 0 | S71: 0 | T71: 0 | U71: 0 | V71: 9.252120335 | W71: 0 | AK71: 1.765269414 | BT71: 16.33248504
A72: 18 | B72: 5 | D72: 1.609437912 | F72: 0 | G72: 0 | H72: 0 | I72: 0 | J72: 0 | K72: 0 | L72: 0 | M72: 0 | N72: 0 | O72: 0 | P72: 0 | Q72: 0 | R72: 0 | S72: 0 | T72: 0 | U72: 0 | V72: 0 | W72: 5 | AK72: 1.609437912 | BT72: 8.047189562
A73: 19
A74: 20
A75: 21
A77: Newton-Raphson Interation Sequence -- Iteration 4
B78: y(i) | D78: xb(i) | F78: W(i,i) | Y78: XWX | AK78: zz(i) | AM78: factor | AO78: xwx-1 | BA78: aa1(i,j) | BT78: aa2(j) | BV78: beta(j) | BX78: beta_diff = | BY78: =SUM(BX80:BX90) -> -1.476003226e-07 | BZ78: beta_old = | CA78: =SUM(BV80:BV90) -> 25.48335531
B79: 1 | D79: 1 | F79: 1 | G79: 2 | H79: 3 | I79: 4 | J79: 5 | K79: 6 | L79: 7 | M79: 8 | N79: 9 | O79: 10 | P79: 11 | Q79: 12 | R79: 13 | S79: 14 | T79: 15 | U79: 16 | V79: 17 | W79: 18 | Y79: 1 | Z79: 2 | AA79: 3 | AB79: 4 | AC79: 5 | AD79: 6 | AE79: 7 | AF79: 8 | AG79: 9 | AH79: 10 | AI79: 11 | AK79: 1 | AO79: 1 | AP79: 2 | AQ79: 3 | AR79: 4 | AS79: 5 | AT79: 6 | AU79: 7 | AV79: 8 | AW79: 9 | AX79: 10 | AY79: 11 | BA79: 1 | BB79: 2 | BC79: 3 | BD79: 4 | BE79: 5 | BF79: 6 | BG79: 7 | BH79: 8 | BI79: 9 | BJ79: 10 | BK79: 11 | BL79: 12 | BM79: 13 | BN79: 14 | BO79: 15 | BP79: 16 | BQ79: 17 | BR79: 18
A80: 1 | B80: =B55 -> 105 | D80: =MMULT(DesignMatrix,BV55:BV65) -> 4.756628016 | F80: =IF($A80=F$4,IF($B80<0,-(EXP(-$D80)^(2-$H$1)),IF($B80=0,0,EXP($D80)^(2-$H$1))),0) -> 116.3529235 | G80: 0 | H80: 0 | I80: 0 | J80: 0 | K80: 0 | L80: 0 | M80: 0 | N80: 0 | O80: 0 | P80: =IF($A80=P$4,IF($B80<0,-(EXP(-$D80)^(2-$H$1)),IF($B80=0,0,EXP($D80)^(2-$H$1))),0) -> 0 | Q80: 0 | R80: 0 | S80: 0 | T80: 0 | U80: 0 | V80: 0 | W80: 0 | Y80: =MMULT(TRANSPOSE(DesignMatrix),MMULT(F80:W97,DesignMatrix)) -> 70.0001157 | Z80: 0 | AA80: 0 | AB80: 0 | AC80: 0 | AD80: 0 | AE80: 70.0001157 | AF80: 70.0001157 | AG80: 45.09244882 | AH80: 15.79863254 | AI80: 5 | AK80: =IF(B80<0,D80+(B80+EXP(-D80))/-EXP(-D80),IF(B80=0,0,D80+(B80-EXP(D80))/EXP(D80))) -> 4.659054847 | AM80: =OFFSET(X79,A80,A80) -> 70.0001157 | AO80: =MINVERSE(Y80:AI90) -> 0.03141295659 | AP80: 0.01101650482 | AQ80: 0.004415005721 | AR80: 0.002745920002 | AS80: 0.001358634209 | AT80: 0 | AU80: -0.004794243211 | AV80: -0.008241680377 | AW80: -0.003324788646 | AX80: -0.005668342961 | AY80: -0.009383901394 | BA80: =MMULT(AO80:AY90,TRANSPOSE(DesignMatrix)) -> 0.004415005721 | BB80: 0.002745920002 | BC80: 0.001358634209 | BD80: 0 | BE80: 0.006222261613 | BF80: -0.0003792374902 | BG80: -0.002048323209 | BH80: -0.003435609001 | BI80: 0.018377033 | BJ80: -0.002019418764 | BK80: -0.008620917867 | BL80: -0.01029000359 | BM80: 0.01505224436 | BN80: -0.00534420741 | BO80: -0.01194570651 | BP80: 0.009383901394 | BQ80: -0.01101255037 | BR80: 0 | BT80: =MMULT(F80:W97,AK80:AK97) -> 542.094652 | BV80: =MMULT(BA80:BR90,BT80:BT97) -> 4.885778405 | BX80: =BV80-CA53/$K$1 -> 2.569109727
A81: 2 | B81: =B56 -> 120 | D81: 4.760661246 | F81: 0 | G81: 116.8231491 | H81: 0 | I81: 0 | J81: 0 | K81: 0 | L81: 0 | M81: 0 | N81: 0 | O81: 0 | P81: 0 | Q81: 0 | R81: 0 | S81: 0 | T81: 0 | U81: 0 | V81: 0 | W81: 0 | Y81: 0 | Z81: 100.0001513 | AA81: 0 | AB81: 0 | AC81: 0 | AD81: 0 | AE81: 100.0001513 | AF81: 55.38723146 | AG81: 34.163166 | AH81: 9.201619926 | AI81: 0 | AK81: =IF(B81<0,D81+(B81+EXP(-D81))/-EXP(-D81),IF(B81=0,0,D81+(B81-EXP(D81))/EXP(D81))) -> 4.787854921 | AM81: =OFFSET(X79,A81,A81) -> 100.0001513 | AO81: 0.01101650482 | AP81: 0.01911145034 | AQ81: 0.003808753516 | AR81: 0.002772847302 | AS81: 0.001911838213 | AT81: 0 | AU81: -0.006746346667 | AV81: -0.002412918388 | AW81: -0.002063506495 | AX81: -0.003518016861 | AY81: 0.003724283587 | BA81: 0.003808753516 | BB81: 0.002772847302 | BC81: 0.001911838213 | BD81: 0 | BE81: 0.01236510368 | BF81: -0.002937593151 | BG81: -0.003973499365 | BH81: -0.004834508454 | BI81: 0.001857239769 | BJ81: 0.009952185288 | BK81: -0.005350511539 | BL81: -0.006386417753 | BM81: -0.0002062667261 | BN81: 0.007888678793 | BO81: -0.007414018034 | BP81: -0.003724283587 | BQ81: 0.004370661932 | BR81: -4.33680869e-18 | BT81: 559.3322896 | BV81: 4.725737617 | BX81: =BV81-CA53/$K$1 -> 2.409068939
A82: 3 | B82: 130 | D82: 4.802576785 | F82: 0 | G82: 0 | H82: 121.8239275 | I82: 0 | J82: 0 | K82: 0 | L82: 0 | M82: 0 | N82: 0 | O82: 0 | P82: 0 | Q82: 0 | R82: 0 | S82: 0 | T82: 0 | U82: 0 | V82: 0 | W82: 0 | Y82: 0 | Z82: 0 | AA82: 210.0000141 | AB82: 0 | AC82: 0 | AD82: 0 | AE82: 93.64709064 | AF82: 47.63456066 | AG82: 25.74464732 | AH82: 0 | AI82: 0 | AK82: 4.869690633 | AM82: =OFFSET(X79,A82,A82) -> 210.0000141 | AO82: 0.004415005721 | AP82: 0.003808753516 | AQ82: 0.006445581574 | AR82: 0.00123717639 | AS82: 0.0008660605575 | AT82: 0 | AU82: -0.003056087444 | AV82: -0.0009337901323 | AW82: -0.0008894214247 | AX82: 0.0007432148773 | AY82: -0.0002789215972 | BA82: 0.006445581574 | BB82: 0.00123717639 | BC82: 0.0008660605575 | BD82: 0 | BE82: 0.0007526660728 | BF82: 0.003389494131 | BG82: -0.001818911054 | BH82: -0.002190026886 | BI82: 0.0004251281447 | BJ82: -0.0001811240595 | BK82: 0.002455703998 | BL82: -0.002752701186 | BM82: -0.0004642932801 | BN82: -0.001070545484 | BO82: 0.001566282574 | BP82: 0.0002789215972 | BQ82: -0.0003273306069 | BR82: -1.409462824e-18 | BT82: 593.2448386 | BV82: 4.756628035 | BX82: =BV82-CA53/$K$1 -> 2.439959357
A83: 4 | B83: 125 | D83: 4.828313737 | F83: 0 | G83: 0 | H83: 0 | I83: 125 | J83: 0 | K83: 0 | L83: 0 | M83: 0 | N83: 0 | O83: 0 | P83: 0 | Q83: 0 | R83: 0 | S83: 0 | T83: 0 | U83: 0 | V83: 0 | W83: 0 | Y83: 0 | Z83: 0 | AA83: 0 | AB83: 185.0000116 | AC83: 0 | AD83: 0 | AE83: 68.17686249 | AF83: 21.97837867 | AG83: 0 | AH83: 0 | AI83: 0 | AK83: 4.828313737 | AM83: =OFFSET(X79,A83,A83) -> 185.0000116 | AO83: 0.002745920002 | AP83: 0.002772847302 | AQ83: 0.00123717639 | AR83: 0.006498440835 | AS83: 0.0007952673121 | AT83: 0 | AU83: -0.00280627772 | AV83: -0.0004954150612 | AW83: 0.001032896786 | AX83: -0.0004895125893 | AY83: 1.238858246e-05 | BA83: 0.00123717639 | BB83: 0.006498440835 | BC83: 0.0007952673121 | BD83: 0 | BE83: -3.343041845e-05 | BF83: -0.00156910133 | BG83: 0.003692163115 | BH83: -0.002011010408 | BI83: -0.0005557727793 | BJ83: -0.0005288454796 | BK83: -0.002064516391 | BL83: 0.003196748053 | BM83: 0.0004771240069 | BN83: 0.0005040513065 | BO83: -0.001031619605 | BP83: -1.238858246e-05 | BQ83: 1.453871718e-05 | BR83: -1.053708986e-18 | BT83: 603.5392172 | BV83: 4.760661235 | BX83: =BV83-CA53/$K$1 -> 2.443992557
A84: 5 | B84: 50 | D84: 3.798023499 | F84: 0 | G84: 0 | H84: 0 | I84: 0 | J84: 44.61291982 | K84: 0 | L84: 0 | M84: 0 | N84: 0 | O84: 0 | P84: 0 | Q84: 0 | R84: 0 | S84: 0 | T84: 0 | U84: 0 | V84: 0 | W84: 0 | Y84: 0 | Z84: 0 | AA84: 0 | AB84: 0 | AC84: 170.0000021 | AD84: 0 | AE84: 48.17607456 | AF84: 0 | AG84: 0 | AH84: 0 | AI84: 0 | AK84: 3.918775071 | AM84: =OFFSET(X79,A84,A84) -> 170.0000021 | AO84: 0.001358634209 | AP84: 0.001911838213 | AQ84: 0.0008660605575 | AR84: 0.0007952673121 | AS84: 0.006618779307 | AT84: 0 | AU84: -0.002598644597 | AV84: 0.001366933104 | AW84: -0.000141018868 | AX84: -0.0002404192846 | AY84: 0.0002545154361 | BA84: 0.0008660605575 | BB84: 0.0007952673121 | BC84: 0.006618779307 | BD84: 0 | BE84: -0.0006868063845 | BF84: -0.00173258404 | BG84: -0.001803377285 | BH84: 0.00402013471 | BI84: 0.0001269227165 | BJ84: 0.0006801267196 | BK84: -0.0003656509355 | BL84: -0.0004364441809 | BM84: -1.409615152e-05 | BN84: 0.0005391078516 | BO84: -0.0005066698035 | BP84: -0.0002545154361 | BQ84: 0.000298688567 | BR84: -8.131516294e-19 | BT84: 174.827998 | BV84: 4.802576775 | BX84: =BV84-CA53/$K$1 -> 2.485908097
A85: 6 | B85: 60 | D85: 3.82891375 | F85: 0 | G85: 0 | H85: 0 | I85: 0 | J85: 0 | K85: 46.01252998 | L85: 0 | M85: 0 | N85: 0 | O85: 0 | P85: 0 | Q85: 0 | R85: 0 | S85: 0 | T85: 0 | U85: 0 | V85: 0 | W85: 0 | Y85: 0 | Z85: 0 | AA85: 0 | AB85: 0 | AC85: 0 | AD85: 125 | AE85: 0 | AF85: 0 | AG85: 0 | AH85: 0 | AI85: 0 | AK85: 4.132906381 | AM85: =OFFSET(X79,A85,A85) -> 125 | AO85: 0 | AP85: 0 | AQ85: 0 | AR85: 0 | AS85: 0 | AT85: 0.008 | AU85: 0 | AV85: 0 | AW85: 0 | AX85: 0 | AY85: 0 | BA85: 0 | BB85: 0 | BC85: 0 | BD85: 0.008 | BE85: 0 | BF85: 0 | BG85: 0 | BH85: 0 | BI85: 0 | BJ85: 0 | BK85: 0 | BL85: 0 | BM85: 0 | BN85: 0 | BO85: 0 | BP85: 0 | BQ85: 0 | BR85: 0 | BT85: 190.1654787 | BV85: 4.828313737 | BX85: =BV85-CA53/$K$1 -> 2.511645059
A86: 7 | B86: 35 | D86: 3.83294698 | F86: 0 | G86: 0 | H86: 0 | I86: 0 | J86: 0 | K86: 0 | L86: 46.19848383 | M86: 0 | N86: 0 | O86: 0 | P86: 0 | Q86: 0 | R86: 0 | S86: 0 | T86: 0 | U86: 0 | V86: 0 | W86: 0 | Y86: 70.0001157 | Z86: 100.0001513 | AA86: 93.64709064 | AB86: 68.17686249 | AC86: 48.17607456 | AD86: 0 | AE86: 380.0002947 | AF86: 195.0002865 | AG86: 105.0002621 | AH86: 25.00025246 | AI86: 5 | AK86: 3.5905476 | AM86: =OFFSET(X79,A86,A86) -> 380.0002947 | AO86: -0.004794243211 | AP86: -0.006746346667 | AQ86: -0.003056087444 | AR86: -0.00280627772 | AS86: -0.002598644597 | AT86: 0 | AU86: 0.009169895863 | AV86: -0.004823527708 | AW86: 0.0004976164635 | AX86: 0.0008483729578 | AY86: -0.0008981143659 | BA86: -0.003056087444 | BB86: -0.00280627772 | BC86: -0.002598644597 | BD86: 0 | BE86: 0.002423549196 | BF86: 0.00611380842 | BG86: 0.006363618143 | BH86: 0.006571251266 | BI86: -0.0004478750554 | BJ86: -0.002399978512 | BK86: 0.001290280712 | BL86: 0.001540090435 | BM86: 4.974140814e-05 | BN86: -0.001902362048 | BO86: 0.001787897175 | BP86: 0.0008981143659 | BQ86: -0.00105398909 | BR86: 2.602085214e-18 | BT86: 165.8778552 | BV86: -0.9277142741 | BX86: =BV86-CA53/$K$1 -> -3.244382952
A87: 8 | B87: 40 | D87: 3.874862519 | F87: 0 | G87: 0 | H87: 0 | I87: 0 | J87: 0 | K87: 0 | L87: 0 | M87: 48.17607456 | N87: 0 | O87: 0 | P87: 0 | Q87: 0 | R87: 0 | S87: 0 | T87: 0 | U87: 0 | V87: 0 | W87: 0 | Y87: 70.0001157 | Z87: 55.38723146 | AA87: 47.63456066 | AB87: 21.97837867 | AC87: 0 | AD87: 0 | AE87: 195.0002865 | AF87: 195.0002865 | AG87: 105.0002621 | AH87: 25.00025246 | AI87: 5 | AK87: 3.705150175 | AM87: =OFFSET(X79,A87,A87) -> 195.0002865 | AO87: -0.008241680377 | AP87: -0.002412918388 | AQ87: -0.0009337901323 | AR87: -0.0004954150612 | AS87: 0.001366933104 | AT87: 0 | AU87: -0.004823527708 | AV87: 0.01913265686 | AW87: -0.01023787287 | AX87: 0.001488755323 | AY87: 0.002681668772 | BA87: -0.0009337901323 | BB87: -0.0004954150612 | BC87: 0.001366933104 | BD87: 0 | BE87: -0.007236446096 | BF87: -0.00575731784 | BG87: -0.005318942769 | BH87: -0.003456594604 | BI87: 0.006067448774 | BJ87: 0.01189621076 | BK87: 0.01337533902 | BL87: 0.01381371409 | BM87: -0.004170424095 | BN87: 0.001658337894 | BO87: 0.00313746615 | BP87: -0.002681668772 | BQ87: 0.003147093217 | BR87: -3.035766083e-18 | BT87: 178.4995911 | BV87: -0.7428882151 | BX87: =BV87-CA53/$K$1 -> -3.059556893
A88: 9 | B88: 20 | D88: 3.215175663 | F88: 0 | G88: 0 | H88: 0 | I88: 0 | J88: 0 | K88: 0 | L88: 0 | M88: 0 | N88: 24.90766689 | O88: 0 | P88: 0 | Q88: 0 | R88: 0 | S88: 0 | T88: 0 | U88: 0 | V88: 0 | W88: 0 | Y88: 45.09244882 | Z88: 34.163166 | AA88: 25.74464732 | AB88: 0 | AC88: 0 | AD88: 0 | AE88: 105.0002621 | AF88: 105.0002621 | AG88: 105.0002621 | AH88: 25.00025246 | AI88: 5 | AK88: 3.018141276 | AM88: =OFFSET(X79,A88,A88) -> 105.0002621 | AO88: -0.003324788646 | AP88: -0.002063506495 | AQ88: -0.0008894214247 | AR88: 0.001032896786 | AS88: -0.000141018868 | AT88: 0 | AU88: 0.0004976164635 | AV88: -0.01023787287 | AW88: 0.0243877784 | AX88: -0.01190301797 | AY88: 0.0005802846236 | BA88: -0.0008894214247 | BB88: 0.001032896786 | BC88: -0.000141018868 | BD88: 0 | BE88: -0.001565890032 | BF88: -0.0003918049612 | BG88: 0.00153051325 | BH88: 0.0003565975955 | BI88: -0.01306504505 | BJ88: -0.0118037629 | BK88: -0.01062967783 | BL88: -0.00870735962 | BM88: 0.01132273335 | BN88: 0.0125840155 | BO88: 0.01375810057 | BP88: -0.0005802846236 | BQ88: 0.0006809975274 | BR88: 2.818925648e-18 | BT88: 75.17485751 | BV88: 0.1622008783 | BX88: =BV88-CA53/$K$1 -> -2.1544678
A89: 10 | B89: 15 | D89: 3.055135701 | F89: 0 | G89: 0 | H89: 0 | I89: 0 | J89: 0 | K89: 0 | L89: 0 | M89: 0 | N89: 0 | O89: 21.22406547 | P89: 0 | Q89: 0 | R89: 0 | S89: 0 | T89: 0 | U89: 0 | V89: 0 | W89: 0 | Y89: 15.79863254 | Z89: 9.201619926 | AA89: 0 | AB89: 0 | AC89: 0 | AD89: 0 | AE89: 25.00025246 | AF89: 25.00025246 | AG89: 25.00025246 | AH89: 25.00025246 | AI89: 5 | AK89: 2.7618806 | AM89: =OFFSET(X79,A89,A89) -> 25.00025246 | AO89: -0.005668342961 | AP89: -0.003518016861 | AQ89: 0.0007432148773 | AR89: -0.0004895125893 | AS89: -0.0002404192846 | AT89: 0 | AU89: 0.0008483729578 | AV89: 0.001488755323 | AW89: -0.01190301797 | AX89: 0.06424428981 | AY89: -0.04901005716 | BA89: 0.0007432148773 | BB89: -0.0004895125893 | BC89: -0.0002404192846 | BD89: 0 | BE89: -0.002669643903 | BF89: 0.001591587835 | BG89: 0.0003588603685 | BH89: 0.0006079536732 | BI89: -0.003331214679 | BJ89: -0.00118088858 | BK89: 0.003080343158 | BL89: 0.001847615692 | BM89: -0.01523423265 | BN89: -0.01308390655 | BO89: -0.008822674812 | BP89: 0.04901005716 | BQ89: 0.05116038326 | BR89: 1.387778781e-17 | BT89: 58.61833467 | BV89: -0.9979695279 | BX89: =BV89-CA53/$K$1 -> -3.314638206
A90: 11 | B90: 25 | D90: 3.086025953 | F90: =IF($A90=F$4,IF($B90<0,-(EXP(-$D90)^(2-$H$1)),IF($B90=0,0,EXP($D90)^(2-$H$1))),0) -> 0 | G90: 0 | H90: 0 | I90: 0 | J90: 0 | K90: 0 | L90: 0 | M90: 0 | N90: 0 | O90: 0 | P90: =IF($A90=P$4,IF($B90<0,-(EXP(-$D90)^(2-$H$1)),IF($B90=0,0,EXP($D90)^(2-$H$1))),0) -> 21.88991334 | Q90: 0 | R90: 0 | S90: 0 | T90: 0 | U90: 0 | V90: 0 | W90: 0 | Y90: 5 | Z90: 0 | AA90: 0 | AB90: 0 | AC90: 0 | AD90: 0 | AE90: 5 | AF90: 5 | AG90: 5 | AH90: 5 | AI90: 5 | AK90: 3.22810448 | AM90: =OFFSET(X79,A90,A90) -> 5 | AO90: -0.009383901394 | AP90: 0.003724283587 | AQ90: -0.0002789215972 | AR90: 1.238858246e-05 | AS90: 0.0002545154361 | AT90: 0 | AU90: -0.0008981143659 | AV90: 0.002681668772 | AW90: 0.0005802846236 | AX90: -0.04901005716 | AY90: 0.2560301195 | BA90: -0.0002789215972 | BB90: 1.238858246e-05 | BC90: 0.0002545154361 | BD90: 0 | BE90: 0.002826169221 | BF90: -0.001177035963 | BG90: -0.0008857257835 | BH90: -0.0006435989298 | BI90: -0.007600346988 | BJ90: 0.005507837993 | BK90: 0.001504632809 | BL90: 0.001795942989 | BM90: -0.007020062365 | BN90: 0.006088122617 | BO90: 0.002084917432 | BP90: -0.05603011953 | BQ90: -0.04292193455 | BR90: 0.2 | BT90: 70.66292732 | BV90: -0.7699693537 | BX90: =BV90-CA53/$K$1 -> -3.086638032
A91: 12 | B91: 30 | D91: 3.090059182 | F91: 0 | G91: 0 | H91: 0 | I91: 0 | J91: 0 | K91: 0 | L91: 0 | M91: 0 | N91: 0 | O91: 0 | P91: 0 | Q91: 21.97837867 | R91: 0 | S91: 0 | T91: 0 | U91: 0 | V91: 0 | W91: 0 | AK91: 3.45503703 | BT91: 75.93611214
A92: 13 | B92: 30 | D92: 3.377376445 | F92: 0 | G92: 0 | H92: 0 | I92: 0 | J92: 0 | K92: 0 | L92: 0 | M92: 0 | N92: 0 | O92: 0 | P92: 0 | Q92: 0 | R92: 29.29381628 | S92: 0 | T92: 0 | U92: 0 | V92: 0 | W92: 0 | AK92: 3.401483366 | BT92: 99.64242881
A93: 14 | B93: 30 | D93: 3.217336483 | F93: 0 | G93: 0 | H93: 0 | I93: 0 | J93: 0 | K93: 0 | L93: 0 | M93: 0 | N93: 0 | O93: 0 | P93: 0 | Q93: 0 | R93: 0 | S93: 24.96154607 | T93: 0 | U93: 0 | V93: 0 | W93: 0 | AK93: 3.419185116 | BT93: 85.34814679
A94: 15 | B94: 20 | D94: 3.248226735 | F94: 0 | G94: 0 | H94: 0 | I94: 0 | J94: 0 | K94: 0 | L94: 0 | M94: 0 | N94: 0 | O94: 0 | P94: 0 | Q94: 0 | R94: 0 | S94: 0 | T94: 25.74464732 | U94: 0 | V94: 0 | W94: 0 | AK94: 3.02508725 | BT94: 77.87980439
A95: 16 | B95: 15 | D95: 2.379419509 | F95: 0 | G95: 0 | H95: 0 | I95: 0 | J95: 0 | K95: 0 | L95: 0 | M95: 0 | N95: 0 | O95: 0 | P95: 0 | Q95: 0 | R95: 0 | S95: 0 | T95: 0 | U95: 10.79863254 | V95: 0 | W95: 0 | AK95: 2.768484277 | BT95: 29.89584439
A96: 17 | B96: 5 | D96: 2.219379547 | F96: 0 | G96: 0 | H96: 0 | I96: 0 | J96: 0 | K96: 0 | L96: 0 | M96: 0 | N96: 0 | O96: 0 | P96: 0 | Q96: 0 | R96: 0 | S96: 0 | T96: 0 | U96: 0 | V96: 9.201619926 | W96: 0 | AK96: 1.76276213 | BT96: 16.22026714
A97: 18 | B97: 5 | D97: 1.609437912 | F97: 0 | G97: 0 | H97: 0 | I97: 0 | J97: 0 | K97: 0 | L97: 0 | M97: 0 | N97: 0 | O97: 0 | P97: 0 | Q97: 0 | R97: 0 | S97: 0 | T97: 0 | U97: 0 | V97: 0 | W97: 5 | AK97: 1.609437912 | BT97: 8.047189562
A98: 19
A99: 20
A100: 21
A102: Newton-Raphson Interation Sequence -- Iteration 5
B103: y(i) | D103: xb(i) | F103: W(i,i) | Y103: XWX | AK103: zz(i) | AM103: factor | AO103: xwx-1 | BA103: aa1(i,j) | BT103: aa2(j) | BV103: beta(j) | BX103: beta_diff = | BY103: =SUM(BX105:BX115) -> -4.551914401e-13 | BZ103: beta_old = | CA103: =SUM(BV105:BV115) -> 25.48335531
B104: 1 | D104: 1 | F104: 1 | G104: 2 | H104: 3 | I104: 4 | J104: 5 | K104: 6 | L104: 7 | M104: 8 | N104: 9 | O104: 10 | P104: 11 | Q104: 12 | R104: 13 | S104: 14 | T104: 15 | U104: 16 | V104: 17 | W104: 18 | Y104: 1 | Z104: 2 | AA104: 3 | AB104: 4 | AC104: 5 | AD104: 6 | AE104: 7 | AF104: 8 | AG104: 9 | AH104: 10 | AI104: 11 | AK104: 1 | AO104: 1 | AP104: 2 | AQ104: 3 | AR104: 4 | AS104: 5 | AT104: 6 | AU104: 7 | AV104: 8 | AW104: 9 | AX104: 10 | AY104: 11 | BA104: 1 | BB104: 2 | BC104: 3 | BD104: 4 | BE104: 5 | BF104: 6 | BG104: 7 | BH104: 8 | BI104: 9 | BJ104: 10 | BK104: 11 | BL104: 12 | BM104: 13 | BN104: 14 | BO104: 15 | BP104: 16 | BQ104: 17 | BR104: 18
A105: 1 | B105: =B80 -> 105 | D105: =MMULT(DesignMatrix,BV80:BV90) -> 4.756628035 | F105: =IF($A105=F$4,IF($B105<0,-(EXP(-$D105)^(2-$H$1)),IF($B105=0,0,EXP($D105)^(2-$H$1))),0) -> 116.3529257 | G105: 0 | H105: 0 | I105: 0 | J105: 0 | K105: 0 | L105: 0 | M105: 0 | N105: 0 | O105: 0 | P105: =IF($A105=P$4,IF($B105<0,-(EXP(-$D105)^(2-$H$1)),IF($B105=0,0,EXP($D105)^(2-$H$1))),0) -> 0 | Q105: 0 | R105: 0 | S105: 0 | T105: 0 | U105: 0 | V105: 0 | W105: 0 | Y105: =MMULT(TRANSPOSE(DesignMatrix),MMULT(F105:W122,DesignMatrix)) -> 70 | Z105: 0 | AA105: 0 | AB105: 0 | AC105: 0 | AD105: 0 | AE105: 70 | AF105: 70 | AG105: 45.09232683 | AH105: 15.79850033 | AI105: 5 | AK105: =IF(B105<0,D105+(B105+EXP(-D105))/-EXP(-D105),IF(B105=0,0,D105+(B105-EXP(D105))/EXP(D105))) -> 4.659054849 | AM105: =OFFSET(X104,A105,A105) -> 70 | AO105: =MINVERSE(Y105:AI115) -> 0.03141298183 | AP105: 0.01101649576 | AQ105: 0.004415006512 | AR105: 0.002745919888 | AS105: 0.00135863352 | AT105: 0 | AU105: -0.004794240806 | AV105: -0.008241691301 | AW105: -0.003324790708 | AX105: -0.005668346024 | AY105: -0.009383912992 | BA105: =MMULT(AO105:AY115,TRANSPOSE(DesignMatrix)) -> 0.004415006512 | BB105: 0.002745919888 | BC105: 0.00135863352 | BD105: 0 | BE105: 0.006222254958 | BF105: -0.0003792342933 | BG105: -0.002048320917 | BH105: -0.003435607286 | BI105: 0.01837704972 | BJ105: -0.002019436344 | BK105: -0.008620925595 | BL105: -0.01029001222 | BM105: 0.01505225902 | BN105: -0.005344227051 | BO105: -0.0119457163 | BP105: 0.009383912992 | BQ105: -0.01101257308 | BR105: -3.469446952e-18 | BT105: =MMULT(F105:W122,AK105:AK122) -> 542.0946628 | BV105: =MMULT(BA105:BR115,BT105:BT122) -> 4.885778405 | BX105: =BV105-CA78/$K$1 -> 2.56910974
A106: 2 | B106: =B81 -> 120 | D106: 4.760661235 | F106: 0 | G106: 116.823148 | H106: 0 | I106: 0 | J106: 0 | K106: 0 | L106: 0 | M106: 0 | N106: 0 | O106: 0 | P106: 0 | Q106: 0 | R106: 0 | S106: 0 | T106: 0 | U106: 0 | V106: 0 | W106: 0 | Y106: 0 | Z106: 100 | AA106: 0 | AB106: 0 | AC106: 0 | AD106: 0 | AE106: 100 | AF106: 55.38708714 | AG106: 34.16303384 | AH106: 9.201499672 | AI106: 0 | AK106: =IF(B106<0,D106+(B106+EXP(-D106))/-EXP(-D106),IF(B106=0,0,D106+(B106-EXP(D106))/EXP(D106))) -> 4.787854922 | AM106: =OFFSET(X104,A106,A106) -> 100 | AO106: 0.01101649576 | AP106: 0.01911145856 | AQ106: 0.003808753073 | AR106: 0.002772847273 | AS106: 0.001911838638 | AT106: 0 | AU106: -0.00674634821 | AV106: -0.002412916153 | AW106: -0.002063505829 | AX106: -0.003518015445 | AY106: 0.003724289874 | BA106: 0.003808753073 | BB106: 0.002772847273 | BC106: 0.001911838638 | BD106: 0 | BE106: 0.01236511035 | BF106: -0.002937595137 | BG106: -0.003973500937 | BH106: -0.004834509572 | BI106: 0.001857231401 | BJ106: 0.009952194193 | BK106: -0.00535051129 | BL106: -0.00638641709 | BM106: -0.0002062744283 | BN106: 0.007888688364 | BO106: -0.007414017119 | BP106: -0.003724289874 | BQ106: 0.004370672919 | BR106: -1.734723476e-18 | BT106: 559.3322839 | BV106: 4.725737617 | BX106: =BV106-CA78/$K$1 -> 2.409068953
A107: 3 | B107: 130 | D107: 4.802576775 | F107: 0 | G107: 0 | H107: 121.8239263 | I107: 0 | J107: 0 | K107: 0 | L107: 0 | M107: 0 | N107: 0 | O107: 0 | P107: 0 | Q107: 0 | R107: 0 | S107: 0 | T107: 0 | U107: 0 | V107: 0 | W107: 0 | Y107: 0 | Z107: 0 | AA107: 210 | AB107: 0 | AC107: 0 | AD107: 0 | AE107: 93.64707427 | AF107: 47.63454378 | AG107: 25.74463934 | AH107: 0 | AI107: 0 | AK107: 4.869690633 | AM107: =OFFSET(X104,A107,A107) -> 210 | AO107: 0.004415006512 | AP107: 0.003808753073 | AQ107: 0.006445581667 | AR107: 0.001237176238 | AS107: 0.0008660605145 | AT107: 0 | AU107: -0.003056087311 | AV107: -0.0009337904701 | AW107: -0.0008894213453 | AX107: 0.0007432146547 | AY107: -0.0002789220412 | BA107: 0.006445581667 | BB107: 0.001237176238 | BC107: 0.0008660605145 | BD107: 0 | BE107: 0.0007526657624 | BF107: 0.003389494357 | BG107: -0.001818911073 | BH107: -0.002190026796 | BI107: 0.0004251287318 | BJ107: -0.0001811247076 | BK107: 0.002455703887 | BL107: -0.002752701543 | BM107: -0.0004642926135 | BN107: -0.001070546053 | BO107: 0.001566282541 | BP107: 0.0002789220412 | BQ107: -0.0003273313982 | BR107: -1.788933585e-18 | BT107: 593.2448329 | BV107: 4.756628035 | BX107: =BV107-CA78/$K$1 -> 2.439959371
A108: 4 | B108: 125 | D108: 4.828313737 | F108: 0 | G108: 0 | H108: 0 | I108: 125 | J108: 0 | K108: 0 | L108: 0 | M108: 0 | N108: 0 | O108: 0 | P108: 0 | Q108: 0 | R108: 0 | S108: 0 | T108: 0 | U108: 0 | V108: 0 | W108: 0 | Y108: 0 | Z108: 0 | AA108: 0 | AB108: 185 | AC108: 0 | AD108: 0 | AE108: 68.17685204 | AF108: 21.97836908 | AG108: 0 | AH108: 0 | AI108: 0 | AK108: 4.828313737 | AM108: =OFFSET(X104,A108,A108) -> 185 | AO108: 0.002745919888 | AP108: 0.002772847273 | AQ108: 0.001237176238 | AR108: 0.006498441043 | AS108: 0.0007952673057 | AT108: 0 | AU108: -0.002806277715 | AV108: -0.0004954149382 | AW108: 0.001032896669 | AX108: -0.0004895125199 | AY108: 1.2388616e-05 | BA108: 0.001237176238 | BB108: 0.006498441043 | BC108: 0.0007952673057 | BD108: 0 | BE108: -3.343044196e-05 | BF108: -0.001569101477 | BG108: 0.003692163328 | BH108: -0.002011010409 | BI108: -0.0005557727647 | BJ108: -0.0005288453802 | BK108: -0.002064516415 | BL108: 0.00319674839 | BM108: 0.0004771239039 | BN108: 0.0005040512885 | BO108: -0.001031619747 | BP108: -1.2388616e-05 | BQ108: 1.453876854e-05 | BR108: 3.726944968e-20 | BT108: 603.5392172 | BV108: 4.760661235 | BX108: =BV108-CA78/$K$1 -> 2.44399257
A109: 5 | B109: 50 | D109: 3.798023343 | F109: 0 | G109: 0 | H109: 0 | I109: 0 | J109: 44.61291287 | K109: 0 | L109: 0 | M109: 0 | N109: 0 | O109: 0 | P109: 0 | Q109: 0 | R109: 0 | S109: 0 | T109: 0 | U109: 0 | V109: 0 | W109: 0 | Y109: 0 | Z109: 0 | AA109: 0 | AB109: 0 | AC109: 170 | AD109: 0 | AE109: 48.17607369 | AF109: 0 | AG109: 0 | AH109: 0 | AI109: 0 | AK109: 3.91877509 | AM109: =OFFSET(X104,A109,A109) -> 170 | AO109: 0.00135863352 | AP109: 0.001911838638 | AQ109: 0.0008660605145 | AR109: 0.0007952673057 | AS109: 0.00661877941 | AT109: 0 | AU109: -0.002598644725 | AV109: 0.001366933335 | AW109: -0.0001410188059 | AX109: -0.0002404191595 | AY109: 0.0002545158358 | BA109: 0.0008660605145 | BB109: 0.0007952673057 | BC109: 0.00661877941 | BD109: 0 | BE109: -0.0006868060866 | BF109: -0.00173258421 | BG109: -0.001803377419 | BH109: 0.004020134686 | BI109: 0.0001269221296 | BJ109: 0.0006801272481 | BK109: -0.0003656508754 | BL109: -0.0004364440842 | BM109: -1.409667623e-05 | BN109: 0.0005391084422 | BO109: -0.0005066696813 | BP109: -0.0002545158358 | BQ109: 0.0002986892827 | BR109: -7.589415207e-19 | BT109: 174.8279716 | BV109: 4.802576775 | BX109: =BV109-CA78/$K$1 -> 2.485908111
A110: 6 | B110: 60 | D110: 3.828913761 | F110: 0 | G110: 0 | H110: 0 | I110: 0 | J110: 0 | K110: 46.01253049 | L110: 0 | M110: 0 | N110: 0 | O110: 0 | P110: 0 | Q110: 0 | R110: 0 | S110: 0 | T110: 0 | U110: 0 | V110: 0 | W110: 0 | Y110: 0 | Z110: 0 | AA110: 0 | AB110: 0 | AC110: 0 | AD110: 125 | AE110: 0 | AF110: 0 | AG110: 0 | AH110: 0 | AI110: 0 | AK110: 4.132906377 | AM110: =OFFSET(X104,A110,A110) -> 125 | AO110: 0 | AP110: 0 | AQ110: 0 | AR110: 0 | AS110: 0 | AT110: 0.008 | AU110: 0 | AV110: 0 | AW110: 0 | AX110: 0 | AY110: 0 | BA110: 0 | BB110: 0 | BC110: 0 | BD110: 0.008 | BE110: 0 | BF110: 0 | BG110: 0 | BH110: 0 | BI110: 0 | BJ110: 0 | BK110: 0 | BL110: 0 | BM110: 0 | BN110: 0 | BO110: 0 | BP110: 0 | BQ110: 0 | BR110: 0 | BT110: 190.1654807 | BV110: 4.828313737 | BX110: =BV110-CA78/$K$1 -> 2.511645072
A111: 7 | B111: 35 | D111: 3.832946961 | F111: 0 | G111: 0 | H111: 0 | I111: 0 | J111: 0 | K111: 0 | L111: 46.19848296 | M111: 0 | N111: 0 | O111: 0 | P111: 0 | Q111: 0 | R111: 0 | S111: 0 | T111: 0 | U111: 0 | V111: 0 | W111: 0 | Y111: 70 | Z111: 100 | AA111: 93.64707427 | AB111: 68.17685204 | AC111: 48.17607369 | AD111: 0 | AE111: 380 | AF111: 195 | AG111: 105 | AH111: 25 | AI111: 5 | AK111: 3.590547596 | AM111: =OFFSET(X104,A111,A111) -> 380 | AO111: -0.004794240806 | AP111: -0.00674634821 | AQ111: -0.003056087311 | AR111: -0.002806277715 | AS111: -0.002598644725 | AT111: 0 | AU111: 0.009169896369 | AV111: -0.004823528551 | AW111: 0.0004976162473 | AX111: 0.0008483725218 | AY111: -0.0008981157817 | BA111: -0.003056087311 | BB111: -0.002806277715 | BC111: -0.002598644725 | BD111: 0 | BE111: 0.00242354816 | BF111: 0.006113809059 | BG111: 0.006363618654 | BH111: 0.006571251645 | BI111: -0.0004478729873 | BJ111: -0.002399980391 | BK111: 0.001290280508 | BL111: 0.001540090103 | BM111: 4.974325999e-05 | BN111: -0.001902364144 | BO111: 0.001787896755 | BP111: 0.0008981157817 | BQ111: -0.001053991622 | BR111: 2.059984128e-18 | BT111: 165.8778519 | BV111: -0.9277142741 | BX111: =BV111-CA78/$K$1 -> -3.244382939
A112: 8 | B112: 40 | D112: 3.874862501 | F112: 0 | G112: 0 | H112: 0 | I112: 0 | J112: 0 | K112: 0 | L112: 0 | M112: 48.17607369 | N112: 0 | O112: 0 | P112: 0 | Q112: 0 | R112: 0 | S112: 0 | T112: 0 | U112: 0 | V112: 0 | W112: 0 | Y112: 70 | Z112: 55.38708714 | AA112: 47.63454378 | AB112: 21.97836908 | AC112: 0 | AD112: 0 | AE112: 195 | AF112: 195 | AG112: 105 | AH112: 25 | AI112: 5 | AK112: 3.705150172 | AM112: =OFFSET(X104,A112,A112) -> 195 | AO112: -0.008241691301 | AP112: -0.002412916153 | AQ112: -0.0009337904701 | AR112: -0.0004954149382 | AS112: 0.001366933335 | AT112: 0 | AU112: -0.004823528551 | AV112: 0.01913266423 | AW112: -0.01023787489 | AX112: 0.001488756885 | AY112: 0.002681673631 | BA112: -0.0009337904701 | BB112: -0.0004954149382 | BC112: 0.001366933335 | BD112: 0 | BE112: -0.007236444704 | BF112: -0.005757319021 | BG112: -0.005318943489 | BH112: -0.003456595216 | BI112: 0.006067444375 | BJ112: 0.01189621952 | BK112: 0.01337534521 | BL112: 0.01381372074 | BM112: -0.004170430515 | BN112: 0.001658344633 | BO112: 0.003137470316 | BP112: -0.002681673631 | BQ112: 0.003147101518 | BR112: -1.734723476e-18 | BT112: 178.4995877 | BV112: -0.7428882151 | BX112: =BV112-CA78/$K$1 -> -3.05955688
A113: 9 | B113: 20 | D113: 3.215175916 | F113: 0 | G113: 0 | H113: 0 | I113: 0 | J113: 0 | K113: 0 | L113: 0 | M113: 0 | N113: 24.90767318 | O113: 0 | P113: 0 | Q113: 0 | R113: 0 | S113: 0 | T113: 0 | U113: 0 | V113: 0 | W113: 0 | Y113: 45.09232683 | Z113: 34.16303384 | AA113: 25.74463934 | AB113: 0 | AC113: 0 | AD113: 0 | AE113: 105 | AF113: 105 | AG113: 105 | AH113: 25 | AI113: 5 | AK113: 3.018141326 | AM113: =OFFSET(X104,A113,A113) -> 105 | AO113: -0.003324790708 | AP113: -0.002063505829 | AQ113: -0.0008894213453 | AR113: 0.001032896669 | AS113: -0.0001410188059 | AT113: 0 | AU113: 0.0004976162473 | AV113: -0.01023787489 | AW113: 0.02438778296 | AX113: -0.01190301923 | AY113: 0.0005802856198 | BA113: -0.0008894213453 | BB113: 0.001032896669 | BC113: -0.0001410188059 | BD113: 0 | BE113: -0.001565889582 | BF113: -0.000391805098 | BG113: 0.001530512916 | BH113: 0.0003565974414 | BI113: -0.01306504935 | BJ113: -0.01180376447 | BK113: -0.01062967999 | BL113: -0.008707361975 | BM113: 0.01132273361 | BN113: 0.01258401849 | BO113: 0.01375810297 | BP113: -0.0005802856198 | BQ113: 0.0006809992588 | BR113: 3.035766083e-18 | BT113: 75.17487773 | BV113: 0.1622008783 | BX113: =BV113-CA78/$K$1 -> -2.154467786
A114: 10 | B114: 15 | D114: 3.055135128 | F114: 0 | G114: 0 | H114: 0 | I114: 0 | J114: 0 | K114: 0 | L114: 0 | M114: 0 | N114: 0 | O114: 21.2240533 | P114: 0 | Q114: 0 | R114: 0 | S114: 0 | T114: 0 | U114: 0 | V114: 0 | W114: 0 | Y114: 15.79850033 | Z114: 9.201499672 | AA114: 0 | AB114: 0 | AC114: 0 | AD114: 0 | AE114: 25 | AF114: 25 | AG114: 25 | AH114: 25 | AI114: 5 | AK114: 2.761880432 | AM114: =OFFSET(X104,A114,A114) -> 25 | AO114: -0.005668346024 | AP114: -0.003518015445 | AQ114: 0.0007432146547 | AR114: -0.0004895125199 | AS114: -0.0002404191595 | AT114: 0 | AU114: 0.0008483725218 | AV114: 0.001488756885 | AW114: -0.01190301923 | AX114: 0.06424492253 | AY114: -0.04901068669 | BA114: 0.0007432146547 | BB114: -0.0004895125199 | BC114: -0.0002404191595 | BD114: 0 | BE114: -0.002669642924 | BF114: 0.001591587176 | BG114: 0.0003588600018 | BH114: 0.0006079533622 | BI114: -0.003331216617 | BJ114: -0.001180886039 | BK114: 0.003080344061 | BL114: 0.001847616887 | BM114: -0.01523423584 | BN114: -0.01308390526 | BO114: -0.008822675165 | BP114: 0.04901068669 | BQ114: 0.05116101727 | BR114: 0 | BT114: 58.6182975 | BV114: -0.997969528 | BX114: =BV114-CA78/$K$1 -> -3.314638193
A115: 11 | B115: 25 | D115: 3.086025546 | F115: =IF($A115=F$4,IF($B115<0,-(EXP(-$D115)^(2-$H$1)),IF($B115=0,0,EXP($D115)^(2-$H$1))),0) -> 0 | G115: 0 | H115: 0 | I115: 0 | J115: 0 | K115: 0 | L115: 0 | M115: 0 | N115: 0 | O115: 0 | P115: =IF($A115=P$4,IF($B115<0,-(EXP(-$D115)^(2-$H$1)),IF($B115=0,0,EXP($D115)^(2-$H$1))),0) -> 21.88990444 | Q115: 0 | R115: 0 | S115: 0 | T115: 0 | U115: 0 | V115: 0 | W115: 0 | Y115: 5 | Z115: 0 | AA115: 0 | AB115: 0 | AC115: 0 | AD115: 0 | AE115: 5 | AF115: 5 | AG115: 5 | AH115: 5 | AI115: 5 | AK115: 3.228104538 | AM115: =OFFSET(X104,A115,A115) -> 5 | AO115: -0.009383912992 | AP115: 0.003724289874 | AQ115: -0.0002789220412 | AR115: 1.2388616e-05 | AS115: 0.0002545158358 | AT115: 0 | AU115: -0.0008981157817 | AV115: 0.002681673631 | AW115: 0.0005802856198 | AX115: -0.04901068669 | AY115: 0.2560307562 | BA115: -0.0002789220412 | BB115: 1.2388616e-05 | BC115: 0.0002545158358 | BD115: 0 | BE115: 0.002826174092 | BF115: -0.001177037823 | BG115: -0.0008857271657 | BH115: -0.000643599946 | BI115: -0.007600355144 | BJ115: 0.005507847723 | BK115: 0.001504635808 | BL115: 0.001795946465 | BM115: -0.007020069524 | BN115: 0.006088133342 | BO115: 0.002084921427 | BP115: -0.05603075621 | BQ115: -0.04292255335 | BR115: 0.2 | BT115: 70.66289987 | BV115: -0.7699693536 | BX115: =BV115-CA78/$K$1 -> -3.086638018
A116: 12 | B116: 30 | D116: 3.090058746 | F116: 0 | G116: 0 | H116: 0 | I116: 0 | J116: 0 | K116: 0 | L116: 0 | M116: 0 | N116: 0 | O116: 0 | P116: 0 | Q116: 21.97836908 | R116: 0 | S116: 0 | T116: 0 | U116: 0 | V116: 0 | W116: 0 | AK116: 3.455037189 | BT116: 75.93608252
A117: 13 | B117: 30 | D117: 3.377376794 | F117: 0 | G117: 0 | H117: 0 | I117: 0 | J117: 0 | K117: 0 | L117: 0 | M117: 0 | N117: 0 | O117: 0 | P117: 0 | Q117: 0 | R117: 29.2938265 | S117: 0 | T117: 0 | U117: 0 | V117: 0 | W117: 0 | AK117: 3.401483358 | BT117: 99.64246332
A118: 14 | B118: 30 | D118: 3.217336006 | F118: 0 | G118: 0 | H118: 0 | I118: 0 | J118: 0 | K118: 0 | L118: 0 | M118: 0 | N118: 0 | O118: 0 | P118: 0 | Q118: 0 | R118: 0 | S118: 24.96153416 | T118: 0 | U118: 0 | V118: 0 | W118: 0 | AK118: 3.419185212 | BT118: 85.34810848
A119: 15 | B119: 20 | D119: 3.248226425 | F119: 0 | G119: 0 | H119: 0 | I119: 0 | J119: 0 | K119: 0 | L119: 0 | M119: 0 | N119: 0 | O119: 0 | P119: 0 | Q119: 0 | R119: 0 | S119: 0 | T119: 25.74463934 | U119: 0 | V119: 0 | W119: 0 | AK119: 3.025087181 | BT119: 77.87977846
A120: 16 | B120: 15 | D120: 2.379407266 | F120: 0 | G120: 0 | H120: 0 | I120: 0 | J120: 0 | K120: 0 | L120: 0 | M120: 0 | N120: 0 | O120: 0 | P120: 0 | Q120: 0 | R120: 0 | S120: 0 | T120: 0 | U120: 10.79850033 | V120: 0 | W120: 0 | AK120: 2.768489041 | BT120: 29.89552982
A121: 17 | B121: 5 | D121: 2.219366479 | F121: 0 | G121: 0 | H121: 0 | I121: 0 | J121: 0 | K121: 0 | L121: 0 | M121: 0 | N121: 0 | O121: 0 | P121: 0 | Q121: 0 | R121: 0 | S121: 0 | T121: 0 | U121: 0 | V121: 9.201499672 | W121: 0 | AK121: 1.762756163 | BT121: 16.22000025
A122: 18 | B122: 5 | D122: 1.609437912 | F122: 0 | G122: 0 | H122: 0 | I122: 0 | J122: 0 | K122: 0 | L122: 0 | M122: 0 | N122: 0 | O122: 0 | P122: 0 | Q122: 0 | R122: 0 | S122: 0 | T122: 0 | U122: 0 | V122: 0 | W122: 5 | AK122: 1.609437912 | BT122: 8.047189562
A123: 19
A124: 20
A125: 21
A127: Newton-Raphson Interation Sequence -- Iteration 6
B128: y(i) | D128: xb(i) | F128: W(i,i) | Y128: XWX | AK128: zz(i) | AM128: factor | AO128: xwx-1 | BA128: aa1(i,j) | BT128: aa2(j) | BV128: beta(j) | BX128: beta_diff = | BY128: =SUM(BX130:BX140) -> 0 | BZ128: beta_old = | CA128: =SUM(BV130:BV140) -> 25.48335531
B129: 1 | D129: 1 | F129: 1 | G129: 2 | H129: 3 | I129: 4 | J129: 5 | K129: 6 | L129: 7 | M129: 8 | N129: 9 | O129: 10 | P129: 11 | Q129: 12 | R129: 13 | S129: 14 | T129: 15 | U129: 16 | V129: 17 | W129: 18 | Y129: 1 | Z129: 2 | AA129: 3 | AB129: 4 | AC129: 5 | AD129: 6 | AE129: 7 | AF129: 8 | AG129: 9 | AH129: 10 | AI129: 11 | AK129: 1 | AO129: 1 | AP129: 2 | AQ129: 3 | AR129: 4 | AS129: 5 | AT129: 6 | AU129: 7 | AV129: 8 | AW129: 9 | AX129: 10 | AY129: 11 | BA129: 1 | BB129: 2 | BC129: 3 | BD129: 4 | BE129: 5 | BF129: 6 | BG129: 7 | BH129: 8 | BI129: 9 | BJ129: 10 | BK129: 11 | BL129: 12 | BM129: 13 | BN129: 14 | BO129: 15 | BP129: 16 | BQ129: 17 | BR129: 18
A130: 1 | B130: =B105 -> 105 | D130: =MMULT(DesignMatrix,BV105:BV115) -> 4.756628035 | F130: =IF($A130=F$4,IF($B130<0,-(EXP(-$D130)^(2-$H$1)),IF($B130=0,0,EXP($D130)^(2-$H$1))),0) -> 116.3529257 | G130: 0 | H130: 0 | I130: 0 | J130: 0 | K130: 0 | L130: 0 | M130: 0 | N130: 0 | O130: 0 | P130: =IF($A130=P$4,IF($B130<0,-(EXP(-$D130)^(2-$H$1)),IF($B130=0,0,EXP($D130)^(2-$H$1))),0) -> 0 | Q130: 0 | R130: 0 | S130: 0 | T130: 0 | U130: 0 | V130: 0 | W130: 0 | Y130: =MMULT(TRANSPOSE(DesignMatrix),MMULT(F130:W147,DesignMatrix)) -> 70 | Z130: 0 | AA130: 0 | AB130: 0 | AC130: 0 | AD130: 0 | AE130: 70 | AF130: 70 | AG130: 45.09232682 | AH130: 15.79850033 | AI130: 5 | AK130: =IF(B130<0,D130+(B130+EXP(-D130))/-EXP(-D130),IF(B130=0,0,D130+(B130-EXP(D130))/EXP(D130))) -> 4.659054849 | AM130: =OFFSET(X129,A130,A130) -> 70 | AO130: =MINVERSE(Y130:AI140) -> 0.03141298183 | AP130: 0.01101649576 | AQ130: 0.004415006512 | AR130: 0.002745919888 | AS130: 0.00135863352 | AT130: 0 | AU130: -0.004794240806 | AV130: -0.008241691301 | AW130: -0.003324790708 | AX130: -0.005668346024 | AY130: -0.009383912993 | BA130: =MMULT(AO130:AY140,TRANSPOSE(DesignMatrix)) -> 0.004415006512 | BB130: 0.002745919888 | BC130: 0.00135863352 | BD130: 0 | BE130: 0.006222254958 | BF130: -0.0003792342933 | BG130: -0.002048320917 | BH130: -0.003435607286 | BI130: 0.01837704972 | BJ130: -0.002019436344 | BK130: -0.008620925595 | BL130: -0.01029001222 | BM130: 0.01505225902 | BN130: -0.005344227051 | BO130: -0.0119457163 | BP130: 0.009383912993 | BQ130: -0.01101257308 | BR130: -8.67361738e-18 | BT130: =MMULT(F130:W147,AK130:AK147) -> 542.0946628 | BV130: =MMULT(BA130:BR140,BT130:BT147) -> 4.885778405 | BX130: =BV130-CA103/$K$1 -> 2.56910974
A131: 2 | B131: =B106 -> 120 | D131: 4.760661235 | F131: 0 | G131: 116.823148 | H131: 0 | I131: 0 | J131: 0 | K131: 0 | L131: 0 | M131: 0 | N131: 0 | O131: 0 | P131: 0 | Q131: 0 | R131: 0 | S131: 0 | T131: 0 | U131: 0 | V131: 0 | W131: 0 | Y131: 0 | Z131: 100 | AA131: 0 | AB131: 0 | AC131: 0 | AD131: 0 | AE131: 100 | AF131: 55.38708713 | AG131: 34.16303383 | AH131: 9.201499671 | AI131: 0 | AK131: =IF(B131<0,D131+(B131+EXP(-D131))/-EXP(-D131),IF(B131=0,0,D131+(B131-EXP(D131))/EXP(D131))) -> 4.787854922 | AM131: =OFFSET(X129,A131,A131) -> 100 | AO131: 0.01101649576 | AP131: 0.01911145856 | AQ131: 0.003808753073 | AR131: 0.002772847273 | AS131: 0.001911838638 | AT131: 0 | AU131: -0.00674634821 | AV131: -0.002412916153 | AW131: -0.002063505829 | AX131: -0.003518015445 | AY131: 0.003724289874 | BA131: 0.003808753073 | BB131: 0.002772847273 | BC131: 0.001911838638 | BD131: 0 | BE131: 0.01236511035 | BF131: -0.002937595137 | BG131: -0.003973500937 | BH131: -0.004834509572 | BI131: 0.001857231401 | BJ131: 0.009952194193 | BK131: -0.00535051129 | BL131: -0.00638641709 | BM131: -0.0002062744284 | BN131: 0.007888688364 | BO131: -0.007414017119 | BP131: -0.003724289874 | BQ131: 0.004370672919 | BR131: 4.33680869e-18 | BT131: 559.3322839 | BV131: 4.725737617 | BX131: =BV131-CA103/$K$1 -> 2.409068953
A132: 3 | B132: 130 | D132: 4.802576775 | F132: 0 | G132: 0 | H132: 121.8239263 | I132: 0 | J132: 0 | K132: 0 | L132: 0 | M132: 0 | N132: 0 | O132: 0 | P132: 0 | Q132: 0 | R132: 0 | S132: 0 | T132: 0 | U132: 0 | V132: 0 | W132: 0 | Y132: 0 | Z132: 0 | AA132: 210 | AB132: 0 | AC132: 0 | AD132: 0 | AE132: 93.64707427 | AF132: 47.63454378 | AG132: 25.74463934 | AH132: 0 | AI132: 0 | AK132: 4.869690633 | AM132: =OFFSET(X129,A132,A132) -> 210 | AO132: 0.004415006512 | AP132: 0.003808753073 | AQ132: 0.006445581667 | AR132: 0.001237176238 | AS132: 0.0008660605145 | AT132: 0 | AU132: -0.003056087311 | AV132: -0.0009337904701 | AW132: -0.0008894213453 | AX132: 0.0007432146547 | AY132: -0.0002789220412 | BA132: 0.006445581667 | BB132: 0.001237176238 | BC132: 0.0008660605145 | BD132: 0 | BE132: 0.0007526657624 | BF132: 0.003389494357 | BG132: -0.001818911073 | BH132: -0.002190026796 | BI132: 0.0004251287318 | BJ132: -0.0001811247076 | BK132: 0.002455703887 | BL132: -0.002752701543 | BM132: -0.0004642926135 | BN132: -0.001070546053 | BO132: 0.001566282541 | BP132: 0.0002789220412 | BQ132: -0.0003273313983 | BR132: -3.794707604e-19 | BT132: 593.2448329 | BV132: 4.756628035 | BX132: =BV132-CA103/$K$1 -> 2.439959371
A133: 4 | B133: 125 | D133: 4.828313737 | F133: 0 | G133: 0 | H133: 0 | I133: 125 | J133: 0 | K133: 0 | L133: 0 | M133: 0 | N133: 0 | O133: 0 | P133: 0 | Q133: 0 | R133: 0 | S133: 0 | T133: 0 | U133: 0 | V133: 0 | W133: 0 | Y133: 0 | Z133: 0 | AA133: 0 | AB133: 185 | AC133: 0 | AD133: 0 | AE133: 68.17685204 | AF133: 21.97836908 | AG133: 0 | AH133: 0 | AI133: 0 | AK133: 4.828313737 | AM133: =OFFSET(X129,A133,A133) -> 185 | AO133: 0.002745919888 | AP133: 0.002772847273 | AQ133: 0.001237176238 | AR133: 0.006498441043 | AS133: 0.0007952673057 | AT133: 0 | AU133: -0.002806277715 | AV133: -0.0004954149382 | AW133: 0.001032896669 | AX133: -0.0004895125199 | AY133: 1.2388616e-05 | BA133: 0.001237176238 | BB133: 0.006498441043 | BC133: 0.0007952673057 | BD133: 0 | BE133: -3.343044196e-05 | BF133: -0.001569101477 | BG133: 0.003692163328 | BH133: -0.002011010409 | BI133: -0.0005557727647 | BJ133: -0.0005288453802 | BK133: -0.002064516415 | BL133: 0.00319674839 | BM133: 0.0004771239039 | BN133: 0.0005040512885 | BO133: -0.001031619747 | BP133: -1.2388616e-05 | BQ133: 1.453876854e-05 | BR133: 1.507718646e-19 | BT133: 603.5392172 | BV133: 4.760661235 | BX133: =BV133-CA103/$K$1 -> 2.44399257
A134: 5 | B134: 50 | D134: 3.798023343 | F134: 0 | G134: 0 | H134: 0 | I134: 0 | J134: 44.61291287 | K134: 0 | L134: 0 | M134: 0 | N134: 0 | O134: 0 | P134: 0 | Q134: 0 | R134: 0 | S134: 0 | T134: 0 | U134: 0 | V134: 0 | W134: 0 | Y134: 0 | Z134: 0 | AA134: 0 | AB134: 0 | AC134: 170 | AD134: 0 | AE134: 48.17607369 | AF134: 0 | AG134: 0 | AH134: 0 | AI134: 0 | AK134: 3.91877509 | AM134: =OFFSET(X129,A134,A134) -> 170 | AO134: 0.00135863352 | AP134: 0.001911838638 | AQ134: 0.0008660605145 | AR134: 0.0007952673057 | AS134: 0.00661877941 | AT134: 0 | AU134: -0.002598644725 | AV134: 0.001366933335 | AW134: -0.0001410188059 | AX134: -0.0002404191595 | AY134: 0.0002545158358 | BA134: 0.0008660605145 | BB134: 0.0007952673057 | BC134: 0.00661877941 | BD134: 0 | BE134: -0.0006868060866 | BF134: -0.00173258421 | BG134: -0.001803377419 | BH134: 0.004020134686 | BI134: 0.0001269221296 | BJ134: 0.0006801272481 | BK134: -0.0003656508754 | BL134: -0.0004364440842 | BM134: -1.409667623e-05 | BN134: 0.0005391084422 | BO134: -0.0005066696813 | BP134: -0.0002545158358 | BQ134: 0.0002986892827 | BR134: 0 | BT134: 174.8279716 | BV134: 4.802576775 | BX134: =BV134-CA103/$K$1 -> 2.485908111
A135: 6 | B135: 60 | D135: 3.828913761 | F135: 0 | G135: 0 | H135: 0 | I135: 0 | J135: 0 | K135: 46.01253049 | L135: 0 | M135: 0 | N135: 0 | O135: 0 | P135: 0 | Q135: 0 | R135: 0 | S135: 0 | T135: 0 | U135: 0 | V135: 0 | W135: 0 | Y135: 0 | Z135: 0 | AA135: 0 | AB135: 0 | AC135: 0 | AD135: 125 | AE135: 0 | AF135: 0 | AG135: 0 | AH135: 0 | AI135: 0 | AK135: 4.132906377 | AM135: =OFFSET(X129,A135,A135) -> 125 | AO135: 0 | AP135: 0 | AQ135: 0 | AR135: 0 | AS135: 0 | AT135: 0.008 | AU135: 0 | AV135: 0 | AW135: 0 | AX135: 0 | AY135: 0 | BA135: 0 | BB135: 0 | BC135: 0 | BD135: 0.008 | BE135: 0 | BF135: 0 | BG135: 0 | BH135: 0 | BI135: 0 | BJ135: 0 | BK135: 0 | BL135: 0 | BM135: 0 | BN135: 0 | BO135: 0 | BP135: 0 | BQ135: 0 | BR135: 0 | BT135: 190.1654807 | BV135: 4.828313737 | BX135: =BV135-CA103/$K$1 -> 2.511645072
A136: 7 | B136: 35 | D136: 3.832946961 | F136: 0 | G136: 0 | H136: 0 | I136: 0 | J136: 0 | K136: 0 | L136: 46.19848296 | M136: 0 | N136: 0 | O136: 0 | P136: 0 | Q136: 0 | R136: 0 | S136: 0 | T136: 0 | U136: 0 | V136: 0 | W136: 0 | Y136: 70 | Z136: 100 | AA136: 93.64707427 | AB136: 68.17685204 | AC136: 48.17607369 | AD136: 0 | AE136: 380 | AF136: 195 | AG136: 105 | AH136: 25 | AI136: 5 | AK136: 3.590547596 | AM136: =OFFSET(X129,A136,A136) -> 380 | AO136: -0.004794240806 | AP136: -0.00674634821 | AQ136: -0.003056087311 | AR136: -0.002806277715 | AS136: -0.002598644725 | AT136: 0 | AU136: 0.009169896369 | AV136: -0.004823528551 | AW136: 0.0004976162473 | AX136: 0.0008483725217 | AY136: -0.0008981157817 | BA136: -0.003056087311 | BB136: -0.002806277715 | BC136: -0.002598644725 | BD136: 0 | BE136: 0.00242354816 | BF136: 0.006113809059 | BG136: 0.006363618654 | BH136: 0.006571251645 | BI136: -0.0004478729873 | BJ136: -0.002399980391 | BK136: 0.001290280508 | BL136: 0.001540090103 | BM136: 4.974326e-05 | BN136: -0.001902364144 | BO136: 0.001787896755 | BP136: 0.0008981157817 | BQ136: -0.001053991622 | BR136: -8.67361738e-19 | BT136: 165.8778519 | BV136: -0.9277142741 | BX136: =BV136-CA103/$K$1 -> -3.244382939
A137: 8 | B137: 40 | D137: 3.874862501 | F137: 0 | G137: 0 | H137: 0 | I137: 0 | J137: 0 | K137: 0 | L137: 0 | M137: 48.17607369 | N137: 0 | O137: 0 | P137: 0 | Q137: 0 | R137: 0 | S137: 0 | T137: 0 | U137: 0 | V137: 0 | W137: 0 | Y137: 70 | Z137: 55.38708713 | AA137: 47.63454378 | AB137: 21.97836908 | AC137: 0 | AD137: 0 | AE137: 195 | AF137: 195 | AG137: 105 | AH137: 25 | AI137: 5 | AK137: 3.705150172 | AM137: =OFFSET(X129,A137,A137) -> 195 | AO137: -0.008241691301 | AP137: -0.002412916153 | AQ137: -0.0009337904701 | AR137: -0.0004954149382 | AS137: 0.001366933335 | AT137: 0 | AU137: -0.004823528551 | AV137: 0.01913266423 | AW137: -0.01023787489 | AX137: 0.001488756885 | AY137: 0.002681673631 | BA137: -0.0009337904701 | BB137: -0.0004954149382 | BC137: 0.001366933335 | BD137: 0 | BE137: -0.007236444704 | BF137: -0.005757319021 | BG137: -0.005318943489 | BH137: -0.003456595216 | BI137: 0.006067444375 | BJ137: 0.01189621952 | BK137: 0.01337534521 | BL137: 0.01381372074 | BM137: -0.004170430516 | BN137: 0.001658344633 | BO137: 0.003137470316 | BP137: -0.002681673631 | BQ137: 0.003147101518 | BR137: 3.035766083e-18 | BT137: 178.4995877 | BV137: -0.7428882151 | BX137: =BV137-CA103/$K$1 -> -3.05955688
A138: 9 | B138: 20 | D138: 3.215175916 | F138: 0 | G138: 0 | H138: 0 | I138: 0 | J138: 0 | K138: 0 | L138: 0 | M138: 0 | N138: 24.90767318 | O138: 0 | P138: 0 | Q138: 0 | R138: 0 | S138: 0 | T138: 0 | U138: 0 | V138: 0 | W138: 0 | Y138: 45.09232682 | Z138: 34.16303383 | AA138: 25.74463934 | AB138: 0 | AC138: 0 | AD138: 0 | AE138: 105 | AF138: 105 | AG138: 105 | AH138: 25 | AI138: 5 | AK138: 3.018141326 | AM138: =OFFSET(X129,A138,A138) -> 105 | AO138: -0.003324790708 | AP138: -0.002063505829 | AQ138: -0.0008894213453 | AR138: 0.001032896669 | AS138: -0.0001410188059 | AT138: 0 | AU138: 0.0004976162473 | AV138: -0.01023787489 | AW138: 0.02438778296 | AX138: -0.01190301923 | AY138: 0.0005802856198 | BA138: -0.0008894213453 | BB138: 0.001032896669 | BC138: -0.0001410188059 | BD138: 0 | BE138: -0.001565889582 | BF138: -0.000391805098 | BG138: 0.001530512916 | BH138: 0.0003565974414 | BI138: -0.01306504935 | BJ138: -0.01180376447 | BK138: -0.01062967999 | BL138: -0.008707361975 | BM138: 0.01132273361 | BN138: 0.01258401849 | BO138: 0.01375810297 | BP138: -0.0005802856198 | BQ138: 0.0006809992588 | BR138: -4.011548038e-18 | BT138: 75.17487773 | BV138: 0.1622008783 | BX138: =BV138-CA103/$K$1 -> -2.154467786
A139: 10 | B139: 15 | D139: 3.055135128 | F139: 0 | G139: 0 | H139: 0 | I139: 0 | J139: 0 | K139: 0 | L139: 0 | M139: 0 | N139: 0 | O139: 21.2240533 | P139: 0 | Q139: 0 | R139: 0 | S139: 0 | T139: 0 | U139: 0 | V139: 0 | W139: 0 | Y139: 15.79850033 | Z139: 9.201499671 | AA139: 0 | AB139: 0 | AC139: 0 | AD139: 0 | AE139: 25 | AF139: 25 | AG139: 25 | AH139: 25 | AI139: 5 | AK139: 2.761880432 | AM139: =OFFSET(X129,A139,A139) -> 25 | AO139: -0.005668346024 | AP139: -0.003518015445 | AQ139: 0.0007432146547 | AR139: -0.0004895125199 | AS139: -0.0002404191595 | AT139: 0 | AU139: 0.0008483725217 | AV139: 0.001488756885 | AW139: -0.01190301923 | AX139: 0.06424492254 | AY139: -0.04901068669 | BA139: 0.0007432146547 | BB139: -0.0004895125199 | BC139: -0.0002404191595 | BD139: 0 | BE139: -0.002669642924 | BF139: 0.001591587176 | BG139: 0.0003588600018 | BH139: 0.0006079533622 | BI139: -0.003331216617 | BJ139: -0.001180886039 | BK139: 0.003080344061 | BL139: 0.001847616887 | BM139: -0.01523423584 | BN139: -0.01308390526 | BO139: -0.008822675165 | BP139: 0.04901068669 | BQ139: 0.05116101727 | BR139: -6.938893904e-18 | BT139: 58.6182975 | BV139: -0.997969528 | BX139: =BV139-CA103/$K$1 -> -3.314638193
A140: 11 | B140: 25 | D140: 3.086025546 | F140: =IF($A140=F$4,IF($B140<0,-(EXP(-$D140)^(2-$H$1)),IF($B140=0,0,EXP($D140)^(2-$H$1))),0) -> 0 | G140: 0 | H140: 0 | I140: 0 | J140: 0 | K140: 0 | L140: 0 | M140: 0 | N140: 0 | O140: 0 | P140: =IF($A140=P$4,IF($B140<0,-(EXP(-$D140)^(2-$H$1)),IF($B140=0,0,EXP($D140)^(2-$H$1))),0) -> 21.88990444 | Q140: 0 | R140: 0 | S140: 0 | T140: 0 | U140: 0 | V140: 0 | W140: 0 | Y140: 5 | Z140: 0 | AA140: 0 | AB140: 0 | AC140: 0 | AD140: 0 | AE140: 5 | AF140: 5 | AG140: 5 | AH140: 5 | AI140: 5 | AK140: 3.228104538 | AM140: =OFFSET(X129,A140,A140) -> 5 | AO140: -0.009383912993 | AP140: 0.003724289874 | AQ140: -0.0002789220412 | AR140: 1.2388616e-05 | AS140: 0.0002545158358 | AT140: 0 | AU140: -0.0008981157817 | AV140: 0.002681673631 | AW140: 0.0005802856198 | AX140: -0.04901068669 | AY140: 0.2560307562 | BA140: -0.0002789220412 | BB140: 1.2388616e-05 | BC140: 0.0002545158358 | BD140: 0 | BE140: 0.002826174092 | BF140: -0.001177037823 | BG140: -0.0008857271657 | BH140: -0.000643599946 | BI140: -0.007600355144 | BJ140: 0.005507847723 | BK140: 0.001504635808 | BL140: 0.001795946465 | BM140: -0.007020069524 | BN140: 0.006088133342 | BO140: 0.002084921427 | BP140: -0.05603075622 | BQ140: -0.04292255335 | BR140: 0.2 | BT140: 70.66289987 | BV140: -0.7699693536 | BX140: =BV140-CA103/$K$1 -> -3.086638018
A141: 12 | B141: 30 | D141: 3.090058746 | F141: 0 | G141: 0 | H141: 0 | I141: 0 | J141: 0 | K141: 0 | L141: 0 | M141: 0 | N141: 0 | O141: 0 | P141: 0 | Q141: 21.97836908 | R141: 0 | S141: 0 | T141: 0 | U141: 0 | V141: 0 | W141: 0 | AK141: 3.455037189 | BT141: 75.93608252
A142: 13 | B142: 30 | D142: 3.377376794 | F142: 0 | G142: 0 | H142: 0 | I142: 0 | J142: 0 | K142: 0 | L142: 0 | M142: 0 | N142: 0 | O142: 0 | P142: 0 | Q142: 0 | R142: 29.2938265 | S142: 0 | T142: 0 | U142: 0 | V142: 0 | W142: 0 | AK142: 3.401483358 | BT142: 99.64246332
A143: 14 | B143: 30 | D143: 3.217336006 | F143: 0 | G143: 0 | H143: 0 | I143: 0 | J143: 0 | K143: 0 | L143: 0 | M143: 0 | N143: 0 | O143: 0 | P143: 0 | Q143: 0 | R143: 0 | S143: 24.96153416 | T143: 0 | U143: 0 | V143: 0 | W143: 0 | AK143: 3.419185212 | BT143: 85.34810848
A144: 15 | B144: 20 | D144: 3.248226425 | F144: 0 | G144: 0 | H144: 0 | I144: 0 | J144: 0 | K144: 0 | L144: 0 | M144: 0 | N144: 0 | O144: 0 | P144: 0 | Q144: 0 | R144: 0 | S144: 0 | T144: 25.74463934 | U144: 0 | V144: 0 | W144: 0 | AK144: 3.025087181 | BT144: 77.87977846
A145: 16 | B145: 15 | D145: 2.379407266 | F145: 0 | G145: 0 | H145: 0 | I145: 0 | J145: 0 | K145: 0 | L145: 0 | M145: 0 | N145: 0 | O145: 0 | P145: 0 | Q145: 0 | R145: 0 | S145: 0 | T145: 0 | U145: 10.79850033 | V145: 0 | W145: 0 | AK145: 2.768489041 | BT145: 29.89552982
A146: 17 | B146: 5 | D146: 2.219366479 | F146: 0 | G146: 0 | H146: 0 | I146: 0 | J146: 0 | K146: 0 | L146: 0 | M146: 0 | N146: 0 | O146: 0 | P146: 0 | Q146: 0 | R146: 0 | S146: 0 | T146: 0 | U146: 0 | V146: 9.201499671 | W146: 0 | AK146: 1.762756163 | BT146: 16.22000025
A147: 18 | B147: 5 | D147: 1.609437912 | F147: 0 | G147: 0 | H147: 0 | I147: 0 | J147: 0 | K147: 0 | L147: 0 | M147: 0 | N147: 0 | O147: 0 | P147: 0 | Q147: 0 | R147: 0 | S147: 0 | T147: 0 | U147: 0 | V147: 0 | W147: 5 | AK147: 1.609437912 | BT147: 8.047189562
A148: 19
A149: 20
A150: 21

Sheet Diagnostics
A1: Residual Graphs | AC1: =AVERAGE(AJ5:AJ25) -> 0.007927205702 | AD1: =STDEV(AJ5:AJ25) -> 1.701437205
AC2: Normal RSS Calc | AF2: Normality for Pearson Residuals
W3: Exposure | X3: Develop | Y3: Calendar | Z3: Fitted | AC3: Scaled
W4: Offset | X4: Offset | Y4: Period | Z4: Values | AA4: Residual | AC4: Normal | AD4: Difference | AF4: Rank | AG4: Order | AH4: Percentile | AI4: PhiInv | AJ4: Sort | AK4: R2
U5: ==> | V5: 1 | W5: 3 | X5: 0 | Y5: =IF(W5="","",W5+X5-1) -> 2 | Z5: =IF(W5="","",OFFSET(Data!$N$77,W5,X5)) -> 116.3529257 | AA5: =IF(W5="","",OFFSET(Data!$N$104,W5,X5)) -> -2.104826883 | AC5: =IF(AH5="","",NORMINV(AH5,$AC$1,$AD$1)) -> -3.091663522 | AD5: =IF(AC5="","",AJ5-AC5) -> 0.8400663749 | AF5: =IF(AA5="","",RANK(AA5,ResidY1Values,1)) -> 2 | AG5: =IF(W5="","",V5) -> 1 | AH5: =IF(W5="","",(AG5-0.375)/(Data!$P$113+0.25)) -> 0.03424657534 | AI5: =IF(W5="","",NORMINV(AH5,0,1)) -> -1.82174853 | AJ5: =IF(AA5="","",IF(ISERROR(MATCH(AG5,AF$5:AF$25,0)),0,OFFSET(AA$4,MATCH(AG5,AF$5:AF$25,0),0))) -> -2.251597147 | AK5: =CORREL(NormXValues,NormYValues)^2 -> 0.9264366019 | AM5: u | AN5: =LN(Data!$P$113) -> 2.890371758
V6: 2 | W6: 4 | X6: 0 | Y6: =IF(W6="","",W6+X6-1) -> 3 | Z6: =IF(W6="","",OFFSET(Data!$N$77,W6,X6)) -> 116.823148 | AA6: =IF(W6="","",OFFSET(Data!$N$104,W6,X6)) -> 0.5989295576 | AC6: =IF(AH6="","",NORMINV(AH6,$AC$1,$AD$1)) -> -2.283370188 | AD6: =IF(AC6="","",AJ6-AC6) -> 0.1785433052 | AF6: 11 | AG6: =IF(W6="","",V6) -> 2 | AH6: =IF(W6="","",(AG6-0.375)/(Data!$P$113+0.25)) -> 0.08904109589 | AI6: =IF(W6="","",NORMINV(AH6,0,1)) -> -1.34668349 | AJ6: =IF(AA6="","",IF(ISERROR(MATCH(AG6,AF$5:AF$25,0)),0,OFFSET(AA$4,MATCH(AG6,AF$5:AF$25,0),0))) -> -2.104826883 | AM6: v | AN6: =LN(AN5) -> 1.06138513
V7: 3 | W7: 5 | X7: 0 | Y7: 4 | Z7: =IF(W7="","",OFFSET(Data!$N$77,W7,X7)) -> 121.8239263 | AA7: =IF(W7="","",OFFSET(Data!$N$104,W7,X7)) -> 1.683226259 | AC7: -1.801115996 | AD7: -0.2333504374 | AF7: 15 | AG7: 3 | AH7: =IF(W7="","",(AG7-0.375)/(Data!$P$113+0.25)) -> 0.1438356164 | AI7: -1.063244178 | AJ7: -2.034466434 | AM7: Mu | AN7: =-1.2725+1.0521*(AN6-AN5) -> -3.196776831
V8: 4 | W8: 6 | X8: 0 | Y8: 5 | Z8: =IF(W8="","",OFFSET(Data!$N$77,W8,X8)) -> 125 | AA8: =IF(W8="","",OFFSET(Data!$N$104,W8,X8)) -> 0 | AC8: -1.432380885 | AD8: -0.3306369984 | AF8: 8 | AG8: 4 | AH8: =IF(W8="","",(AG8-0.375)/(Data!$P$113+0.25)) -> 0.198630137 | AI8: -0.8465243893 | AJ8: -1.763017884 | AM8: Sigma | AN8: =1.0308-0.26758*(AN6+2/AN5) -> 0.5616419137
U9: ==> | V9: 5 | W9: 2 | X9: 1 | Y9: 2 | Z9: =IF(W9="","",OFFSET(Data!$N$77,W9,X9)) -> 44.61291287 | AA9: =IF(W9="","",OFFSET(Data!$N$104,W9,X9)) -> 1.382720181 | AC9: -1.121404442 | AD9: -0.5618218168 | AF9: 13 | AG9: 5 | AH9: =IF(W9="","",(AG9-0.375)/(Data!$P$113+0.25)) -> 0.2534246575 | AI9: -0.6637515886 | AJ9: -1.683226259 | AM9: z | AN9: =(LN(1-AK5)-AN7)/AN8 -> 1.045451082
V10: 6 | W10: 3 | X10: 1 | Y10: 3 | Z10: =IF(W10="","",OFFSET(Data!$N$77,W10,X10)) -> 46.01253049 | AA10: =IF(W10="","",OFFSET(Data!$N$104,W10,X10)) -> 2.748852648 | AC10: -0.8443302966 | AD10: -0.7921014262 | AF10: 18 | AG10: 6 | AH10: =IF(W10="","",(AG10-0.375)/(Data!$P$113+0.25)) -> 0.3082191781 | AI10: -0.5009044704 | AJ10: -1.636431723 | AM10: p-Value | AN10: =1-NORMSDIST(AN9) -> 0.1479072691
V11: 7 | W11: 4 | X11: 1 | Y11: 4 | Z11: =IF(W11="","",OFFSET(Data!$N$77,W11,X11)) -> 46.19848296 | AA11: =IF(W11="","",OFFSET(Data!$N$104,W11,X11)) -> -2.251597147 | AC11: -0.5882816258 | AD11: -0.9620836605 | AF11: 1 | AG11: 7 | AH11: =IF(W11="","",(AG11-0.375)/(Data!$P$113+0.25)) -> 0.3630136986 | AI11: -0.3504148315 | AJ11: -1.550365286
V12: 8 | W12: 5 | X12: 1 | Y12: 5 | Z12: =IF(W12="","",OFFSET(Data!$N$77,W12,X12)) -> 48.17607369 | AA12: =IF(W12="","",OFFSET(Data!$N$104,W12,X12)) -> -1.683226259 | AC12: -0.3451274514 | AD12: 0.3451274514 | AF12: 5 | AG12: 8 | AH12: =IF(W12="","",(AG12-0.375)/(Data!$P$113+0.25)) -> 0.4178082192 | AI12: -0.2075037833 | AJ12: 0
V13: 9 | W13: 1 | X13: 2 | Y13: 2 | Z13: =IF(W13="","",OFFSET(Data!$N$77,W13,X13)) -> 24.90767318 | AA13: =IF(W13="","",OFFSET(Data!$N$104,W13,X13)) -> -1.550365286 | AC13: -0.1090105613 | AD13: 0.1090105613 | AF13: 7 | AG13: 9 | AH13: =IF(W13="","",(AG13-0.375)/(Data!$P$113+0.25)) -> 0.4726027397 | AI13: -0.06872881742 | AJ13: 0
V14: 10 | W14: 2 | X14: 2 | Y14: 3 | Z14: =IF(W14="","",OFFSET(Data!$N$77,W14,X14)) -> 21.2240533 | AA14: =IF(W14="","",OFFSET(Data!$N$104,W14,X14)) -> -1.763017884 | AC14: 0.1248649727 | AD14: 0.09628146022 | AF14: 4 | AG14: 10 | AH14: =IF(W14="","",(AG14-0.375)/(Data!$P$113+0.25)) -> 0.5273972603 | AI14: 0.06872881742 | AJ14: 0.2211464329
V15: 11 | W15: 3 | X15: 2 | Y15: 4 | Z15: =IF(W15="","",OFFSET(Data!$N$77,W15,X15)) -> 21.88990444 | AA15: =IF(W15="","",OFFSET(Data!$N$104,W15,X15)) -> 0.840691878 | AC15: 0.3609818628 | AD15: 0.2379476948 | AF15: 12 | AG15: 11 | AH15: =IF(W15="","",(AG15-0.375)/(Data!$P$113+0.25)) -> 0.5821917808 | AI15: 0.2075037833 | AJ15: 0.5989295576
V16: 12 | W16: 4 | X16: 2 | Y16: 5 | Z16: =IF(W16="","",OFFSET(Data!$N$77,W16,X16)) -> 21.97836908 | AA16: =IF(W16="","",OFFSET(Data!$N$104,W16,X16)) -> 2.223300292 | AC16: 0.6041360372 | AD16: 0.2365558408 | AF16: 17 | AG16: 12 | AH16: =IF(W16="","",(AG16-0.375)/(Data!$P$113+0.25)) -> 0.6369863014 | AI16: 0.3504148315 | AJ16: 0.840691878
V17: 13 | W17: 1 | X17: 3 | Y17: 3 | Z17: =IF(W17="","",OFFSET(Data!$N$77,W17,X17)) -> 29.2938265 | AA17: =IF(W17="","",OFFSET(Data!$N$104,W17,X17)) -> 0.2211464329 | AC17: 0.860184708 | AD17: 0.5225354731 | AF17: 10 | AG17: 13 | AH17: =IF(W17="","",(AG17-0.375)/(Data!$P$113+0.25)) -> 0.6917808219 | AI17: 0.5009044704 | AJ17: 1.382720181
V18: 14 | W18: 2 | X18: 3 | Y18: 4 | Z18: =IF(W18="","",OFFSET(Data!$N$77,W18,X18)) -> 24.96153416 | AA18: =IF(W18="","",OFFSET(Data!$N$104,W18,X18)) -> 1.433287636 | AC18: 1.137258854 | AD18: 0.2960287823 | AF18: 14 | AG18: 14 | AH18: =IF(W18="","",(AG18-0.375)/(Data!$P$113+0.25)) -> 0.7465753425 | AI18: 0.6637515886 | AJ18: 1.433287636
V19: 15 | W19: 3 | X19: 3 | Y19: 5 | Z19: =IF(W19="","",OFFSET(Data!$N$77,W19,X19)) -> 25.74463934 | AA19: =IF(W19="","",OFFSET(Data!$N$104,W19,X19)) -> -1.636431723 | AC19: 1.448235297 | AD19: 0.2349909623 | AF19: 6 | AG19: 15 | AH19: =IF(W19="","",(AG19-0.375)/(Data!$P$113+0.25)) -> 0.801369863 | AI19: 0.8465243893 | AJ19: 1.683226259
V20: 16 | W20: 1 | X20: 4 | Y20: 4 | Z20: =IF(W20="","",OFFSET(Data!$N$77,W20,X20)) -> 10.79850033 | AA20: =IF(W20="","",OFFSET(Data!$N$104,W20,X20)) -> 2.034466434 | AC20: 1.816970408 | AD20: 0.217496026 | AF20: 16 | AG20: 16 | AH20: =IF(W20="","",(AG20-0.375)/(Data!$P$113+0.25)) -> 0.8561643836 | AI20: 1.063244178 | AJ20: 2.034466434
V21: 17 | W21: 2 | X21: 4 | Y21: 5 | Z21: =IF(W21="","",OFFSET(Data!$N$77,W21,X21)) -> 9.201499671 | AA21: =IF(W21="","",OFFSET(Data!$N$104,W21,X21)) -> -2.034466434 | AC21: 2.299224599 | AD21: -0.07592430758 | AF21: 3 | AG21: 17 | AH21: =IF(W21="","",(AG21-0.375)/(Data!$P$113+0.25)) -> 0.9109589041 | AI21: 1.34668349 | AJ21: 2.223300292
V22: 18 | W22: 1 | X22: 5 | Y22: 5 | Z22: =IF(W22="","",OFFSET(Data!$N$77,W22,X22)) -> 5 | AA22: =IF(W22="","",OFFSET(Data!$N$104,W22,X22)) -> 0 | AC22: 3.107517933 | AD22: -0.3586652853 | AF22: 8 | AG22: 18 | AH22: =IF(W22="","",(AG22-0.375)/(Data!$P$113+0.25)) -> 0.9657534247 | AI22: 1.82174853 | AJ22: 2.748852648
V23: 19 | Z23: =IF(W23="","",OFFSET(Data!$N$77,W23,X23)) ->  | AA23: =IF(W23="","",OFFSET(Data!$N$104,W23,X23)) ->  | AH23: =IF(W23="","",(AG23-0.375)/(Data!$P$113+0.25)) -> 
V24: 20 | Z24: =IF(W24="","",OFFSET(Data!$N$77,W24,X24)) ->  | AA24: =IF(W24="","",OFFSET(Data!$N$104,W24,X24)) ->  | AH24: =IF(W24="","",(AG24-0.375)/(Data!$P$113+0.25)) -> 
V25: 21 | Z25: =IF(W25="","",OFFSET(Data!$N$77,W25,X25)) ->  | AA25: =IF(W25="","",OFFSET(Data!$N$104,W25,X25)) ->  | AH25: =IF(W25="","",(AG25-0.375)/(Data!$P$113+0.25)) -> 
AC27: RSS | AD27: =SUMSQ(AD5:AD25) -> 3.620486943 | AI27: Linear Regression
V28: Mean Residuals | AC28: AIC | AD28: =2*(Data!R113)+Data!P113*(LN(2*PI()*AD27/Data!P113)+1) -> 44.21404912 | AI28: =LINEST(NormYValues,NormXValues,TRUE,TRUE) -> 1.705040869 | AJ28: 0.007927205702
A29: Normality Plot | V29: Exposure | W29: Residual | X29: Develop | Y29: Residual | Z29: Calendar | AA29: Residual | AC29: BIC | AD29: =Data!P113*LN(AD27/Data!P113)+(Data!R113*LN(Data!P113)) -> 2.926351261 | AI29: 0.1201151646 | AJ29: 0.1121179203
V30: 1 | W30: =IF(V30="","",SUMIF(ResidX2Values,V30,ResidY1Values)/COUNTIF(ResidX2Values,V30)) -> 0.1763118951 | X30: 0 | Y30: =IF(X30="","",SUMIF(ResidX1Values,X30,ResidY1Values)/COUNTIF(ResidX1Values,X30)) -> 0.04433223343 | Z30: 2 | AA30: =IF(Z30="","",SUMIF(ResidX3Values,Z30,ResidY1Values)/COUNTIF(ResidX3Values,Z30)) -> -0.7574906627 | AI30: 0.9264366019 | AJ30: 0.4756760504
V31: 2 | W31: =IF(V31="","",SUMIF(ResidX2Values,V31,ResidY1Values)/COUNTIF(ResidX2Values,V31)) -> -0.2453691252 | X31: 1 | Y31: =IF(X31="","",SUMIF(ResidX1Values,X31,ResidY1Values)/COUNTIF(ResidX1Values,X31)) -> 0.04918735574 | Z31: 3 | AA31: 0.4514776886 | AI31: 201.4994686 | AJ31: 16
V32: 3 | W32: =IF(V32="","",SUMIF(ResidX2Values,V32,ResidY1Values)/COUNTIF(ResidX2Values,V32)) -> -0.03792851999 | X32: 2 | Y32: =IF(X32="","",SUMIF(ResidX1Values,X32,ResidY1Values)/COUNTIF(ResidX1Values,X32)) -> -0.06234775004 | Z32: 4 | AA32: 0.748015012 | AI32: 45.5928223 | AJ32: 3.620283278
V33: 4 | W33: =IF(V33="","",SUMIF(ResidX2Values,V33,ResidY1Values)/COUNTIF(ResidX2Values,V33)) -> 0.1902109009 | X33: 3 | Y33: =IF(X33="","",SUMIF(ResidX1Values,X33,ResidY1Values)/COUNTIF(ResidX1Values,X33)) -> 0.006000782045 | Z33: 5 | AA33: -0.5218040206
V34: 5 | W34: =IF(V34="","",SUMIF(ResidX2Values,V34,ResidY1Values)/COUNTIF(ResidX2Values,V34)) -> 6.550315845e-15 | X34: 4 | Y34: =IF(X34="","",SUMIF(ResidX1Values,X34,ResidY1Values)/COUNTIF(ResidX1Values,X34)) -> -6.883382753e-15 | AI34: Line of best fit
AI35: -3 | AJ35: =AI35*AI$28+AJ$28 -> -5.107195401
AI36: 3 | AJ36: =AI36*AI$28+AJ$28 -> 5.123049812
A45: ="N = "&TEXT(Data!$P$113,"0") -> N = 18 | C45: ="p-Value = "&TEXT(AN10,"0.0%") -> p-Value = 14.8% | F45: R2 = | G45: =AK5 -> 0.9264366019
A46: ="Normal: MU = "&TEXT(AC1,"0.00")&", Sigma = "&TEXT(AD1,"0.00") -> Normal: MU = 0.01, Sigma = 1.70 | G46: ="AIC = "&TEXT(AD28,"0.0")&", BIC = "&TEXT(AD29,"0.0") -> AIC = 44.2, BIC = 2.9

Sheet Hat Matrix
A1: Weight Matrix
A2: =Data!N78 -> 132.393481 | B2: 0 | C2: 0 | D2: 0 | E2: 0 | F2: 0 | G2: 0 | H2: 0 | I2: 0 | J2: 0 | K2: 0 | L2: 0 | M2: 0 | N2: 0 | O2: 0 | P2: 0 | Q2: 0 | R2: 0 | S2: 0 | T2: 0 | U2: 0 | W2: =C4 -> 116.3529257 | X2: 0 | Y2: 0 | Z2: 0 | AA2: 0 | AB2: 0 | AC2: 0 | AD2: 0 | AE2: 0 | AF2: 0 | AG2: 0 | AH2: 0 | AI2: 0 | AJ2: 0 | AK2: 0 | AL2: 0 | AM2: 0 | AN2: 0
A3: 0 | B3: =Data!N79 -> 112.813681 | C3: 0 | D3: 0 | E3: 0 | F3: 0 | G3: 0 | H3: 0 | I3: 0 | J3: 0 | K3: 0 | L3: 0 | M3: 0 | N3: 0 | O3: 0 | P3: 0 | Q3: 0 | R3: 0 | S3: 0 | T3: 0 | U3: 0 | W3: 0 | X3: =D5 -> 116.823148 | Y3: 0 | Z3: 0 | AA3: 0 | AB3: 0 | AC3: 0 | AD3: 0 | AE3: 0 | AF3: 0 | AG3: 0 | AH3: 0 | AI3: 0 | AJ3: 0 | AK3: 0 | AL3: 0 | AM3: 0 | AN3: 0
A4: 0 | B4: 0 | C4: =Data!N80 -> 116.3529257 | D4: 0 | E4: 0 | F4: 0 | G4: 0 | H4: 0 | I4: 0 | J4: 0 | K4: 0 | L4: 0 | M4: 0 | N4: 0 | O4: 0 | P4: 0 | Q4: 0 | R4: 0 | S4: 0 | T4: 0 | U4: 0 | W4: 0 | X4: 0 | Y4: =E6 -> 121.8239263 | Z4: 0 | AA4: 0 | AB4: 0 | AC4: 0 | AD4: 0 | AE4: 0 | AF4: 0 | AG4: 0 | AH4: 0 | AI4: 0 | AJ4: 0 | AK4: 0 | AL4: 0 | AM4: 0 | AN4: 0
A5: 0 | B5: 0 | C5: 0 | D5: =Data!N81 -> 116.823148 | E5: 0 | F5: 0 | G5: 0 | H5: 0 | I5: 0 | J5: 0 | K5: 0 | L5: 0 | M5: 0 | N5: 0 | O5: 0 | P5: 0 | Q5: 0 | R5: 0 | S5: 0 | T5: 0 | U5: 0 | W5: 0 | X5: 0 | Y5: 0 | Z5: =F7 -> 125 | AA5: 0 | AB5: 0 | AC5: 0 | AD5: 0 | AE5: 0 | AF5: 0 | AG5: 0 | AH5: 0 | AI5: 0 | AJ5: 0 | AK5: 0 | AL5: 0 | AM5: 0 | AN5: 0
A6: 0 | B6: 0 | C6: 0 | D6: 0 | E6: =Data!N82 -> 121.8239263 | F6: 0 | G6: 0 | H6: 0 | I6: 0 | J6: 0 | K6: 0 | L6: 0 | M6: 0 | N6: 0 | O6: 0 | P6: 0 | Q6: 0 | R6: 0 | S6: 0 | T6: 0 | U6: 0 | W6: 0 | X6: 0 | Y6: 0 | Z6: 0 | AA6: =H9 -> 44.61291287 | AB6: 0 | AC6: 0 | AD6: 0 | AE6: 0 | AF6: 0 | AG6: 0 | AH6: 0 | AI6: 0 | AJ6: 0 | AK6: 0 | AL6: 0 | AM6: 0 | AN6: 0
A7: 0 | B7: 0 | C7: 0 | D7: 0 | E7: 0 | F7: =Data!N83 -> 125 | G7: 0 | H7: 0 | I7: 0 | J7: 0 | K7: 0 | L7: 0 | M7: 0 | N7: 0 | O7: 0 | P7: 0 | Q7: 0 | R7: 0 | S7: 0 | T7: 0 | U7: 0 | W7: 0 | X7: 0 | Y7: 0 | Z7: 0 | AA7: 0 | AB7: =I10 -> 46.01253049 | AC7: 0 | AD7: 0 | AE7: 0 | AF7: 0 | AG7: 0 | AH7: 0 | AI7: 0 | AJ7: 0 | AK7: 0 | AL7: 0 | AM7: 0 | AN7: 0
A8: 0 | B8: 0 | C8: 0 | D8: 0 | E8: 0 | F8: 0 | G8: =Data!O78 -> 52.35587366 | H8: 0 | I8: 0 | J8: 0 | K8: 0 | L8: 0 | M8: 0 | N8: 0 | O8: 0 | P8: 0 | Q8: 0 | R8: 0 | S8: 0 | T8: 0 | U8: 0 | W8: 0 | X8: 0 | Y8: 0 | Z8: 0 | AA8: 0 | AB8: 0 | AC8: =J11 -> 46.19848296 | AD8: 0 | AE8: 0 | AF8: 0 | AG8: 0 | AH8: 0 | AI8: 0 | AJ8: 0 | AK8: 0 | AL8: 0 | AM8: 0 | AN8: 0
A9: 0 | B9: 0 | C9: 0 | D9: 0 | E9: 0 | F9: 0 | G9: 0 | H9: =Data!O79 -> 44.61291287 | I9: 0 | J9: 0 | K9: 0 | L9: 0 | M9: 0 | N9: 0 | O9: 0 | P9: 0 | Q9: 0 | R9: 0 | S9: 0 | T9: 0 | U9: 0 | W9: 0 | X9: 0 | Y9: 0 | Z9: 0 | AA9: 0 | AB9: 0 | AC9: 0 | AD9: =K12 -> 48.17607369 | AE9: 0 | AF9: 0 | AG9: 0 | AH9: 0 | AI9: 0 | AJ9: 0 | AK9: 0 | AL9: 0 | AM9: 0 | AN9: 0
A10: 0 | B10: 0 | C10: 0 | D10: 0 | E10: 0 | F10: 0 | G10: 0 | H10: 0 | I10: =Data!O80 -> 46.01253049 | J10: 0 | K10: 0 | L10: 0 | M10: 0 | N10: 0 | O10: 0 | P10: 0 | Q10: 0 | R10: 0 | S10: 0 | T10: 0 | U10: 0 | W10: 0 | X10: 0 | Y10: 0 | Z10: 0 | AA10: 0 | AB10: 0 | AC10: 0 | AD10: 0 | AE10: =L13 -> 24.90767318 | AF10: 0 | AG10: 0 | AH10: 0 | AI10: 0 | AJ10: 0 | AK10: 0 | AL10: 0 | AM10: 0 | AN10: 0
A11: 0 | B11: 0 | C11: 0 | D11: 0 | E11: 0 | F11: 0 | G11: 0 | H11: 0 | I11: 0 | J11: =Data!O81 -> 46.19848296 | K11: 0 | L11: 0 | M11: 0 | N11: 0 | O11: 0 | P11: 0 | Q11: 0 | R11: 0 | S11: 0 | T11: 0 | U11: 0 | V11: ==> | W11: 0 | X11: 0 | Y11: 0 | Z11: 0 | AA11: 0 | AB11: 0 | AC11: 0 | AD11: 0 | AE11: 0 | AF11: =M14 -> 21.2240533 | AG11: 0 | AH11: 0 | AI11: 0 | AJ11: 0 | AK11: 0 | AL11: 0 | AM11: 0 | AN11: 0
A12: 0 | B12: 0 | C12: 0 | D12: 0 | E12: 0 | F12: 0 | G12: 0 | H12: 0 | I12: 0 | J12: 0 | K12: =Data!O82 -> 48.17607369 | L12: 0 | M12: 0 | N12: 0 | O12: 0 | P12: 0 | Q12: 0 | R12: 0 | S12: 0 | T12: 0 | U12: 0 | W12: 0 | X12: 0 | Y12: 0 | Z12: 0 | AA12: 0 | AB12: 0 | AC12: 0 | AD12: 0 | AE12: 0 | AF12: 0 | AG12: =N15 -> 21.88990444 | AH12: 0 | AI12: 0 | AJ12: 0 | AK12: 0 | AL12: 0 | AM12: 0 | AN12: 0
A13: 0 | B13: 0 | C13: 0 | D13: 0 | E13: 0 | F13: 0 | G13: 0 | H13: 0 | I13: 0 | J13: 0 | K13: 0 | L13: =Data!P78 -> 24.90767318 | M13: 0 | N13: 0 | O13: 0 | P13: 0 | Q13: 0 | R13: 0 | S13: 0 | T13: 0 | U13: 0 | W13: 0 | X13: 0 | Y13: 0 | Z13: 0 | AA13: 0 | AB13: 0 | AC13: 0 | AD13: 0 | AE13: 0 | AF13: 0 | AG13: 0 | AH13: =O16 -> 21.97836908 | AI13: 0 | AJ13: 0 | AK13: 0 | AL13: 0 | AM13: 0 | AN13: 0
A14: 0 | B14: 0 | C14: 0 | D14: 0 | E14: 0 | F14: 0 | G14: 0 | H14: 0 | I14: 0 | J14: 0 | K14: 0 | L14: 0 | M14: =Data!P79 -> 21.2240533 | N14: 0 | O14: 0 | P14: 0 | Q14: 0 | R14: 0 | S14: 0 | T14: 0 | U14: 0 | W14: 0 | X14: 0 | Y14: 0 | Z14: 0 | AA14: 0 | AB14: 0 | AC14: 0 | AD14: 0 | AE14: 0 | AF14: 0 | AG14: 0 | AH14: 0 | AI14: =P17 -> 29.2938265 | AJ14: 0 | AK14: 0 | AL14: 0 | AM14: 0 | AN14: 0
A15: 0 | B15: 0 | C15: 0 | D15: 0 | E15: 0 | F15: 0 | G15: 0 | H15: 0 | I15: 0 | J15: 0 | K15: 0 | L15: 0 | M15: 0 | N15: =Data!P80 -> 21.88990444 | O15: 0 | P15: 0 | Q15: 0 | R15: 0 | S15: 0 | T15: 0 | U15: 0 | W15: 0 | X15: 0 | Y15: 0 | Z15: 0 | AA15: 0 | AB15: 0 | AC15: 0 | AD15: 0 | AE15: 0 | AF15: 0 | AG15: 0 | AH15: 0 | AI15: 0 | AJ15: =Q18 -> 24.96153416 | AK15: 0 | AL15: 0 | AM15: 0 | AN15: 0
A16: 0 | B16: 0 | C16: 0 | D16: 0 | E16: 0 | F16: 0 | G16: 0 | H16: 0 | I16: 0 | J16: 0 | K16: 0 | L16: 0 | M16: 0 | N16: 0 | O16: =Data!P81 -> 21.97836908 | P16: 0 | Q16: 0 | R16: 0 | S16: 0 | T16: 0 | U16: 0 | W16: 0 | X16: 0 | Y16: 0 | Z16: 0 | AA16: 0 | AB16: 0 | AC16: 0 | AD16: 0 | AE16: 0 | AF16: 0 | AG16: 0 | AH16: 0 | AI16: 0 | AJ16: 0 | AK16: =R19 -> 25.74463934 | AL16: 0 | AM16: 0 | AN16: 0
A17: 0 | B17: 0 | C17: 0 | D17: 0 | E17: 0 | F17: 0 | G17: 0 | H17: 0 | I17: 0 | J17: 0 | K17: 0 | L17: 0 | M17: 0 | N17: 0 | O17: 0 | P17: =Data!Q78 -> 29.2938265 | Q17: 0 | R17: 0 | S17: 0 | T17: 0 | U17: 0 | W17: 0 | X17: 0 | Y17: 0 | Z17: 0 | AA17: 0 | AB17: 0 | AC17: 0 | AD17: 0 | AE17: 0 | AF17: 0 | AG17: 0 | AH17: 0 | AI17: 0 | AJ17: 0 | AK17: 0 | AL17: =S20 -> 10.79850033 | AM17: 0 | AN17: 0
A18: 0 | B18: 0 | C18: 0 | D18: 0 | E18: 0 | F18: 0 | G18: 0 | H18: 0 | I18: 0 | J18: 0 | K18: 0 | L18: 0 | M18: 0 | N18: 0 | O18: 0 | P18: 0 | Q18: =Data!Q79 -> 24.96153416 | R18: 0 | S18: 0 | T18: 0 | U18: 0 | W18: 0 | X18: 0 | Y18: 0 | Z18: 0 | AA18: 0 | AB18: 0 | AC18: 0 | AD18: 0 | AE18: 0 | AF18: 0 | AG18: 0 | AH18: 0 | AI18: 0 | AJ18: 0 | AK18: 0 | AL18: 0 | AM18: =T21 -> 9.201499671 | AN18: 0
A19: 0 | B19: 0 | C19: 0 | D19: 0 | E19: 0 | F19: 0 | G19: 0 | H19: 0 | I19: 0 | J19: 0 | K19: 0 | L19: 0 | M19: 0 | N19: 0 | O19: 0 | P19: 0 | Q19: 0 | R19: =Data!Q80 -> 25.74463934 | S19: 0 | T19: 0 | U19: 0 | W19: 0 | X19: 0 | Y19: 0 | Z19: 0 | AA19: 0 | AB19: 0 | AC19: 0 | AD19: 0 | AE19: 0 | AF19: 0 | AG19: 0 | AH19: 0 | AI19: 0 | AJ19: 0 | AK19: 0 | AL19: 0 | AM19: 0 | AN19: =U22 -> 5
A20: 0 | B20: 0 | C20: 0 | D20: 0 | E20: 0 | F20: 0 | G20: 0 | H20: 0 | I20: 0 | J20: 0 | K20: 0 | L20: 0 | M20: 0 | N20: 0 | O20: 0 | P20: 0 | Q20: 0 | R20: 0 | S20: =Data!R78 -> 10.79850033 | T20: 0 | U20: 0
A21: 0 | B21: 0 | C21: 0 | D21: 0 | E21: 0 | F21: 0 | G21: 0 | H21: 0 | I21: 0 | J21: 0 | K21: 0 | L21: 0 | M21: 0 | N21: 0 | O21: 0 | P21: 0 | Q21: 0 | R21: 0 | S21: 0 | T21: =Data!R79 -> 9.201499671 | U21: 0
A22: 0 | B22: 0 | C22: 0 | D22: 0 | E22: 0 | F22: 0 | G22: 0 | H22: 0 | I22: 0 | J22: 0 | K22: 0 | L22: 0 | M22: 0 | N22: 0 | O22: 0 | P22: 0 | Q22: 0 | R22: 0 | S22: 0 | T22: 0 | U22: =Data!S78 -> 5
A24: Hat Matrix
A25: =MMULT(MMULT(MMULT(DesignMatrix,MINVERSE(MMULT(MMULT(TRANSPOSE(DesignMatrix),WeightMatrix),DesignMatrix))),TRANSPOSE(DesignMatrix)),WeightMatrix) -> 0.749962285 | B25: 0.1445308227 | C25: 0.1055068923 | D25: 0 | E25: 0.03357861208 | F25: 0.1559592124 | G25: -0.0840309322 | H25: -0.1055068923 | I25: 0.01058896751 | J25: -0.003844200449 | K25: 0.05375512342 | L25: -0.06049989048 | M25: -0.01360090726 | N25: -0.02672247187 | O25: 0.04032337914 | P25: 0.003011939753 | Q25: -0.003011939753 | R25: 1.626303259e-18
A26: 0.1439490749 | B26: 0.7591683394 | C26: 0.09688258565 | D26: 0 | E26: -0.001491429394 | F26: -0.07219832955 | G26: 0.1705723446 | H26: -0.09688258565 | I26: -0.01384300638 | J26: -0.01122424254 | K26: -0.04519206705 | L26: 0.07025931597 | M26: 0.01397678486 | N26: 0.01258189346 | O26: -0.02655867831 | P26: -0.000133778474 | Q26: 0.000133778474 | R26: -5.844527336e-19
A27: 0.1007686747 | B27: 0.09290563012 | C27: 0.8063256952 | D27: 0 | E27: -0.0306404201 | F27: -0.07972058379 | G27: -0.08331330096 | H27: 0.1936743048 | I27: 0.003161334924 | J27: 0.01443505696 | K27: -0.008004062722 | L27: -0.009592329165 | M27: -0.0004129455876 | N27: 0.0134569738 | O27: -0.01304402821 | P27: -0.002748389336 | Q27: 0.002748389336 | R27: -2.439454888e-18
A28: 0 | B28: 0 | C28: 0 | D28: 1 | E28: 0 | F28: 0 | G28: 0 | H28: 0 | I28: 0 | J28: 0 | K28: 0 | L28: 0 | M28: 0 | N28: 0 | O28: 0 | P28: 0 | Q28: 0 | R28: 0
A29: 0.08757486355 | B29: -0.003905449467 | C29: -0.08366941409 | D29: 0 | E29: 0.6597651333 | F29: 0.1461456399 | G29: 0.1104198127 | H29: 0.08366941409 | I29: 0.03510383875 | J29: 0.1602885883 | K29: -0.08887806383 | L29: -0.1065143632 | M29: -0.004585396888 | N29: 0.1494278365 | O29: -0.1448424397 | P29: -0.03051844186 | Q29: 0.03051844186 | R29: -8.67361738e-18
A30: 0.3943775852 | B30: -0.183307374 | C30: -0.2110702111 | D30: 0 | E30: 0.1417001549 | F30: 0.4372710381 | G30: 0.2099585958 | H30: 0.2110702111 | I30: -0.0005665064831 | J30: -0.05478151219 | K30: 0.08199924044 | L30: -0.02665122177 | M30: -0.01214373683 | N30: -0.07420839944 | O30: 0.08635213628 | P30: 0.01271024332 | Q30: -0.01271024332 | R30: 6.505213035e-18
A31: -0.211635625 | B31: 0.4313301427 | C31: -0.2196945178 | D31: 0 | E31: 0.1066301135 | F31: 0.2091134962 | G31: 0.4645618726 | H31: 0.2196945178 | I31: -0.02499848038 | J31: -0.06216155428 | K31: -0.01694795003 | L31: 0.1041079847 | M31: 0.01543395529 | N31: -0.03490403411 | O31: 0.01947007883 | P31: 0.00956452509 | Q31: -0.00956452509 | R31: 5.421010862e-18
A32: -0.2548160251 | B32: -0.2349325666 | C32: 0.4897485917 | D32: 0 | E32: 0.07748112278 | F32: 0.2015912419 | G32: 0.210676227 | H32: 0.5102514083 | I32: -0.007994139068 | J32: -0.03650225478 | K32: 0.0202400543 | L32: 0.02425633955 | M32: 0.00104422484 | N32: -0.03402895377 | O32: 0.03298472893 | P32: 0.006949914228 | Q32: -0.006949914228 | R32: -1.626303259e-18
A33: 0.04946497176 | B33: -0.06492712392 | C33: 0.01546215217 | D33: 0 | E33: 0.06287558409 | F33: -0.00104652075 | G33: -0.04636691118 | H33: -0.01546215217 | I33: 0.597699996 | J33: 0.1586880609 | K33: 0.132317908 | L33: 0.1112940351 | M33: 0.3202275665 | N33: -0.1394912075 | O33: -0.180736359 | P33: 0.08207243752 | Q33: -0.08207243752 | R33: 0
A34: -0.02107438966 | B34: -0.0617813821 | C34: 0.08285577175 | D34: 0 | E34: 0.3369262563 | F34: -0.118763177 | G34: -0.1353073075 | H34: -0.08285577175 | I34: 0.1862297603 | J34: 0.4127745855 | K34: 0.2039069646 | L34: 0.1970886896 | M34: -0.1267532648 | N34: 0.1908226627 | O34: -0.06406939793 | P34: -0.05947649544 | Q34: 0.05947649544 | R34: -3.903127821e-17
A35: 0.2857283319 | B35: -0.2411833066 | C35: -0.0445450253 | D35: 0 | E35: -0.1811387221 | F35: 0.1723622212 | G35: -0.03576852438 | H35: 0.0445450253 | I35: 0.150559415 | J35: 0.1977044851 | K35: 0.3747842689 | L35: 0.276951831 | M35: -0.1343116048 | N35: -0.03281357323 | O35: 0.167125178 | P35: -0.01624781026 | Q35: 0.01624781026 | R35: -2.602085214e-17
A36: -0.3202848782 | B36: 0.3734542101 | C36: -0.05316933195 | D36: 0 | E36: -0.2162087636 | F36: -0.05579532082 | G36: 0.2188347524 | H36: 0.05316933195 | I36: 0.1261274411 | J36: 0.190324443 | K36: 0.2758370784 | L36: 0.4077110375 | M36: -0.1067339126 | N36: 0.006490792096 | O36: 0.1002431206 | P36: -0.01939352849 | Q36: 0.01939352849 | R36: -2.710505431e-17
A37: -0.05402180397 | B37: 0.05573911642 | C37: -0.001717312446 | D37: 0 | E37: -0.006983311376 | F37: -0.01907446477 | G37: 0.02434046369 | H37: 0.001717312446 | I37: 0.2722800167 | J37: -0.09183566541 | K37: -0.1003647712 | L37: -0.08007958011 | M37: 0.6519137602 | N37: 0.1746251998 | O37: 0.1734610399 | P37: 0.07580622306 | Q37: -0.07580622306 | R37: 3.469446952e-17
A38: -0.1245611654 | B38: 0.05888485825 | C38: 0.06567630714 | D38: 0 | E38: 0.2670673608 | F38: -0.1367911211 | G38: -0.06459993263 | H38: -0.06567630714 | I38: -0.139190219 | J38: 0.1622508592 | K38: -0.02877571458 | L38: 0.005715074378 | M38: 0.2049329289 | N38: 0.5049390701 | O38: 0.290128001 | P38: -0.0657427099 | Q38: 0.0657427099 | R38: 4.33680869e-18
A39: 0.1822415562 | B39: -0.1205170663 | C39: -0.06172448992 | D39: 0 | E39: -0.2509976176 | F39: 0.1543342771 | G39: 0.03493885049 | H39: 0.06172448992 | I39: -0.1748605642 | J39: -0.05281924126 | K39: 0.1421015897 | L39: 0.08557821581 | M39: 0.197374589 | N39: 0.2813028341 | O39: 0.521322577 | P39: -0.02251402472 | Q39: 0.02251402472 | R39: 8.67361738e-18
A40: 0.03245339554 | B40: -0.00144727712 | C40: -0.03100611842 | D40: 0 | E40: -0.1260838585 | F40: 0.05415848871 | G40: 0.04091925138 | H40: 0.03100611842 | I40: 0.1893071619 | J40: -0.1168988536 | K40: -0.03293633405 | L40: -0.03947197426 | M40: 0.2056446986 | N40: -0.1519691484 | O40: -0.0536755502 | P40: 0.6050481394 | Q40: 0.3949518606 | R40: 0
A41: -0.03808596587 | B41: 0.001698464709 | C41: 0.03638750116 | D41: 0 | E41: 0.1479668137 | F41: -0.06355816759 | G41: -0.04802114495 | H41: -0.03638750116 | I41: -0.2221630738 | J41: 0.137187671 | K41: 0.03865272258 | L41: 0.04632268024 | M41: -0.2413361327 | N41: 0.1783447218 | O41: 0.06299141088 | P41: 0.4634992065 | Q41: 0.5365007935 | R41: -3.469446952e-17
A42: 6.307504743e-18 | B42: 2.275920272e-17 | C42: -6.604088279e-18 | D42: 0 | E42: 1.451082511e-17 | F42: 1.746040993e-17 | G42: 2.402682523e-17 | H42: 1.305815094e-17 | I42: -7.831436477e-17 | J42: 4.372121292e-17 | K42: 4.627950981e-17 | L42: 4.955686409e-17 | M42: -1.90562582e-17 | N42: 1.136660682e-16 | O42: 1.186276741e-16 | P42: -8.195430261e-17 | Q42: -2.194782905e-17 | R42: 1
A48: Hat Matrix Factors
A49: =IF(A25=1,0,1/SQRT(1-A25)) -> 1.999849157
B50: =IF(B26=1,0,1/SQRT(1-B26)) -> 2.037713909
C51: =IF(C27=1,0,1/SQRT(1-C27)) -> 2.272291255
D52: =IF(D28=1,0,1/SQRT(1-D28)) -> 0
E53: =IF(E29=1,0,1/SQRT(1-E29)) -> 1.714393815
F54: =IF(F30=1,0,1/SQRT(1-F30)) -> 1.333062054
G55: =IF(G31=1,0,1/SQRT(1-G31)) -> 1.366612389
H56: =IF(H32=1,0,1/SQRT(1-H32)) -> 1.428938054
I57: =IF(I33=1,0,1/SQRT(1-I33)) -> 1.576612558
J58: =IF(J34=1,0,1/SQRT(1-J34)) -> 1.304961138
K59: =IF(K35=1,0,1/SQRT(1-K35)) -> 1.264692816
L60: =IF(L36=1,0,1/SQRT(1-L36)) -> 1.299371031
M61: =IF(M37=1,0,1/SQRT(1-M37)) -> 1.694948755
N62: =IF(N38=1,0,1/SQRT(1-N38)) -> 1.42125064
O63: =IF(O39=1,0,1/SQRT(1-O39)) -> 1.445368308
P64: =IF(P40=1,0,1/SQRT(1-P40)) -> 1.591211533
Q65: =IF(Q41=1,0,1/SQRT(1-Q41)) -> 1.468843421
R66: =IF(R42=1,0,1/SQRT(1-R42)) -> 0
S67: =IF(S43=1,0,1/SQRT(1-S43)) -> 
T68: =IF(T44=1,0,1/SQRT(1-T44)) -> 
U69: =IF(U45=1,0,1/SQRT(1-U45)) -> 

Sheet GLM 2
A1: GLM Estimation of Sample Data Parameters | G1: rho = | H1: =Data!F55 -> 1 | J1: parameters = | K1: =2*6-1 -> 11
A2: Newton-Raphson Interation Sequence -- Iteration 1
B3: y(i) | D3: xb(i) | F3: W(i,i) | Y3: XWX | AK3: zz(i) | AM3: factor | AO3: xwx-1 | BA3: aa1(i,j) | BT3: aa2(j) | BV3: beta(j) | BX3: beta_diff = | BY3: =SUM(BX5:BX15) -> 2.334538521 | BZ3: beta_old = | CA3: =SUM(BV5:BV15) -> 25.67992373
B4: 1 | D4: 1 | F4: 1 | G4: 2 | H4: 3 | I4: 4 | J4: 5 | K4: 6 | L4: 7 | M4: 8 | N4: 9 | O4: 10 | P4: 11 | Q4: 12 | R4: 13 | S4: 14 | T4: 15 | U4: 16 | V4: 17 | W4: 18 | Y4: 1 | Z4: 2 | AA4: 3 | AB4: 4 | AC4: 5 | AD4: 6 | AE4: 7 | AF4: 8 | AG4: 9 | AH4: 10 | AI4: 11 | AK4: 1 | AO4: 1 | AP4: 2 | AQ4: 3 | AR4: 4 | AS4: 5 | AT4: 6 | AU4: 7 | AV4: 8 | AW4: 9 | AX4: 10 | AY4: 11 | BA4: 1 | BB4: 2 | BC4: 3 | BD4: 4 | BE4: 5 | BF4: 6 | BG4: 7 | BH4: 8 | BI4: 9 | BJ4: 10 | BK4: 11 | BL4: 12 | BM4: 13 | BN4: 14 | BO4: 15 | BP4: 16 | BQ4: 17 | BR4: 18
A5: 1 | B5: =Data!N140 -> 97.33577837 | D5: =IF(B5<0,-LN(-B5),LN(B5)) -> 4.578166633 | F5: =IF($A5=F$4,IF($B5<0,-(EXP(-$D5)^(2-$H$1)),IF($B5=0,0,EXP($D5)^(2-$H$1))),0) -> 97.33577837 | G5: 0 | H5: 0 | I5: 0 | J5: 0 | K5: 0 | L5: 0 | M5: 0 | N5: 0 | O5: 0 | P5: =IF($A5=P$4,IF($B5<0,-(EXP(-$D5)^(2-$H$1)),IF($B5=0,0,EXP($D5)^(2-$H$1))),0) -> 0 | Q5: 0 | R5: 0 | S5: 0 | T5: 0 | U5: 0 | V5: 0 | W5: 0 | Y5: =MMULT(TRANSPOSE(DesignMatrix),MMULT(F5:W22,DesignMatrix)) -> 88.52151889 | Z5: 0 | AA5: 0 | AB5: 0 | AC5: 0 | AD5: 0 | AE5: 88.52151889 | AF5: 88.52151889 | AG5: 62.51015722 | AH5: 24.10607537 | AI5: 8.763808337 | AK5: =IF(B5<0,D5+(B5+EXP(-D5))/-EXP(-D5),IF(B5=0,0,D5+(B5-EXP(D5))/EXP(D5))) -> 4.578166633 | AM5: =OFFSET(X4,A5,A5) -> 88.52151889 | AO5: =MINVERSE(Y5:AI15) -> 0.03380182918 | AP5: 0.01498306639 | AQ5: 0.005633665868 | AR5: 0.002230953163 | AS5: 0.001342305804 | AT5: 0 | AU5: -0.005563917809 | AV5: -0.01025847887 | AW5: -0.005358075678 | AX5: -0.009517587456 | AY5: -0.003103769361 | BA5: =MMULT(AO5:AY15,TRANSPOSE(DesignMatrix)) -> 0.005633665868 | BB5: 0.002230953163 | BC5: 0.001342305804 | BD5: 0 | BE5: 0.009419148584 | BF5: 6.974805914e-05 | BG5: -0.003332964646 | BH5: -0.004221612005 | BI5: 0.0179794325 | BJ5: -0.0008393302882 | BK5: -0.01018873081 | BL5: -0.01359144352 | BM5: 0.01262135682 | BN5: -0.006197405966 | BO5: -0.01554680649 | BP5: 0.003103769361 | BQ5: -0.01571499342 | BR5: -1.344410694e-17 | BT5: =MMULT(F5:W22,AK5:AK22) -> 445.6194128 | BV5: =MMULT(BA5:BR15,BT5:BT22) -> 5.037090356 | BX5: =BV5/$K$1 -> 0.4579173051
A6: 2 | B6: =Data!N141 -> 140.8536352 | D6: =IF(B6<0,-LN(-B6),LN(B6)) -> 4.947721303 | F6: 0 | G6: 140.8536352 | H6: 0 | I6: 0 | J6: 0 | K6: 0 | L6: 0 | M6: 0 | N6: 0 | O6: 0 | P6: 0 | Q6: 0 | R6: 0 | S6: 0 | T6: 0 | U6: 0 | V6: 0 | W6: 0 | Y6: 0 | Z6: 95.22084129 | AA6: 0 | AB6: 0 | AC6: 0 | AD6: 0 | AE6: 95.22084129 | AF6: 64.19671942 | AG6: 39.09963474 | AH6: 3.030154519 | AI6: 0 | AK6: =IF(B6<0,D6+(B6+EXP(-D6))/-EXP(-D6),IF(B6=0,0,D6+(B6-EXP(D6))/EXP(D6))) -> 4.947721303 | AM6: =OFFSET(X4,A6,A6) -> 95.22084129 | AO6: 0.01498306639 | AP6: 0.02267389746 | AQ6: 0.005128995245 | AR6: 0.002349757001 | AS6: 0.00165870901 | AT6: 0 | AU6: -0.006875423299 | AV6: -0.005549966106 | AW6: -0.003783271684 | AX6: -4.28503184e-05 | AY6: 0.001268445015 | BA6: 0.005128995245 | BB6: 0.002349757001 | BC6: 0.00165870901 | BD6: 0 | BE6: 0.01579847416 | BF6: -0.001746428054 | BG6: -0.004525666299 | BH6: -0.005216714289 | BI6: 0.002557676987 | BJ6: 0.01024850806 | BK6: -0.007296394161 | BL6: -0.01007563241 | BM6: -0.001225594696 | BN6: 0.006465236374 | BO6: -0.01107966584 | BP6: -0.001268445015 | BQ6: 0.006422386056 | BR6: 2.168404345e-19 | BT6: 696.9045317 | BV6: 4.712897663 | BX6: 0.428445242
A7: 3 | B7: =Data!N142 -> 102.3648145 | D7: =IF(B7<0,-LN(-B7),LN(B7)) -> 4.628543045 | F7: 0 | G7: 0 | H7: 102.3648145 | I7: 0 | J7: 0 | K7: 0 | L7: 0 | M7: 0 | N7: 0 | O7: 0 | P7: 0 | Q7: 0 | R7: 0 | S7: 0 | T7: 0 | U7: 0 | V7: 0 | W7: 0 | Y7: 0 | Z7: 0 | AA7: 202.5436196 | AB7: 0 | AC7: 0 | AD7: 0 | AE7: 105.2078412 | AF7: 45.39500883 | AG7: 16.79923195 | AH7: 0 | AI7: 0 | AK7: =IF(B7<0,D7+(B7+EXP(-D7))/-EXP(-D7),IF(B7=0,0,D7+(B7-EXP(D7))/EXP(D7))) -> 4.628543045 | AM7: =OFFSET(X4,A7,A7) -> 202.5436196 | AO7: 0.005633665868 | AP7: 0.005128995245 | AQ7: 0.007389336659 | AR7: 0.001281909095 | AS7: 0.0009787699924 | AT7: 0 | AU7: -0.004057045551 | AV7: -0.001443075468 | AW7: -0.0002572477976 | AX7: 0.0002069380285 | AY7: -8.323507957e-05 | BA7: 0.007389336659 | BB7: 0.001281909095 | BC7: 0.0009787699924 | BD7: 0 | BE7: 0.001071949694 | BF7: 0.003332291107 | BG7: -0.002775136457 | BH7: -0.003078275559 | BI7: 0.0001335448487 | BJ7: -0.0003711257745 | BK7: 0.001889215639 | BL7: -0.004218211925 | BM7: -0.0001237029489 | BN7: -0.0006283735721 | BO7: 0.001631967841 | BP7: 8.323507957e-05 | BQ7: -0.0004214355436 | BR7: -2.710505431e-20 | BT7: 473.7999501 | BV7: 4.744955361 | BX7: 0.4313595783
A8: 4 | B8: =Data!N143 -> 99.82637861 | D8: =IF(B8<0,-LN(-B8),LN(B8)) -> 4.603432463 | F8: 0 | G8: 0 | H8: 0 | I8: 99.82637861 | J8: 0 | K8: 0 | L8: 0 | M8: 0 | N8: 0 | O8: 0 | P8: 0 | Q8: 0 | R8: 0 | S8: 0 | T8: 0 | U8: 0 | V8: 0 | W8: 0 | Y8: 0 | Z8: 0 | AA8: 0 | AB8: 199.9778742 | AC8: 0 | AD8: 0 | AE8: 59.12423895 | AF8: 11.42263549 | AG8: 0 | AH8: 0 | AI8: 0 | AK8: =IF(B8<0,D8+(B8+EXP(-D8))/-EXP(-D8),IF(B8=0,0,D8+(B8-EXP(D8))/EXP(D8))) -> 4.603432463 | AM8: =OFFSET(X4,A8,A8) -> 199.9778742 | AO8: 0.002230953163 | AP8: 0.002349757001 | AQ8: 0.001281909095 | AR8: 0.005758040204 | AS8: 0.0006270072989 | AT8: 0 | AU8: -0.002598973398 | AV8: 0.0001909966061 | AW8: 0.0003047508323 | AX8: -0.0001473214627 | AY8: 1.959425901e-05 | BA8: 0.001281909095 | BB8: 0.005758040204 | BC8: 0.0006270072989 | BD8: 0 | BE8: -0.0002492163968 | BF8: -0.001317064303 | BG8: 0.003159066807 | BH8: -0.001971966099 | BI8: -0.0001770236286 | BJ8: -5.821979067e-05 | BK8: -0.001126067697 | BL8: 0.003350063413 | BM8: 0.0001277272036 | BN8: 0.0002465310416 | BO8: -0.0008213168644 | BP8: -1.959425901e-05 | BQ8: 9.920957894e-05 | BR8: -3.150962564e-19 | BT8: 459.543992 | BV8: 4.867034456 | BX8: 0.4424576778
A9: 5 | B9: =Data!O139 -> 31.02412187 | D9: 3.434765027 | F9: 0 | G9: 0 | H9: 0 | I9: 0 | J9: 31.02412187 | K9: 0 | L9: 0 | M9: 0 | N9: 0 | O9: 0 | P9: 0 | Q9: 0 | R9: 0 | S9: 0 | T9: 0 | U9: 0 | V9: 0 | W9: 0 | Y9: 0 | Z9: 0 | AA9: 0 | AB9: 0 | AC9: 134.9127806 | AD9: 0 | AE9: 32.54796615 | AF9: 0 | AG9: 0 | AH9: 0 | AI9: 0 | AK9: 3.434765027 | AM9: =OFFSET(X4,A9,A9) -> 134.9127806 | AO9: 0.001342305804 | AP9: 0.00165870901 | AQ9: 0.0009787699924 | AR9: 0.0006270072989 | AS9: 0.007975537373 | AT9: 0 | AU9: -0.002335074446 | AV9: 0.001109368568 | AW9: -0.0001747265214 | AX9: 5.942368856e-06 | AY9: 5.218422632e-05 | BA9: 0.0009787699924 | BB9: 0.0006270072989 | BC9: 0.007975537373 | BD9: 0 | BE9: -0.0006763654359 | BF9: -0.001356304454 | BG9: -0.001708067147 | BH9: 0.005640462927 | BI9: 0.0001165999263 | BJ9: 0.0004330031322 | BK9: -0.0002469358856 | BL9: -0.0005986985792 | BM9: -5.812659518e-05 | BN9: 0.0002582766107 | BO9: -0.0004216624071 | BP9: -5.218422632e-05 | BQ9: 0.0002642189796 | BR9: -1.423015351e-19 | BT9: 106.5605688 | BV9: 4.580973234 | BX9: 0.4164521122
A10: 6 | B10: =Data!O140 -> 59.81283241 | D10: 4.091220227 | F10: 0 | G10: 0 | H10: 0 | I10: 0 | J10: 0 | K10: 59.81283241 | L10: 0 | M10: 0 | N10: 0 | O10: 0 | P10: 0 | Q10: 0 | R10: 0 | S10: 0 | T10: 0 | U10: 0 | V10: 0 | W10: 0 | Y10: 0 | Z10: 0 | AA10: 0 | AB10: 0 | AC10: 0 | AD10: 99.82637861 | AE10: 0 | AF10: 0 | AG10: 0 | AH10: 0 | AI10: 0 | AK10: 4.091220227 | AM10: =OFFSET(X4,A10,A10) -> 99.82637861 | AO10: 0 | AP10: 0 | AQ10: 0 | AR10: 0 | AS10: 0 | AT10: 0.01001739234 | AU10: 0 | AV10: 0 | AW10: 0 | AX10: 0 | AY10: 0 | BA10: 0 | BB10: 0 | BC10: 0 | BD10: 0.01001739234 | BE10: 0 | BF10: 0 | BG10: 0 | BH10: 0 | BI10: 0 | BJ10: 0 | BK10: 0 | BL10: 0 | BM10: 0 | BN10: 0 | BO10: 0 | BP10: 0 | BQ10: 0 | BR10: 0 | BT10: 244.7074698 | BV10: 4.603432463 | BX10: 0.4184938603
A11: 7 | B11: =Data!O141 -> 47.70160346 | D11: 3.864965013 | F11: 0 | G11: 0 | H11: 0 | I11: 0 | J11: 0 | K11: 0 | L11: 47.70160346 | M11: 0 | N11: 0 | O11: 0 | P11: 0 | Q11: 0 | R11: 0 | S11: 0 | T11: 0 | U11: 0 | V11: 0 | W11: 0 | Y11: 88.52151889 | Z11: 95.22084129 | AA11: 105.2078412 | AB11: 59.12423895 | AC11: 32.54796615 | AD11: 0 | AE11: 380.6224065 | AF11: 209.5358826 | AG11: 118.4090239 | AH11: 27.13622988 | AI11: 8.763808337 | AK11: 3.864965013 | AM11: =OFFSET(X4,A11,A11) -> 380.6224065 | AO11: -0.005563917809 | AP11: -0.006875423299 | AQ11: -0.004057045551 | AR11: -0.002598973398 | AS11: -0.002335074446 | AT11: 0 | AU11: 0.00967898839 | AV11: -0.004598382509 | AW11: 0.0007242492741 | AX11: -2.463138563e-05 | AY11: -0.0002163059604 | BA11: -0.004057045551 | BB11: -0.002598973398 | BC11: -0.002335074446 | BD11: 0 | BE11: 0.002803565091 | BF11: 0.005621942839 | BG11: 0.007080014993 | BH11: 0.007343913944 | BI11: -0.000483311928 | BJ11: -0.001794817418 | BK11: 0.00102356033 | BL11: 0.002481632484 | BM11: 0.000240937346 | BN11: -0.001070568144 | BO11: 0.001747809604 | BP11: 0.0002163059604 | BQ11: -0.00109519953 | BR11: 8.67361738e-19 | BT11: 184.3650284 | BV11: -0.9486491622 | BX11: -0.08624083293
A12: 8 | B12: =Data!O142 -> 32.54796615 | D12: 3.482714883 | F12: 0 | G12: 0 | H12: 0 | I12: 0 | J12: 0 | K12: 0 | L12: 0 | M12: 32.54796615 | N12: 0 | O12: 0 | P12: 0 | Q12: 0 | R12: 0 | S12: 0 | T12: 0 | U12: 0 | V12: 0 | W12: 0 | Y12: 88.52151889 | Z12: 64.19671942 | AA12: 45.39500883 | AB12: 11.42263549 | AC12: 0 | AD12: 0 | AE12: 209.5358826 | AF12: 209.5358826 | AG12: 118.4090239 | AH12: 27.13622988 | AI12: 8.763808337 | AK12: 3.482714883 | AM12: =OFFSET(X4,A12,A12) -> 209.5358826 | AO12: -0.01025847887 | AP12: -0.005549966106 | AQ12: -0.001443075468 | AR12: 0.0001909966061 | AS12: 0.001109368568 | AT12: 0 | AU12: -0.004598382509 | AV12: 0.02045769307 | AW12: -0.009084077909 | AX12: 0.002706673506 | AY12: 0.0007765727124 | BA12: -0.001443075468 | BB12: 0.0001909966061 | BC12: 0.001109368568 | BD12: 0 | BE12: -0.01014834862 | BF12: -0.006041457977 | BG12: -0.004407385903 | BH12: -0.003489013941 | BI12: 0.00560083169 | BJ12: 0.01030934446 | BK12: 0.01441623509 | BL12: 0.01605030717 | BM12: -0.003483246218 | BN12: 0.001225266548 | BO12: 0.005332157185 | BP12: -0.0007765727124 | BQ12: 0.003931940053 | BR12: 2.276824562e-18 | BT12: 113.3552861 | BV12: -0.7109171921 | BX12: -0.06462883565
A13: 9 | B13: =Data!P138 -> 26.01136168 | D13: 3.25853343 | F13: 0 | G13: 0 | H13: 0 | I13: 0 | J13: 0 | K13: 0 | L13: 0 | M13: 0 | N13: 26.01136168 | O13: 0 | P13: 0 | Q13: 0 | R13: 0 | S13: 0 | T13: 0 | U13: 0 | V13: 0 | W13: 0 | Y13: 62.51015722 | Z13: 39.09963474 | AA13: 16.79923195 | AB13: 0 | AC13: 0 | AD13: 0 | AE13: 118.4090239 | AF13: 118.4090239 | AG13: 118.4090239 | AH13: 27.13622988 | AI13: 8.763808337 | AK13: 3.25853343 | AM13: =OFFSET(X4,A13,A13) -> 118.4090239 | AO13: -0.005358075678 | AP13: -0.003783271684 | AQ13: -0.0002572477976 | AR13: 0.0003047508323 | AS13: -0.0001747265214 | AT13: 0 | AU13: 0.0007242492741 | AV13: -0.009084077909 | AW13: 0.02311290155 | AX13: -0.009654728892 | AY13: 0.0002597316542 | BA13: -0.0002572477976 | BB13: 0.0003047508323 | BC13: -0.0001747265214 | BD13: 0 | BE13: -0.003059022409 | BF13: 0.0004670014765 | BG13: 0.001029000106 | BH13: 0.0005495227527 | BI13: -0.01371790431 | BJ13: -0.01214310032 | BK13: -0.008617076432 | BL13: -0.008055077802 | BM13: 0.009394997238 | BN13: 0.01096980123 | BO13: 0.01449582512 | BP13: -0.0002597316542 | BQ13: 0.00131507234 | BR13: -1.138412281e-18 | BT13: 84.75889159 | BV13: 0.2755571972 | BX13: 0.02505065429
A14: 10 | B14: =Data!P139 -> 25.09708468 | D14: 3.222751691 | F14: 0 | G14: 0 | H14: 0 | I14: 0 | J14: 0 | K14: 0 | L14: 0 | M14: 0 | N14: 0 | O14: 25.09708468 | P14: 0 | Q14: 0 | R14: 0 | S14: 0 | T14: 0 | U14: 0 | V14: 0 | W14: 0 | Y14: 24.10607537 | Z14: 3.030154519 | AA14: 0 | AB14: 0 | AC14: 0 | AD14: 0 | AE14: 27.13622988 | AF14: 27.13622988 | AG14: 27.13622988 | AH14: 27.13622988 | AI14: 8.763808337 | AK14: 3.222751691 | AM14: =OFFSET(X4,A14,A14) -> 27.13622988 | AO14: -0.009517587456 | AP14: -4.28503184e-05 | AQ14: 0.0002069380285 | AR14: -0.0001473214627 | AS14: 5.942368856e-06 | AT14: 0 | AU14: -2.463138563e-05 | AV14: 0.002706673506 | AW14: -0.009654728892 | AX14: 0.06935701691 | AY14: -0.05286674268 | BA14: 0.0002069380285 | BB14: -0.0001473214627 | BC14: 5.942368856e-06 | BD14: 0 | BE14: -6.748170403e-05 | BF14: 0.0001823066429 | BG14: -0.0001719528483 | BH14: -1.868901678e-05 | BI14: -0.006835545336 | BJ14: 0.002639191802 | BK14: 0.002888980149 | BL14: 0.002534720658 | BM14: -0.01649027423 | BN14: -0.00701553709 | BO14: -0.006765748743 | BP14: 0.05286674268 | BQ14: 0.06234147982 | BR14: 6.938893904e-18 | BT14: 80.88167209 | BV14: -1.136516017 | BX14: -0.1033196379
A15: 11 | B15: =Data!P140 -> 28.59577687 | D15: 3.353259045 | F15: =IF($A15=F$4,IF($B15<0,-(EXP(-$D15)^(2-$H$1)),IF($B15=0,0,EXP($D15)^(2-$H$1))),0) -> 0 | G15: 0 | H15: 0 | I15: 0 | J15: 0 | K15: 0 | L15: 0 | M15: 0 | N15: 0 | O15: 0 | P15: =IF($A15=P$4,IF($B15<0,-(EXP(-$D15)^(2-$H$1)),IF($B15=0,0,EXP($D15)^(2-$H$1))),0) -> 28.59577687 | Q15: 0 | R15: 0 | S15: 0 | T15: 0 | U15: 0 | V15: 0 | W15: 0 | Y15: 8.763808337 | Z15: 0 | AA15: 0 | AB15: 0 | AC15: 0 | AD15: 0 | AE15: 8.763808337 | AF15: 8.763808337 | AG15: 8.763808337 | AH15: 8.763808337 | AI15: 8.763808337 | AK15: 3.353259045 | AM15: =OFFSET(X4,A15,A15) -> 8.763808337 | AO15: -0.003103769361 | AP15: 0.001268445015 | AQ15: -8.323507957e-05 | AR15: 1.959425901e-05 | AS15: 5.218422632e-05 | AT15: 0 | AU15: -0.0002163059604 | AV15: 0.0007765727124 | AW15: 0.0002597316542 | AX15: -0.05286674268 | AY15: 0.1692561583 | BA15: -8.323507957e-05 | BB15: 1.959425901e-05 | BC15: 5.218422632e-05 | BD15: 0 | BE15: 0.001052139054 | BF15: -0.00029954104 | BG15: -0.0001967117014 | BH15: -0.0001641217341 | BI15: -0.002543502609 | BJ15: 0.001828711767 | BK15: 0.0004770316724 | BL15: 0.000579861011 | BM15: -0.002283770955 | BN15: 0.002088443421 | BO15: 0.0007367633266 | BP15: -0.05515051364 | BQ15: -0.05077829926 | BR15: 0.1141056447 | BT15: 95.88904745 | BV15: -0.3459346299 | BX15: -0.03144860272
A16: 12 | B16: =Data!P141 -> 11.42263549 | D16: 2.435596956 | F16: 0 | G16: 0 | H16: 0 | I16: 0 | J16: 0 | K16: 0 | L16: 0 | M16: 0 | N16: 0 | O16: 0 | P16: 0 | Q16: 11.42263549 | R16: 0 | S16: 0 | T16: 0 | U16: 0 | V16: 0 | W16: 0 | AK16: 2.435596956 | BT16: 27.82093624
A17: 13 | B17: =Data!Q138 -> 38.40408185 | D17: 3.648163752 | F17: 0 | G17: 0 | H17: 0 | I17: 0 | J17: 0 | K17: 0 | L17: 0 | M17: 0 | N17: 0 | O17: 0 | P17: 0 | Q17: 0 | R17: 38.40408185 | S17: 0 | T17: 0 | U17: 0 | V17: 0 | W17: 0 | AK17: 3.648163752 | BT17: 140.1043793
A18: 14 | B18: =Data!Q139 -> 36.06948022 | D18: 3.585447084 | F18: 0 | G18: 0 | H18: 0 | I18: 0 | J18: 0 | K18: 0 | L18: 0 | M18: 0 | N18: 0 | O18: 0 | P18: 0 | Q18: 0 | R18: 0 | S18: 36.06948022 | T18: 0 | U18: 0 | V18: 0 | W18: 0 | AK18: 3.585447084 | BT18: 129.3252127
A19: 15 | B19: =Data!Q140 -> 16.79923195 | D19: 2.821333168 | F19: 0 | G19: 0 | H19: 0 | I19: 0 | J19: 0 | K19: 0 | L19: 0 | M19: 0 | N19: 0 | O19: 0 | P19: 0 | Q19: 0 | R19: 0 | S19: 0 | T19: 16.79923195 | U19: 0 | V19: 0 | W19: 0 | AK19: 2.821333168 | BT19: 47.39623031
A20: 16 | B20: =Data!R138 -> 15.34226703 | D20: 2.73061157 | F20: 0 | G20: 0 | H20: 0 | I20: 0 | J20: 0 | K20: 0 | L20: 0 | M20: 0 | N20: 0 | O20: 0 | P20: 0 | Q20: 0 | R20: 0 | S20: 0 | T20: 0 | U20: 15.34226703 | V20: 0 | W20: 0 | AK20: 2.73061157 | BT20: 41.89377187
A21: 17 | B21: =Data!R139 -> 3.030154519 | D21: 1.108613615 | F21: 0 | G21: 0 | H21: 0 | I21: 0 | J21: 0 | K21: 0 | L21: 0 | M21: 0 | N21: 0 | O21: 0 | P21: 0 | Q21: 0 | R21: 0 | S21: 0 | T21: 0 | U21: 0 | V21: 3.030154519 | W21: 0 | AK21: 1.108613615 | BT21: 3.359270554
A22: 18 | B22: =Data!S138 -> 8.763808337 | D22: 2.170630552 | F22: 0 | G22: 0 | H22: 0 | I22: 0 | J22: 0 | K22: 0 | L22: 0 | M22: 0 | N22: 0 | O22: 0 | P22: 0 | Q22: 0 | R22: 0 | S22: 0 | T22: 0 | U22: 0 | V22: 0 | W22: 8.763808337 | AK22: 2.170630552 | BT22: 19.02299013
A23: 19
A24: 20
A25: 21
A27: Newton-Raphson Interation Sequence -- Iteration 2
B28: y(i) | D28: xb(i) | F28: W(i,i) | Y28: XWX | AK28: zz(i) | AM28: factor | AO28: xwx-1 | BA28: aa1(i,j) | BT28: aa2(j) | BV28: beta(j) | BX28: beta_diff = | BY28: =SUM(BX30:BX40) -> -0.006336999582 | BZ28: beta_old = | CA28: =SUM(BV30:BV40) -> 25.67358673
B29: 1 | D29: 1 | F29: 1 | G29: 2 | H29: 3 | I29: 4 | J29: 5 | K29: 6 | L29: 7 | M29: 8 | N29: 9 | O29: 10 | P29: 11 | Q29: 12 | R29: 13 | S29: 14 | T29: 15 | U29: 16 | V29: 17 | W29: 18 | Y29: 1 | Z29: 2 | AA29: 3 | AB29: 4 | AC29: 5 | AD29: 6 | AE29: 7 | AF29: 8 | AG29: 9 | AH29: 10 | AI29: 11 | AK29: 1 | AO29: 1 | AP29: 2 | AQ29: 3 | AR29: 4 | AS29: 5 | AT29: 6 | AU29: 7 | AV29: 8 | AW29: 9 | AX29: 10 | AY29: 11 | BA29: 1 | BB29: 2 | BC29: 3 | BD29: 4 | BE29: 5 | BF29: 6 | BG29: 7 | BH29: 8 | BI29: 9 | BJ29: 10 | BK29: 11 | BL29: 12 | BM29: 13 | BN29: 14 | BO29: 15 | BP29: 16 | BQ29: 17 | BR29: 18
A30: 1 | B30: =B5 -> 97.33577837 | D30: =MMULT(DesignMatrix,BV5:BV15) -> 4.744955361 | F30: =IF($A30=F$4,IF($B30<0,-(EXP(-$D30)^(2-$H$1)),IF($B30=0,0,EXP($D30)^(2-$H$1))),0) -> 115.0026718 | G30: 0 | H30: 0 | I30: 0 | J30: 0 | K30: 0 | L30: 0 | M30: 0 | N30: 0 | O30: 0 | P30: =IF($A30=P$4,IF($B30<0,-(EXP(-$D30)^(2-$H$1)),IF($B30=0,0,EXP($D30)^(2-$H$1))),0) -> 0 | Q30: 0 | R30: 0 | S30: 0 | T30: 0 | U30: 0 | V30: 0 | W30: 0 | Y30: =MMULT(TRANSPOSE(DesignMatrix),MMULT(F30:W47,DesignMatrix)) -> 89.04132435 | Z30: 0 | AA30: 0 | AB30: 0 | AC30: 0 | AD30: 0 | AE30: 89.04132435 | AF30: 89.04132435 | AG30: 59.74318525 | AH30: 21.14978827 | AI30: 8.763808337 | AK30: =IF(B30<0,D30+(B30+EXP(-D30))/-EXP(-D30),IF(B30=0,0,D30+(B30-EXP(D30))/EXP(D30))) -> 4.59133377 | AM30: =OFFSET(X29,A30,A30) -> 89.04132435 | AO30: =MINVERSE(Y30:AI40) -> 0.02778844551 | AP30: 0.01087235703 | AQ30: 0.004493000492 | AR30: 0.00269808301 | AS30: 0.001359680037 | AT30: 0 | AU30: -0.004870671856 | AV30: -0.007588234585 | AW30: -0.003334065213 | AX30: -0.004896564634 | AY30: -0.007098909225 | BA30: =MMULT(AO30:AY40,TRANSPOSE(DesignMatrix)) -> 0.004493000492 | BB30: 0.00269808301 | BC30: 0.001359680037 | BD30: 0 | BE30: 0.006001685179 | BF30: -0.0003776713637 | BG30: -0.002172588846 | BH30: -0.003510991819 | BI30: 0.01532953907 | BJ30: -0.001586549406 | BK30: -0.007965905948 | BL30: -0.009760823431 | BM30: 0.01199547386 | BN30: -0.004920614619 | BO30: -0.01129997116 | BP30: 0.007098909225 | BQ30: -0.009817179253 | BR30: 0 | BT30: =MMULT(F30:W47,AK30:AK47) -> 528.0156506 | BV30: =MMULT(BA30:BR40,BT30:BT47) -> 5.131498981 | BX30: =BV30-CA3/$K$1 -> 2.79696046
A31: 2 | B31: =B6 -> 140.8536352 | D31: 4.867034456 | F31: 0 | G31: 129.9350169 | H31: 0 | I31: 0 | J31: 0 | K31: 0 | L31: 0 | M31: 0 | N31: 0 | O31: 0 | P31: 0 | Q31: 0 | R31: 0 | S31: 0 | T31: 0 | U31: 0 | V31: 0 | W31: 0 | Y31: 0 | Z31: 101.1808266 | AA31: 0 | AB31: 0 | AC31: 0 | AD31: 0 | AE31: 101.1808266 | AF31: 58.04954605 | AG31: 36.86374261 | AH31: 8.956436968 | AI31: 0 | AK31: =IF(B31<0,D31+(B31+EXP(-D31))/-EXP(-D31),IF(B31=0,0,D31+(B31-EXP(D31))/EXP(D31))) -> 4.951065832 | AM31: =OFFSET(X29,A31,A31) -> 101.1808266 | AO31: 0.01087235703 | AP31: 0.01905287668 | AQ31: 0.003927630414 | AR31: 0.002777560693 | AS31: 0.001919996628 | AT31: 0 | AU31: -0.006877848677 | AV31: -0.002153830985 | AW31: -0.002136258343 | AX31: -0.003137409254 | AY31: 0.003432990224 | BA31: 0.003927630414 | BB31: 0.002777560693 | BC31: 0.001919996628 | BD31: 0 | BE31: 0.012175028 | BF31: -0.002950218263 | BG31: -0.004100287983 | BH31: -0.004957852048 | BI31: 0.001840677373 | BJ31: 0.01002119702 | BK31: -0.005104049248 | BL31: -0.006254118968 | BM31: -0.0002955809699 | BN31: 0.007884938674 | BO31: -0.007240307591 | BP31: -0.003432990224 | BQ31: 0.00474752942 | BR31: 1.734723476e-18 | BT31: 643.3168227 | BV31: 4.722393568 | BX31: =BV31-CA3/$K$1 -> 2.387855047
A32: 3 | B32: 102.3648145 | D32: 4.580973234 | F32: 0 | G32: 0 | H32: 97.60934477 | I32: 0 | J32: 0 | K32: 0 | L32: 0 | M32: 0 | N32: 0 | O32: 0 | P32: 0 | Q32: 0 | R32: 0 | S32: 0 | T32: 0 | U32: 0 | V32: 0 | W32: 0 | Y32: 0 | Z32: 0 | AA32: 210.2314629 | AB32: 0 | AC32: 0 | AD32: 0 | AE32: 95.22879109 | AF32: 50.69241931 | AG32: 28.81644422 | AH32: 0 | AI32: 0 | AK32: 4.629692645 | AM32: =OFFSET(X29,A32,A32) -> 210.2314629 | AO32: 0.004493000492 | AP32: 0.003927630414 | AQ32: 0.006521331516 | AR32: 0.001260183955 | AS32: 0.0008840078643 | AT32: 0 | AU32: -0.003166709894 | AV32: -0.0008368842885 | AW32: -0.0009370837069 | AX32: 0.0006849373804 | AY32: -0.000237259983 | BA32: 0.006521331516 | BB32: 0.001260183955 | BC32: 0.0008840078643 | BD32: 0 | BE32: 0.0007609205196 | BF32: 0.003354621622 | BG32: -0.001906525939 | BH32: -0.00228270203 | BI32: 0.0004894063095 | BJ32: -7.596376889e-05 | BK32: 0.002517737333 | BL32: -0.002743410227 | BM32: -0.0004476773974 | BN32: -0.001013047476 | BO32: 0.001580653627 | BP32: 0.000237259983 | BQ32: -0.0003281100953 | BR32: 9.215718466e-19 | BT32: 451.9012655 | BV32: 4.73367194 | BX32: =BV32-CA3/$K$1 -> 2.399133419
A33: 4 | B33: 99.82637861 | D33: 4.603432463 | F33: 0 | G33: 0 | H33: 0 | I33: 99.82637861 | J33: 0 | K33: 0 | L33: 0 | M33: 0 | N33: 0 | O33: 0 | P33: 0 | Q33: 0 | R33: 0 | S33: 0 | T33: 0 | U33: 0 | V33: 0 | W33: 0 | Y33: 0 | Z33: 0 | AA33: 0 | AB33: 204.9705729 | AC33: 0 | AD33: 0 | AE33: 75.03555597 | AF33: 24.71642745 | AG33: 0 | AH33: 0 | AI33: 0 | AK33: 4.603432463 | AM33: =OFFSET(X29,A33,A33) -> 204.9705729 | AO33: 0.00269808301 | AP33: 0.002777560693 | AQ33: 0.001260183955 | AR33: 0.005975887316 | AS33: 0.0008052349778 | AT33: 0 | AU33: -0.002884528152 | AV33: -0.0003414277084 | AW33: 0.0009393112034 | AX33: -0.0004447915042 | AY33: 3.335315155e-05 | BA33: 0.001260183955 | BB33: 0.005975887316 | BC33: 0.0008052349778 | BD33: 0 | BE33: -0.0001069674586 | BF33: -0.001624344197 | BG33: 0.003091359164 | BH33: -0.002079293174 | BI33: -0.0005278728508 | BJ33: -0.000448395167 | BK33: -0.001965771905 | BL33: 0.002749931456 | BM33: 0.0004114383526 | BN33: 0.0004909160364 | BO33: -0.001026460702 | BP33: -3.335315155e-05 | BQ33: 4.612453224e-05 | BR33: 8.538092108e-19 | BT33: 459.543992 | BV33: 4.859266335 | BX33: =BV33-CA3/$K$1 -> 2.524727814
A34: 5 | B34: 31.02412187 | D34: 3.7642485 | F34: 0 | G34: 0 | H34: 0 | I34: 0 | J34: 43.13128054 | K34: 0 | L34: 0 | M34: 0 | N34: 0 | O34: 0 | P34: 0 | Q34: 0 | R34: 0 | S34: 0 | T34: 0 | U34: 0 | V34: 0 | W34: 0 | Y34: 0 | Z34: 0 | AA34: 0 | AB34: 0 | AC34: 135.4099106 | AD34: 0 | AE34: 37.80056586 | AF34: 0 | AG34: 0 | AH34: 0 | AI34: 0 | AK34: 3.483543673 | AM34: =OFFSET(X29,A34,A34) -> 135.4099106 | AO34: 0.001359680037 | AP34: 0.001919996628 | AQ34: 0.0008840078643 | AR34: 0.0008052349778 | AS34: 0.008131480803 | AT34: 0 | AU34: -0.002674115759 | AV34: 0.001440511096 | AW34: -0.0001463208996 | AX34: -0.0002148937398 | AY34: 0.0002351392656 | BA34: 0.0008840078643 | BB34: 0.0008052349778 | BC34: 0.008131480803 | BD34: 0 | BE34: -0.0007541191308 | BF34: -0.001790107895 | BG34: -0.001868880781 | BH34: 0.005457365044 | BI34: 0.0001260753738 | BJ34: 0.0006863919654 | BK34: -0.0003495967986 | BL34: -0.0004283696851 | BM34: -2.024552581e-05 | BN34: 0.0005400710658 | BO34: -0.0004959176982 | BP34: -0.0002351392656 | BQ34: 0.000325177326 | BR34: 4.878909776e-19 | BT34: 150.2496994 | BV34: 4.584191871 | BX34: =BV34-CA3/$K$1 -> 2.249653351
A35: 6 | B35: 59.81283241 | D35: 3.796306199 | F35: 0 | G35: 0 | H35: 0 | I35: 0 | J35: 0 | K35: 44.53637179 | L35: 0 | M35: 0 | N35: 0 | O35: 0 | P35: 0 | Q35: 0 | R35: 0 | S35: 0 | T35: 0 | U35: 0 | V35: 0 | W35: 0 | Y35: 0 | Z35: 0 | AA35: 0 | AB35: 0 | AC35: 0 | AD35: 99.82637861 | AE35: 0 | AF35: 0 | AG35: 0 | AH35: 0 | AI35: 0 | AK35: 4.139317091 | AM35: =OFFSET(X29,A35,A35) -> 99.82637861 | AO35: 0 | AP35: 0 | AQ35: 0 | AR35: 0 | AS35: 0 | AT35: 0.01001739234 | AU35: 0 | AV35: 0 | AW35: 0 | AX35: 0 | AY35: 0 | BA35: 0 | BB35: 0 | BC35: 0 | BD35: 0.01001739234 | BE35: 0 | BF35: 0 | BG35: 0 | BH35: 0 | BI35: 0 | BJ35: 0 | BK35: 0 | BL35: 0 | BM35: 0 | BN35: 0 | BO35: 0 | BP35: 0 | BQ35: 0 | BR35: 0 | BT35: 184.3501649 | BV35: 4.603432463 | BX35: =BV35-CA3/$K$1 -> 2.268893942
A36: 7 | B36: 47.70160346 | D36: 3.918385294 | F36: 0 | G36: 0 | H36: 0 | I36: 0 | J36: 0 | K36: 0 | L36: 50.31912852 | M36: 0 | N36: 0 | O36: 0 | P36: 0 | Q36: 0 | R36: 0 | S36: 0 | T36: 0 | U36: 0 | V36: 0 | W36: 0 | Y36: 89.04132435 | Z36: 101.1808266 | AA36: 95.22879109 | AB36: 75.03555597 | AC36: 37.80056586 | AD36: 0 | AE36: 398.2870639 | AF36: 222.4997172 | AG36: 125.4233721 | AH36: 30.10622523 | AI36: 8.763808337 | AK36: 3.866366804 | AM36: =OFFSET(X29,A36,A36) -> 398.2870639 | AO36: -0.004870671856 | AP36: -0.006877848677 | AQ36: -0.003166709894 | AR36: -0.002884528152 | AS36: -0.002674115759 | AT36: 0 | AU36: 0.009579268663 | AV36: -0.005160226424 | AW36: 0.0005241535276 | AX36: 0.0007697964684 | AY36: -0.0008423203785 | BA36: -0.003166709894 | BB36: -0.002884528152 | BC36: -0.002674115759 | BD36: 0 | BE36: 0.002701419986 | BF36: 0.006412558769 | BG36: 0.006694740511 | BH36: 0.006905152904 | BI36: -0.0004516296175 | BJ36: -0.002458806438 | BK36: 0.001252332344 | BL36: 0.001534514086 | BM36: 7.252391012e-05 | BN36: -0.001934652911 | BO36: 0.001776485872 | BP36: 0.0008423203785 | BQ36: -0.001164856442 | BR36: -2.276824562e-18 | BT36: 194.5522081 | BV36: -0.9733304151 | BX36: =BV36-CA3/$K$1 -> -3.307868936
A37: 8 | B37: 32.54796615 | D37: 3.632324072 | F37: 0 | G37: 0 | H37: 0 | I37: 0 | J37: 0 | K37: 0 | L37: 0 | M37: 37.80056586 | N37: 0 | O37: 0 | P37: 0 | Q37: 0 | R37: 0 | S37: 0 | T37: 0 | U37: 0 | V37: 0 | W37: 0 | Y37: 89.04132435 | Z37: 58.04954605 | AA37: 50.69241931 | AB37: 24.71642745 | AC37: 0 | AD37: 0 | AE37: 222.4997172 | AF37: 222.4997172 | AG37: 125.4233721 | AH37: 30.10622523 | AI37: 8.763808337 | AK37: 3.493368488 | AM37: =OFFSET(X29,A37,A37) -> 222.4997172 | AO37: -0.007588234585 | AP37: -0.002153830985 | AQ37: -0.0008368842885 | AR37: -0.0003414277084 | AS37: 0.001440511096 | AT37: 0 | AU37: -0.005160226424 | AV37: 0.01849713486 | AW37: -0.009380858433 | AX37: 0.00135161376 | AY37: 0.002280570825 | BA37: -0.0008368842885 | BB37: -0.0003414277084 | BC37: 0.001440511096 | BD37: 0 | BE37: -0.00731405741 | BF37: -0.005997110713 | BG37: -0.005501654133 | BH37: -0.003719715328 | BI37: 0.005748673848 | BJ37: 0.01118307745 | BK37: 0.01250002414 | BL37: 0.01299548072 | BM37: -0.003632184585 | BN37: 0.001802219015 | BO37: 0.003119165711 | BP37: -0.002280570825 | BQ37: 0.003153832775 | BR37: 3.469446952e-18 | BT37: 132.0513056 | BV37: -0.773567469 | BX37: =BV37-CA3/$K$1 -> -3.10810599
A38: 9 | B38: 26.01136168 | D38: 3.377524002 | F38: 0 | G38: 0 | H38: 0 | I38: 0 | J38: 0 | K38: 0 | L38: 0 | M38: 0 | N38: 29.2981391 | O38: 0 | P38: 0 | Q38: 0 | R38: 0 | S38: 0 | T38: 0 | U38: 0 | V38: 0 | W38: 0 | Y38: 59.74318525 | Z38: 36.86374261 | AA38: 28.81644422 | AB38: 0 | AC38: 0 | AD38: 0 | AE38: 125.4233721 | AF38: 125.4233721 | AG38: 125.4233721 | AH38: 30.10622523 | AI38: 8.763808337 | AK38: 3.265340173 | AM38: =OFFSET(X29,A38,A38) -> 125.4233721 | AO38: -0.003334065213 | AP38: -0.002136258343 | AQ38: -0.0009370837069 | AR38: 0.0009393112034 | AS38: -0.0001463208996 | AT38: 0 | AU38: 0.0005241535276 | AV38: -0.009380858433 | AW38: 0.02160670401 | AX38: -0.009918598696 | AY38: 0.0005026648004 | BA38: -0.0009370837069 | BB38: 0.0009393112034 | BC38: -0.0001463208996 | BD38: 0 | BE38: -0.001612104815 | BF38: -0.0004129301793 | BG38: 0.001463464731 | BH38: 0.000377832628 | BI38: -0.01219077012 | BJ38: -0.01099296325 | BK38: -0.009793788612 | BL38: -0.007917393702 | BM38: 0.009415933895 | BN38: 0.01061374076 | BO38: 0.0118129154 | BP38: -0.0005026648004 | BQ38: 0.0006951420694 | BR38: -9.757819552e-19 | BT38: 95.66839061 | BV38: 0.2828636774 | BX38: =BV38-CA3/$K$1 -> -2.051674843
A39: 10 | B39: 25.09708468 | D39: 3.053331308 | F39: 0 | G39: 0 | H39: 0 | I39: 0 | J39: 0 | K39: 0 | L39: 0 | M39: 0 | N39: 0 | O39: 21.18580344 | P39: 0 | Q39: 0 | R39: 0 | S39: 0 | T39: 0 | U39: 0 | V39: 0 | W39: 0 | Y39: 21.14978827 | Z39: 8.956436968 | AA39: 0 | AB39: 0 | AC39: 0 | AD39: 0 | AE39: 30.10622523 | AF39: 30.10622523 | AG39: 30.10622523 | AH39: 30.10622523 | AI39: 8.763808337 | AK39: 3.237949336 | AM39: =OFFSET(X29,A39,A39) -> 30.10622523 | AO39: -0.004896564634 | AP39: -0.003137409254 | AQ39: 0.0006849373804 | AR39: -0.0004447915042 | AS39: -0.0002148937398 | AT39: 0 | AU39: 0.0007697964684 | AV39: 0.00135161376 | AW39: -0.009918598696 | AX39: 0.05881056548 | AY39: -0.04611681238 | BA39: 0.0006849373804 | BB39: -0.0004447915042 | BC39: -0.0002148937398 | BD39: 0 | BE39: -0.002367612785 | BF39: 0.001454733849 | BG39: 0.0003250049642 | BH39: 0.0005549027286 | BI39: -0.002775154405 | BJ39: -0.001015999025 | BK39: 0.002806347609 | BL39: 0.001676618724 | BM39: -0.0126937531 | BN39: -0.01093459772 | BO39: -0.007112251087 | BP39: 0.04611681238 | BQ39: 0.04787596776 | BR39: -6.938893904e-18 | BT39: 68.59855817 | BV39: -1.254424884 | BX39: =BV39-CA3/$K$1 -> -3.588963405
A40: 11 | B40: 28.59577687 | D40: 3.085389007 | F40: =IF($A40=F$4,IF($B40<0,-(EXP(-$D40)^(2-$H$1)),IF($B40=0,0,EXP($D40)^(2-$H$1))),0) -> 0 | G40: 0 | H40: 0 | I40: 0 | J40: 0 | K40: 0 | L40: 0 | M40: 0 | N40: 0 | O40: 0 | P40: =IF($A40=P$4,IF($B40<0,-(EXP(-$D40)^(2-$H$1)),IF($B40=0,0,EXP($D40)^(2-$H$1))),0) -> 21.87597509 | Q40: 0 | R40: 0 | S40: 0 | T40: 0 | U40: 0 | V40: 0 | W40: 0 | Y40: 8.763808337 | Z40: 0 | AA40: 0 | AB40: 0 | AC40: 0 | AD40: 0 | AE40: 8.763808337 | AF40: 8.763808337 | AG40: 8.763808337 | AH40: 8.763808337 | AI40: 8.763808337 | AK40: 3.392566253 | AM40: =OFFSET(X29,A40,A40) -> 8.763808337 | AO40: -0.007098909225 | AP40: 0.003432990224 | AQ40: -0.000237259983 | AR40: 3.335315155e-05 | AS40: 0.0002351392656 | AT40: 0 | AU40: -0.0008423203785 | AV40: 0.002280570825 | AW40: 0.0005026648004 | AX40: -0.04611681238 | AY40: 0.165380451 | BA40: -0.000237259983 | BB40: 3.335315155e-05 | BC40: 0.0002351392656 | BD40: 0 | BE40: 0.002590669845 | BF40: -0.001079580362 | BG40: -0.0008089672269 | BH40: -0.0006071811129 | BI40: -0.005660658779 | BJ40: 0.00487124067 | BK40: 0.001200990463 | BL40: 0.001471603598 | BM40: -0.005157993979 | BN40: 0.00537390547 | BO40: 0.001703655263 | BP40: -0.05127480636 | BQ40: -0.04074290691 | BR40: 0.1141056447 | BT40: 74.21569484 | BV40: -0.2424093384 | BX40: =BV40-CA3/$K$1 -> -2.576947859
A41: 12 | B41: 11.42263549 | D41: 3.207468101 | F41: 0 | G41: 0 | H41: 0 | I41: 0 | J41: 0 | K41: 0 | L41: 0 | M41: 0 | N41: 0 | O41: 0 | P41: 0 | Q41: 24.71642745 | R41: 0 | S41: 0 | T41: 0 | U41: 0 | V41: 0 | W41: 0 | AK41: 2.669615615 | BT41: 65.98336067
A42: 13 | B42: 38.40408185 | D42: 3.653081199 | F42: 0 | G42: 0 | H42: 0 | I42: 0 | J42: 0 | K42: 0 | L42: 0 | M42: 0 | N42: 0 | O42: 0 | P42: 0 | Q42: 0 | R42: 38.59339699 | S42: 0 | T42: 0 | U42: 0 | V42: 0 | W42: 0 | AK42: 3.648175823 | BT42: 140.7954978
A43: 14 | B43: 36.06948022 | D43: 3.328888505 | F43: 0 | G43: 0 | H43: 0 | I43: 0 | J43: 0 | K43: 0 | L43: 0 | M43: 0 | N43: 0 | O43: 0 | P43: 0 | Q43: 0 | R43: 0 | S43: 27.90730564 | T43: 0 | U43: 0 | V43: 0 | W43: 0 | AK43: 3.621362981 | BT43: 101.0624835
A44: 15 | B44: 16.79923195 | D44: 3.360946204 | F44: 0 | G44: 0 | H44: 0 | I44: 0 | J44: 0 | K44: 0 | L44: 0 | M44: 0 | N44: 0 | O44: 0 | P44: 0 | Q44: 0 | R44: 0 | S44: 0 | T44: 28.81644422 | U44: 0 | V44: 0 | W44: 0 | AK44: 2.943920003 | BT44: 84.83330654
A45: 16 | B45: 15.34226703 | D45: 2.516565182 | F45: 0 | G45: 0 | H45: 0 | I45: 0 | J45: 0 | K45: 0 | L45: 0 | M45: 0 | N45: 0 | O45: 0 | P45: 0 | Q45: 0 | R45: 0 | S45: 0 | T45: 0 | U45: 12.38597993 | V45: 0 | W45: 0 | AK45: 2.755245296 | BT45: 34.12641293
A46: 17 | B46: 3.030154519 | D46: 2.192372488 | F46: 0 | G46: 0 | H46: 0 | I46: 0 | J46: 0 | K46: 0 | L46: 0 | M46: 0 | N46: 0 | O46: 0 | P46: 0 | Q46: 0 | R46: 0 | S46: 0 | T46: 0 | U46: 0 | V46: 8.956436968 | W46: 0 | AK46: 1.530693913 | BT46: 13.70956355
A47: 18 | B47: 8.763808337 | D47: 2.170630552 | F47: 0 | G47: 0 | H47: 0 | I47: 0 | J47: 0 | K47: 0 | L47: 0 | M47: 0 | N47: 0 | O47: 0 | P47: 0 | Q47: 0 | R47: 0 | S47: 0 | T47: 0 | U47: 0 | V47: 0 | W47: 8.763808337 | AK47: 2.170630552 | BT47: 19.02299013
A48: 19
A49: 20
A50: 21
A52: Newton-Raphson Interation Sequence -- Iteration 3
B53: y(i) | D53: xb(i) | F53: W(i,i) | Y53: XWX | AK53: zz(i) | AM53: factor | AO53: xwx-1 | BA53: aa1(i,j) | BT53: aa2(j) | BV53: beta(j) | BX53: beta_diff = | BY53: =SUM(BX55:BX65) -> 0.0004613646057 | BZ53: beta_old = | CA53: =SUM(BV55:BV65) -> 25.67404809
B54: 1 | D54: 1 | F54: 1 | G54: 2 | H54: 3 | I54: 4 | J54: 5 | K54: 6 | L54: 7 | M54: 8 | N54: 9 | O54: 10 | P54: 11 | Q54: 12 | R54: 13 | S54: 14 | T54: 15 | U54: 16 | V54: 17 | W54: 18 | Y54: 1 | Z54: 2 | AA54: 3 | AB54: 4 | AC54: 5 | AD54: 6 | AE54: 7 | AF54: 8 | AG54: 9 | AH54: 10 | AI54: 11 | AK54: 1 | AO54: 1 | AP54: 2 | AQ54: 3 | AR54: 4 | AS54: 5 | AT54: 6 | AU54: 7 | AV54: 8 | AW54: 9 | AX54: 10 | AY54: 11 | BA54: 1 | BB54: 2 | BC54: 3 | BD54: 4 | BE54: 5 | BF54: 6 | BG54: 7 | BH54: 8 | BI54: 9 | BJ54: 10 | BK54: 11 | BL54: 12 | BM54: 13 | BN54: 14 | BO54: 15 | BP54: 16 | BQ54: 17 | BR54: 18
A55: 1 | B55: =B30 -> 97.33577837 | D55: =MMULT(DesignMatrix,BV30:BV40) -> 4.73367194 | F55: =IF($A55=F$4,IF($B55<0,-(EXP(-$D55)^(2-$H$1)),IF($B55=0,0,EXP($D55)^(2-$H$1))),0) -> 113.7123416 | G55: 0 | H55: 0 | I55: 0 | J55: 0 | K55: 0 | L55: 0 | M55: 0 | N55: 0 | O55: 0 | P55: =IF($A55=P$4,IF($B55<0,-(EXP(-$D55)^(2-$H$1)),IF($B55=0,0,EXP($D55)^(2-$H$1))),0) -> 0 | Q55: 0 | R55: 0 | S55: 0 | T55: 0 | U55: 0 | V55: 0 | W55: 0 | Y55: =MMULT(TRANSPOSE(DesignMatrix),MMULT(F55:W72,DesignMatrix)) -> 88.5904067 | Z55: 0 | AA55: 0 | AB55: 0 | AC55: 0 | AD55: 0 | AE55: 88.5904067 | AF55: 88.5904067 | AG55: 59.08418646 | AH55: 19.931667 | AI55: 8.763808337 | AK55: =IF(B55<0,D55+(B55+EXP(-D55))/-EXP(-D55),IF(B55=0,0,D55+(B55-EXP(D55))/EXP(D55))) -> 4.589654475 | AM55: =OFFSET(X54,A55,A55) -> 88.5904067 | AO55: =MINVERSE(Y55:AI65) -> 0.02873663449 | AP55: 0.01122005958 | AQ55: 0.004539435844 | AR55: 0.002712746386 | AS55: 0.001368988717 | AT55: 0 | AU55: -0.004992352152 | AV55: -0.00834180934 | AW55: -0.003463189375 | AX55: -0.004947951835 | AY55: -0.006991331785 | BA55: =MMULT(AO55:AY65,TRANSPOSE(DesignMatrix)) -> 0.004539435844 | BB55: 0.002712746386 | BC55: 0.001368988717 | BD55: 0 | BE55: 0.00622770743 | BF55: -0.0004529163077 | BG55: -0.002279605765 | BH55: -0.003623363434 | BI55: 0.015402473 | BJ55: -0.00211410191 | BK55: -0.008794725648 | BL55: -0.01062141511 | BM55: 0.01193928362 | BN55: -0.005577291285 | BO55: -0.01225791502 | BP55: 0.006991331785 | BQ55: -0.01052524312 | BR55: 3.469446952e-18 | BT55: =MMULT(F55:W72,AK55:AK72) -> 521.9003575 | BV55: =MMULT(BA55:BR65,BT55:BT72) -> 5.136588327 | BX55: =BV55-CA28/$K$1 -> 2.802625897
A56: 2 | B56: =B31 -> 140.8536352 | D56: 4.859266335 | F56: 0 | G56: 128.9295763 | H56: 0 | I56: 0 | J56: 0 | K56: 0 | L56: 0 | M56: 0 | N56: 0 | O56: 0 | P56: 0 | Q56: 0 | R56: 0 | S56: 0 | T56: 0 | U56: 0 | V56: 0 | W56: 0 | Y56: 0 | Z56: 95.50562053 | AA56: 0 | AB56: 0 | AC56: 0 | AD56: 0 | AE56: 95.50562053 | AF56: 53.02435565 | AG56: 33.42501973 | AH56: 7.418185439 | AI56: 0 | AK56: =IF(B56<0,D56+(B56+EXP(-D56))/-EXP(-D56),IF(B56=0,0,D56+(B56-EXP(D56))/EXP(D56))) -> 4.95175139 | AM56: =OFFSET(X54,A56,A56) -> 95.50562053 | AO56: 0.01122005958 | AP56: 0.01987619394 | AQ56: 0.003936809434 | AR56: 0.002796776523 | AS56: 0.001958140289 | AT56: 0 | AU56: -0.007140837439 | AV56: -0.002284741111 | AW56: -0.002161368944 | AX56: -0.003088005961 | AY56: 0.003454893872 | BA56: 0.003936809434 | BB56: 0.002796776523 | BC56: 0.001958140289 | BD56: 0 | BE56: 0.0127353565 | BF56: -0.003204028005 | BG56: -0.004344060916 | BH56: -0.00518269715 | BI56: 0.001794481032 | BJ56: 0.01045061539 | BK56: -0.005488769116 | BL56: -0.006628802027 | BM56: -0.0003668879115 | BN56: 0.00828924645 | BO56: -0.00765013806 | BP56: -0.003454893872 | BQ56: 0.005201240489 | BR56: 1.301042607e-18 | BT56: 638.4272086 | BV56: 4.722943026 | BX56: =BV56-CA28/$K$1 -> 2.388980596
A57: 3 | B57: 102.3648145 | D57: 4.584191871 | F57: 0 | G57: 0 | H57: 97.92401995 | I57: 0 | J57: 0 | K57: 0 | L57: 0 | M57: 0 | N57: 0 | O57: 0 | P57: 0 | Q57: 0 | R57: 0 | S57: 0 | T57: 0 | U57: 0 | V57: 0 | W57: 0 | Y57: 0 | Z57: 0 | AA57: 202.7988832 | AB57: 0 | AC57: 0 | AD57: 0 | AE57: 89.08654156 | AF57: 46.12344511 | AG57: 26.30180935 | AH57: 0 | AI57: 0 | AK57: 4.629541261 | AM57: =OFFSET(X54,A57,A57) -> 202.7988832 | AO57: 0.004539435844 | AP57: 0.003936809434 | AQ57: 0.006646980045 | AR57: 0.001230450323 | AS57: 0.0008732780347 | AT57: 0 | AU57: -0.003184621918 | AV57: -0.0008690123969 | AW57: -0.0009205196019 | AX57: 0.0006752423308 | AY57: -0.0002405242577 | BA57: 0.006646980045 | BB57: 0.001230450323 | BC57: 0.0008732780347 | BD57: 0 | BE57: 0.0007521875155 | BF57: 0.003462358127 | BG57: -0.001954171595 | BH57: -0.002311343884 | BI57: 0.0004858015287 | BJ57: -0.0001168248814 | BK57: 0.00259334573 | BL57: -0.002823183992 | BM57: -0.0004347180731 | BN57: -0.001037344483 | BO57: 0.001672826128 | BP57: 0.0002405242577 | BQ57: -0.0003621021525 | BR57: -1.897353802e-19 | BT57: 453.3432908 | BV57: 4.733548665 | BX57: =BV57-CA28/$K$1 -> 2.399586235
A58: 4 | B58: 99.82637861 | D58: 4.603432463 | F58: 0 | G58: 0 | H58: 0 | I58: 99.82637861 | J58: 0 | K58: 0 | L58: 0 | M58: 0 | N58: 0 | O58: 0 | P58: 0 | Q58: 0 | R58: 0 | S58: 0 | T58: 0 | U58: 0 | V58: 0 | W58: 0 | Y58: 0 | Z58: 0 | AA58: 0 | AB58: 200.1162989 | AC58: 0 | AD58: 0 | AE58: 71.18672262 | AF58: 22.47421048 | AG58: 0 | AH58: 0 | AI58: 0 | AK58: 4.603432463 | AM58: =OFFSET(X54,A58,A58) -> 200.1162989 | AO58: 0.002712746386 | AP58: 0.002796776523 | AQ58: 0.001230450323 | AR58: 0.006066613426 | AS58: 0.0007956854104 | AT58: 0 | AU58: -0.002901661438 | AV58: -0.0003323123559 | AW58: 0.000923602682 | AX58: -0.0004359139412 | AY58: 3.353866658e-05 | BA58: 0.001230450323 | BB58: 0.006066613426 | BC58: 0.0007956854104 | BD58: 0 | BE58: -0.0001048849149 | BF58: -0.001671211115 | BG58: 0.003164951988 | BH58: -0.002105976028 | BI58: -0.0005212274074 | BJ58: -0.0004371972707 | BK58: -0.002003523471 | BL58: 0.002832639633 | BM58: 0.0004023752746 | BN58: 0.0004864054113 | BO58: -0.001079920789 | BP58: -3.353866658e-05 | BQ58: 5.049147008e-05 | BR58: 2.032879073e-19 | BT58: 459.543992 | BV58: 4.859229664 | BX58: =BV58-CA28/$K$1 -> 2.525267234
A59: 5 | B59: 31.02412187 | D59: 3.749063153 | F59: 0 | G59: 0 | H59: 0 | I59: 0 | J59: 42.48126489 | K59: 0 | L59: 0 | M59: 0 | N59: 0 | O59: 0 | P59: 0 | Q59: 0 | R59: 0 | S59: 0 | T59: 0 | U59: 0 | V59: 0 | W59: 0 | Y59: 0 | Z59: 0 | AA59: 0 | AB59: 0 | AC59: 134.9219311 | AD59: 0 | AE59: 36.99791117 | AF59: 0 | AG59: 0 | AH59: 0 | AI59: 0 | AK59: 3.479364427 | AM59: =OFFSET(X54,A59,A59) -> 134.9219311 | AO59: 0.001368988717 | AP59: 0.001958140289 | AQ59: 0.0008732780347 | AR59: 0.0007956854104 | AS59: 0.008150299869 | AT59: 0 | AU59: -0.002693508753 | AV59: 0.001446655538 | AW59: -0.0001471065325 | AX59: -0.0002101750608 | AY59: 0.0002351460907 | BA59: 0.0008732780347 | BB59: 0.0007956854104 | BC59: 0.008150299869 | BD59: 0 | BE59: -0.0007353684634 | BF59: -0.001820230718 | BG59: -0.001897823343 | BH59: 0.005456791116 | BI59: 0.0001221355026 | BJ59: 0.0007112870747 | BK59: -0.0003735751801 | BL59: -0.0004511678044 | BM59: -2.497102989e-05 | BN59: 0.0005641805422 | BO59: -0.0005206817126 | BP59: -0.0002351460907 | BQ59: 0.0003540054813 | BR59: -4.33680869e-19 | BT59: 147.8078018 | BV59: 4.584263724 | BX59: =BV59-CA28/$K$1 -> 2.250301294
A60: 6 | B60: 59.81283241 | D60: 3.760341525 | F60: 0 | G60: 0 | H60: 0 | I60: 0 | J60: 0 | K60: 42.96309645 | L60: 0 | M60: 0 | N60: 0 | O60: 0 | P60: 0 | Q60: 0 | R60: 0 | S60: 0 | T60: 0 | U60: 0 | V60: 0 | W60: 0 | Y60: 0 | Z60: 0 | AA60: 0 | AB60: 0 | AC60: 0 | AD60: 99.82637861 | AE60: 0 | AF60: 0 | AG60: 0 | AH60: 0 | AI60: 0 | AK60: 4.152532437 | AM60: =OFFSET(X54,A60,A60) -> 99.82637861 | AO60: 0 | AP60: 0 | AQ60: 0 | AR60: 0 | AS60: 0 | AT60: 0.01001739234 | AU60: 0 | AV60: 0 | AW60: 0 | AX60: 0 | AY60: 0 | BA60: 0 | BB60: 0 | BC60: 0 | BD60: 0.01001739234 | BE60: 0 | BF60: 0 | BG60: 0 | BH60: 0 | BI60: 0 | BJ60: 0 | BK60: 0 | BL60: 0 | BM60: 0 | BN60: 0 | BO60: 0 | BP60: 0 | BQ60: 0 | BR60: 0 | BT60: 178.4056516 | BV60: 4.603432463 | BX60: =BV60-CA28/$K$1 -> 2.269470033
A61: 7 | B61: 47.70160346 | D61: 3.88593592 | F61: 0 | G61: 0 | H61: 0 | I61: 0 | J61: 0 | K61: 0 | L61: 48.71251214 | M61: 0 | N61: 0 | O61: 0 | P61: 0 | Q61: 0 | R61: 0 | S61: 0 | T61: 0 | U61: 0 | V61: 0 | W61: 0 | Y61: 88.5904067 | Z61: 95.50562053 | AA61: 89.08654156 | AB61: 71.18672262 | AC61: 36.99791117 | AD61: 0 | AE61: 381.3672026 | AF61: 210.2124179 | AG61: 118.8110155 | AH61: 27.34985244 | AI61: 8.763808337 | AK61: 3.865183373 | AM61: =OFFSET(X54,A61,A61) -> 381.3672026 | AO61: -0.004992352152 | AP61: -0.007140837439 | AQ61: -0.003184621918 | AR61: -0.002901661438 | AS61: -0.002693508753 | AT61: 0 | AU61: 0.009822538379 | AV61: -0.005275583207 | AW61: 0.0005364599465 | AX61: 0.0007664547588 | AY61: -0.0008575177261 | BA61: -0.003184621918 | BB61: -0.002901661438 | BC61: -0.002693508753 | BD61: 0 | BE61: 0.00268170094 | BF61: 0.006637916461 | BG61: 0.006920876941 | BH61: 0.007129029626 | BI61: -0.0004453969792 | BJ61: -0.002593882267 | BK61: 0.001362333254 | BL61: 0.001645293734 | BM61: 9.106296728e-05 | BN61: -0.00205742232 | BO61: 0.001898793201 | BP61: 0.0008575177261 | BQ61: -0.001290967562 | BR61: 9.757819552e-19 | BT61: 188.282792 | BV61: -0.9738397682 | BX61: =BV61-CA28/$K$1 -> -3.307802198
A62: 8 | B62: 32.54796615 | D62: 3.610861456 | F62: 0 | G62: 0 | H62: 0 | I62: 0 | J62: 0 | K62: 0 | L62: 0 | M62: 36.99791117 | N62: 0 | O62: 0 | P62: 0 | Q62: 0 | R62: 0 | S62: 0 | T62: 0 | U62: 0 | V62: 0 | W62: 0 | Y62: 88.5904067 | Z62: 53.02435565 | AA62: 46.12344511 | AB62: 22.47421048 | AC62: 0 | AD62: 0 | AE62: 210.2124179 | AF62: 210.2124179 | AG62: 118.8110155 | AH62: 27.34985244 | AI62: 8.763808337 | AK62: 3.490585882 | AM62: =OFFSET(X54,A62,A62) -> 210.2124179 | AO62: -0.00834180934 | AP62: -0.002284741111 | AQ62: -0.0008690123969 | AR62: -0.0003323123559 | AS62: 0.001446655538 | AT62: 0 | AU62: -0.005275583207 | AV62: 0.0196693271 | AW62: -0.009923230718 | AX62: 0.001453758844 | AY62: 0.002417537325 | BA62: -0.0008690123969 | BB62: -0.0003323123559 | BC62: 0.001446655538 | BD62: 0 | BE62: -0.007560324318 | BF62: -0.006144595604 | BG62: -0.005607895563 | BH62: -0.003828927669 | BI62: 0.006051934549 | BJ62: 0.01210900278 | BK62: 0.01352473149 | BL62: 0.01406143153 | BM62: -0.003871296169 | BN62: 0.002185772061 | BO62: 0.003601500775 | BP62: -0.002417537325 | BQ62: 0.003639530905 | BR62: -2.602085214e-18 | BT62: 129.1443864 | BV62: -0.7777868439 | BX62: =BV62-CA28/$K$1 -> -3.111749274
A63: 9 | B63: 26.01136168 | D63: 3.384601097 | F63: 0 | G63: 0 | H63: 0 | I63: 0 | J63: 0 | K63: 0 | L63: 0 | M63: 0 | N63: 29.50622024 | O63: 0 | P63: 0 | Q63: 0 | R63: 0 | S63: 0 | T63: 0 | U63: 0 | V63: 0 | W63: 0 | Y63: 59.08418646 | Z63: 33.42501973 | AA63: 26.30180935 | AB63: 0 | AC63: 0 | AD63: 0 | AE63: 118.8110155 | AF63: 118.8110155 | AG63: 118.8110155 | AH63: 27.34985244 | AI63: 8.763808337 | AK63: 3.26615629 | AM63: =OFFSET(X54,A63,A63) -> 118.8110155 | AO63: -0.003463189375 | AP63: -0.002161368944 | AQ63: -0.0009205196019 | AR63: 0.000923602682 | AS63: -0.0001471065325 | AT63: 0 | AU63: 0.0005364599465 | AV63: -0.009923230718 | AW63: 0.02268218757 | AX63: -0.01035181865 | AY63: 0.0005195912219 | BA63: -0.0009205196019 | BB63: 0.000923602682 | BC63: -0.0001471065325 | BD63: 0 | BE63: -0.001624908997 | BF63: -0.0003840596554 | BG63: 0.001460062629 | BH63: 0.000389353414 | BI63: -0.01284996015 | BJ63: -0.01154813972 | BK63: -0.01030729037 | BL63: -0.00846316809 | BM63: 0.009832227425 | BN63: 0.01113404786 | BO63: 0.0123748972 | BP63: -0.0005195912219 | BQ63: 0.0007822292092 | BR63: 4.662069342e-18 | BT63: 96.37192683 | BV63: 0.2832334287 | BX63: =BV63-CA28/$K$1 -> -2.050729001
A64: 10 | B64: 25.09708468 | D64: 2.975495684 | F64: 0 | G64: 0 | H64: 0 | I64: 0 | J64: 0 | K64: 0 | L64: 0 | M64: 0 | N64: 0 | O64: 19.59933591 | P64: 0 | Q64: 0 | R64: 0 | S64: 0 | T64: 0 | U64: 0 | V64: 0 | W64: 0 | Y64: 19.931667 | Z64: 7.418185439 | AA64: 0 | AB64: 0 | AC64: 0 | AD64: 0 | AE64: 27.34985244 | AF64: 27.34985244 | AG64: 27.34985244 | AH64: 27.34985244 | AI64: 8.763808337 | AK64: 3.256002574 | AM64: =OFFSET(X54,A64,A64) -> 27.34985244 | AO64: -0.004947951835 | AP64: -0.003088005961 | AQ64: 0.0006752423308 | AR64: -0.0004359139412 | AS64: -0.0002101750608 | AT64: 0 | AU64: 0.0007664547588 | AV64: 0.001453758844 | AW64: -0.01035181865 | AX64: 0.0661410137 | AY64: -0.05306145682 | BA64: 0.0006752423308 | BB64: -0.0004359139412 | BC64: -0.0002101750608 | BD64: 0 | BE64: -0.002321551202 | BF64: 0.00144169709 | BG64: 0.0003305408176 | BH64: 0.000556279698 | BI64: -0.002727738233 | BJ64: -0.0008677923581 | BK64: 0.002895455933 | BL64: 0.001784299661 | BM64: -0.01307955688 | BN64: -0.011219611 | BO64: -0.007456362713 | BP64: 0.05306145682 | BQ64: 0.05492140269 | BR64: -6.938893904e-18 | BT64: 63.81548817 | BV64: -1.26483697 | BX64: =BV64-CA28/$K$1 -> -3.5987994
A65: 11 | B65: 28.59577687 | D65: 2.986774056 | F65: =IF($A65=F$4,IF($B65<0,-(EXP(-$D65)^(2-$H$1)),IF($B65=0,0,EXP($D65)^(2-$H$1))),0) -> 0 | G65: 0 | H65: 0 | I65: 0 | J65: 0 | K65: 0 | L65: 0 | M65: 0 | N65: 0 | O65: 0 | P65: =IF($A65=P$4,IF($B65<0,-(EXP(-$D65)^(2-$H$1)),IF($B65=0,0,EXP($D65)^(2-$H$1))),0) -> 19.82163576 | Q65: 0 | R65: 0 | S65: 0 | T65: 0 | U65: 0 | V65: 0 | W65: 0 | Y65: 8.763808337 | Z65: 0 | AA65: 0 | AB65: 0 | AC65: 0 | AD65: 0 | AE65: 8.763808337 | AF65: 8.763808337 | AG65: 8.763808337 | AH65: 8.763808337 | AI65: 8.763808337 | AK65: 3.429428801 | AM65: =OFFSET(X54,A65,A65) -> 8.763808337 | AO65: -0.006991331785 | AP65: 0.003454893872 | AQ65: -0.0002405242577 | AR65: 3.353866658e-05 | AS65: 0.0002351460907 | AT65: 0 | AU65: -0.0008575177261 | AV65: 0.002417537325 | AW65: 0.0005195912219 | AX65: -0.05306145682 | AY65: 0.1720788224 | BA65: -0.0002405242577 | BB65: 3.353866658e-05 | BC65: 0.0002351460907 | BD65: 0 | BE65: 0.002597376146 | BF65: -0.001098041984 | BG65: -0.0008239790595 | BH65: -0.0006223716354 | BI65: -0.005431312187 | BJ65: 0.005014913471 | BK65: 0.001319495341 | BL65: 0.001593558265 | BM65: -0.004911720965 | BN65: 0.005534504693 | BO65: 0.001839086563 | BP65: -0.05797317778 | BQ65: -0.04752695212 | BR65: 0.1141056447 | BT65: 67.97688854 | BV65: -0.232727621 | BX65: =BV65-CA28/$K$1 -> -2.566690051
A66: 12 | B66: 11.42263549 | D66: 3.112368451 | F66: 0 | G66: 0 | H66: 0 | I66: 0 | J66: 0 | K66: 0 | L66: 0 | M66: 0 | N66: 0 | O66: 0 | P66: 0 | Q66: 22.47421048 | R66: 0 | S66: 0 | T66: 0 | U66: 0 | V66: 0 | W66: 0 | AK66: 2.620623702 | BT66: 58.89644867
A67: 13 | B67: 38.40408185 | D67: 3.667464774 | F67: 0 | G67: 0 | H67: 0 | I67: 0 | J67: 0 | K67: 0 | L67: 0 | M67: 0 | N67: 0 | O67: 0 | P67: 0 | Q67: 0 | R67: 39.15251945 | S67: 0 | T67: 0 | U67: 0 | V67: 0 | W67: 0 | AK67: 3.648348824 | BT67: 142.8420483
A68: 14 | B68: 36.06948022 | D68: 3.258359361 | F68: 0 | G68: 0 | H68: 0 | I68: 0 | J68: 0 | K68: 0 | L68: 0 | M68: 0 | N68: 0 | O68: 0 | P68: 0 | Q68: 0 | R68: 0 | S68: 26.0068343 | T68: 0 | U68: 0 | V68: 0 | W68: 0 | AK68: 3.645282499 | BT68: 94.8022579
A69: 15 | B69: 16.79923195 | D69: 3.269637733 | F69: 0 | G69: 0 | H69: 0 | I69: 0 | J69: 0 | K69: 0 | L69: 0 | M69: 0 | N69: 0 | O69: 0 | P69: 0 | Q69: 0 | R69: 0 | S69: 0 | T69: 26.30180935 | U69: 0 | V69: 0 | W69: 0 | AK69: 2.908347859 | BT69: 76.49481092
A70: 16 | B70: 15.34226703 | D70: 2.413039891 | F70: 0 | G70: 0 | H70: 0 | I70: 0 | J70: 0 | K70: 0 | L70: 0 | M70: 0 | N70: 0 | O70: 0 | P70: 0 | Q70: 0 | R70: 0 | S70: 0 | T70: 0 | U70: 11.16785866 | V70: 0 | W70: 0 | AK70: 2.786827605 | BT70: 31.12289681
A71: 17 | B71: 3.030154519 | D71: 2.003934477 | F71: 0 | G71: 0 | H71: 0 | I71: 0 | J71: 0 | K71: 0 | L71: 0 | M71: 0 | N71: 0 | O71: 0 | P71: 0 | Q71: 0 | R71: 0 | S71: 0 | T71: 0 | U71: 0 | V71: 7.418185439 | W71: 0 | AK71: 1.41241099 | BT71: 10.47752664
A72: 18 | B72: 8.763808337 | D72: 2.170630552 | F72: 0 | G72: 0 | H72: 0 | I72: 0 | J72: 0 | K72: 0 | L72: 0 | M72: 0 | N72: 0 | O72: 0 | P72: 0 | Q72: 0 | R72: 0 | S72: 0 | T72: 0 | U72: 0 | V72: 0 | W72: 8.763808337 | AK72: 2.170630552 | BT72: 19.02299013
A73: 19
A74: 20
A75: 21
A77: Newton-Raphson Interation Sequence -- Iteration 4
B78: y(i) | D78: xb(i) | F78: W(i,i) | Y78: XWX | AK78: zz(i) | AM78: factor | AO78: xwx-1 | BA78: aa1(i,j) | BT78: aa2(j) | BV78: beta(j) | BX78: beta_diff = | BY78: =SUM(BX80:BX90) -> -3.96631104e-07 | BZ78: beta_old = | CA78: =SUM(BV80:BV90) -> 25.6740477
B79: 1 | D79: 1 | F79: 1 | G79: 2 | H79: 3 | I79: 4 | J79: 5 | K79: 6 | L79: 7 | M79: 8 | N79: 9 | O79: 10 | P79: 11 | Q79: 12 | R79: 13 | S79: 14 | T79: 15 | U79: 16 | V79: 17 | W79: 18 | Y79: 1 | Z79: 2 | AA79: 3 | AB79: 4 | AC79: 5 | AD79: 6 | AE79: 7 | AF79: 8 | AG79: 9 | AH79: 10 | AI79: 11 | AK79: 1 | AO79: 1 | AP79: 2 | AQ79: 3 | AR79: 4 | AS79: 5 | AT79: 6 | AU79: 7 | AV79: 8 | AW79: 9 | AX79: 10 | AY79: 11 | BA79: 1 | BB79: 2 | BC79: 3 | BD79: 4 | BE79: 5 | BF79: 6 | BG79: 7 | BH79: 8 | BI79: 9 | BJ79: 10 | BK79: 11 | BL79: 12 | BM79: 13 | BN79: 14 | BO79: 15 | BP79: 16 | BQ79: 17 | BR79: 18
A80: 1 | B80: =B55 -> 97.33577837 | D80: =MMULT(DesignMatrix,BV55:BV65) -> 4.733548665 | F80: =IF($A80=F$4,IF($B80<0,-(EXP(-$D80)^(2-$H$1)),IF($B80=0,0,EXP($D80)^(2-$H$1))),0) -> 113.6983246 | G80: 0 | H80: 0 | I80: 0 | J80: 0 | K80: 0 | L80: 0 | M80: 0 | N80: 0 | O80: 0 | P80: =IF($A80=P$4,IF($B80<0,-(EXP(-$D80)^(2-$H$1)),IF($B80=0,0,EXP($D80)^(2-$H$1))),0) -> 0 | Q80: 0 | R80: 0 | S80: 0 | T80: 0 | U80: 0 | V80: 0 | W80: 0 | Y80: =MMULT(TRANSPOSE(DesignMatrix),MMULT(F80:W97,DesignMatrix)) -> 88.52205299 | Z80: 0 | AA80: 0 | AB80: 0 | AC80: 0 | AD80: 0 | AE80: 88.52205299 | AF80: 88.52205299 | AG80: 59.00519036 | AH80: 19.82406468 | AI80: 8.763808337 | AK80: =IF(B80<0,D80+(B80+EXP(-D80))/-EXP(-D80),IF(B80=0,0,D80+(B80-EXP(D80))/EXP(D80))) -> 4.589636727 | AM80: =OFFSET(X79,A80,A80) -> 88.52205299 | AO80: =MINVERSE(Y80:AI90) -> 0.02878832108 | AP80: 0.01122911549 | AQ80: 0.004539913425 | AR80: 0.002712555937 | AS80: 0.001369367308 | AT80: 0 | AU80: -0.004995579328 | AV80: -0.008382727723 | AW80: -0.003469520603 | AX80: -0.004951255868 | AY80: -0.006989237561 | BA80: =MMULT(AO80:AY90,TRANSPOSE(DesignMatrix)) -> 0.004539913425 | BB80: 0.002712555937 | BC80: 0.001369367308 | BD80: 0 | BE80: 0.00623353616 | BF80: -0.0004556659031 | BG80: -0.002283023391 | BH80: -0.003626212019 | BI80: 0.01541001403 | BJ80: -0.002149191563 | BK80: -0.008838393626 | BL80: -0.01066575111 | BM80: 0.01194049343 | BN80: -0.005618712165 | BO80: -0.01230791423 | BP80: 0.006989237561 | BQ80: -0.01056996803 | BR80: -3.469446952e-18 | BT80: =MMULT(F80:W97,AK80:AK97) -> 521.8340062 | BV80: =MMULT(BA80:BR90,BT80:BT97) -> 5.136601896 | BX80: =BV80-CA53/$K$1 -> 2.802597524
A81: 2 | B81: =B56 -> 140.8536352 | D81: 4.859229664 | F81: 0 | G81: 128.9248484 | H81: 0 | I81: 0 | J81: 0 | K81: 0 | L81: 0 | M81: 0 | N81: 0 | O81: 0 | P81: 0 | Q81: 0 | R81: 0 | S81: 0 | T81: 0 | U81: 0 | V81: 0 | W81: 0 | Y81: 0 | Z81: 95.22194735 | AA81: 0 | AB81: 0 | AC81: 0 | AD81: 0 | AE81: 95.22194735 | AF81: 52.73897873 | AG81: 33.22138281 | AH81: 7.31343357 | AI81: 0 | AK81: =IF(B81<0,D81+(B81+EXP(-D81))/-EXP(-D81),IF(B81=0,0,D81+(B81-EXP(D81))/EXP(D81))) -> 4.951754782 | AM81: =OFFSET(X79,A81,A81) -> 95.22194735 | AO81: 0.01122911549 | AP81: 0.01991171653 | AQ81: 0.003935153473 | AR81: 0.002796973668 | AS81: 0.001960361138 | AT81: 0 | AU81: -0.007151579796 | AV81: -0.002288616451 | AW81: -0.002161010262 | AX81: -0.003083917338 | AY81: 0.003456008359 | BA81: 0.003935153473 | BB81: 0.002796973668 | BC81: 0.001960361138 | BD81: 0 | BE81: 0.01276013673 | BF81: -0.003216426323 | BG81: -0.004354606128 | BH81: -0.005191218658 | BI81: 0.00178891924 | BJ81: 0.01047152028 | BK81: -0.005505042774 | BL81: -0.006643222579 | BM81: -0.0003720910218 | BN81: 0.008310510019 | BO81: -0.007666053036 | BP81: -0.003456008359 | BQ81: 0.005226592681 | BR81: 4.770489559e-18 | BT81: 638.4042347 | BV81: 4.722942641 | BX81: =BV81-CA53/$K$1 -> 2.388938269
A82: 3 | B82: 102.3648145 | D82: 4.584263724 | F82: 0 | G82: 0 | H82: 97.93105631 | I82: 0 | J82: 0 | K82: 0 | L82: 0 | M82: 0 | N82: 0 | O82: 0 | P82: 0 | Q82: 0 | R82: 0 | S82: 0 | T82: 0 | U82: 0 | V82: 0 | W82: 0 | Y82: 0 | Z82: 0 | AA82: 202.5441258 | AB82: 0 | AC82: 0 | AD82: 0 | AE82: 88.84580127 | AF82: 45.90987589 | AG82: 26.18418183 | AH82: 0 | AI82: 0 | AK82: 4.629538005 | AM82: =OFFSET(X79,A82,A82) -> 202.5441258 | AO82: 0.004539913425 | AP82: 0.003935153473 | AQ82: 0.006650062411 | AR82: 0.001228744449 | AS82: 0.0008728932074 | AT82: 0 | AU82: -0.003184395623 | AV82: -0.0008700284788 | AW82: -0.0009191808121 | AX82: 0.0006744091538 | AY82: -0.0002407176648 | BA82: 0.006650062411 | BB82: 0.001228744449 | BC82: 0.0008728932074 | BD82: 0 | BE82: 0.0007507578506 | BF82: 0.003465666788 | BG82: -0.001955651174 | BH82: -0.002311502415 | BI82: 0.0004854893232 | BJ82: -0.0001192706282 | BK82: 0.002595638309 | BL82: -0.002825679652 | BM82: -0.000433691489 | BN82: -0.00103845144 | BO82: 0.001676457497 | BP82: 0.0002407176648 | BQ82: -0.0003640422865 | BR82: -1.084202172e-19 | BT82: 453.3755471 | BV82: 4.73354869 | BX82: =BV82-CA53/$K$1 -> 2.399544318
A83: 4 | B83: 99.82637861 | D83: 4.603432463 | F83: 0 | G83: 0 | H83: 0 | I83: 99.82637861 | J83: 0 | K83: 0 | L83: 0 | M83: 0 | N83: 0 | O83: 0 | P83: 0 | Q83: 0 | R83: 0 | S83: 0 | T83: 0 | U83: 0 | V83: 0 | W83: 0 | Y83: 0 | Z83: 0 | AA83: 0 | AB83: 199.9781363 | AC83: 0 | AD83: 0 | AE83: 71.05328789 | AF83: 22.36736668 | AG83: 0 | AH83: 0 | AI83: 0 | AK83: 4.603432463 | AM83: =OFFSET(X79,A83,A83) -> 199.9781363 | AO83: 0.002712555937 | AP83: 0.002796973668 | AQ83: 0.001228744449 | AR83: 0.006068631234 | AS83: 0.0007954213486 | AT83: 0 | AU83: -0.002901771075 | AV83: -0.0003314287562 | AW83: 0.0009223530125 | AX83: -0.0004353106145 | AY83: 3.360149609e-05 | BA83: 0.001228744449 | BB83: 0.006068631234 | BC83: 0.0007954213486 | BD83: 0 | BE83: -0.0001047974065 | BF83: -0.001673026626 | BG83: 0.003166860159 | BH83: -0.002106349726 | BI83: -0.000520643894 | BJ83: -0.0004362261628 | BK83: -0.002004455382 | BL83: 0.002835431403 | BM83: 0.0004017091184 | BN83: 0.0004861268497 | BO83: -0.001082102369 | BP83: -3.360149609e-05 | BQ83: 5.081623517e-05 | BR83: 3.794707604e-19 | BT83: 459.543992 | BV83: 4.859229651 | BX83: =BV83-CA53/$K$1 -> 2.525225278
A84: 5 | B84: 31.02412187 | D84: 3.749103257 | F84: 0 | G84: 0 | H84: 0 | I84: 0 | J84: 42.48296862 | K84: 0 | L84: 0 | M84: 0 | N84: 0 | O84: 0 | P84: 0 | Q84: 0 | R84: 0 | S84: 0 | T84: 0 | U84: 0 | V84: 0 | W84: 0 | Y84: 0 | Z84: 0 | AA84: 0 | AB84: 0 | AC84: 134.9127844 | AD84: 0 | AE84: 36.98172811 | AF84: 0 | AG84: 0 | AH84: 0 | AI84: 0 | AK84: 3.479375243 | AM84: =OFFSET(X79,A84,A84) -> 134.9127844 | AO84: 0.001369367308 | AP84: 0.001960361138 | AQ84: 0.0008728932074 | AR84: 0.0007954213486 | AS84: 0.008150672096 | AT84: 0 | AU84: -0.002694029524 | AV84: 0.001446427598 | AW84: -0.000147092297 | AX84: -0.0002099113053 | AY84: 0.0002352382202 | BA84: 0.0008728932074 | BB84: 0.0007954213486 | BC84: 0.008150672096 | BD84: 0 | BE84: -0.0007336683858 | BF84: -0.001821136316 | BG84: -0.001898608175 | BH84: 0.005456642572 | BI84: 0.000121765382 | BJ84: 0.0007127592117 | BK84: -0.0003747087188 | BL84: -0.0004521805776 | BM84: -2.532691493e-05 | BN84: 0.0005656669148 | BO84: -0.0005218010158 | BP84: -0.0002352382202 | BQ84: 0.0003557556095 | BR84: 2.710505431e-19 | BT84: 147.8141893 | BV84: 4.5842637 | BX84: =BV84-CA53/$K$1 -> 2.250259328
A85: 6 | B85: 59.81283241 | D85: 3.759708897 | F85: 0 | G85: 0 | H85: 0 | I85: 0 | J85: 0 | K85: 42.93592537 | L85: 0 | M85: 0 | N85: 0 | O85: 0 | P85: 0 | Q85: 0 | R85: 0 | S85: 0 | T85: 0 | U85: 0 | V85: 0 | W85: 0 | Y85: 0 | Z85: 0 | AA85: 0 | AB85: 0 | AC85: 0 | AD85: 99.82637861 | AE85: 0 | AF85: 0 | AG85: 0 | AH85: 0 | AI85: 0 | AK85: 4.152780826 | AM85: =OFFSET(X79,A85,A85) -> 99.82637861 | AO85: 0 | AP85: 0 | AQ85: 0 | AR85: 0 | AS85: 0 | AT85: 0.01001739234 | AU85: 0 | AV85: 0 | AW85: 0 | AX85: 0 | AY85: 0 | BA85: 0 | BB85: 0 | BC85: 0 | BD85: 0.01001739234 | BE85: 0 | BF85: 0 | BG85: 0 | BH85: 0 | BI85: 0 | BJ85: 0 | BK85: 0 | BL85: 0 | BM85: 0 | BN85: 0 | BO85: 0 | BP85: 0 | BQ85: 0 | BR85: 0 | BT85: 178.3034877 | BV85: 4.603432463 | BX85: =BV85-CA53/$K$1 -> 2.269428091
A86: 7 | B86: 47.70160346 | D86: 3.885389896 | F86: 0 | G86: 0 | H86: 0 | I86: 0 | J86: 0 | K86: 0 | L86: 48.68592121 | M86: 0 | N86: 0 | O86: 0 | P86: 0 | Q86: 0 | R86: 0 | S86: 0 | T86: 0 | U86: 0 | V86: 0 | W86: 0 | Y86: 88.52205299 | Z86: 95.22194735 | AA86: 88.84580127 | AB86: 71.05328789 | AC86: 36.98172811 | AD86: 0 | AE86: 380.6248176 | AF86: 209.5382743 | AG86: 118.410755 | AH86: 27.13749825 | AI86: 8.763808337 | AK86: 3.865172188 | AM86: =OFFSET(X79,A86,A86) -> 380.6248176 | AO86: -0.004995579328 | AP86: -0.007151579796 | AQ86: -0.003184395623 | AR86: -0.002901771075 | AS86: -0.002694029524 | AT86: 0 | AU86: 0.009828070318 | AV86: -0.005276702431 | AW86: 0.0005366063828 | AX86: 0.000765775969 | AY86: -0.0008581709107 | BA86: -0.003184395623 | BB86: -0.002901771075 | BC86: -0.002694029524 | BD86: 0 | BE86: 0.002676490522 | BF86: 0.006643674695 | BG86: 0.006926299243 | BH86: 0.007134040794 | BI86: -0.000444211441 | BJ86: -0.00260021191 | BK86: 0.001366972264 | BL86: 0.001649596812 | BM86: 9.239494175e-05 | BN86: -0.002063605527 | BO86: 0.001903578647 | BP86: 0.0008581709107 | BQ86: -0.001297829558 | BR86: -1.084202172e-18 | BT86: 188.1794686 | BV86: -0.9738397836 | BX86: =BV86-CA53/$K$1 -> -3.307844156
A87: 8 | B87: 32.54796615 | D87: 3.610423956 | F87: 0 | G87: 0 | H87: 0 | I87: 0 | J87: 0 | K87: 0 | L87: 0 | M87: 36.98172811 | N87: 0 | O87: 0 | P87: 0 | Q87: 0 | R87: 0 | S87: 0 | T87: 0 | U87: 0 | V87: 0 | W87: 0 | Y87: 88.52205299 | Z87: 52.73897873 | AA87: 45.90987589 | AB87: 22.36736668 | AC87: 0 | AD87: 0 | AE87: 209.5382743 | AF87: 209.5382743 | AG87: 118.410755 | AH87: 27.13749825 | AI87: 8.763808337 | AK87: 3.490533345 | AM87: =OFFSET(X79,A87,A87) -> 209.5382743 | AO87: -0.008382727723 | AP87: -0.002288616451 | AQ87: -0.0008700284788 | AR87: -0.0003314287562 | AS87: 0.001446427598 | AT87: 0 | AU87: -0.005276702431 | AV87: 0.01972541373 | AW87: -0.009951018705 | AX87: 0.001459345013 | AY87: 0.002425690113 | BA87: -0.0008700284788 | BB87: -0.0003314287562 | BC87: 0.001446427598 | BD87: 0 | BE87: -0.007565318883 | BF87: -0.00614673091 | BG87: -0.005608131188 | BH87: -0.003830274834 | BI87: 0.006065983579 | BJ87: 0.01216009485 | BK87: 0.01357868282 | BL87: 0.01411728255 | BM87: -0.003885035126 | BN87: 0.002209076146 | BO87: 0.003627664118 | BP87: -0.002425690113 | BQ87: 0.003668421159 | BR87: -8.67361738e-19 | BT87: 129.0859551 | BV87: -0.7777983923 | BX87: =BV87-CA53/$K$1 -> -3.111802764
A88: 9 | B88: 26.01136168 | D88: 3.384961714 | F88: 0 | G88: 0 | H88: 0 | I88: 0 | J88: 0 | K88: 0 | L88: 0 | M88: 0 | N88: 29.51686263 | O88: 0 | P88: 0 | Q88: 0 | R88: 0 | S88: 0 | T88: 0 | U88: 0 | V88: 0 | W88: 0 | Y88: 59.00519036 | Z88: 33.22138281 | AA88: 26.18418183 | AB88: 0 | AC88: 0 | AD88: 0 | AE88: 118.410755 | AF88: 118.410755 | AG88: 118.410755 | AH88: 27.13749825 | AI88: 8.763808337 | AK88: 3.26619906 | AM88: =OFFSET(X79,A88,A88) -> 118.410755 | AO88: -0.003469520603 | AP88: -0.002161010262 | AQ88: -0.0009191808121 | AR88: 0.0009223530125 | AS88: -0.000147092297 | AT88: 0 | AU88: 0.0005366063828 | AV88: -0.009951018705 | AW88: 0.02273699013 | AX88: -0.01037389452 | AY88: 0.0005208373223 | BA88: -0.0009191808121 | BB88: 0.0009223530125 | BC88: -0.000147092297 | BD88: 0 | BE88: -0.001624403879 | BF88: -0.0003825744293 | BG88: 0.001458959395 | BH88: 0.0003895140858 | BI88: -0.01288393293 | BJ88: -0.01157542258 | BK88: -0.01033359313 | BL88: -0.00849205931 | BM88: 0.0098530572 | BN88: 0.01116156754 | BO88: 0.01240339699 | BP88: -0.0005208373223 | BQ88: 0.0007876730186 | BR88: 9.757819552e-19 | BT88: 96.40794897 | BV88: 0.2832341997 | BX88: =BV88-CA53/$K$1 -> -2.050770173
A89: 10 | B89: 25.09708468 | D89: 2.971316413 | F89: 0 | G89: 0 | H89: 0 | I89: 0 | J89: 0 | K89: 0 | L89: 0 | M89: 0 | N89: 0 | O89: 19.51759592 | P89: 0 | Q89: 0 | R89: 0 | S89: 0 | T89: 0 | U89: 0 | V89: 0 | W89: 0 | Y89: 19.82406468 | Z89: 7.31343357 | AA89: 0 | AB89: 0 | AC89: 0 | AD89: 0 | AE89: 27.13749825 | AF89: 27.13749825 | AG89: 27.13749825 | AH89: 27.13749825 | AI89: 8.763808337 | AK89: 3.257186086 | AM89: =OFFSET(X79,A89,A89) -> 27.13749825 | AO89: -0.004951255868 | AP89: -0.003083917338 | AQ89: 0.0006744091538 | AR89: -0.0004353106145 | AS89: -0.0002099113053 | AT89: 0 | AU89: 0.000765775969 | AV89: 0.001459345013 | AW89: -0.01037389452 | AX89: 0.06678240614 | AY89: -0.05368237673 | BA89: 0.0006744091538 | BB89: -0.0004353106145 | BC89: -0.0002099113053 | BD89: 0 | BE89: -0.002318141369 | BF89: 0.001440185123 | BG89: 0.0003304653545 | BH89: 0.0005558646637 | BI89: -0.002726134886 | BJ89: -0.0008587963555 | BK89: 0.002899530136 | BL89: 0.001789810368 | BM89: -0.01310002941 | BN89: -0.01123269088 | BO89: -0.007474364387 | BP89: 0.05368237673 | BQ89: 0.05554971526 | BR89: 6.938893904e-18 | BT89: 63.57244186 | BV89: -1.264903224 | BX89: =BV89-CA53/$K$1 -> -3.598907596
A90: 11 | B90: 28.59577687 | D90: 2.981922053 | F90: =IF($A90=F$4,IF($B90<0,-(EXP(-$D90)^(2-$H$1)),IF($B90=0,0,EXP($D90)^(2-$H$1))),0) -> 0 | G90: 0 | H90: 0 | I90: 0 | J90: 0 | K90: 0 | L90: 0 | M90: 0 | N90: 0 | O90: 0 | P90: =IF($A90=P$4,IF($B90<0,-(EXP(-$D90)^(2-$H$1)),IF($B90=0,0,EXP($D90)^(2-$H$1))),0) -> 19.72569406 | Q90: 0 | R90: 0 | S90: 0 | T90: 0 | U90: 0 | V90: 0 | W90: 0 | Y90: 8.763808337 | Z90: 0 | AA90: 0 | AB90: 0 | AC90: 0 | AD90: 0 | AE90: 8.763808337 | AF90: 8.763808337 | AG90: 8.763808337 | AH90: 8.763808337 | AI90: 8.763808337 | AK90: 3.431593572 | AM90: =OFFSET(X79,A90,A90) -> 8.763808337 | AO90: -0.006989237561 | AP90: 0.003456008359 | AQ90: -0.0002407176648 | AR90: 3.360149609e-05 | AS90: 0.0002352382202 | AT90: 0 | AU90: -0.0008581709107 | AV90: 0.002425690113 | AW90: 0.0005208373223 | AX90: -0.05368237673 | AY90: 0.1726889024 | BA90: -0.0002407176648 | BB90: 3.360149609e-05 | BC90: 0.0002352382202 | BD90: 0 | BE90: 0.002597837449 | BF90: -0.001098888576 | BG90: -0.0008245694146 | BH90: -0.0006229326905 | BI90: -0.005421718359 | BJ90: 0.005023527561 | BK90: 0.001326801537 | BL90: 0.001601120698 | BM90: -0.004900881036 | BN90: 0.005544364884 | BO90: 0.001847638859 | BP90: -0.05858325776 | BQ90: -0.04813801184 | BR90: 0.1141056447 | BT90: 67.69056494 | BV90: -0.2326641437 | BX90: =BV90-CA53/$K$1 -> -2.566668516
A91: 12 | B91: 11.42263549 | D91: 3.107603052 | F91: 0 | G91: 0 | H91: 0 | I91: 0 | J91: 0 | K91: 0 | L91: 0 | M91: 0 | N91: 0 | O91: 0 | P91: 0 | Q91: 22.36736668 | R91: 0 | S91: 0 | T91: 0 | U91: 0 | V91: 0 | W91: 0 | AK91: 2.618286122 | BT91: 58.56416578
A92: 13 | B92: 38.40408185 | D92: 3.668195143 | F92: 0 | G92: 0 | H92: 0 | I92: 0 | J92: 0 | K92: 0 | L92: 0 | M92: 0 | N92: 0 | O92: 0 | P92: 0 | Q92: 0 | R92: 39.18112568 | S92: 0 | T92: 0 | U92: 0 | V92: 0 | W92: 0 | AK92: 3.648363048 | BT92: 142.9469711
A93: 14 | B93: 36.06948022 | D93: 3.254549842 | F93: 0 | G93: 0 | H93: 0 | I93: 0 | J93: 0 | K93: 0 | L93: 0 | M93: 0 | N93: 0 | O93: 0 | P93: 0 | Q93: 0 | R93: 0 | S93: 25.90794924 | T93: 0 | U93: 0 | V93: 0 | W93: 0 | AK93: 3.646766566 | BT93: 94.48024309
A94: 15 | B94: 16.79923195 | D94: 3.265155482 | F94: 0 | G94: 0 | H94: 0 | I94: 0 | J94: 0 | K94: 0 | L94: 0 | M94: 0 | N94: 0 | O94: 0 | P94: 0 | Q94: 0 | R94: 0 | S94: 0 | T94: 26.18418183 | U94: 0 | V94: 0 | W94: 0 | AK94: 2.906734892 | BT94: 76.11047496
A95: 16 | B95: 15.34226703 | D95: 2.403358173 | F95: 0 | G95: 0 | H95: 0 | I95: 0 | J95: 0 | K95: 0 | L95: 0 | M95: 0 | N95: 0 | O95: 0 | P95: 0 | Q95: 0 | R95: 0 | S95: 0 | T95: 0 | U95: 11.06025634 | V95: 0 | W95: 0 | AK95: 2.790511107 | BT95: 30.86376816
A96: 17 | B96: 3.030154519 | D96: 1.989712872 | F96: 0 | G96: 0 | H96: 0 | I96: 0 | J96: 0 | K96: 0 | L96: 0 | M96: 0 | N96: 0 | O96: 0 | P96: 0 | Q96: 0 | R96: 0 | S96: 0 | T96: 0 | U96: 0 | V96: 7.31343357 | W96: 0 | AK96: 1.404040081 | BT96: 10.26835386
A97: 18 | B97: 8.763808337 | D97: 2.170630552 | F97: 0 | G97: 0 | H97: 0 | I97: 0 | J97: 0 | K97: 0 | L97: 0 | M97: 0 | N97: 0 | O97: 0 | P97: 0 | Q97: 0 | R97: 0 | S97: 0 | T97: 0 | U97: 0 | V97: 0 | W97: 8.763808337 | AK97: 2.170630552 | BT97: 19.02299013
A98: 19
A99: 20
A100: 21
A102: Newton-Raphson Interation Sequence -- Iteration 5
B103: y(i) | D103: xb(i) | F103: W(i,i) | Y103: XWX | AK103: zz(i) | AM103: factor | AO103: xwx-1 | BA103: aa1(i,j) | BT103: aa2(j) | BV103: beta(j) | BX103: beta_diff = | BY103: =SUM(BX105:BX115) -> -3.71604969e-11 | BZ103: beta_old = | CA103: =SUM(BV105:BV115) -> 25.6740477
B104: 1 | D104: 1 | F104: 1 | G104: 2 | H104: 3 | I104: 4 | J104: 5 | K104: 6 | L104: 7 | M104: 8 | N104: 9 | O104: 10 | P104: 11 | Q104: 12 | R104: 13 | S104: 14 | T104: 15 | U104: 16 | V104: 17 | W104: 18 | Y104: 1 | Z104: 2 | AA104: 3 | AB104: 4 | AC104: 5 | AD104: 6 | AE104: 7 | AF104: 8 | AG104: 9 | AH104: 10 | AI104: 11 | AK104: 1 | AO104: 1 | AP104: 2 | AQ104: 3 | AR104: 4 | AS104: 5 | AT104: 6 | AU104: 7 | AV104: 8 | AW104: 9 | AX104: 10 | AY104: 11 | BA104: 1 | BB104: 2 | BC104: 3 | BD104: 4 | BE104: 5 | BF104: 6 | BG104: 7 | BH104: 8 | BI104: 9 | BJ104: 10 | BK104: 11 | BL104: 12 | BM104: 13 | BN104: 14 | BO104: 15 | BP104: 16 | BQ104: 17 | BR104: 18
A105: 1 | B105: =B80 -> 97.33577837 | D105: =MMULT(DesignMatrix,BV80:BV90) -> 4.73354869 | F105: =IF($A105=F$4,IF($B105<0,-(EXP(-$D105)^(2-$H$1)),IF($B105=0,0,EXP($D105)^(2-$H$1))),0) -> 113.6983274 | G105: 0 | H105: 0 | I105: 0 | J105: 0 | K105: 0 | L105: 0 | M105: 0 | N105: 0 | O105: 0 | P105: =IF($A105=P$4,IF($B105<0,-(EXP(-$D105)^(2-$H$1)),IF($B105=0,0,EXP($D105)^(2-$H$1))),0) -> 0 | Q105: 0 | R105: 0 | S105: 0 | T105: 0 | U105: 0 | V105: 0 | W105: 0 | Y105: =MMULT(TRANSPOSE(DesignMatrix),MMULT(F105:W122,DesignMatrix)) -> 88.52151892 | Z105: 0 | AA105: 0 | AB105: 0 | AC105: 0 | AD105: 0 | AE105: 88.52151892 | AF105: 88.52151892 | AG105: 59.00459709 | AH105: 19.82336262 | AI105: 8.763808337 | AK105: =IF(B105<0,D105+(B105+EXP(-D105))/-EXP(-D105),IF(B105=0,0,D105+(B105-EXP(D105))/EXP(D105))) -> 4.589636731 | AM105: =OFFSET(X104,A105,A105) -> 88.52151892 | AO105: =MINVERSE(Y105:AI115) -> 0.02878848989 | AP105: 0.01122910471 | AQ105: 0.00453991544 | AR105: 0.002712554809 | AS105: 0.0013693664 | AT105: 0 | AU105: -0.00499557607 | AV105: -0.008382851404 | AW105: -0.003469540239 | AX105: -0.004951271841 | AY105: -0.006989250333 | BA105: =MMULT(AO105:AY115,TRANSPOSE(DesignMatrix)) -> 0.00453991544 | BB105: 0.002712554809 | BC105: 0.0013693664 | BD105: 0 | BE105: 0.006233528642 | BF105: -0.0004556606295 | BG105: -0.00228302126 | BH105: -0.00362620967 | BI105: 0.01541006241 | BJ105: -0.002149322763 | BK105: -0.008838512034 | BL105: -0.01066587266 | BM105: 0.01194052217 | BN105: -0.005618863002 | BO105: -0.01230805227 | BP105: 0.006989250333 | BQ105: -0.01057013484 | BR105: 1.734723476e-18 | BT105: =MMULT(F105:W122,AK105:AK122) -> 521.8340199 | BV105: =MMULT(BA105:BR115,BT105:BT122) -> 5.136601896 | BX105: =BV105-CA78/$K$1 -> 2.80259756
A106: 2 | B106: =B81 -> 140.8536352 | D106: 4.859229651 | F106: 0 | G106: 128.9248467 | H106: 0 | I106: 0 | J106: 0 | K106: 0 | L106: 0 | M106: 0 | N106: 0 | O106: 0 | P106: 0 | Q106: 0 | R106: 0 | S106: 0 | T106: 0 | U106: 0 | V106: 0 | W106: 0 | Y106: 0 | Z106: 95.22084131 | AA106: 0 | AB106: 0 | AC106: 0 | AD106: 0 | AE106: 95.22084131 | AF106: 52.73788968 | AG106: 33.22052696 | AH106: 7.312867304 | AI106: 0 | AK106: =IF(B106<0,D106+(B106+EXP(-D106))/-EXP(-D106),IF(B106=0,0,D106+(B106-EXP(D106))/EXP(D106))) -> 4.951754784 | AM106: =OFFSET(X104,A106,A106) -> 95.22084131 | AO106: 0.01122910471 | AP106: 0.01991182345 | AQ106: 0.003935147069 | AR106: 0.00279697404 | AS106: 0.001960368065 | AT106: 0 | AU106: -0.007151605147 | AV106: -0.002288616207 | AW106: -0.002161005911 | AX106: -0.003083903624 | AY106: 0.003456026178 | BA106: 0.003935147069 | BB106: 0.00279697404 | BC106: 0.001960368065 | BD106: 0 | BE106: 0.0127602183 | BF106: -0.003216458078 | BG106: -0.004354631107 | BH106: -0.005191237082 | BI106: 0.001788883357 | BJ106: 0.0104716021 | BK106: -0.005505074285 | BL106: -0.006643247315 | BM106: -0.0003721225544 | BN106: 0.008310596185 | BO106: -0.007666080197 | BP106: -0.003456026178 | BQ106: 0.005226692561 | BR106: -1.301042607e-18 | BT106: 638.4042262 | BV106: 4.722942641 | BX106: =BV106-CA78/$K$1 -> 2.388938305
A107: 3 | B107: 102.3648145 | D107: 4.5842637 | F107: 0 | G107: 0 | H107: 97.93105397 | I107: 0 | J107: 0 | K107: 0 | L107: 0 | M107: 0 | N107: 0 | O107: 0 | P107: 0 | Q107: 0 | R107: 0 | S107: 0 | T107: 0 | U107: 0 | V107: 0 | W107: 0 | Y107: 0 | Z107: 0 | AA107: 202.5436196 | AB107: 0 | AC107: 0 | AD107: 0 | AE107: 88.84529216 | AF107: 45.90936636 | AG107: 26.1838999 | AH107: 0 | AI107: 0 | AK107: 4.629538006 | AM107: =OFFSET(X104,A107,A107) -> 202.5436196 | AO107: 0.00453991544 | AP107: 0.003935147069 | AQ107: 0.006650067095 | AR107: 0.001228740553 | AS107: 0.0008728927444 | AT107: 0 | AU107: -0.003184393969 | AV107: -0.0008700316386 | AW107: -0.0009191772965 | AX107: 0.0006744064583 | AY107: -0.0002407189942 | BA107: 0.006650067095 | BB107: 0.001228740553 | BC107: 0.0008728927444 | BD107: 0 | BE107: 0.0007507531 | BF107: 0.003465673126 | BG107: -0.001955653416 | BH107: -0.002311501225 | BI107: 0.0004854898324 | BJ107: -0.0001192785386 | BK107: 0.002595641487 | BL107: -0.002825685055 | BM107: -0.000433687464 | BN107: -0.001038455835 | BO107: 0.001676464191 | BP107: 0.0002407189942 | BQ107: -0.0003640493768 | BR107: -5.149960319e-19 | BT107: 453.3755364 | BV107: 4.73354869 | BX107: =BV107-CA78/$K$1 -> 2.399544354
A108: 4 | B108: 99.82637861 | D108: 4.603432463 | F108: 0 | G108: 0 | H108: 0 | I108: 99.82637861 | J108: 0 | K108: 0 | L108: 0 | M108: 0 | N108: 0 | O108: 0 | P108: 0 | Q108: 0 | R108: 0 | S108: 0 | T108: 0 | U108: 0 | V108: 0 | W108: 0 | Y108: 0 | Z108: 0 | AA108: 0 | AB108: 199.9778742 | AC108: 0 | AD108: 0 | AE108: 71.05302752 | AF108: 22.36710773 | AG108: 0 | AH108: 0 | AI108: 0 | AK108: 4.603432463 | AM108: =OFFSET(X104,A108,A108) -> 199.9778742 | AO108: 0.002712554809 | AP108: 0.00279697404 | AQ108: 0.001228740553 | AR108: 0.006068634723 | AS108: 0.0007954213699 | AT108: 0 | AU108: -0.002901771185 | AV108: -0.0003314261008 | AW108: 0.0009223496843 | AX108: -0.0004353090187 | AY108: 3.360181048e-05 | BA108: 0.001228740553 | BB108: 0.006068634723 | BC108: 0.0007954213699 | BD108: 0 | BE108: -0.0001047971452 | BF108: -0.001673030632 | BG108: 0.003166863538 | BH108: -0.002106349815 | BI108: -0.0005206424761 | BJ108: -0.0004362232459 | BK108: -0.002004456732 | BL108: 0.002835437438 | BM108: 0.0004017072082 | BN108: 0.0004861264384 | BO108: -0.001082107048 | BP108: -3.360181048e-05 | BQ108: 5.081741972e-05 | BR108: -2.57498016e-19 | BT108: 459.543992 | BV108: 4.859229651 | BX108: =BV108-CA78/$K$1 -> 2.525225314
A109: 5 | B109: 31.02412187 | D109: 3.749102857 | F109: 0 | G109: 0 | H109: 0 | I109: 0 | J109: 42.48295163 | K109: 0 | L109: 0 | M109: 0 | N109: 0 | O109: 0 | P109: 0 | Q109: 0 | R109: 0 | S109: 0 | T109: 0 | U109: 0 | V109: 0 | W109: 0 | Y109: 0 | Z109: 0 | AA109: 0 | AB109: 0 | AC109: 134.9127806 | AD109: 0 | AE109: 36.98172666 | AF109: 0 | AG109: 0 | AH109: 0 | AI109: 0 | AK109: 3.479375135 | AM109: =OFFSET(X104,A109,A109) -> 134.9127806 | AO109: 0.0013693664 | AP109: 0.001960368065 | AQ109: 0.0008728927444 | AR109: 0.0007954213699 | AS109: 0.008150672788 | AT109: 0 | AU109: -0.002694031321 | AV109: 0.001446427825 | AW109: -0.0001470919571 | AX109: -0.0002099103094 | AY109: 0.0002352393631 | BA109: 0.0008728927444 | BB109: 0.0007954213699 | BC109: 0.008150672788 | BD109: 0 | BE109: -0.000733663256 | BF109: -0.001821138577 | BG109: -0.001898609951 | BH109: 0.005456641467 | BI109: 0.0001217629033 | BJ109: 0.0007127645685 | BK109: -0.0003747107521 | BL109: -0.0004521821267 | BM109: -2.532905371e-05 | BN109: 0.0005656726115 | BO109: -0.0005218027092 | BP109: -0.0002352393631 | BQ109: 0.0003557623021 | BR109: -6.505213035e-19 | BT109: 147.8141256 | BV109: 4.5842637 | BX109: =BV109-CA78/$K$1 -> 2.250259364
A110: 6 | B110: 59.81283241 | D110: 3.759708907 | F110: 0 | G110: 0 | H110: 0 | I110: 0 | J110: 0 | K110: 42.9359258 | L110: 0 | M110: 0 | N110: 0 | O110: 0 | P110: 0 | Q110: 0 | R110: 0 | S110: 0 | T110: 0 | U110: 0 | V110: 0 | W110: 0 | Y110: 0 | Z110: 0 | AA110: 0 | AB110: 0 | AC110: 0 | AD110: 99.82637861 | AE110: 0 | AF110: 0 | AG110: 0 | AH110: 0 | AI110: 0 | AK110: 4.152780822 | AM110: =OFFSET(X104,A110,A110) -> 99.82637861 | AO110: 0 | AP110: 0 | AQ110: 0 | AR110: 0 | AS110: 0 | AT110: 0.01001739234 | AU110: 0 | AV110: 0 | AW110: 0 | AX110: 0 | AY110: 0 | BA110: 0 | BB110: 0 | BC110: 0 | BD110: 0.01001739234 | BE110: 0 | BF110: 0 | BG110: 0 | BH110: 0 | BI110: 0 | BJ110: 0 | BK110: 0 | BL110: 0 | BM110: 0 | BN110: 0 | BO110: 0 | BP110: 0 | BQ110: 0 | BR110: 0 | BT110: 178.3034893 | BV110: 4.603432463 | BX110: =BV110-CA78/$K$1 -> 2.269428127
A111: 7 | B111: 47.70160346 | D111: 3.885389867 | F111: 0 | G111: 0 | H111: 0 | I111: 0 | J111: 0 | K111: 0 | L111: 48.68591979 | M111: 0 | N111: 0 | O111: 0 | P111: 0 | Q111: 0 | R111: 0 | S111: 0 | T111: 0 | U111: 0 | V111: 0 | W111: 0 | Y111: 88.52151892 | Z111: 95.22084131 | AA111: 88.84529216 | AB111: 71.05302752 | AC111: 36.98172666 | AD111: 0 | AE111: 380.6224066 | AF111: 209.5358827 | AG111: 118.409024 | AH111: 27.13622993 | AI111: 8.763808337 | AK111: 3.865172187 | AM111: =OFFSET(X104,A111,A111) -> 380.6224066 | AO111: -0.00499557607 | AP111: -0.007151605147 | AQ111: -0.003184393969 | AR111: -0.002901771185 | AS111: -0.002694031321 | AT111: 0 | AU111: 0.009828076985 | AV111: -0.005276703319 | AW111: 0.0005366051488 | AX111: 0.0007657723444 | AY111: -0.0008581750896 | BA111: -0.003184393969 | BB111: -0.002901771185 | BC111: -0.002694031321 | BD111: 0 | BE111: 0.002676471838 | BF111: 0.006643683016 | BG111: 0.0069263058 | BH111: 0.007134045664 | BI111: -0.0004442024035 | BJ111: -0.002600231481 | BK111: 0.001366979697 | BL111: 0.001649602481 | BM111: 9.240274523e-05 | BN111: -0.002063626332 | BO111: 0.001903584846 | BP111: 0.0008581750896 | BQ111: -0.001297853988 | BR111: 1.95156391e-18 | BT111: 188.1794631 | BV111: -0.9738397836 | BX111: =BV111-CA78/$K$1 -> -3.30784412
A112: 8 | B112: 32.54796615 | D112: 3.610423917 | F112: 0 | G112: 0 | H112: 0 | I112: 0 | J112: 0 | K112: 0 | L112: 0 | M112: 36.98172666 | N112: 0 | O112: 0 | P112: 0 | Q112: 0 | R112: 0 | S112: 0 | T112: 0 | U112: 0 | V112: 0 | W112: 0 | Y112: 88.52151892 | Z112: 52.73788968 | AA112: 45.90936636 | AB112: 22.36710773 | AC112: 0 | AD112: 0 | AE112: 209.5358827 | AF112: 209.5358827 | AG112: 118.409024 | AH112: 27.13622993 | AI112: 8.763808337 | AK112: 3.490533341 | AM112: =OFFSET(X104,A112,A112) -> 209.5358827 | AO112: -0.008382851404 | AP112: -0.002288616207 | AQ112: -0.0008700316386 | AR112: -0.0003314261008 | AS112: 0.001446427825 | AT112: 0 | AU112: -0.005276703319 | AV112: 0.01972555587 | AW112: -0.009951083181 | AX112: 0.001459362967 | AY112: 0.002425719064 | BA112: -0.0008700316386 | BB112: -0.0003314261008 | BC112: 0.001446427825 | BD112: 0 | BE112: -0.007565319526 | BF112: -0.006146734957 | BG112: -0.005608129419 | BH112: -0.003830275494 | BI112: 0.006066001149 | BJ112: 0.01216023635 | BK112: 0.01357882092 | BL112: 0.01411742645 | BM112: -0.003885082032 | BN112: 0.002209153165 | BO112: 0.003627737734 | BP112: -0.002425719064 | BQ112: 0.003668516133 | BR112: -3.035766083e-18 | BT112: 129.0859499 | BV112: -0.7777983924 | BX112: =BV112-CA78/$K$1 -> -3.111802728
A113: 9 | B113: 26.01136168 | D113: 3.38496372 | F113: 0 | G113: 0 | H113: 0 | I113: 0 | J113: 0 | K113: 0 | L113: 0 | M113: 0 | N113: 29.51692182 | O113: 0 | P113: 0 | Q113: 0 | R113: 0 | S113: 0 | T113: 0 | U113: 0 | V113: 0 | W113: 0 | Y113: 59.00459709 | Z113: 33.22052696 | AA113: 26.1838999 | AB113: 0 | AC113: 0 | AD113: 0 | AE113: 118.409024 | AF113: 118.409024 | AG113: 118.409024 | AH113: 27.13622993 | AI113: 8.763808337 | AK113: 3.266199298 | AM113: =OFFSET(X104,A113,A113) -> 118.409024 | AO113: -0.003469540239 | AP113: -0.002161005911 | AQ113: -0.0009191772965 | AR113: 0.0009223496843 | AS113: -0.0001470919571 | AT113: 0 | AU113: 0.0005366051488 | AV113: -0.009951083181 | AW113: 0.022737124 | AX113: -0.01037394823 | AY113: 0.000520842495 | BA113: -0.0009191772965 | BB113: 0.0009223496843 | BC113: -0.0001470919571 | BD113: 0 | BE113: -0.001624400762 | BF113: -0.0003825721477 | BG113: 0.001458954833 | BH113: 0.0003895131917 | BI113: -0.01288401827 | BJ113: -0.01157548394 | BK113: -0.01033365533 | BL113: -0.008492128348 | BM113: 0.009853105732 | BN113: 0.01116164006 | BO113: 0.01240346867 | BP113: -0.000520842495 | BQ113: 0.0007876918328 | BR113: 3.252606517e-18 | BT113: 96.40814935 | BV113: 0.2832341997 | BX113: =BV113-CA78/$K$1 -> -2.050770136
A114: 10 | B114: 25.09708468 | D114: 2.971304465 | F114: 0 | G114: 0 | H114: 0 | I114: 0 | J114: 0 | K114: 0 | L114: 0 | M114: 0 | N114: 0 | O114: 19.51736272 | P114: 0 | Q114: 0 | R114: 0 | S114: 0 | T114: 0 | U114: 0 | V114: 0 | W114: 0 | Y114: 19.82336262 | Z114: 7.312867304 | AA114: 0 | AB114: 0 | AC114: 0 | AD114: 0 | AE114: 27.13622993 | AF114: 27.13622993 | AG114: 27.13622993 | AH114: 27.13622993 | AI114: 8.763808337 | AK114: 3.257189502 | AM114: =OFFSET(X104,A114,A114) -> 27.13622993 | AO114: -0.004951271841 | AP114: -0.003083903624 | AQ114: 0.0006744064583 | AR114: -0.0004353090187 | AS114: -0.0002099103094 | AT114: 0 | AU114: 0.0007657723444 | AV114: 0.001459362967 | AW114: -0.01037394823 | AX114: 0.06678621312 | AY114: -0.05368612837 | BA114: 0.0006744064583 | BB114: -0.0004353090187 | BC114: -0.0002099103094 | BD114: 0 | BE114: -0.00231813128 | BF114: 0.001440178803 | BG114: 0.0003304633257 | BH114: 0.000555862035 | BI114: -0.002726136529 | BJ114: -0.0008587683121 | BK114: 0.00289954177 | BL114: 0.001789826293 | BM114: -0.01310008476 | BN114: -0.01123271654 | BO114: -0.007474406457 | BP114: 0.05368612837 | BQ114: 0.05555349659 | BR114: 6.938893904e-18 | BT114: 63.57174895 | BV114: -1.264903226 | BX114: =BV114-CA78/$K$1 -> -3.598907562
A115: 11 | B115: 28.59577687 | D115: 2.981910515 | F115: =IF($A115=F$4,IF($B115<0,-(EXP(-$D115)^(2-$H$1)),IF($B115=0,0,EXP($D115)^(2-$H$1))),0) -> 0 | G115: 0 | H115: 0 | I115: 0 | J115: 0 | K115: 0 | L115: 0 | M115: 0 | N115: 0 | O115: 0 | P115: =IF($A115=P$4,IF($B115<0,-(EXP(-$D115)^(2-$H$1)),IF($B115=0,0,EXP($D115)^(2-$H$1))),0) -> 19.72546646 | Q115: 0 | R115: 0 | S115: 0 | T115: 0 | U115: 0 | V115: 0 | W115: 0 | Y115: 8.763808337 | Z115: 0 | AA115: 0 | AB115: 0 | AC115: 0 | AD115: 0 | AE115: 8.763808337 | AF115: 8.763808337 | AG115: 8.763808337 | AH115: 8.763808337 | AI115: 8.763808337 | AK115: 3.431598761 | AM115: =OFFSET(X104,A115,A115) -> 8.763808337 | AO115: -0.006989250333 | AP115: 0.003456026178 | AQ115: -0.0002407189942 | AR115: 3.360181048e-05 | AS115: 0.0002352393631 | AT115: 0 | AU115: -0.0008581750896 | AV115: 0.002425719064 | AW115: 0.000520842495 | AX115: -0.05368612837 | AY115: 0.1726926369 | BA115: -0.0002407189942 | BB115: 3.360181048e-05 | BC115: 0.0002352393631 | BD115: 0 | BE115: 0.002597851089 | BF115: -0.001098894084 | BG115: -0.0008245732791 | BH115: -0.0006229357265 | BI115: -0.005421706358 | BJ115: 0.005023570153 | BK115: 0.001326824981 | BL115: 0.001601145785 | BM115: -0.004900863863 | BN115: 0.005544412648 | BO115: 0.001847667476 | BP115: -0.05858699223 | BQ115: -0.04814171572 | BR115: 0.1141056447 | BT115: 67.68988625 | BV115: -0.2326641414 | BX115: =BV115-CA78/$K$1 -> -2.566668477
A116: 12 | B116: 11.42263549 | D116: 3.107591475 | F116: 0 | G116: 0 | H116: 0 | I116: 0 | J116: 0 | K116: 0 | L116: 0 | M116: 0 | N116: 0 | O116: 0 | P116: 0 | Q116: 22.36710773 | R116: 0 | S116: 0 | T116: 0 | U116: 0 | V116: 0 | W116: 0 | AK116: 2.618280457 | BT116: 58.56336106
A117: 13 | B117: 38.40408185 | D117: 3.66819792 | F117: 0 | G117: 0 | H117: 0 | I117: 0 | J117: 0 | K117: 0 | L117: 0 | M117: 0 | N117: 0 | O117: 0 | P117: 0 | Q117: 0 | R117: 39.18123447 | S117: 0 | T117: 0 | U117: 0 | V117: 0 | W117: 0 | AK117: 3.648363103 | BT117: 142.9473702
A118: 14 | B118: 36.06948022 | D118: 3.254538665 | F118: 0 | G118: 0 | H118: 0 | I118: 0 | J118: 0 | K118: 0 | L118: 0 | M118: 0 | N118: 0 | O118: 0 | P118: 0 | Q118: 0 | R118: 0 | S118: 25.90765966 | T118: 0 | U118: 0 | V118: 0 | W118: 0 | AK118: 3.64677095 | BT118: 94.47930064
A119: 15 | B119: 16.79923195 | D119: 3.265144714 | F119: 0 | G119: 0 | H119: 0 | I119: 0 | J119: 0 | K119: 0 | L119: 0 | M119: 0 | N119: 0 | O119: 0 | P119: 0 | Q119: 0 | R119: 0 | S119: 0 | T119: 26.1838999 | U119: 0 | V119: 0 | W119: 0 | AK119: 2.906731033 | BT119: 76.10955441
A120: 16 | B120: 15.34226703 | D120: 2.403294696 | F120: 0 | G120: 0 | H120: 0 | I120: 0 | J120: 0 | K120: 0 | L120: 0 | M120: 0 | N120: 0 | O120: 0 | P120: 0 | Q120: 0 | R120: 0 | S120: 0 | T120: 0 | U120: 11.05955429 | V120: 0 | W120: 0 | AK120: 2.790535685 | BT120: 30.8620809
A121: 17 | B121: 3.030154519 | D121: 1.989635441 | F121: 0 | G121: 0 | H121: 0 | I121: 0 | J121: 0 | K121: 0 | L121: 0 | M121: 0 | N121: 0 | O121: 0 | P121: 0 | Q121: 0 | R121: 0 | S121: 0 | T121: 0 | U121: 0 | V121: 7.312867304 | W121: 0 | AK121: 1.403994733 | BT121: 10.26722718
A122: 18 | B122: 8.763808337 | D122: 2.170630552 | F122: 0 | G122: 0 | H122: 0 | I122: 0 | J122: 0 | K122: 0 | L122: 0 | M122: 0 | N122: 0 | O122: 0 | P122: 0 | Q122: 0 | R122: 0 | S122: 0 | T122: 0 | U122: 0 | V122: 0 | W122: 8.763808337 | AK122: 2.170630552 | BT122: 19.02299013
A123: 19
A124: 20
A125: 21
A127: Newton-Raphson Interation Sequence -- Iteration 6
B128: y(i) | D128: xb(i) | F128: W(i,i) | Y128: XWX | AK128: zz(i) | AM128: factor | AO128: xwx-1 | BA128: aa1(i,j) | BT128: aa2(j) | BV128: beta(j) | BX128: beta_diff = | BY128: =SUM(BX130:BX140) -> -1.021405183e-14 | BZ128: beta_old = | CA128: =SUM(BV130:BV140) -> 25.6740477
B129: 1 | D129: 1 | F129: 1 | G129: 2 | H129: 3 | I129: 4 | J129: 5 | K129: 6 | L129: 7 | M129: 8 | N129: 9 | O129: 10 | P129: 11 | Q129: 12 | R129: 13 | S129: 14 | T129: 15 | U129: 16 | V129: 17 | W129: 18 | Y129: 1 | Z129: 2 | AA129: 3 | AB129: 4 | AC129: 5 | AD129: 6 | AE129: 7 | AF129: 8 | AG129: 9 | AH129: 10 | AI129: 11 | AK129: 1 | AO129: 1 | AP129: 2 | AQ129: 3 | AR129: 4 | AS129: 5 | AT129: 6 | AU129: 7 | AV129: 8 | AW129: 9 | AX129: 10 | AY129: 11 | BA129: 1 | BB129: 2 | BC129: 3 | BD129: 4 | BE129: 5 | BF129: 6 | BG129: 7 | BH129: 8 | BI129: 9 | BJ129: 10 | BK129: 11 | BL129: 12 | BM129: 13 | BN129: 14 | BO129: 15 | BP129: 16 | BQ129: 17 | BR129: 18
A130: 1 | B130: =B105 -> 97.33577837 | D130: =MMULT(DesignMatrix,BV105:BV115) -> 4.73354869 | F130: =IF($A130=F$4,IF($B130<0,-(EXP(-$D130)^(2-$H$1)),IF($B130=0,0,EXP($D130)^(2-$H$1))),0) -> 113.6983274 | G130: 0 | H130: 0 | I130: 0 | J130: 0 | K130: 0 | L130: 0 | M130: 0 | N130: 0 | O130: 0 | P130: =IF($A130=P$4,IF($B130<0,-(EXP(-$D130)^(2-$H$1)),IF($B130=0,0,EXP($D130)^(2-$H$1))),0) -> 0 | Q130: 0 | R130: 0 | S130: 0 | T130: 0 | U130: 0 | V130: 0 | W130: 0 | Y130: =MMULT(TRANSPOSE(DesignMatrix),MMULT(F130:W147,DesignMatrix)) -> 88.52151889 | Z130: 0 | AA130: 0 | AB130: 0 | AC130: 0 | AD130: 0 | AE130: 88.52151889 | AF130: 88.52151889 | AG130: 59.00459707 | AH130: 19.8233626 | AI130: 8.763808337 | AK130: =IF(B130<0,D130+(B130+EXP(-D130))/-EXP(-D130),IF(B130=0,0,D130+(B130-EXP(D130))/EXP(D130))) -> 4.589636731 | AM130: =OFFSET(X129,A130,A130) -> 88.52151889 | AO130: =MINVERSE(Y130:AI140) -> 0.02878848989 | AP130: 0.01122910471 | AQ130: 0.00453991544 | AR130: 0.002712554809 | AS130: 0.0013693664 | AT130: 0 | AU130: -0.004995576069 | AV130: -0.008382851406 | AW130: -0.003469540239 | AX130: -0.004951271841 | AY130: -0.006989250334 | BA130: =MMULT(AO130:AY140,TRANSPOSE(DesignMatrix)) -> 0.00453991544 | BB130: 0.002712554809 | BC130: 0.0013693664 | BD130: 0 | BE130: 0.006233528641 | BF130: -0.000455660629 | BG130: -0.00228302126 | BH130: -0.00362620967 | BI130: 0.01541006242 | BJ130: -0.002149322766 | BK130: -0.008838512035 | BL130: -0.01066587267 | BM130: 0.01194052218 | BN130: -0.005618863005 | BO130: -0.01230805227 | BP130: 0.006989250334 | BQ130: -0.01057013485 | BR130: 2.602085214e-18 | BT130: =MMULT(F130:W147,AK130:AK147) -> 521.8340199 | BV130: =MMULT(BA130:BR140,BT130:BT147) -> 5.136601896 | BX130: =BV130-CA103/$K$1 -> 2.80259756
A131: 2 | B131: =B106 -> 140.8536352 | D131: 4.859229651 | F131: 0 | G131: 128.9248467 | H131: 0 | I131: 0 | J131: 0 | K131: 0 | L131: 0 | M131: 0 | N131: 0 | O131: 0 | P131: 0 | Q131: 0 | R131: 0 | S131: 0 | T131: 0 | U131: 0 | V131: 0 | W131: 0 | Y131: 0 | Z131: 95.22084129 | AA131: 0 | AB131: 0 | AC131: 0 | AD131: 0 | AE131: 95.22084129 | AF131: 52.73788966 | AG131: 33.22052694 | AH131: 7.312867286 | AI131: 0 | AK131: =IF(B131<0,D131+(B131+EXP(-D131))/-EXP(-D131),IF(B131=0,0,D131+(B131-EXP(D131))/EXP(D131))) -> 4.951754784 | AM131: =OFFSET(X129,A131,A131) -> 95.22084129 | AO131: 0.01122910471 | AP131: 0.01991182345 | AQ131: 0.003935147069 | AR131: 0.00279697404 | AS131: 0.001960368065 | AT131: 0 | AU131: -0.007151605147 | AV131: -0.002288616207 | AW131: -0.002161005911 | AX131: -0.003083903624 | AY131: 0.003456026179 | BA131: 0.003935147069 | BB131: 0.00279697404 | BC131: 0.001960368065 | BD131: 0 | BE131: 0.01276021831 | BF131: -0.003216458078 | BG131: -0.004354631108 | BH131: -0.005191237082 | BI131: 0.001788883356 | BJ131: 0.0104716021 | BK131: -0.005505074285 | BL131: -0.006643247315 | BM131: -0.0003721225555 | BN131: 0.008310596187 | BO131: -0.007666080196 | BP131: -0.003456026179 | BQ131: 0.005226692563 | BR131: 1.734723476e-18 | BT131: 638.4042262 | BV131: 4.722942641 | BX131: =BV131-CA103/$K$1 -> 2.388938305
A132: 3 | B132: 102.3648145 | D132: 4.5842637 | F132: 0 | G132: 0 | H132: 97.93105397 | I132: 0 | J132: 0 | K132: 0 | L132: 0 | M132: 0 | N132: 0 | O132: 0 | P132: 0 | Q132: 0 | R132: 0 | S132: 0 | T132: 0 | U132: 0 | V132: 0 | W132: 0 | Y132: 0 | Z132: 0 | AA132: 202.5436196 | AB132: 0 | AC132: 0 | AD132: 0 | AE132: 88.84529216 | AF132: 45.90936635 | AG132: 26.1838999 | AH132: 0 | AI132: 0 | AK132: 4.629538006 | AM132: =OFFSET(X129,A132,A132) -> 202.5436196 | AO132: 0.00453991544 | AP132: 0.003935147069 | AQ132: 0.006650067095 | AR132: 0.001228740553 | AS132: 0.0008728927444 | AT132: 0 | AU132: -0.003184393969 | AV132: -0.0008700316386 | AW132: -0.0009191772964 | AX132: 0.0006744064582 | AY132: -0.0002407189943 | BA132: 0.006650067095 | BB132: 0.001228740553 | BC132: 0.0008728927444 | BD132: 0 | BE132: 0.0007507530999 | BF132: 0.003465673126 | BG132: -0.001955653416 | BH132: -0.002311501225 | BI132: 0.0004854898325 | BJ132: -0.0001192785387 | BK132: 0.002595641487 | BL132: -0.002825685055 | BM132: -0.0004336874639 | BN132: -0.001038455835 | BO132: 0.001676464191 | BP132: 0.0002407189943 | BQ132: -0.000364049377 | BR132: -2.981555974e-19 | BT132: 453.3755364 | BV132: 4.73354869 | BX132: =BV132-CA103/$K$1 -> 2.399544354
A133: 4 | B133: 99.82637861 | D133: 4.603432463 | F133: 0 | G133: 0 | H133: 0 | I133: 99.82637861 | J133: 0 | K133: 0 | L133: 0 | M133: 0 | N133: 0 | O133: 0 | P133: 0 | Q133: 0 | R133: 0 | S133: 0 | T133: 0 | U133: 0 | V133: 0 | W133: 0 | Y133: 0 | Z133: 0 | AA133: 0 | AB133: 199.9778742 | AC133: 0 | AD133: 0 | AE133: 71.05302752 | AF133: 22.36710773 | AG133: 0 | AH133: 0 | AI133: 0 | AK133: 4.603432463 | AM133: =OFFSET(X129,A133,A133) -> 199.9778742 | AO133: 0.002712554809 | AP133: 0.00279697404 | AQ133: 0.001228740553 | AR133: 0.006068634723 | AS133: 0.0007954213699 | AT133: 0 | AU133: -0.002901771185 | AV133: -0.0003314261007 | AW133: 0.0009223496843 | AX133: -0.0004353090187 | AY133: 3.360181049e-05 | BA133: 0.001228740553 | BB133: 0.006068634723 | BC133: 0.0007954213699 | BD133: 0 | BE133: -0.0001047971452 | BF133: -0.001673030632 | BG133: 0.003166863538 | BH133: -0.002106349815 | BI133: -0.0005206424761 | BJ133: -0.0004362232459 | BK133: -0.002004456732 | BL133: 0.002835437438 | BM133: 0.0004017072082 | BN133: 0.0004861264384 | BO133: -0.001082107048 | BP133: -3.360181049e-05 | BQ133: 5.081741974e-05 | BR133: -3.320369153e-19 | BT133: 459.543992 | BV133: 4.859229651 | BX133: =BV133-CA103/$K$1 -> 2.525225314
A134: 5 | B134: 31.02412187 | D134: 3.749102857 | F134: 0 | G134: 0 | H134: 0 | I134: 0 | J134: 42.48295163 | K134: 0 | L134: 0 | M134: 0 | N134: 0 | O134: 0 | P134: 0 | Q134: 0 | R134: 0 | S134: 0 | T134: 0 | U134: 0 | V134: 0 | W134: 0 | Y134: 0 | Z134: 0 | AA134: 0 | AB134: 0 | AC134: 134.9127806 | AD134: 0 | AE134: 36.98172666 | AF134: 0 | AG134: 0 | AH134: 0 | AI134: 0 | AK134: 3.479375135 | AM134: =OFFSET(X129,A134,A134) -> 134.9127806 | AO134: 0.0013693664 | AP134: 0.001960368065 | AQ134: 0.0008728927444 | AR134: 0.0007954213699 | AS134: 0.008150672788 | AT134: 0 | AU134: -0.002694031321 | AV134: 0.001446427825 | AW134: -0.000147091957 | AX134: -0.0002099103094 | AY134: 0.0002352393632 | BA134: 0.0008728927444 | BB134: 0.0007954213699 | BC134: 0.008150672788 | BD134: 0 | BE134: -0.0007336632559 | BF134: -0.001821138577 | BG134: -0.001898609951 | BH134: 0.005456641467 | BI134: 0.0001217629033 | BJ134: 0.0007127645686 | BK134: -0.0003747107521 | BL134: -0.0004521821267 | BM134: -2.532905378e-05 | BN134: 0.0005656726116 | BO134: -0.0005218027092 | BP134: -0.0002352393632 | BQ134: 0.0003557623022 | BR134: -5.421010862e-19 | BT134: 147.8141256 | BV134: 4.5842637 | BX134: =BV134-CA103/$K$1 -> 2.250259364
A135: 6 | B135: 59.81283241 | D135: 3.759708907 | F135: 0 | G135: 0 | H135: 0 | I135: 0 | J135: 0 | K135: 42.9359258 | L135: 0 | M135: 0 | N135: 0 | O135: 0 | P135: 0 | Q135: 0 | R135: 0 | S135: 0 | T135: 0 | U135: 0 | V135: 0 | W135: 0 | Y135: 0 | Z135: 0 | AA135: 0 | AB135: 0 | AC135: 0 | AD135: 99.82637861 | AE135: 0 | AF135: 0 | AG135: 0 | AH135: 0 | AI135: 0 | AK135: 4.152780822 | AM135: =OFFSET(X129,A135,A135) -> 99.82637861 | AO135: 0 | AP135: 0 | AQ135: 0 | AR135: 0 | AS135: 0 | AT135: 0.01001739234 | AU135: 0 | AV135: 0 | AW135: 0 | AX135: 0 | AY135: 0 | BA135: 0 | BB135: 0 | BC135: 0 | BD135: 0.01001739234 | BE135: 0 | BF135: 0 | BG135: 0 | BH135: 0 | BI135: 0 | BJ135: 0 | BK135: 0 | BL135: 0 | BM135: 0 | BN135: 0 | BO135: 0 | BP135: 0 | BQ135: 0 | BR135: 0 | BT135: 178.3034893 | BV135: 4.603432463 | BX135: =BV135-CA103/$K$1 -> 2.269428127
A136: 7 | B136: 47.70160346 | D136: 3.885389867 | F136: 0 | G136: 0 | H136: 0 | I136: 0 | J136: 0 | K136: 0 | L136: 48.68591979 | M136: 0 | N136: 0 | O136: 0 | P136: 0 | Q136: 0 | R136: 0 | S136: 0 | T136: 0 | U136: 0 | V136: 0 | W136: 0 | Y136: 88.52151889 | Z136: 95.22084129 | AA136: 88.84529216 | AB136: 71.05302752 | AC136: 36.98172666 | AD136: 0 | AE136: 380.6224065 | AF136: 209.5358826 | AG136: 118.4090239 | AH136: 27.13622988 | AI136: 8.763808337 | AK136: 3.865172187 | AM136: =OFFSET(X129,A136,A136) -> 380.6224065 | AO136: -0.004995576069 | AP136: -0.007151605147 | AQ136: -0.003184393969 | AR136: -0.002901771185 | AS136: -0.002694031321 | AT136: 0 | AU136: 0.009828076985 | AV136: -0.005276703319 | AW136: 0.0005366051487 | AX136: 0.0007657723443 | AY136: -0.0008581750898 | BA136: -0.003184393969 | BB136: -0.002901771185 | BC136: -0.002694031321 | BD136: 0 | BE136: 0.002676471838 | BF136: 0.006643683016 | BG136: 0.0069263058 | BH136: 0.007134045664 | BI136: -0.0004442024032 | BJ136: -0.002600231481 | BK136: 0.001366979697 | BL136: 0.001649602481 | BM136: 9.24027455e-05 | BN136: -0.002063626332 | BO136: 0.001903584846 | BP136: 0.0008581750898 | BQ136: -0.001297853988 | BR136: 3.252606517e-18 | BT136: 188.1794631 | BV136: -0.9738397836 | BX136: =BV136-CA103/$K$1 -> -3.30784412
A137: 8 | B137: 32.54796615 | D137: 3.610423917 | F137: 0 | G137: 0 | H137: 0 | I137: 0 | J137: 0 | K137: 0 | L137: 0 | M137: 36.98172666 | N137: 0 | O137: 0 | P137: 0 | Q137: 0 | R137: 0 | S137: 0 | T137: 0 | U137: 0 | V137: 0 | W137: 0 | Y137: 88.52151889 | Z137: 52.73788966 | AA137: 45.90936635 | AB137: 22.36710773 | AC137: 0 | AD137: 0 | AE137: 209.5358826 | AF137: 209.5358826 | AG137: 118.4090239 | AH137: 27.13622988 | AI137: 8.763808337 | AK137: 3.490533341 | AM137: =OFFSET(X129,A137,A137) -> 209.5358826 | AO137: -0.008382851406 | AP137: -0.002288616207 | AQ137: -0.0008700316386 | AR137: -0.0003314261007 | AS137: 0.001446427825 | AT137: 0 | AU137: -0.005276703319 | AV137: 0.01972555587 | AW137: -0.009951083181 | AX137: 0.001459362968 | AY137: 0.002425719065 | BA137: -0.0008700316386 | BB137: -0.0003314261007 | BC137: 0.001446427825 | BD137: 0 | BE137: -0.007565319526 | BF137: -0.006146734957 | BG137: -0.005608129419 | BH137: -0.003830275494 | BI137: 0.006066001149 | BJ137: 0.01216023635 | BK137: 0.01357882092 | BL137: 0.01411742645 | BM137: -0.003885082033 | BN137: 0.002209153166 | BO137: 0.003627737735 | BP137: -0.002425719065 | BQ137: 0.003668516134 | BR137: -3.903127821e-18 | BT137: 129.0859499 | BV137: -0.7777983924 | BX137: =BV137-CA103/$K$1 -> -3.111802728
A138: 9 | B138: 26.01136168 | D138: 3.38496372 | F138: 0 | G138: 0 | H138: 0 | I138: 0 | J138: 0 | K138: 0 | L138: 0 | M138: 0 | N138: 29.51692182 | O138: 0 | P138: 0 | Q138: 0 | R138: 0 | S138: 0 | T138: 0 | U138: 0 | V138: 0 | W138: 0 | Y138: 59.00459707 | Z138: 33.22052694 | AA138: 26.1838999 | AB138: 0 | AC138: 0 | AD138: 0 | AE138: 118.4090239 | AF138: 118.4090239 | AG138: 118.4090239 | AH138: 27.13622988 | AI138: 8.763808337 | AK138: 3.266199298 | AM138: =OFFSET(X129,A138,A138) -> 118.4090239 | AO138: -0.003469540239 | AP138: -0.002161005911 | AQ138: -0.0009191772964 | AR138: 0.0009223496843 | AS138: -0.000147091957 | AT138: 0 | AU138: 0.0005366051487 | AV138: -0.009951083181 | AW138: 0.022737124 | AX138: -0.01037394823 | AY138: 0.0005208424952 | BA138: -0.0009191772964 | BB138: 0.0009223496843 | BC138: -0.000147091957 | BD138: 0 | BE138: -0.001624400762 | BF138: -0.0003825721477 | BG138: 0.001458954833 | BH138: 0.0003895131917 | BI138: -0.01288401827 | BJ138: -0.01157548394 | BK138: -0.01033365533 | BL138: -0.008492128348 | BM138: 0.009853105732 | BN138: 0.01116164006 | BO138: 0.01240346867 | BP138: -0.0005208424952 | BQ138: 0.0007876918331 | BR138: -3.1441863e-18 | BT138: 96.40814935 | BV138: 0.2832341997 | BX138: =BV138-CA103/$K$1 -> -2.050770136
A139: 10 | B139: 25.09708468 | D139: 2.971304465 | F139: 0 | G139: 0 | H139: 0 | I139: 0 | J139: 0 | K139: 0 | L139: 0 | M139: 0 | N139: 0 | O139: 19.51736271 | P139: 0 | Q139: 0 | R139: 0 | S139: 0 | T139: 0 | U139: 0 | V139: 0 | W139: 0 | Y139: 19.8233626 | Z139: 7.312867286 | AA139: 0 | AB139: 0 | AC139: 0 | AD139: 0 | AE139: 27.13622988 | AF139: 27.13622988 | AG139: 27.13622988 | AH139: 27.13622988 | AI139: 8.763808337 | AK139: 3.257189502 | AM139: =OFFSET(X129,A139,A139) -> 27.13622988 | AO139: -0.004951271841 | AP139: -0.003083903624 | AQ139: 0.0006744064582 | AR139: -0.0004353090187 | AS139: -0.0002099103094 | AT139: 0 | AU139: 0.0007657723443 | AV139: 0.001459362968 | AW139: -0.01037394823 | AX139: 0.06678621326 | AY139: -0.0536861285 | BA139: 0.0006744064582 | BB139: -0.0004353090187 | BC139: -0.0002099103094 | BD139: 0 | BE139: -0.002318131279 | BF139: 0.001440178803 | BG139: 0.0003304633256 | BH139: 0.0005558620349 | BI139: -0.002726136529 | BJ139: -0.0008587683117 | BK139: 0.00289954177 | BL139: 0.001789826293 | BM139: -0.01310008476 | BN139: -0.01123271654 | BO139: -0.007474406457 | BP139: 0.0536861285 | BQ139: 0.05555349672 | BR139: 0 | BT139: 63.57174894 | BV139: -1.264903226 | BX139: =BV139-CA103/$K$1 -> -3.598907562
A140: 11 | B140: 28.59577687 | D140: 2.981910514 | F140: =IF($A140=F$4,IF($B140<0,-(EXP(-$D140)^(2-$H$1)),IF($B140=0,0,EXP($D140)^(2-$H$1))),0) -> 0 | G140: 0 | H140: 0 | I140: 0 | J140: 0 | K140: 0 | L140: 0 | M140: 0 | N140: 0 | O140: 0 | P140: =IF($A140=P$4,IF($B140<0,-(EXP(-$D140)^(2-$H$1)),IF($B140=0,0,EXP($D140)^(2-$H$1))),0) -> 19.72546646 | Q140: 0 | R140: 0 | S140: 0 | T140: 0 | U140: 0 | V140: 0 | W140: 0 | Y140: 8.763808337 | Z140: 0 | AA140: 0 | AB140: 0 | AC140: 0 | AD140: 0 | AE140: 8.763808337 | AF140: 8.763808337 | AG140: 8.763808337 | AH140: 8.763808337 | AI140: 8.763808337 | AK140: 3.431598761 | AM140: =OFFSET(X129,A140,A140) -> 8.763808337 | AO140: -0.006989250334 | AP140: 0.003456026179 | AQ140: -0.0002407189943 | AR140: 3.360181049e-05 | AS140: 0.0002352393632 | AT140: 0 | AU140: -0.0008581750898 | AV140: 0.002425719065 | AW140: 0.0005208424952 | AX140: -0.0536861285 | AY140: 0.172692637 | BA140: -0.0002407189943 | BB140: 3.360181049e-05 | BC140: 0.0002352393632 | BD140: 0 | BE140: 0.002597851089 | BF140: -0.001098894084 | BG140: -0.0008245732793 | BH140: -0.0006229357266 | BI140: -0.005421706359 | BJ140: 0.005023570154 | BK140: 0.001326824981 | BL140: 0.001601145786 | BM140: -0.004900863864 | BN140: 0.00554441265 | BO140: 0.001847667476 | BP140: -0.05858699236 | BQ140: -0.04814171585 | BR140: 0.1141056447 | BT140: 67.68988625 | BV140: -0.2326641414 | BX140: =BV140-CA103/$K$1 -> -2.566668477
A141: 12 | B141: 11.42263549 | D141: 3.107591475 | F141: 0 | G141: 0 | H141: 0 | I141: 0 | J141: 0 | K141: 0 | L141: 0 | M141: 0 | N141: 0 | O141: 0 | P141: 0 | Q141: 22.36710773 | R141: 0 | S141: 0 | T141: 0 | U141: 0 | V141: 0 | W141: 0 | AK141: 2.618280457 | BT141: 58.56336105
A142: 13 | B142: 38.40408185 | D142: 3.66819792 | F142: 0 | G142: 0 | H142: 0 | I142: 0 | J142: 0 | K142: 0 | L142: 0 | M142: 0 | N142: 0 | O142: 0 | P142: 0 | Q142: 0 | R142: 39.18123447 | S142: 0 | T142: 0 | U142: 0 | V142: 0 | W142: 0 | AK142: 3.648363103 | BT142: 142.9473702
A143: 14 | B143: 36.06948022 | D143: 3.254538665 | F143: 0 | G143: 0 | H143: 0 | I143: 0 | J143: 0 | K143: 0 | L143: 0 | M143: 0 | N143: 0 | O143: 0 | P143: 0 | Q143: 0 | R143: 0 | S143: 25.90765966 | T143: 0 | U143: 0 | V143: 0 | W143: 0 | AK143: 3.64677095 | BT143: 94.47930063
A144: 15 | B144: 16.79923195 | D144: 3.265144714 | F144: 0 | G144: 0 | H144: 0 | I144: 0 | J144: 0 | K144: 0 | L144: 0 | M144: 0 | N144: 0 | O144: 0 | P144: 0 | Q144: 0 | R144: 0 | S144: 0 | T144: 26.1838999 | U144: 0 | V144: 0 | W144: 0 | AK144: 2.906731033 | BT144: 76.1095544
A145: 16 | B145: 15.34226703 | D145: 2.403294693 | F145: 0 | G145: 0 | H145: 0 | I145: 0 | J145: 0 | K145: 0 | L145: 0 | M145: 0 | N145: 0 | O145: 0 | P145: 0 | Q145: 0 | R145: 0 | S145: 0 | T145: 0 | U145: 11.05955426 | V145: 0 | W145: 0 | AK145: 2.790535686 | BT145: 30.86208084
A146: 17 | B146: 3.030154519 | D146: 1.989635438 | F146: 0 | G146: 0 | H146: 0 | I146: 0 | J146: 0 | K146: 0 | L146: 0 | M146: 0 | N146: 0 | O146: 0 | P146: 0 | Q146: 0 | R146: 0 | S146: 0 | T146: 0 | U146: 0 | V146: 7.312867286 | W146: 0 | AK146: 1.403994731 | BT146: 10.26722714
A147: 18 | B147: 8.763808337 | D147: 2.170630552 | F147: 0 | G147: 0 | H147: 0 | I147: 0 | J147: 0 | K147: 0 | L147: 0 | M147: 0 | N147: 0 | O147: 0 | P147: 0 | Q147: 0 | R147: 0 | S147: 0 | T147: 0 | U147: 0 | V147: 0 | W147: 8.763808337 | AK147: 2.170630552 | BT147: 19.02299013
A148: 19
A149: 20
A150: 21
